{"text_format":"2","workbook":"xlsx","n_sheets":3,"sheets":["Tabelle1","Tabelle2","Tabelle3"],"not_rendered":{"charts":0,"images":0,"macros":0,"external_links":0,"defined_names":1,"comments":0,"pivot_tables":0},"unopened":[],"bounds":{"document_bytes":16777216,"sheet_cells":100000,"run_cost":"one","rows_first":2000,"rows_last":500,"rows_between":2000,"halvings":0,"cell_chars":16384,"cell_head_chars":4096},"cells_cut":0,"cells_raw":0,"read":"whole","date_system":"1900"}

{"sheet":"Tabelle1","index":0,"n_rows":2098,"n_cols":12,"rows_kept":2098,"cut":false,"hidden":false,"merged":[]}
["Ebene1","Ebene2","Ebene3","Ebene4","Ebene5","Ebene6","Ebene7","Ebene8","Ebene9","Ebene10","Konto Nr","Konto Bezeichnung"]
["Kontenklasse 0 Anlage-/ Kapitalvermögen","Aufwendungen für die Ingangsetzung und Erweiterung des Geschäftsbetriebs","0001 - Aufwendungen für die Ingangsetzung und Erweiterung des Geschäftsbetriebs",{"$nulls":7},{"$f":"MID(C2,1,4)","v":"0001"},{"$f":"MID(C2,8,255)","v":"Aufwendungen für die Ingangsetzung und Erweiterung des Geschäftsbetriebs"}]
["Kontenklasse 0 Anlage-/ Kapitalvermögen","Entgeltlich erworbene Konzessionen, gewerbliche Schutzrechte u.ä.","0010 - Entgeltlich erworbene Konzessionen, gewerbliche Schutzrechte und ähnliche Rechte und Werte sowie Lizenzen an solchen Rechten und Werten",{"$nulls":7},{"$f":"MID(C3,1,4)","v":"0010"},{"$f":"MID(C3,8,255)","v":"Entgeltlich erworbene Konzessionen, gewerbliche Schutzrechte und ähnliche Rechte und Werte sowie Lizenzen an solchen Rechten und Werten"}]
["Kontenklasse 0 Anlage-/ Kapitalvermögen","Entgeltlich erworbene Konzessionen, gewerbliche Schutzrechte u.ä.","0015 - Konzessionen",{"$nulls":7},"0015","Konzessionen"]
["Kontenklasse 0 Anlage-/ Kapitalvermögen","Entgeltlich erworbene Konzessionen, gewerbliche Schutzrechte u.ä.","0020 - Gewerbliche Schutzrechte",{"$nulls":7},"0020","Gewerbliche Schutzrechte"]
["Kontenklasse 0 Anlage-/ Kapitalvermögen","Entgeltlich erworbene Konzessionen, gewerbliche Schutzrechte u.ä.","0025 - Ähnliche Rechte und Werte",{"$nulls":7},"0025","Ähnliche Rechte und Werte"]
["Kontenklasse 0 Anlage-/ Kapitalvermögen","Entgeltlich erworbene Konzessionen, gewerbliche Schutzrechte u.ä.","0027 - EDV-Software",{"$nulls":7},"0027","EDV-Software"]
["Kontenklasse 0 Anlage-/ Kapitalvermögen","Entgeltlich erworbene Konzessionen, gewerbliche Schutzrechte u.ä.","0030 - Lizenzen an gewerblichen Schutzrechten und ähnlichen Rechten und Werten",{"$nulls":7},"0030","Lizenzen an gewerblichen Schutzrechten und ähnlichen Rechten und Werten"]
["Kontenklasse 0 Anlage-/ Kapitalvermögen","Entgeltlich erworbene Konzessionen, gewerbliche Schutzrechte u.ä.","0035 - Geschäfts- oder Firmenwert",{"$nulls":7},"0035","Geschäfts- oder Firmenwert"]
["Kontenklasse 0 Anlage-/ Kapitalvermögen","Entgeltlich erworbene Konzessionen, gewerbliche Schutzrechte u.ä.","0038 - Anzahlungen auf Geschäfts- oder Firmenwert",{"$nulls":7},"0038","Anzahlungen auf Geschäfts- oder Firmenwert"]
["Kontenklasse 0 Anlage-/ Kapitalvermögen","Entgeltlich erworbene Konzessionen, gewerbliche Schutzrechte u.ä.","0039 - Anzahlungen auf immaterielle Vermögensgegenstände",{"$nulls":7},"0039","Anzahlungen auf immaterielle Vermögensgegenstände"]
["Kontenklasse 0 Anlage-/ Kapitalvermögen","Entgeltlich erworbene Konzessionen, gewerbliche Schutzrechte u.ä.","0040 - Verschmelzungsmehrwert",{"$nulls":7},"0040","Verschmelzungsmehrwert"]
["Kontenklasse 0 Anlage-/ Kapitalvermögen","Entgeltlich erworbene Konzessionen, gewerbliche Schutzrechte u.ä.","0043 - Selbst geschaffene immaterielle Vermögensgegenstände",{"$nulls":7},"0043","Selbst geschaffene immaterielle Vermögensgegenstände"]
["Kontenklasse 0 Anlage-/ Kapitalvermögen","Entgeltlich erworbene Konzessionen, gewerbliche Schutzrechte u.ä.","0044 - EDV-Software",{"$nulls":7},"0044","EDV-Software"]
["Kontenklasse 0 Anlage-/ Kapitalvermögen","Entgeltlich erworbene Konzessionen, gewerbliche Schutzrechte u.ä.","0045 - Lizenzen und Franchiseverträge",{"$nulls":7},"0045","Lizenzen und Franchiseverträge"]
["Kontenklasse 0 Anlage-/ Kapitalvermögen","Entgeltlich erworbene Konzessionen, gewerbliche Schutzrechte u.ä.","0046 - Konzessionen und gewerbliche Schutzrechte",{"$nulls":7},"0046","Konzessionen und gewerbliche Schutzrechte"]
["Kontenklasse 0 Anlage-/ Kapitalvermögen","Entgeltlich erworbene Konzessionen, gewerbliche Schutzrechte u.ä.","0047 - Rezepte, Verfahren, Prototypen",{"$nulls":7},"0047","Rezepte, Verfahren, Prototypen"]
["Kontenklasse 0 Anlage-/ Kapitalvermögen","Entgeltlich erworbene Konzessionen, gewerbliche Schutzrechte u.ä.","0048 - Immaterielle Vermögensgegenstände in Entwicklung",{"$nulls":7},"0048","Immaterielle Vermögensgegenstände in Entwicklung"]
["Kontenklasse 0 Anlage-/ Kapitalvermögen","Grundstücke, grundstücksgleiche Rechte und Bauten","0050 - Grundstücke, grundstücksgleiche Rechte und Bauten einschließlich der Bauten auf fremden Grundstücken",{"$nulls":7},"0050","Grundstücke, grundstücksgleiche Rechte und Bauten einschließlich der Bauten auf fremden Grundstücken"]
["Kontenklasse 0 Anlage-/ Kapitalvermögen","Grundstücke, grundstücksgleiche Rechte und Bauten","0060 - Grundstücksgleiche Rechte ohne Bauten",{"$nulls":7},"0060","Grundstücksgleiche Rechte ohne Bauten"]
["Kontenklasse 0 Anlage-/ Kapitalvermögen","Grundstücke, grundstücksgleiche Rechte und Bauten","0065 - Unbebaute Grundstücke",{"$nulls":7},"0065","Unbebaute Grundstücke"]
["Kontenklasse 0 Anlage-/ Kapitalvermögen","Grundstücke, grundstücksgleiche Rechte und Bauten","0070 - Grundstücksgleiche Rechte (Erbbaurecht, Dauerwohnrecht)",{"$nulls":7},"0070","Grundstücksgleiche Rechte (Erbbaurecht, Dauerwohnrecht)"]
["Kontenklasse 0 Anlage-/ Kapitalvermögen","Grundstücke, grundstücksgleiche Rechte und Bauten","0075 - Grundstücke mit Substanzverzehr",{"$nulls":7},"0075","Grundstücke mit Substanzverzehr"]
["Kontenklasse 0 Anlage-/ Kapitalvermögen","Grundstücke, grundstücksgleiche Rechte und Bauten","0079 - Anzahlungen auf Grundstücke und grundstücksgleiche Rechte ohne Bauten",{"$nulls":7},"0079","Anzahlungen auf Grundstücke und grundstücksgleiche Rechte ohne Bauten"]
["Kontenklasse 0 Anlage-/ Kapitalvermögen","Geschäftsbauten auf eigenen Grundstücken","0080 - Bauten auf eigenen Grundstücken und grundstücksgleichen Rechten",{"$nulls":7},"0080","Bauten auf eigenen Grundstücken und grundstücksgleichen Rechten"]
["Kontenklasse 0 Anlage-/ Kapitalvermögen","Geschäftsbauten auf eigenen Grundstücken","0085 - Grundstückswerte eigener bebauter Grundstücke",{"$nulls":7},"0085","Grundstückswerte eigener bebauter Grundstücke"]
["Kontenklasse 0 Anlage-/ Kapitalvermögen","Geschäftsbauten auf eigenen Grundstücken","0090 - Geschäftsbauten",{"$nulls":7},"0090","Geschäftsbauten"]
["Kontenklasse 0 Anlage-/ Kapitalvermögen","Geschäftsbauten auf eigenen Grundstücken","0100 - Fabrikbauten",{"$nulls":7},"0100","Fabrikbauten"]
["Kontenklasse 0 Anlage-/ Kapitalvermögen","Geschäftsbauten auf eigenen Grundstücken","0110 - Garagen",{"$nulls":7},"0110","Garagen"]
["Kontenklasse 0 Anlage-/ Kapitalvermögen","Geschäftsbauten auf eigenen Grundstücken","0111 - Außenanlagen",{"$nulls":7},"0111","Außenanlagen"]
["Kontenklasse 0 Anlage-/ Kapitalvermögen","Geschäftsbauten auf eigenen Grundstücken","0112 - Hof- und Wegebefestigungen",{"$nulls":7},"0112","Hof- und Wegebefestigungen"]
["Kontenklasse 0 Anlage-/ Kapitalvermögen","Geschäftsbauten auf eigenen Grundstücken","0113 - Einrichtungen für Geschäfts- und Fabrikbauten",{"$nulls":7},"0113","Einrichtungen für Geschäfts- und Fabrikbauten"]
["Kontenklasse 0 Anlage-/ Kapitalvermögen","Geschäftsbauten auf eigenen Grundstücken","0115 - Andere Bauten",{"$nulls":7},"0115","Andere Bauten"]
["Kontenklasse 0 Anlage-/ Kapitalvermögen","Geleistete Anzahlungen und Anlagen im Bau","0120 - Geschäfts-, Fabrik- und andere Bauten im Bau",{"$nulls":7},"0120","Geschäfts-, Fabrik- und andere Bauten im Bau"]
["Kontenklasse 0 Anlage-/ Kapitalvermögen","Geleistete Anzahlungen und Anlagen im Bau","0129 - Anzahlungen auf Geschäfts-, Fabrik- und andere Bauten auf eigenen Grundstücken und grund-stücksgleichen Rechten",{"$nulls":7},"0129","Anzahlungen auf Geschäfts-, Fabrik- und andere Bauten auf eigenen Grundstücken und grund-stücksgleichen Rechten"]
["Kontenklasse 0 Anlage-/ Kapitalvermögen","Geleistete Anzahlungen und Anlagen im Bau","0150 - Wohnbauten im Bau",{"$nulls":7},"0150","Wohnbauten im Bau"]
["Kontenklasse 0 Anlage-/ Kapitalvermögen","Geleistete Anzahlungen und Anlagen im Bau","0159 - Anzahlungen auf Wohnbauten auf eigenen Grundstücken und grundstücksgleichen Rechten",{"$nulls":7},"0159","Anzahlungen auf Wohnbauten auf eigenen Grundstücken und grundstücksgleichen Rechten"]
["Kontenklasse 0 Anlage-/ Kapitalvermögen","Geleistete Anzahlungen und Anlagen im Bau","0180 - Geschäfts-, Fabrik- und andere Bauten im Bau",{"$nulls":7},"0180","Geschäfts-, Fabrik- und andere Bauten im Bau"]
["Kontenklasse 0 Anlage-/ Kapitalvermögen","Geleistete Anzahlungen und Anlagen im Bau","0189 - Anzahlung auf Geschäfts-, Fabrik- und andere Bauten auf fremden Grundstücken",{"$nulls":7},"0189","Anzahlung auf Geschäfts-, Fabrik- und andere Bauten auf fremden Grundstücken"]
["Kontenklasse 0 Anlage-/ Kapitalvermögen","Wohnbauten auf eigenen Grundstücken","0140 - Wohnbauten",{"$nulls":7},"0140","Wohnbauten"]
["Kontenklasse 0 Anlage-/ Kapitalvermögen","Wohnbauten auf eigenen Grundstücken","0145 - Garagen",{"$nulls":7},"0145","Garagen"]
["Kontenklasse 0 Anlage-/ Kapitalvermögen","Wohnbauten auf eigenen Grundstücken","0146 - Außenanlagen",{"$nulls":7},"0146","Außenanlagen"]
["Kontenklasse 0 Anlage-/ Kapitalvermögen","Wohnbauten auf eigenen Grundstücken","0147 - Hof- und Wegebefestigungen",{"$nulls":7},"0147","Hof- und Wegebefestigungen"]
["Kontenklasse 0 Anlage-/ Kapitalvermögen","Wohnbauten auf eigenen Grundstücken","0148 - Einrichtung für Wohnbauten",{"$nulls":7},"0148","Einrichtung für Wohnbauten"]
["Kontenklasse 0 Anlage-/ Kapitalvermögen","Geschäftsbauten auf fremden Grundstücken","0160 - Bauten auf fremden Grundstücken",{"$nulls":7},"0160","Bauten auf fremden Grundstücken"]
["Kontenklasse 0 Anlage-/ Kapitalvermögen","Geschäftsbauten auf fremden Grundstücken","0165 - Geschäftsbauten",{"$nulls":7},"0165","Geschäftsbauten"]
["Kontenklasse 0 Anlage-/ Kapitalvermögen","Geschäftsbauten auf fremden Grundstücken","0170 - Fabrikbauten",{"$nulls":7},"0170","Fabrikbauten"]
["Kontenklasse 0 Anlage-/ Kapitalvermögen","Geschäftsbauten auf fremden Grundstücken","0175 - Garagen",{"$nulls":7},"0175","Garagen"]
["Kontenklasse 0 Anlage-/ Kapitalvermögen","Geschäftsbauten auf fremden Grundstücken","0176 - Außenanlagen",{"$nulls":7},"0176","Außenanlagen"]
["Kontenklasse 0 Anlage-/ Kapitalvermögen","Geschäftsbauten auf fremden Grundstücken","0177 - Hof- und Wegebefestigungen",{"$nulls":7},"0177","Hof- und Wegebefestigungen"]
["Kontenklasse 0 Anlage-/ Kapitalvermögen","Geschäftsbauten auf fremden Grundstücken","0178 - Einrichtung für Geschäfts- und Fabrikbauten",{"$nulls":7},"0178","Einrichtung für Geschäfts- und Fabrikbauten"]
["Kontenklasse 0 Anlage-/ Kapitalvermögen","Geschäftsbauten auf fremden Grundstücken","0179 - Andere Bauten",{"$nulls":7},"0179","Andere Bauten"]
["Kontenklasse 0 Anlage-/ Kapitalvermögen","Wohnbauten auf fremden Grundstücken","0190 - Wohnbauten",{"$nulls":7},"0190","Wohnbauten"]
["Kontenklasse 0 Anlage-/ Kapitalvermögen","Wohnbauten auf fremden Grundstücken","0191 - Garagen",{"$nulls":7},"0191","Garagen"]
["Kontenklasse 0 Anlage-/ Kapitalvermögen","Wohnbauten auf fremden Grundstücken","0192 - Außenanlagen",{"$nulls":7},"0192","Außenanlagen"]
["Kontenklasse 0 Anlage-/ Kapitalvermögen","Wohnbauten auf fremden Grundstücken","0193 - Hof- und Wegebefestigungen",{"$nulls":7},"0193","Hof- und Wegebefestigungen"]
["Kontenklasse 0 Anlage-/ Kapitalvermögen","Wohnbauten auf fremden Grundstücken","0194 - Einrichtungen für Wohnbauten",{"$nulls":7},"0194","Einrichtungen für Wohnbauten"]
["Kontenklasse 0 Anlage-/ Kapitalvermögen","Geleistete Anzahlungen und Anlagen im Bau","0195 - Wohnbauten im Bau",{"$nulls":7},"0195","Wohnbauten im Bau"]
["Kontenklasse 0 Anlage-/ Kapitalvermögen","Geleistete Anzahlungen und Anlagen im Bau","0199 - Anzahlungen auf Wohnbauten auf fremden Grundstücken",{"$nulls":7},"0199","Anzahlungen auf Wohnbauten auf fremden Grundstücken"]
["Kontenklasse 0 Anlage-/ Kapitalvermögen","Technische Anlagen und Maschinen","0200 - Technische Anlagen und Maschinen",{"$nulls":7},"0200","Technische Anlagen und Maschinen"]
["Kontenklasse 0 Anlage-/ Kapitalvermögen","Technische Anlagen und Maschinen","0210 - Maschinen",{"$nulls":7},"0210","Maschinen"]
["Kontenklasse 0 Anlage-/ Kapitalvermögen","Technische Anlagen und Maschinen","0220 - Maschinengebundene Werkzeuge",{"$nulls":7},"0220","Maschinengebundene Werkzeuge"]
["Kontenklasse 0 Anlage-/ Kapitalvermögen","Technische Anlagen und Maschinen","0240 - Maschinelle Anlagen",{"$nulls":7},"0240","Maschinelle Anlagen"]
["Kontenklasse 0 Anlage-/ Kapitalvermögen","Technische Anlagen und Maschinen","0260 - Transportanlagen und Ähnliches",{"$nulls":7},"0260","Transportanlagen und Ähnliches"]
["Kontenklasse 0 Anlage-/ Kapitalvermögen","Technische Anlagen und Maschinen","0280 - Betriebsvorrichtungen",{"$nulls":7},"0280","Betriebsvorrichtungen"]
["Kontenklasse 0 Anlage-/ Kapitalvermögen","Technische Anlagen und Maschinen","0290 - Technische Anlagen und Maschinen im Bau",{"$nulls":7},"0290","Technische Anlagen und Maschinen im Bau"]
["Kontenklasse 0 Anlage-/ Kapitalvermögen","Technische Anlagen und Maschinen","0299 - Anzahlungen auf technische Anlagen und Maschinen",{"$nulls":7},{"$f":"MID(C67,1,4)","v":"0299"},{"$f":"MID(C67,8,255)","v":"Anzahlungen auf technische Anlagen und Maschinen"}]
["Kontenklasse 0 Anlage-/ Kapitalvermögen","Andere Anlagen, Betriebs- und Geschäftsausstattung","0300 - Andere Anlagen, Betriebs- und Geschäftsausstattung",{"$nulls":7},"0300","Andere Anlagen, Betriebs- und Geschäftsausstattung"]
["Kontenklasse 0 Anlage-/ Kapitalvermögen","Andere Anlagen, Betriebs- und Geschäftsausstattung","0310 - Andere Anlagen",{"$nulls":7},"0310","Andere Anlagen"]
["Kontenklasse 0 Anlage-/ Kapitalvermögen","Andere Anlagen, Betriebs- und Geschäftsausstattung","0320 - Pkw",{"$nulls":7},"0320","Pkw"]
["Kontenklasse 0 Anlage-/ Kapitalvermögen","Andere Anlagen, Betriebs- und Geschäftsausstattung","0321 - Vorführwagen (Pkw)",{"$nulls":7},"0321","Vorführwagen (Pkw)"]
["Kontenklasse 0 Anlage-/ Kapitalvermögen","Andere Anlagen, Betriebs- und Geschäftsausstattung","0322 - Eigene Vermietfahrzeuge (Pkw)",{"$nulls":7},"0322","Eigene Vermietfahrzeuge (Pkw)"]
["Kontenklasse 0 Anlage-/ Kapitalvermögen","Andere Anlagen, Betriebs- und Geschäftsausstattung","0323 - Werkstattersatzwagen (Pkw)",{"$nulls":7},"0323","Werkstattersatzwagen (Pkw)"]
["Kontenklasse 0 Anlage-/ Kapitalvermögen","Andere Anlagen, Betriebs- und Geschäftsausstattung","0350 - Lkw",{"$nulls":7},"0350","Lkw"]
["Kontenklasse 0 Anlage-/ Kapitalvermögen","Andere Anlagen, Betriebs- und Geschäftsausstattung","0351 - Vorführwagen (Lkw)",{"$nulls":7},"0351","Vorführwagen (Lkw)"]
["Kontenklasse 0 Anlage-/ Kapitalvermögen","Andere Anlagen, Betriebs- und Geschäftsausstattung","0352 - Eigene Vermietfahrzeuge (Lkw)",{"$nulls":7},"0352","Eigene Vermietfahrzeuge (Lkw)"]
["Kontenklasse 0 Anlage-/ Kapitalvermögen","Andere Anlagen, Betriebs- und Geschäftsausstattung","0353 - Werkstattersatzwagen (Lkw)",{"$nulls":7},"0353","Werkstattersatzwagen (Lkw)"]
["Kontenklasse 0 Anlage-/ Kapitalvermögen","Andere Anlagen, Betriebs- und Geschäftsausstattung","0360 - Sonstige Fahrzeuge",{"$nulls":7},"0360","Sonstige Fahrzeuge"]
["Kontenklasse 0 Anlage-/ Kapitalvermögen","Andere Anlagen, Betriebs- und Geschäftsausstattung","0361 - Vorführwagen (Sonstige Fahrzeuge)",{"$nulls":7},"0361","Vorführwagen (Sonstige Fahrzeuge)"]
["Kontenklasse 0 Anlage-/ Kapitalvermögen","Andere Anlagen, Betriebs- und Geschäftsausstattung","0362 - Eigene Vermietfahrzeuge (Sonstige Fahrzeuge)",{"$nulls":7},"0362","Eigene Vermietfahrzeuge (Sonstige Fahrzeuge)"]
["Kontenklasse 0 Anlage-/ Kapitalvermögen","Andere Anlagen, Betriebs- und Geschäftsausstattung","0363 - Werkstattersatzwagen (Sonstige Fahrzeuge)",{"$nulls":7},"0363","Werkstattersatzwagen (Sonstige Fahrzeuge)"]
["Kontenklasse 0 Anlage-/ Kapitalvermögen","Andere Anlagen, Betriebs- und Geschäftsausstattung","0380 - Sonstige Transportmittel",{"$nulls":7},"0380","Sonstige Transportmittel"]
["Kontenklasse 0 Anlage-/ Kapitalvermögen","Andere Anlagen, Betriebs- und Geschäftsausstattung","0381 - Eigene Leasingfahrzeuge (Autohaus Leasinggeber)",{"$nulls":7},"0381","Eigene Leasingfahrzeuge (Autohaus Leasinggeber)"]
["Kontenklasse 0 Anlage-/ Kapitalvermögen","Andere Anlagen, Betriebs- und Geschäftsausstattung","0400 - Betriebsausstattung",{"$nulls":7},"0400","Betriebsausstattung"]
["Kontenklasse 0 Anlage-/ Kapitalvermögen","Andere Anlagen, Betriebs- und Geschäftsausstattung","0410 - Geschäftsausstattung",{"$nulls":7},"0410","Geschäftsausstattung"]
["Kontenklasse 0 Anlage-/ Kapitalvermögen","Andere Anlagen, Betriebs- und Geschäftsausstattung","0420 - Büroeinrichtung",{"$nulls":7},"0420","Büroeinrichtung"]
["Kontenklasse 0 Anlage-/ Kapitalvermögen","Andere Anlagen, Betriebs- und Geschäftsausstattung","0430 - Ladeneinrichtung",{"$nulls":7},"0430","Ladeneinrichtung"]
["Kontenklasse 0 Anlage-/ Kapitalvermögen","Andere Anlagen, Betriebs- und Geschäftsausstattung","0440 - Werkzeuge",{"$nulls":7},"0440","Werkzeuge"]
["Kontenklasse 0 Anlage-/ Kapitalvermögen","Andere Anlagen, Betriebs- und Geschäftsausstattung","0450 - Einbauten",{"$nulls":7},"0450","Einbauten"]
["Kontenklasse 0 Anlage-/ Kapitalvermögen","Andere Anlagen, Betriebs- und Geschäftsausstattung","0480 - Geringwertige Wirtschaftsgüter",{"$nulls":7},"0480","Geringwertige Wirtschaftsgüter"]
["Kontenklasse 0 Anlage-/ Kapitalvermögen","Andere Anlagen, Betriebs- und Geschäftsausstattung","0485 - Wirtschaftsgüter größer 150 bis 1000 Euro (Sammelposten)",{"$nulls":7},"0485","Wirtschaftsgüter größer 150 bis 1000 Euro (Sammelposten)"]
["Kontenklasse 0 Anlage-/ Kapitalvermögen","Andere Anlagen, Betriebs- und Geschäftsausstattung","0490 - Sonstige Betriebs- und Geschäftsausstattung",{"$nulls":7},"0490","Sonstige Betriebs- und Geschäftsausstattung"]
["Kontenklasse 0 Anlage-/ Kapitalvermögen","Andere Anlagen, Betriebs- und Geschäftsausstattung","0498 - Andere Anlagen, Betriebs- und Geschäftsausstattung im Bau",{"$nulls":7},"0498","Andere Anlagen, Betriebs- und Geschäftsausstattung im Bau"]
["Kontenklasse 0 Anlage-/ Kapitalvermögen","Andere Anlagen, Betriebs- und Geschäftsausstattung","0499 - Anzahlungen auf andere Anlagen, Betriebs- und Geschäftsausstattung",{"$nulls":7},"0499","Anzahlungen auf andere Anlagen, Betriebs- und Geschäftsausstattung"]
["Kontenklasse 0 Anlage-/ Kapitalvermögen","Finanzanlagen","0500 - Anteile an verbundenen Unternehmen (Anlagevermögen)",{"$nulls":7},"0500","Anteile an verbundenen Unternehmen (Anlagevermögen)"]
["Kontenklasse 0 Anlage-/ Kapitalvermögen","Finanzanlagen","0501 - Anteile an verbundenen Unternehmen, Personengesellschaften",{"$nulls":7},"0501","Anteile an verbundenen Unternehmen, Personengesellschaften"]
["Kontenklasse 0 Anlage-/ Kapitalvermögen","Finanzanlagen","0502 - Anteile an verbundenen Unternehmen, Kapitalgesellschaften",{"$nulls":7},"0502","Anteile an verbundenen Unternehmen, Kapitalgesellschaften"]
["Kontenklasse 0 Anlage-/ Kapitalvermögen","Finanzanlagen","0503 - Anteile an herrschender oder mehrheitlich beteiligter Gesellschaft, Kapitalgesellschaften",{"$nulls":7},"0503","Anteile an herrschender oder mehrheitlich beteiligter Gesellschaft, Kapitalgesellschaften"]
["Kontenklasse 0 Anlage-/ Kapitalvermögen","Finanzanlagen","0504 - Anteile an herrschender oder mit Mehrheit beteiligter Gesellschaft",{"$nulls":7},"0504","Anteile an herrschender oder mit Mehrheit beteiligter Gesellschaft"]
["Kontenklasse 0 Anlage-/ Kapitalvermögen","Finanzanlagen","0505 - Ausleihungen an verbundene Unternehmen",{"$nulls":7},"0505","Ausleihungen an verbundene Unternehmen"]
["Kontenklasse 0 Anlage-/ Kapitalvermögen","Finanzanlagen","0506 - Ausleihungen an verbundene Unternehmen, Personengesellschaften",{"$nulls":7},"0506","Ausleihungen an verbundene Unternehmen, Personengesellschaften"]
["Kontenklasse 0 Anlage-/ Kapitalvermögen","Finanzanlagen","0507 - Ausleihungen an verbundene Unternehmen, Kapitalgesellschaften",{"$nulls":7},"0507","Ausleihungen an verbundene Unternehmen, Kapitalgesellschaften"]
["Kontenklasse 0 Anlage-/ Kapitalvermögen","Finanzanlagen","0508 - Ausleihungen an verbundene Unternehmen, Einzelunternehmen",{"$nulls":7},"0508","Ausleihungen an verbundene Unternehmen, Einzelunternehmen"]
["Kontenklasse 0 Anlage-/ Kapitalvermögen","Finanzanlagen","0509 - Anteile an herrschender oder mehrheitlich beteiligter Gesellschaft, Personengesellschaften",{"$nulls":7},"0509","Anteile an herrschender oder mehrheitlich beteiligter Gesellschaft, Personengesellschaften"]
["Kontenklasse 0 Anlage-/ Kapitalvermögen","Finanzanlagen","0510 - Beteiligungen",{"$nulls":7},"0510","Beteiligungen"]
["Kontenklasse 0 Anlage-/ Kapitalvermögen","Finanzanlagen","0513 - Typisch stille Beteiligungen",{"$nulls":7},"0513","Typisch stille Beteiligungen"]
["Kontenklasse 0 Anlage-/ Kapitalvermögen","Finanzanlagen","0516 - Atypische stille Beteiligungen",{"$nulls":7},"0516","Atypische stille Beteiligungen"]
["Kontenklasse 0 Anlage-/ Kapitalvermögen","Finanzanlagen","0517 - Beteiligungen an Kapitalgesellschaften",{"$nulls":7},"0517","Beteiligungen an Kapitalgesellschaften"]
["Kontenklasse 0 Anlage-/ Kapitalvermögen","Finanzanlagen","0518 - Beteiligungen an Personengesellschaften",{"$nulls":7},"0518","Beteiligungen an Personengesellschaften"]
["Kontenklasse 0 Anlage-/ Kapitalvermögen","Finanzanlagen","0519 - Beteiligung einer GmbH & Co. KG an einer Komplementär GmbH",{"$nulls":7},"0519","Beteiligung einer GmbH & Co. KG an einer Komplementär GmbH"]
["Kontenklasse 0 Anlage-/ Kapitalvermögen","Finanzanlagen","0520 - Ausleihungen an Unternehmen, mit denen ein Beteiligungsverhältnis besteht",{"$nulls":7},"0520","Ausleihungen an Unternehmen, mit denen ein Beteiligungsverhältnis besteht"]
["Kontenklasse 0 Anlage-/ Kapitalvermögen","Finanzanlagen","0523 - Ausleihungen an Unternehmen, mit denen ein Beteiligungsverhältnis besteht, Personengesellschaften",{"$nulls":7},"0523","Ausleihungen an Unternehmen, mit denen ein Beteiligungsverhältnis besteht, Personengesellschaften"]
["Kontenklasse 0 Anlage-/ Kapitalvermögen","Finanzanlagen","0524 - Ausleihungen an Unternehmen, mit denen ein Beteiligungsverhältnis besteht, Kapitalgesellschaften",{"$nulls":7},"0524","Ausleihungen an Unternehmen, mit denen ein Beteiligungsverhältnis besteht, Kapitalgesellschaften"]
["Kontenklasse 0 Anlage-/ Kapitalvermögen","Finanzanlagen","0525 - Wertpapiere des Anlagevermögens",{"$nulls":7},"0525","Wertpapiere des Anlagevermögens"]
["Kontenklasse 0 Anlage-/ Kapitalvermögen","Finanzanlagen","0530 - Wertpapiere mit Gewinnbeteiligungsanspruch, die dem Teileinkünfteverfahren unterliegen",{"$nulls":7},"0530","Wertpapiere mit Gewinnbeteiligungsanspruch, die dem Teileinkünfteverfahren unterliegen"]
["Kontenklasse 0 Anlage-/ Kapitalvermögen","Finanzanlagen","0535 - Festverzinsliche Wertpapiere",{"$nulls":7},"0535","Festverzinsliche Wertpapiere"]
["Kontenklasse 0 Anlage-/ Kapitalvermögen","Finanzanlagen","0540 - Sonstige Ausleihungen",{"$nulls":7},"0540","Sonstige Ausleihungen"]
["Kontenklasse 0 Anlage-/ Kapitalvermögen","Finanzanlagen","0550 - Darlehen",{"$nulls":7},"0550","Darlehen"]
["Kontenklasse 0 Anlage-/ Kapitalvermögen","Finanzanlagen","0570 - Genossenschaftsanteile zum langfristigen Verbleib",{"$nulls":7},"0570","Genossenschaftsanteile zum langfristigen Verbleib"]
["Kontenklasse 0 Anlage-/ Kapitalvermögen","Finanzanlagen","0580 - Ausleihungen an Gesellschafter",{"$nulls":7},"0580","Ausleihungen an Gesellschafter"]
["Kontenklasse 0 Anlage-/ Kapitalvermögen","Finanzanlagen","0582 - Ausleihungen an GmbH-Gesellschafter",{"$nulls":7},"0582","Ausleihungen an GmbH-Gesellschafter"]
["Kontenklasse 0 Anlage-/ Kapitalvermögen","Finanzanlagen","0583 - Ausleihungen an stille Gesellschafter",{"$nulls":7},"0583","Ausleihungen an stille Gesellschafter"]
["Kontenklasse 0 Anlage-/ Kapitalvermögen","Finanzanlagen","0584 - Ausleihungen an persönlich haftende Gesellschafter",{"$nulls":7},"0584","Ausleihungen an persönlich haftende Gesellschafter"]
["Kontenklasse 0 Anlage-/ Kapitalvermögen","Finanzanlagen","0586 - Ausleihungen an Kommanditisten",{"$nulls":7},"0586","Ausleihungen an Kommanditisten"]
["Kontenklasse 0 Anlage-/ Kapitalvermögen","Finanzanlagen","0590 - Ausleihungen an nahe stehende Personen",{"$nulls":7},"0590","Ausleihungen an nahe stehende Personen"]
["Kontenklasse 0 Anlage-/ Kapitalvermögen","Finanzanlagen","0595 - Rückdeckungsansprüche aus Lebensversicherungen zum langfristigen Verbleib",{"$nulls":7},"0595","Rückdeckungsansprüche aus Lebensversicherungen zum langfristigen Verbleib"]
["Kontenklasse 0 Anlage-/ Kapitalvermögen","Verbindlichkeiten","0600 - Anleihen nicht konvertibel",{"$nulls":7},"0600","Anleihen nicht konvertibel"]
["Kontenklasse 0 Anlage-/ Kapitalvermögen","Verbindlichkeiten","0601 - Anleihen, nicht konvertibel (b. 1 Jahr)",{"$nulls":7},"0601","Anleihen, nicht konvertibel (b. 1 Jahr)"]
["Kontenklasse 0 Anlage-/ Kapitalvermögen","Verbindlichkeiten","0605 - Anleihen, nicht konvertibel (1-5 Jahre)",{"$nulls":7},"0605","Anleihen, nicht konvertibel (1-5 Jahre)"]
["Kontenklasse 0 Anlage-/ Kapitalvermögen","Verbindlichkeiten","0610 - Anleihen, nicht konvertibel (g. 5 Jahre)",{"$nulls":7},"0610","Anleihen, nicht konvertibel (g. 5 Jahre)"]
["Kontenklasse 0 Anlage-/ Kapitalvermögen","Verbindlichkeiten","0615 - Anleihen konvertibel",{"$nulls":7},{"$f":"MID(C131,1,4)","v":"0615"},{"$f":"MID(C131,8,255)","v":"Anleihen konvertibel"}]
["Kontenklasse 0 Anlage-/ Kapitalvermögen","Verbindlichkeiten","0616 - Anleihen, konvertibel (b. 1 Jahr)",{"$nulls":7},"0616","Anleihen, konvertibel (b. 1 Jahr)"]
["Kontenklasse 0 Anlage-/ Kapitalvermögen","Verbindlichkeiten","0620 - Anleihen, konvertibel (1-5 Jahre)",{"$nulls":7},"0620","Anleihen, konvertibel (1-5 Jahre)"]
["Kontenklasse 0 Anlage-/ Kapitalvermögen","Verbindlichkeiten","0625 - Anleihen, konvertibel (g. 5 Jahre)",{"$nulls":7},"0625","Anleihen, konvertibel (g. 5 Jahre)"]
["Kontenklasse 0 Anlage-/ Kapitalvermögen","Verbindlichkeiten","0630 - Verbindlichkeiten gegenüber Kreditinstituten",{"$nulls":7},"0630","Verbindlichkeiten gegenüber Kreditinstituten"]
["Kontenklasse 0 Anlage-/ Kapitalvermögen","Verbindlichkeiten","0631 - Verbindlichkeiten Kreditinstitut(b.1J)",{"$nulls":7},"0631","Verbindlichkeiten Kreditinstitut(b.1J)"]
["Kontenklasse 0 Anlage-/ Kapitalvermögen","Verbindlichkeiten","0640 - Verbindlichkeiten Kreditinstitut(1-5J)",{"$nulls":7},"0640","Verbindlichkeiten Kreditinstitut(1-5J)"]
["Kontenklasse 0 Anlage-/ Kapitalvermögen","Verbindlichkeiten","0650 - Verbindlichkeiten Kreditinstitut(g.5J)",{"$nulls":7},"0650","Verbindlichkeiten Kreditinstitut(g.5J)"]
["Kontenklasse 0 Anlage-/ Kapitalvermögen","Verbindlichkeiten","0660 - Verbindlichkeiten gegenüber Kreditinstituten aus Teilzahlungsverträgen",{"$nulls":7},"0660","Verbindlichkeiten gegenüber Kreditinstituten aus Teilzahlungsverträgen"]
["Kontenklasse 0 Anlage-/ Kapitalvermögen","Verbindlichkeiten","0661 - TZ-Verbindlichkeit. Kreditinstitut,b.1 J",{"$nulls":7},"0661","TZ-Verbindlichkeit. Kreditinstitut,b.1 J"]
["Kontenklasse 0 Anlage-/ Kapitalvermögen","Verbindlichkeiten","0670 - TZ-Verbindlichkeit. Kreditinstitut,1-5 J",{"$nulls":7},"0670","TZ-Verbindlichkeit. Kreditinstitut,1-5 J"]
["Kontenklasse 0 Anlage-/ Kapitalvermögen","Verbindlichkeiten","0680 - TZ-Verbindlichkeit. Kreditinstitut,g.5 J",{"$nulls":7},"0680","TZ-Verbindlichkeit. Kreditinstitut,g.5 J"]
["Kontenklasse 0 Anlage-/ Kapitalvermögen","Verbindlichkeiten","0699 - Gegenkonto für 0630-0689 bei Aufteilung der Konten 0690-0698",{"$nulls":7},"0699","Gegenkonto für 0630-0689 bei Aufteilung der Konten 0690-0698"]
["Kontenklasse 0 Anlage-/ Kapitalvermögen","Verbindlichkeiten","0700 - Verbindlichkeiten gegenüber verbundenen Unternehmen",{"$nulls":7},"0700","Verbindlichkeiten gegenüber verbundenen Unternehmen"]
["Kontenklasse 0 Anlage-/ Kapitalvermögen","Verbindlichkeiten","0701 - Verbindlichkeit. gg.verbundene UN(b.1 J)",{"$nulls":7},"0701","Verbindlichkeit. gg.verbundene UN(b.1 J)"]
["Kontenklasse 0 Anlage-/ Kapitalvermögen","Verbindlichkeiten","0705 - Verbindlichkeit. gg.verbundene UN(1-5 J)",{"$nulls":7},"0705","Verbindlichkeit. gg.verbundene UN(1-5 J)"]
["Kontenklasse 0 Anlage-/ Kapitalvermögen","Verbindlichkeiten","0710 - Verbindlichkeit. gg.verbundene UN(g.5 J)",{"$nulls":7},"0710","Verbindlichkeit. gg.verbundene UN(g.5 J)"]
["Kontenklasse 0 Anlage-/ Kapitalvermögen","Verbindlichkeiten","0715 - Verbindlichkeiten gegenüber Unternehmen, mit denen ein Beteiligungsverhältnis besteht",{"$nulls":7},"0715","Verbindlichkeiten gegenüber Unternehmen, mit denen ein Beteiligungsverhältnis besteht"]
["Kontenklasse 0 Anlage-/ Kapitalvermögen","Verbindlichkeiten","0716 - Verbindl. gg.UN mit Beteiligg.verh. b.1J",{"$nulls":7},"0716","Verbindl. gg.UN mit Beteiligg.verh. b.1J"]
["Kontenklasse 0 Anlage-/ Kapitalvermögen","Verbindlichkeiten","0720 - Verbindl. gg.UN mit Beteiligg.verh. 1-5J",{"$nulls":7},"0720","Verbindl. gg.UN mit Beteiligg.verh. 1-5J"]
["Kontenklasse 0 Anlage-/ Kapitalvermögen","Verbindlichkeiten","0725 - Verbindl. gg.UN mit Beteiligg.verh. g.5J",{"$nulls":7},"0725","Verbindl. gg.UN mit Beteiligg.verh. g.5J"]
["Kontenklasse 0 Anlage-/ Kapitalvermögen","Verbindlichkeiten","0730 - Verbindlichkeiten gegenüber Gesellschaftern",{"$nulls":7},"0730","Verbindlichkeiten gegenüber Gesellschaftern"]
["Kontenklasse 0 Anlage-/ Kapitalvermögen","Verbindlichkeiten","0731 - Verbindlichkeit.gg. Gesellschaftern b.1J",{"$nulls":7},"0731","Verbindlichkeit.gg. Gesellschaftern b.1J"]
["Kontenklasse 0 Anlage-/ Kapitalvermögen","Verbindlichkeiten","0740 - Verbindlichkeit.gg. Gesellschaftern 1-5J",{"$nulls":7},"0740","Verbindlichkeit.gg. Gesellschaftern 1-5J"]
["Kontenklasse 0 Anlage-/ Kapitalvermögen","Verbindlichkeiten","0750 - Verbindlichkeit.gg. Gesellschaftern g.5J",{"$nulls":7},"0750","Verbindlichkeit.gg. Gesellschaftern g.5J"]
["Kontenklasse 0 Anlage-/ Kapitalvermögen","Verbindlichkeiten","0755 - Verbindlichkeiten gegenüber Gesellschaftern für offene Ausschüttungen",{"$nulls":7},"0755","Verbindlichkeiten gegenüber Gesellschaftern für offene Ausschüttungen"]
["Kontenklasse 0 Anlage-/ Kapitalvermögen","Verbindlichkeiten","0760 - Darlehen typisch stiller Gesellschafter",{"$nulls":7},"0760","Darlehen typisch stiller Gesellschafter"]
["Kontenklasse 0 Anlage-/ Kapitalvermögen","Verbindlichkeiten","0761 - Darlehen typ. stiller Gesellsch.(b.1J)",{"$nulls":7},"0761","Darlehen typ. stiller Gesellsch.(b.1J)"]
["Kontenklasse 0 Anlage-/ Kapitalvermögen","Verbindlichkeiten","0764 - Darlehen typ. stiller Gesellsch.(1-5J)",{"$nulls":7},"0764","Darlehen typ. stiller Gesellsch.(1-5J)"]
["Kontenklasse 0 Anlage-/ Kapitalvermögen","Verbindlichkeiten","0767 - Darlehen typ. stiller Gesellsch.(g.5J)",{"$nulls":7},"0767","Darlehen typ. stiller Gesellsch.(g.5J)"]
["Kontenklasse 0 Anlage-/ Kapitalvermögen","Verbindlichkeiten","0770 - Darlehen atypisch stiller Gesellschafter",{"$nulls":7},"0770","Darlehen atypisch stiller Gesellschafter"]
["Kontenklasse 0 Anlage-/ Kapitalvermögen","Verbindlichkeiten","0771 - Darlehen atyp. stiller Gesellsch.(b.1J)",{"$nulls":7},"0771","Darlehen atyp. stiller Gesellsch.(b.1J)"]
["Kontenklasse 0 Anlage-/ Kapitalvermögen","Verbindlichkeiten","0774 - Darlehen atyp. stiller Gesellsch.(1-5J)",{"$nulls":7},"0774","Darlehen atyp. stiller Gesellsch.(1-5J)"]
["Kontenklasse 0 Anlage-/ Kapitalvermögen","Verbindlichkeiten","0777 - Darlehen atyp. stiller Gesellsch.(g.5J)",{"$nulls":7},"0777","Darlehen atyp. stiller Gesellsch.(g.5J)"]
["Kontenklasse 0 Anlage-/ Kapitalvermögen","Verbindlichkeiten","0780 - Partiarisches Darlehen",{"$nulls":7},"0780","Partiarisches Darlehen"]
["Kontenklasse 0 Anlage-/ Kapitalvermögen","Verbindlichkeiten","0781 - Partiarisches Darlehen (bis 1 Jahr)",{"$nulls":7},"0781","Partiarisches Darlehen (bis 1 Jahr)"]
["Kontenklasse 0 Anlage-/ Kapitalvermögen","Verbindlichkeiten","0784 - Partiarisches Darlehen (1-5 Jahre)",{"$nulls":7},"0784","Partiarisches Darlehen (1-5 Jahre)"]
["Kontenklasse 0 Anlage-/ Kapitalvermögen","Verbindlichkeiten","0787 - Partiarisches Darlehen (g. 5 Jahre)",{"$nulls":7},"0787","Partiarisches Darlehen (g. 5 Jahre)"]
["Kontenklasse 0 Anlage-/ Kapitalvermögen","Verbindlichkeiten","0799 - Gegenkonto 0730-0789 und 1665-1678 und 1695-1698 bei Aufteilung der Konten 0790-0798",{"$nulls":7},"0799","Gegenkonto 0730-0789 und 1665-1678 und 1695-1698 bei Aufteilung der Konten 0790-0798"]
["Kontenklasse 0 Anlage-/ Kapitalvermögen","Kapital (Kapitalgesellschaften)","0800 - Gezeichnetes Kapital",{"$nulls":7},"0800","Gezeichnetes Kapital"]
["Kontenklasse 0 Anlage-/ Kapitalvermögen","Kapital (Kapitalgesellschaften)","0809 - Kapitalerhöhung aus Gesellschaftsmitteln",{"$nulls":7},"0809","Kapitalerhöhung aus Gesellschaftsmitteln"]
["Kontenklasse 0 Anlage-/ Kapitalvermögen","Kapital (Kapitalgesellschaften)","0819 - Erworbene eigene Anteile",{"$nulls":7},"0819","Erworbene eigene Anteile"]
["Kontenklasse 0 Anlage-/ Kapitalvermögen","Kapital (Kapitalgesellschaften)","0820 - Ausstehende Einlagen auf das gezeichnete Kapital, nicht eingefordert",{"$nulls":7},"0820","Ausstehende Einlagen auf das gezeichnete Kapital, nicht eingefordert"]
["Kontenklasse 0 Anlage-/ Kapitalvermögen","Kapital (Kapitalgesellschaften)","0830 - Ausstehende Einlagen auf das gezeichnete Kapital, eingefordert",{"$nulls":7},"0830","Ausstehende Einlagen auf das gezeichnete Kapital, eingefordert"]
["Kontenklasse 0 Anlage-/ Kapitalvermögen","Kapital (Kapitalgesellschaften)","0839 - Nachschüsse (Forderungen, Gegenkonto 0845)",{"$nulls":7},"0839","Nachschüsse (Forderungen, Gegenkonto 0845)"]
["Kontenklasse 0 Anlage-/ Kapitalvermögen","Kapital (Kapitalgesellschaften)","0840 - Kapitalrücklage",{"$nulls":7},"0840","Kapitalrücklage"]
["Kontenklasse 0 Anlage-/ Kapitalvermögen","Kapital (Kapitalgesellschaften)","0841 - Kapitalrücklage durch Ausgabe von Anteilen über Nennbetrag",{"$nulls":7},"0841","Kapitalrücklage durch Ausgabe von Anteilen über Nennbetrag"]
["Kontenklasse 0 Anlage-/ Kapitalvermögen","Kapital (Kapitalgesellschaften)","0842 - Kapitalrücklage durch Ausgabe von Schuldverschreibungen für Wandlungsrechte und Optionsrechte zum Erwerb von Anteilen",{"$nulls":7},"0842","Kapitalrücklage durch Ausgabe von Schuldverschreibungen für Wandlungsrechte und Optionsrechte zum Erwerb von Anteilen"]
["Kontenklasse 0 Anlage-/ Kapitalvermögen","Kapital (Kapitalgesellschaften)","0843 - Kapitalrücklage durch Zuzahlungen gegen Gewährung eines Vorzugs für Anteile",{"$nulls":7},"0843","Kapitalrücklage durch Zuzahlungen gegen Gewährung eines Vorzugs für Anteile"]
["Kontenklasse 0 Anlage-/ Kapitalvermögen","Kapital (Kapitalgesellschaften)","0844 - Kapitalrücklage durch andere Zuzahlungen in das Eigenkapital",{"$nulls":7},"0844","Kapitalrücklage durch andere Zuzahlungen in das Eigenkapital"]
["Kontenklasse 0 Anlage-/ Kapitalvermögen","Kapital (Kapitalgesellschaften)","0845 - Nachschusskapital (Gegenkonto 0839)",{"$nulls":7},"0845","Nachschusskapital (Gegenkonto 0839)"]
["Kontenklasse 0 Anlage-/ Kapitalvermögen","Kapital (Kapitalgesellschaften)","0846 - Gesetzliche Rücklage",{"$nulls":7},"0846","Gesetzliche Rücklage"]
["Kontenklasse 0 Anlage-/ Kapitalvermögen","Kapital (Kapitalgesellschaften)","0848 - Andere Gewinnrücklagen aus dem Erwerb eigener Anteile",{"$nulls":7},"0848","Andere Gewinnrücklagen aus dem Erwerb eigener Anteile"]
["Kontenklasse 0 Anlage-/ Kapitalvermögen","Kapital (Kapitalgesellschaften)","0849 - Rücklage für Anteile an einem herrschenden oder mehrheitlich beteiligten Unternehmen",{"$nulls":7},"0849","Rücklage für Anteile an einem herrschenden oder mehrheitlich beteiligten Unternehmen"]
["Kontenklasse 0 Anlage-/ Kapitalvermögen","Kapital (Kapitalgesellschaften)","0851 - Satzungsmäßige Rücklagen",{"$nulls":7},"0851","Satzungsmäßige Rücklagen"]
["Kontenklasse 0 Anlage-/ Kapitalvermögen","Kapital (Kapitalgesellschaften)","0853 - Gewinnrücklagen aus den Übergangsvorschriften BilMoG",{"$nulls":7},"0853","Gewinnrücklagen aus den Übergangsvorschriften BilMoG"]
["Kontenklasse 0 Anlage-/ Kapitalvermögen","Kapital (Kapitalgesellschaften)","0854 - Gewinnrücklagen aus den Übergangsvorschriften BilMoG (Zuschreibung Sachanlagevermögen)",{"$nulls":7},"0854","Gewinnrücklagen aus den Übergangsvorschriften BilMoG (Zuschreibung Sachanlagevermögen)"]
["Kontenklasse 0 Anlage-/ Kapitalvermögen","Kapital (Kapitalgesellschaften)","0855 - Andere Gewinnrücklagen",{"$nulls":7},"0855","Andere Gewinnrücklagen"]
["Kontenklasse 0 Anlage-/ Kapitalvermögen","Kapital (Kapitalgesellschaften)","0856 - Eigenkapitalanteil von Wertaufholungen",{"$nulls":7},"0856","Eigenkapitalanteil von Wertaufholungen"]
["Kontenklasse 0 Anlage-/ Kapitalvermögen","Kapital (Kapitalgesellschaften)","0857 - Gewinnrücklagen aus den Übergangsvorschriften BilMoG (Zuschreibung Finanzanlagevermögen)",{"$nulls":7},"0857","Gewinnrücklagen aus den Übergangsvorschriften BilMoG (Zuschreibung Finanzanlagevermögen)"]
["Kontenklasse 0 Anlage-/ Kapitalvermögen","Kapital (Kapitalgesellschaften)","0858 - Gewinnrücklagen aus den Übergangsvorschriften BilMoG (Auflösung der Sonderposten mit Rücklageanteil)",{"$nulls":7},"0858","Gewinnrücklagen aus den Übergangsvorschriften BilMoG (Auflösung der Sonderposten mit Rücklageanteil)"]
["Kontenklasse 0 Anlage-/ Kapitalvermögen","Kapital (Kapitalgesellschaften)","0859 - Latente Steuern (Gewinnrücklage Haben) aus erfolgsneutralen Verrechnungen",{"$nulls":7},"0859","Latente Steuern (Gewinnrücklage Haben) aus erfolgsneutralen Verrechnungen"]
["Kontenklasse 0 Anlage-/ Kapitalvermögen","Kapital (Kapitalgesellschaften)","0860 - Gewinnvortrag vor Verwendung",{"$nulls":7},"0860","Gewinnvortrag vor Verwendung"]
["Kontenklasse 0 Anlage-/ Kapitalvermögen","Kapital (Kapitalgesellschaften)","0868 - Verlustvortrag vor Verwendung",{"$nulls":7},"0868","Verlustvortrag vor Verwendung"]
["Kontenklasse 0 Anlage-/ Kapitalvermögen","Kapital (Kapitalgesellschaften)","0869 - Vortrag auf neue Rechnung (Bilanz)",{"$nulls":7},{"$f":"MID(C195,1,4)","v":"0869"},{"$f":"MID(C195,8,255)","v":"Vortrag auf neue Rechnung (Bilanz)"}]
["Kontenklasse 0 Anlage-/ Kapitalvermögen","Kapital (EU, Personengesellschaft)",{"$nulls":8},"",""]
["Kontenklasse 0 Anlage-/ Kapitalvermögen","Eigenkapitalanteil Vollhafter/Einzelunternehmer","0870 - Festkapital",{"$nulls":7},"0870","Festkapital"]
["Kontenklasse 0 Anlage-/ Kapitalvermögen","Eigenkapitalanteil Vollhafter/Einzelunternehmer","0871 - Festkapital",{"$nulls":7},"0871","Festkapital"]
["Kontenklasse 0 Anlage-/ Kapitalvermögen","Eigenkapitalanteil Vollhafter/Einzelunternehmer","0872 - Festkapital",{"$nulls":7},"0872","Festkapital"]
["Kontenklasse 0 Anlage-/ Kapitalvermögen","Eigenkapitalanteil Vollhafter/Einzelunternehmer","0873 - Festkapital",{"$nulls":7},"0873","Festkapital"]
["Kontenklasse 0 Anlage-/ Kapitalvermögen","Eigenkapitalanteil Vollhafter/Einzelunternehmer","0874 - Festkapital",{"$nulls":7},"0874","Festkapital"]
["Kontenklasse 0 Anlage-/ Kapitalvermögen","Eigenkapitalanteil Vollhafter/Einzelunternehmer","0875 - Festkapital",{"$nulls":7},"0875","Festkapital"]
["Kontenklasse 0 Anlage-/ Kapitalvermögen","Eigenkapitalanteil Vollhafter/Einzelunternehmer","0876 - Festkapital",{"$nulls":7},"0876","Festkapital"]
["Kontenklasse 0 Anlage-/ Kapitalvermögen","Eigenkapitalanteil Vollhafter/Einzelunternehmer","0877 - Festkapital",{"$nulls":7},"0877","Festkapital"]
["Kontenklasse 0 Anlage-/ Kapitalvermögen","Eigenkapitalanteil Vollhafter/Einzelunternehmer","0878 - Festkapital",{"$nulls":7},"0878","Festkapital"]
["Kontenklasse 0 Anlage-/ Kapitalvermögen","Eigenkapitalanteil Vollhafter/Einzelunternehmer","0879 - Festkapital",{"$nulls":7},"0879","Festkapital"]
["Kontenklasse 0 Anlage-/ Kapitalvermögen","Eigenkapitalanteil Vollhafter/Einzelunternehmer","0880 - Variables Kapital",{"$nulls":7},"0880","Variables Kapital"]
["Kontenklasse 0 Anlage-/ Kapitalvermögen","Eigenkapitalanteil Vollhafter/Einzelunternehmer","0881 - Variables Kapital",{"$nulls":7},"0881","Variables Kapital"]
["Kontenklasse 0 Anlage-/ Kapitalvermögen","Eigenkapitalanteil Vollhafter/Einzelunternehmer","0882 - Variables Kapital",{"$nulls":7},"0882","Variables Kapital"]
["Kontenklasse 0 Anlage-/ Kapitalvermögen","Eigenkapitalanteil Vollhafter/Einzelunternehmer","0883 - Variables Kapital",{"$nulls":7},"0883","Variables Kapital"]
["Kontenklasse 0 Anlage-/ Kapitalvermögen","Eigenkapitalanteil Vollhafter/Einzelunternehmer","0884 - Variables Kapital",{"$nulls":7},"0884","Variables Kapital"]
["Kontenklasse 0 Anlage-/ Kapitalvermögen","Eigenkapitalanteil Vollhafter/Einzelunternehmer","0885 - Variables Kapital",{"$nulls":7},"0885","Variables Kapital"]
["Kontenklasse 0 Anlage-/ Kapitalvermögen","Eigenkapitalanteil Vollhafter/Einzelunternehmer","0886 - Variables Kapital",{"$nulls":7},"0886","Variables Kapital"]
["Kontenklasse 0 Anlage-/ Kapitalvermögen","Eigenkapitalanteil Vollhafter/Einzelunternehmer","0887 - Variables Kapital",{"$nulls":7},"0887","Variables Kapital"]
["Kontenklasse 0 Anlage-/ Kapitalvermögen","Eigenkapitalanteil Vollhafter/Einzelunternehmer","0888 - Variables Kapital",{"$nulls":7},"0888","Variables Kapital"]
["Kontenklasse 0 Anlage-/ Kapitalvermögen","Eigenkapitalanteil Vollhafter/Einzelunternehmer","0889 - Variables Kapital",{"$nulls":7},"0889","Variables Kapital"]
["Kontenklasse 0 Anlage-/ Kapitalvermögen","Fremdkapital Vollhafter","0890 - Gesellschafter-Darlehen",{"$nulls":7},"0890","Gesellschafter-Darlehen"]
["Kontenklasse 0 Anlage-/ Kapitalvermögen","Fremdkapital Vollhafter","0891 - Gesellschafter-Darlehen",{"$nulls":7},"0891","Gesellschafter-Darlehen"]
["Kontenklasse 0 Anlage-/ Kapitalvermögen","Fremdkapital Vollhafter","0892 - Gesellschafter-Darlehen",{"$nulls":7},"0892","Gesellschafter-Darlehen"]
["Kontenklasse 0 Anlage-/ Kapitalvermögen","Fremdkapital Vollhafter","0893 - Gesellschafter-Darlehen",{"$nulls":7},"0893","Gesellschafter-Darlehen"]
["Kontenklasse 0 Anlage-/ Kapitalvermögen","Fremdkapital Vollhafter","0894 - Gesellschafter-Darlehen",{"$nulls":7},"0894","Gesellschafter-Darlehen"]
["Kontenklasse 0 Anlage-/ Kapitalvermögen","Fremdkapital Vollhafter","0895 - Gesellschafter-Darlehen",{"$nulls":7},"0895","Gesellschafter-Darlehen"]
["Kontenklasse 0 Anlage-/ Kapitalvermögen","Fremdkapital Vollhafter","0896 - Gesellschafter-Darlehen",{"$nulls":7},"0896","Gesellschafter-Darlehen"]
["Kontenklasse 0 Anlage-/ Kapitalvermögen","Fremdkapital Vollhafter","0897 - Gesellschafter-Darlehen",{"$nulls":7},"0897","Gesellschafter-Darlehen"]
["Kontenklasse 0 Anlage-/ Kapitalvermögen","Fremdkapital Vollhafter","0898 - Gesellschafter-Darlehen",{"$nulls":7},"0898","Gesellschafter-Darlehen"]
["Kontenklasse 0 Anlage-/ Kapitalvermögen","Fremdkapital Vollhafter","0899 - Gesellschafter-Darlehen",{"$nulls":7},"0899","Gesellschafter-Darlehen"]
["Kontenklasse 0 Anlage-/ Kapitalvermögen","Eigenkapital Teilhafter","0900 - Kommandit-Kapital",{"$nulls":7},"0900","Kommandit-Kapital"]
["Kontenklasse 0 Anlage-/ Kapitalvermögen","Eigenkapital Teilhafter","0901 - Kommandit-Kapital",{"$nulls":7},"0901","Kommandit-Kapital"]
["Kontenklasse 0 Anlage-/ Kapitalvermögen","Eigenkapital Teilhafter","0902 - Kommandit-Kapital",{"$nulls":7},"0902","Kommandit-Kapital"]
["Kontenklasse 0 Anlage-/ Kapitalvermögen","Eigenkapital Teilhafter","0903 - Kommandit-Kapital",{"$nulls":7},"0903","Kommandit-Kapital"]
["Kontenklasse 0 Anlage-/ Kapitalvermögen","Eigenkapital Teilhafter","0904 - Kommandit-Kapital",{"$nulls":7},"0904","Kommandit-Kapital"]
["Kontenklasse 0 Anlage-/ Kapitalvermögen","Eigenkapital Teilhafter","0905 - Kommandit-Kapital",{"$nulls":7},"0905","Kommandit-Kapital"]
["Kontenklasse 0 Anlage-/ Kapitalvermögen","Eigenkapital Teilhafter","0906 - Kommandit-Kapital",{"$nulls":7},"0906","Kommandit-Kapital"]
["Kontenklasse 0 Anlage-/ Kapitalvermögen","Eigenkapital Teilhafter","0907 - Kommandit-Kapital",{"$nulls":7},"0907","Kommandit-Kapital"]
["Kontenklasse 0 Anlage-/ Kapitalvermögen","Eigenkapital Teilhafter","0908 - Kommandit-Kapital",{"$nulls":7},"0908","Kommandit-Kapital"]
["Kontenklasse 0 Anlage-/ Kapitalvermögen","Eigenkapital Teilhafter","0909 - Kommandit-Kapital",{"$nulls":7},"0909","Kommandit-Kapital"]
["Kontenklasse 0 Anlage-/ Kapitalvermögen","Eigenkapital Teilhafter","0910 - Verlustausgleichskonto",{"$nulls":7},"0910","Verlustausgleichskonto"]
["Kontenklasse 0 Anlage-/ Kapitalvermögen","Eigenkapital Teilhafter","0911 - Verlustausgleichskonto",{"$nulls":7},"0911","Verlustausgleichskonto"]
["Kontenklasse 0 Anlage-/ Kapitalvermögen","Eigenkapital Teilhafter","0912 - Verlustausgleichskonto",{"$nulls":7},"0912","Verlustausgleichskonto"]
["Kontenklasse 0 Anlage-/ Kapitalvermögen","Eigenkapital Teilhafter","0913 - Verlustausgleichskonto",{"$nulls":7},"0913","Verlustausgleichskonto"]
["Kontenklasse 0 Anlage-/ Kapitalvermögen","Eigenkapital Teilhafter","0914 - Verlustausgleichskonto",{"$nulls":7},"0914","Verlustausgleichskonto"]
["Kontenklasse 0 Anlage-/ Kapitalvermögen","Eigenkapital Teilhafter","0915 - Verlustausgleichskonto",{"$nulls":7},"0915","Verlustausgleichskonto"]
["Kontenklasse 0 Anlage-/ Kapitalvermögen","Eigenkapital Teilhafter","0916 - Verlustausgleichskonto",{"$nulls":7},"0916","Verlustausgleichskonto"]
["Kontenklasse 0 Anlage-/ Kapitalvermögen","Eigenkapital Teilhafter","0917 - Verlustausgleichskonto",{"$nulls":7},"0917","Verlustausgleichskonto"]
["Kontenklasse 0 Anlage-/ Kapitalvermögen","Eigenkapital Teilhafter","0918 - Verlustausgleichskonto",{"$nulls":7},"0918","Verlustausgleichskonto"]
["Kontenklasse 0 Anlage-/ Kapitalvermögen","Eigenkapital Teilhafter","0919 - Verlustausgleichskonto",{"$nulls":7},"0919","Verlustausgleichskonto"]
["Kontenklasse 0 Anlage-/ Kapitalvermögen","Fremdkapital Teilhafter","0920 - Gesellschafter-Darlehen",{"$nulls":7},"0920","Gesellschafter-Darlehen"]
["Kontenklasse 0 Anlage-/ Kapitalvermögen","Fremdkapital Teilhafter","0921 - Gesellschafter-Darlehen",{"$nulls":7},"0921","Gesellschafter-Darlehen"]
["Kontenklasse 0 Anlage-/ Kapitalvermögen","Fremdkapital Teilhafter","0922 - Gesellschafter-Darlehen",{"$nulls":7},"0922","Gesellschafter-Darlehen"]
["Kontenklasse 0 Anlage-/ Kapitalvermögen","Fremdkapital Teilhafter","0923 - Gesellschafter-Darlehen",{"$nulls":7},"0923","Gesellschafter-Darlehen"]
["Kontenklasse 0 Anlage-/ Kapitalvermögen","Fremdkapital Teilhafter","0924 - Gesellschafter-Darlehen",{"$nulls":7},"0924","Gesellschafter-Darlehen"]
["Kontenklasse 0 Anlage-/ Kapitalvermögen","Fremdkapital Teilhafter","0925 - Gesellschafter-Darlehen",{"$nulls":7},"0925","Gesellschafter-Darlehen"]
["Kontenklasse 0 Anlage-/ Kapitalvermögen","Fremdkapital Teilhafter","0926 - Gesellschafter-Darlehen",{"$nulls":7},"0926","Gesellschafter-Darlehen"]
["Kontenklasse 0 Anlage-/ Kapitalvermögen","Fremdkapital Teilhafter","0927 - Gesellschafter-Darlehen",{"$nulls":7},"0927","Gesellschafter-Darlehen"]
["Kontenklasse 0 Anlage-/ Kapitalvermögen","Fremdkapital Teilhafter","0928 - Gesellschafter-Darlehen",{"$nulls":7},"0928","Gesellschafter-Darlehen"]
["Kontenklasse 0 Anlage-/ Kapitalvermögen","Fremdkapital Teilhafter","0929 - Gesellschafter-Darlehen",{"$nulls":7},"0929","Gesellschafter-Darlehen"]
["Kontenklasse 0 Anlage-/ Kapitalvermögen","Sonderposten mit Rücklageanteil","0930 - Sonderposten mit Rücklageanteil, steuerfreie Rücklagen",{"$nulls":7},"0930","Sonderposten mit Rücklageanteil, steuerfreie Rücklagen"]
["Kontenklasse 0 Anlage-/ Kapitalvermögen","Sonderposten mit Rücklageanteil","0931 - Sonderposten mit Rücklageanteil nach § 6b EStG",{"$nulls":7},"0931","Sonderposten mit Rücklageanteil nach § 6b EStG"]
["Kontenklasse 0 Anlage-/ Kapitalvermögen","Sonderposten mit Rücklageanteil","0932 - Sonderposten mit Rücklageanteil nach EStR R 6.6",{"$nulls":7},{"$f":"MID(C259,1,4)","v":"0932"},{"$f":"MID(C259,8,255)","v":"Sonderposten mit Rücklageanteil nach EStR R 6.6"}]
["Kontenklasse 0 Anlage-/ Kapitalvermögen","Sonderposten mit Rücklageanteil","0939 - Sonderposten mit Rücklageanteil nach § 52 Abs. 16 EStG",{"$nulls":7},"0939","Sonderposten mit Rücklageanteil nach § 52 Abs. 16 EStG"]
["Kontenklasse 0 Anlage-/ Kapitalvermögen","Sonderposten mit Rücklageanteil","0940 - Sonderposten mit Rücklageanteil, Sonderabschreibungen",{"$nulls":7},"0940","Sonderposten mit Rücklageanteil, Sonderabschreibungen"]
["Kontenklasse 0 Anlage-/ Kapitalvermögen","Sonderposten mit Rücklageanteil","0943 - Sonderposten mit Rücklageanteil nach § 7g Abs. 2 EStG n.F.",{"$nulls":7},"0943","Sonderposten mit Rücklageanteil nach § 7g Abs. 2 EStG n.F."]
["Kontenklasse 0 Anlage-/ Kapitalvermögen","Sonderposten mit Rücklageanteil","0945 - Ausgleichsposten bei Entnahmen § 4g EStG",{"$nulls":7},"0945","Ausgleichsposten bei Entnahmen § 4g EStG"]
["Kontenklasse 0 Anlage-/ Kapitalvermögen","Sonderposten mit Rücklageanteil","0946 - Rücklage für Zuschüsse",{"$nulls":7},"0946","Rücklage für Zuschüsse"]
["Kontenklasse 0 Anlage-/ Kapitalvermögen","Sonderposten mit Rücklageanteil","0947 - Sonderposten mit Rücklageanteil nach § 7g Abs. 5 EStG",{"$nulls":7},"0947","Sonderposten mit Rücklageanteil nach § 7g Abs. 5 EStG"]
["Kontenklasse 0 Anlage-/ Kapitalvermögen","Sonderposten mit Rücklageanteil","0948 - Sonderposten mit Rücklageanteil nach § 7g Abs. 3 u. 7 EStG a.F.",{"$nulls":7},"0948","Sonderposten mit Rücklageanteil nach § 7g Abs. 3 u. 7 EStG a.F."]
["Kontenklasse 0 Anlage-/ Kapitalvermögen","Sonderposten mit Rücklageanteil","0949 - Sonderposten für Zuschüsse und Zulagen",{"$nulls":7},"0949","Sonderposten für Zuschüsse und Zulagen"]
["Kontenklasse 0 Anlage-/ Kapitalvermögen","Rückstellungen","0950 - Rückstellungen für Pensionen und ähnliche Verpflichtungen",{"$nulls":7},"0950","Rückstellungen für Pensionen und ähnliche Verpflichtungen"]
["Kontenklasse 0 Anlage-/ Kapitalvermögen","Rückstellungen","0951 - Rückstellungen für Pensionen und ähnliche Verpflichtungen zur Saldierung mit Vermögensgegenständen zum langfristigen Verbleib nach § 246 Abs. 2 HGB",{"$nulls":7},"0951","Rückstellungen für Pensionen und ähnliche Verpflichtungen zur Saldierung mit Vermögensgegenständen zum langfristigen Verbleib nach § 246 Abs. 2 HGB"]
["Kontenklasse 0 Anlage-/ Kapitalvermögen","Rückstellungen","0952 - Rückstellungen für Pensionen und ähnliche Verpflichtungen gegenüber Gesellschaftern oder nahestehenden Personen (10% Beteiligung am Kapital)",{"$nulls":7},"0952","Rückstellungen für Pensionen und ähnliche Verpflichtungen gegenüber Gesellschaftern oder nahestehenden Personen (10% Beteiligung am Kapital)"]
["Kontenklasse 0 Anlage-/ Kapitalvermögen","Rückstellungen","0953 - Rückstellungen für Direktzusagen",{"$nulls":7},"0953","Rückstellungen für Direktzusagen"]
["Kontenklasse 0 Anlage-/ Kapitalvermögen","Rückstellungen","0954 - Rückstellungen für Zuschussverpflichtungen für Pensionskassen und Lebensversicherungen",{"$nulls":7},"0954","Rückstellungen für Zuschussverpflichtungen für Pensionskassen und Lebensversicherungen"]
["Kontenklasse 0 Anlage-/ Kapitalvermögen","Rückstellungen","0955 - Steuerrückstellungen",{"$nulls":7},"0955","Steuerrückstellungen"]
["Kontenklasse 0 Anlage-/ Kapitalvermögen","Rückstellungen","0956 - Gewerbesteuerrückstellung gemäß § 4 Abs. 5b EStG",{"$nulls":7},"0956","Gewerbesteuerrückstellung gemäß § 4 Abs. 5b EStG"]
["Kontenklasse 0 Anlage-/ Kapitalvermögen","Rückstellungen","0957 - Gewerbesteuerrückstellung",{"$nulls":7},"0957","Gewerbesteuerrückstellung"]
["Kontenklasse 0 Anlage-/ Kapitalvermögen","Rückstellungen","0962 - Steuerrückstellung für Steuerstundung (BStBK)",{"$nulls":7},"0962","Steuerrückstellung für Steuerstundung (BStBK)"]
["Kontenklasse 0 Anlage-/ Kapitalvermögen","Rückstellungen","0963 - Körperschaftsteuerrückstellung",{"$nulls":7},"0963","Körperschaftsteuerrückstellung"]
["Kontenklasse 0 Anlage-/ Kapitalvermögen","Rückstellungen","0964 - Rückstellungen für mit der Altersversorgung vergleichbaren langfristigen Verpflichtungen zum langfristigen Verbleib",{"$nulls":7},"0964","Rückstellungen für mit der Altersversorgung vergleichbaren langfristigen Verpflichtungen zum langfristigen Verbleib"]
["Kontenklasse 0 Anlage-/ Kapitalvermögen","Rückstellungen","0965 - Rückstellungen für Personalkosten",{"$nulls":7},"0965","Rückstellungen für Personalkosten"]
["Kontenklasse 0 Anlage-/ Kapitalvermögen","Rückstellungen","0966 - Rückstellungen zur Erfüllung der Aufbewahrungspflichten",{"$nulls":7},"0966","Rückstellungen zur Erfüllung der Aufbewahrungspflichten"]
["Kontenklasse 0 Anlage-/ Kapitalvermögen","Rückstellungen","0967 - Rückstellungen für mit der Altersversorgung vergleichbaren langfristigen Verpflichtungen zur Saldierung mit Vermögensgegenständen zum langfristigen Verbleib nach § 246 Abs. 2 HGB",{"$nulls":7},"0967","Rückstellungen für mit der Altersversorgung vergleichbaren langfristigen Verpflichtungen zur Saldierung mit Vermögensgegenständen zum langfristigen Verbleib nach § 246 Abs. 2 HGB"]
["Kontenklasse 0 Anlage-/ Kapitalvermögen","Rückstellungen","0968 - Passive latente Steuern",{"$nulls":7},"0968","Passive latente Steuern"]
["Kontenklasse 0 Anlage-/ Kapitalvermögen","Rückstellungen","0969 - Rückstellungen für latente Steuern",{"$nulls":7},"0969","Rückstellungen für latente Steuern"]
["Kontenklasse 0 Anlage-/ Kapitalvermögen","Rückstellungen","0970 - Sonstige Rückstellungen",{"$nulls":7},"0970","Sonstige Rückstellungen"]
["Kontenklasse 0 Anlage-/ Kapitalvermögen","Rückstellungen","0971 - Rückstellungen für unterlassene Aufwendungen für Instandhaltung, Nachholung in den ersten drei Monaten",{"$nulls":7},"0971","Rückstellungen für unterlassene Aufwendungen für Instandhaltung, Nachholung in den ersten drei Monaten"]
["Kontenklasse 0 Anlage-/ Kapitalvermögen","Rückstellungen","0973 - Rückstellungen für Abraum- und Abfallbeseitigung",{"$nulls":7},"0973","Rückstellungen für Abraum- und Abfallbeseitigung"]
["Kontenklasse 0 Anlage-/ Kapitalvermögen","Rückstellungen","0974 - Rückstellungen für Gewährleistungen (Gegenkonto 4570)",{"$nulls":7},"0974","Rückstellungen für Gewährleistungen (Gegenkonto 4570)"]
["Kontenklasse 0 Anlage-/ Kapitalvermögen","Rückstellungen","0976 - Rückstellungen für drohende Verluste aus schwebenden Geschäften",{"$nulls":7},"0976","Rückstellungen für drohende Verluste aus schwebenden Geschäften"]
["Kontenklasse 0 Anlage-/ Kapitalvermögen","Rückstellungen","0977 - Rückstellungen für Abschluss- und Prüfungskosten",{"$nulls":7},"0977","Rückstellungen für Abschluss- und Prüfungskosten"]
["Kontenklasse 0 Anlage-/ Kapitalvermögen","Rückstellungen","0978 - Aufwandsrückstellungen gemäß § 249 Abs. 2 HGB a. F.",{"$nulls":7},"0978","Aufwandsrückstellungen gemäß § 249 Abs. 2 HGB a. F."]
["Kontenklasse 0 Anlage-/ Kapitalvermögen","Rückstellungen","0979 - Rückstellungen für Umweltschutz",{"$nulls":7},"0979","Rückstellungen für Umweltschutz"]
["Kontenklasse 0 Anlage-/ Kapitalvermögen","Abgrenzungsposten","0980 - Aktive Rechnungsabgrenzung",{"$nulls":7},"0980","Aktive Rechnungsabgrenzung"]
["Kontenklasse 0 Anlage-/ Kapitalvermögen","Abgrenzungsposten","0983 - Aktive latente Steuern",{"$nulls":7},"0983","Aktive latente Steuern"]
["Kontenklasse 0 Anlage-/ Kapitalvermögen","Abgrenzungsposten","0984 - Als Aufwand berücksichtigte Zölle und Verbrauchsteuern auf Vorräte",{"$nulls":7},"0984","Als Aufwand berücksichtigte Zölle und Verbrauchsteuern auf Vorräte"]
["Kontenklasse 0 Anlage-/ Kapitalvermögen","Abgrenzungsposten","0985 - Als Aufwand berücksichtigte Umsatzsteuer auf Anzahlungen",{"$nulls":7},"0985","Als Aufwand berücksichtigte Umsatzsteuer auf Anzahlungen"]
["Kontenklasse 0 Anlage-/ Kapitalvermögen","Abgrenzungsposten","0986 - Damnum/ Disagio",{"$nulls":7},"0986","Damnum/ Disagio"]
["Kontenklasse 0 Anlage-/ Kapitalvermögen","Abgrenzungsposten","0987 - Rechnungsabgrenzungsposten (Gewinnrücklage Soll) aus erfolgsneutralen Verrechnungen",{"$nulls":7},"0987","Rechnungsabgrenzungsposten (Gewinnrücklage Soll) aus erfolgsneutralen Verrechnungen"]
["Kontenklasse 0 Anlage-/ Kapitalvermögen","Abgrenzungsposten","0988 - Latente Steuern (Gewinnrücklagen Soll) aus erfolgsneutralen Verrechnungen",{"$nulls":7},"0988","Latente Steuern (Gewinnrücklagen Soll) aus erfolgsneutralen Verrechnungen"]
["Kontenklasse 0 Anlage-/ Kapitalvermögen","Abgrenzungsposten","0990 - Passive Rechnungsabgrenzung",{"$nulls":7},"0990","Passive Rechnungsabgrenzung"]
["Kontenklasse 0 Anlage-/ Kapitalvermögen","Abgrenzungsposten","0992 - Abgrenzung unterjährig pauschal gebuchter Abschreibungen für BWA",{"$nulls":7},"0992","Abgrenzung unterjährig pauschal gebuchter Abschreibungen für BWA"]
["Kontenklasse 0 Anlage-/ Kapitalvermögen","Abgrenzungsposten","0996 - Pauschalwertberichtigungen auf Forderungen mit einer Restlaufzeit bis zu 1 Jahr",{"$nulls":7},"0996","Pauschalwertberichtigungen auf Forderungen mit einer Restlaufzeit bis zu 1 Jahr"]
["Kontenklasse 0 Anlage-/ Kapitalvermögen","Abgrenzungsposten","0997 - Pauschalwertberichtigungen auf Forderungen mit einer Restlaufzeit von mehr als 1 Jahr",{"$nulls":7},"0997","Pauschalwertberichtigungen auf Forderungen mit einer Restlaufzeit von mehr als 1 Jahr"]
["Kontenklasse 0 Anlage-/ Kapitalvermögen","Abgrenzungsposten","0998 - Einzelwertberichtigungen auf Forderungen mit einer Restlaufzeit bis zu 1 Jahr",{"$nulls":7},"0998","Einzelwertberichtigungen auf Forderungen mit einer Restlaufzeit bis zu 1 Jahr"]
["Kontenklasse 0 Anlage-/ Kapitalvermögen","Abgrenzungsposten","0999 - Einzelwertberichtigungen auf Forderungen mit einer Restlaufzeit vor mehr als 1 Jahr",{"$nulls":7},"0999","Einzelwertberichtigungen auf Forderungen mit einer Restlaufzeit vor mehr als 1 Jahr"]
["Kontenklasse 1 Finanz-/ Privatkonten","Geldkonten","1000 - Kasse",{"$nulls":7},"1000","Kasse"]
["Kontenklasse 1 Finanz-/ Privatkonten","Geldkonten","1010 - Nebenkasse 1",{"$nulls":7},"1010","Nebenkasse 1"]
["Kontenklasse 1 Finanz-/ Privatkonten","Geldkonten","1020 - Nebenkasse 2",{"$nulls":7},"1020","Nebenkasse 2"]
["Kontenklasse 1 Finanz-/ Privatkonten","Geldkonten","1100 - Postbank",{"$nulls":7},"1100","Postbank"]
["Kontenklasse 1 Finanz-/ Privatkonten","Geldkonten","1110 - Postbank 1",{"$nulls":7},"1110","Postbank 1"]
["Kontenklasse 1 Finanz-/ Privatkonten","Geldkonten","1120 - Postbank 2",{"$nulls":7},"1120","Postbank 2"]
["Kontenklasse 1 Finanz-/ Privatkonten","Geldkonten","1130 - Postbank 3",{"$nulls":7},"1130","Postbank 3"]
["Kontenklasse 1 Finanz-/ Privatkonten","Geldkonten","1190 - LZB-Guthaben",{"$nulls":7},"1190","LZB-Guthaben"]
["Kontenklasse 1 Finanz-/ Privatkonten","Geldkonten","1195 - Bundesbankguthaben",{"$nulls":7},"1195","Bundesbankguthaben"]
["Kontenklasse 1 Finanz-/ Privatkonten","Geldkonten","1200 - Bank",{"$nulls":7},"1200","Bank"]
["Kontenklasse 1 Finanz-/ Privatkonten","Geldkonten","1210 - Bank 1",{"$nulls":7},"1210","Bank 1"]
["Kontenklasse 1 Finanz-/ Privatkonten","Geldkonten","1220 - Bank 2",{"$nulls":7},"1220","Bank 2"]
["Kontenklasse 1 Finanz-/ Privatkonten","Geldkonten","1230 - Bank 3",{"$nulls":7},"1230","Bank 3"]
["Kontenklasse 1 Finanz-/ Privatkonten","Geldkonten","1240 - Bank 4",{"$nulls":7},"1240","Bank 4"]
["Kontenklasse 1 Finanz-/ Privatkonten","Geldkonten","1250 - Bestandsfinanzierende Bank NW / VFW",{"$nulls":7},"1250","Bestandsfinanzierende Bank NW / VFW"]
["Kontenklasse 1 Finanz-/ Privatkonten","Geldkonten","1260 - Bestandsfinanzierende Bank GW",{"$nulls":7},"1260","Bestandsfinanzierende Bank GW"]
["Kontenklasse 1 Finanz-/ Privatkonten","Geldkonten","1270 - Bestandsfinanzierende Bank Teile/Zubehör",{"$nulls":7},"1270","Bestandsfinanzierende Bank Teile/Zubehör"]
["Kontenklasse 1 Finanz-/ Privatkonten","Geldkonten","1280 - Direktkonto (Verrechnungskonto bei Herstellerbank)",{"$nulls":7},"1280","Direktkonto (Verrechnungskonto bei Herstellerbank)"]
["Kontenklasse 1 Finanz-/ Privatkonten","Geldkonten","1289 - Reserviert D",{"$nulls":7},{"$f":"MID(C323,1,4)","v":"1289"},{"$f":"MID(C323,8,255)","v":"Reserviert D"}]
["Kontenklasse 1 Finanz-/ Privatkonten","Geldkonten","1290 - Finanzmittelanlagen im Rahmen der kurzfristigen Finanzdisposition (nicht im Finanzmittelfonds enthalten)",{"$nulls":7},"1290","Finanzmittelanlagen im Rahmen der kurzfristigen Finanzdisposition (nicht im Finanzmittelfonds enthalten)"]
["Kontenklasse 1 Finanz-/ Privatkonten","Geldkonten","1295 - Verbindlichkeiten gegenüber Kreditinstituten (nicht im Finanzmittelfonds enthalten)",{"$nulls":7},"1295","Verbindlichkeiten gegenüber Kreditinstituten (nicht im Finanzmittelfonds enthalten)"]
["Kontenklasse 1 Finanz-/ Privatkonten","Wechsel und Wertpapiere","1300 - Wechsel aus Lieferungen und Leistungen",{"$nulls":7},"1300","Wechsel aus Lieferungen und Leistungen"]
["Kontenklasse 1 Finanz-/ Privatkonten","Wechsel und Wertpapiere","1301 - Restlaufzeit bis 1 Jahr",{"$nulls":7},"1301","Restlaufzeit bis 1 Jahr"]
["Kontenklasse 1 Finanz-/ Privatkonten","Wechsel und Wertpapiere","1302 - Restlaufzeit größer 1 Jahr",{"$nulls":7},"1302","Restlaufzeit größer 1 Jahr"]
["Kontenklasse 1 Finanz-/ Privatkonten","Wechsel und Wertpapiere","1305 - Wechsel aus Lieferungen und Leistungen, bundesbankfähig",{"$nulls":7},"1305","Wechsel aus Lieferungen und Leistungen, bundesbankfähig"]
["Kontenklasse 1 Finanz-/ Privatkonten","Wechsel und Wertpapiere","1310 - Besitzwechsel gegen verbundene Unternehmen",{"$nulls":7},"1310","Besitzwechsel gegen verbundene Unternehmen"]
["Kontenklasse 1 Finanz-/ Privatkonten","Wechsel und Wertpapiere","1311 - Restlaufzeit bis 1 Jahr",{"$nulls":7},"1311","Restlaufzeit bis 1 Jahr"]
["Kontenklasse 1 Finanz-/ Privatkonten","Wechsel und Wertpapiere","1312 - Restlaufzeit größer 1 Jahr",{"$nulls":7},"1312","Restlaufzeit größer 1 Jahr"]
["Kontenklasse 1 Finanz-/ Privatkonten","Wechsel und Wertpapiere","1315 - Besitzwechsel gegen verbundene Unternehmen, bundesbankfähig",{"$nulls":7},"1315","Besitzwechsel gegen verbundene Unternehmen, bundesbankfähig"]
["Kontenklasse 1 Finanz-/ Privatkonten","Wechsel und Wertpapiere","1320 - Besitzwechsel gegen Unternehmen, mit denen ein Beteiligungsverhältnis besteht",{"$nulls":7},"1320","Besitzwechsel gegen Unternehmen, mit denen ein Beteiligungsverhältnis besteht"]
["Kontenklasse 1 Finanz-/ Privatkonten","Wechsel und Wertpapiere","1321 - Restlaufzeit bis 1 Jahr",{"$nulls":7},"1321","Restlaufzeit bis 1 Jahr"]
["Kontenklasse 1 Finanz-/ Privatkonten","Wechsel und Wertpapiere","1322 - Restlaufzeit größer 1 Jahr",{"$nulls":7},"1322","Restlaufzeit größer 1 Jahr"]
["Kontenklasse 1 Finanz-/ Privatkonten","Wechsel und Wertpapiere","1325 - Besitzwechsel gegen Unternehmen, mit denen ein Beteiligungsverhältnis besteht, bundesbankfähig",{"$nulls":7},"1325","Besitzwechsel gegen Unternehmen, mit denen ein Beteiligungsverhältnis besteht, bundesbankfähig"]
["Kontenklasse 1 Finanz-/ Privatkonten","Wechsel und Wertpapiere","1327 - Finanzwechsel",{"$nulls":7},"1327","Finanzwechsel"]
["Kontenklasse 1 Finanz-/ Privatkonten","Wechsel und Wertpapiere","1329 - Andere Wertpapiere mit unwesentlichen Wertschwankungen im Sinne Textziffer 18 DRS 2",{"$nulls":7},"1329","Andere Wertpapiere mit unwesentlichen Wertschwankungen im Sinne Textziffer 18 DRS 2"]
["Kontenklasse 1 Finanz-/ Privatkonten","Wechsel und Wertpapiere","1330 - Schecks",{"$nulls":7},"1330","Schecks"]
["Kontenklasse 1 Finanz-/ Privatkonten","Wechsel und Wertpapiere","1340 - Anteile an verbundenen Unternehmen (Umlaufvermögen)",{"$nulls":7},"1340","Anteile an verbundenen Unternehmen (Umlaufvermögen)"]
["Kontenklasse 1 Finanz-/ Privatkonten","Wechsel und Wertpapiere","1344 - Anteile an herrschender oder mit Mehrheit beteiligter Gesellschaft",{"$nulls":7},"1344","Anteile an herrschender oder mit Mehrheit beteiligter Gesellschaft"]
["Kontenklasse 1 Finanz-/ Privatkonten","Wechsel und Wertpapiere","1348 - Sonstige Wertpapiere",{"$nulls":7},"1348","Sonstige Wertpapiere"]
["Kontenklasse 1 Finanz-/ Privatkonten","Wechsel und Wertpapiere","1349 - Wertpapieranlagen im Rahmen der kurzfristigen Finanzdisposition",{"$nulls":7},"1349","Wertpapieranlagen im Rahmen der kurzfristigen Finanzdisposition"]
["Kontenklasse 1 Finanz-/ Privatkonten","Wechsel und Wertpapiere","1350 - GmbH-Anteile zum kurzfristigen Verbleib",{"$nulls":7},"1350","GmbH-Anteile zum kurzfristigen Verbleib"]
["Kontenklasse 1 Finanz-/ Privatkonten","Wechsel und Wertpapiere","1352 - Genossenschaftsanteile zum kurzfristigen Verbleib",{"$nulls":7},"1352","Genossenschaftsanteile zum kurzfristigen Verbleib"]
["Kontenklasse 1 Finanz-/ Privatkonten","Wechsel und Wertpapiere","1353 - Vermögensgegenstände zur Erfüllung von mit der Altersversorgung vergleichbaren langfristigen Verpflichtungen",{"$nulls":7},"1353","Vermögensgegenstände zur Erfüllung von mit der Altersversorgung vergleichbaren langfristigen Verpflichtungen"]
["Kontenklasse 1 Finanz-/ Privatkonten","Wechsel und Wertpapiere","1354 - Vermögensgegenstände zur Saldierung mit der Altersversorgung vergleichbaren langfristigen Verpflichtungen nach § 246 Abs. 2 HGB",{"$nulls":7},"1354","Vermögensgegenstände zur Saldierung mit der Altersversorgung vergleichbaren langfristigen Verpflichtungen nach § 246 Abs. 2 HGB"]
["Kontenklasse 1 Finanz-/ Privatkonten","Wechsel und Wertpapiere","1355 - Ansprüche aus Rückdeckungsversicherungen",{"$nulls":7},"1355","Ansprüche aus Rückdeckungsversicherungen"]
["Kontenklasse 1 Finanz-/ Privatkonten","Wechsel und Wertpapiere","1356 - Vermögensgegenstände zur Erfüllung von Pensionsrückstellungen und ähnlichen Verpflichtungen zum langfristigen Verbleib",{"$nulls":7},"1356","Vermögensgegenstände zur Erfüllung von Pensionsrückstellungen und ähnlichen Verpflichtungen zum langfristigen Verbleib"]
["Kontenklasse 1 Finanz-/ Privatkonten","Wechsel und Wertpapiere","1357 - Vermögensgegenstände zur Saldierung mit Pensionsrückstellungen und ähnlichen Verpflichtungen zum langfristigen Verbleib nach § 246 Abs. 2 HGB",{"$nulls":7},"1357","Vermögensgegenstände zur Saldierung mit Pensionsrückstellungen und ähnlichen Verpflichtungen zum langfristigen Verbleib nach § 246 Abs. 2 HGB"]
["Kontenklasse 1 Finanz-/ Privatkonten","Wechsel und Wertpapiere","1360 - Geldtransit 1",{"$nulls":7},"1360","Geldtransit 1"]
["Kontenklasse 1 Finanz-/ Privatkonten","Wechsel und Wertpapiere","1361 - Geldtransit 2",{"$nulls":7},"1361","Geldtransit 2"]
["Kontenklasse 1 Finanz-/ Privatkonten","Wechsel und Wertpapiere","1362 - Geldtransit 3",{"$nulls":7},"1362","Geldtransit 3"]
["Kontenklasse 1 Finanz-/ Privatkonten","Wechsel und Wertpapiere","1363 - Geldtransit 4",{"$nulls":7},"1363","Geldtransit 4"]
["Kontenklasse 1 Finanz-/ Privatkonten","Wechsel und Wertpapiere","1364 - Geldtransit 5",{"$nulls":7},"1364","Geldtransit 5"]
["Kontenklasse 1 Finanz-/ Privatkonten","Wechsel und Wertpapiere","1365 - Geldtransit 6",{"$nulls":7},"1365","Geldtransit 6"]
["Kontenklasse 1 Finanz-/ Privatkonten","Wechsel und Wertpapiere","1373 - Forderungen gegen Kommanditisten und atypisch stille Gesellschafter",{"$nulls":7},"1373","Forderungen gegen Kommanditisten und atypisch stille Gesellschafter"]
["Kontenklasse 1 Finanz-/ Privatkonten","Wechsel und Wertpapiere","1374 - Restlaufzeit bis 1 Jahr",{"$nulls":7},"1374","Restlaufzeit bis 1 Jahr"]
["Kontenklasse 1 Finanz-/ Privatkonten","Wechsel und Wertpapiere","1375 - Restlaufzeit größer 1 Jahr",{"$nulls":7},"1375","Restlaufzeit größer 1 Jahr"]
["Kontenklasse 1 Finanz-/ Privatkonten","Wechsel und Wertpapiere","1376 - Forderungen gegen typisch stille Gesellschafter",{"$nulls":7},"1376","Forderungen gegen typisch stille Gesellschafter"]
["Kontenklasse 1 Finanz-/ Privatkonten","Wechsel und Wertpapiere","1377 - Restlaufzeit bis 1 Jahr",{"$nulls":7},"1377","Restlaufzeit bis 1 Jahr"]
["Kontenklasse 1 Finanz-/ Privatkonten","Wechsel und Wertpapiere","1378 - Restlaufzeit größer 1 Jahr",{"$nulls":7},"1378","Restlaufzeit größer 1 Jahr"]
["Kontenklasse 1 Finanz-/ Privatkonten","Wechsel und Wertpapiere","1381 - Forderungen gegen GmbH-Gesellschafter",{"$nulls":7},"1381","Forderungen gegen GmbH-Gesellschafter"]
["Kontenklasse 1 Finanz-/ Privatkonten","Wechsel und Wertpapiere","1382 - Restlaufzeit bis 1 Jahr",{"$nulls":7},"1382","Restlaufzeit bis 1 Jahr"]
["Kontenklasse 1 Finanz-/ Privatkonten","Wechsel und Wertpapiere","1383 - Restlaufzeit größer 1 Jahr",{"$nulls":7},"1383","Restlaufzeit größer 1 Jahr"]
["Kontenklasse 1 Finanz-/ Privatkonten","Wechsel und Wertpapiere","1385 - Forderungen gegen persönlich haftende Gesellschafter",{"$nulls":7},"1385","Forderungen gegen persönlich haftende Gesellschafter"]
["Kontenklasse 1 Finanz-/ Privatkonten","Wechsel und Wertpapiere","1386 - Restlaufzeit bis 1 Jahr",{"$nulls":7},"1386","Restlaufzeit bis 1 Jahr"]
["Kontenklasse 1 Finanz-/ Privatkonten","Wechsel und Wertpapiere","1387 - Restlaufzeit größer 1 Jahr",{"$nulls":7},"1387","Restlaufzeit größer 1 Jahr"]
["Kontenklasse 1 Finanz-/ Privatkonten","Wechsel und Wertpapiere","1390 - Verrechnungskonto Ist-Versteuerung",{"$nulls":7},"1390","Verrechnungskonto Ist-Versteuerung"]
["Kontenklasse 1 Finanz-/ Privatkonten","Forderungen aus Lieferungen und Leistungen","1400 - Forderungen aus Lieferungen und Leistungen",{"$nulls":7},"1400","Forderungen aus Lieferungen und Leistungen"]
["Kontenklasse 1 Finanz-/ Privatkonten","Forderungen aus Lieferungen und Leistungen","1401 - Reserviert D (Forderungen aus Lieferungen und Leistungen)",{"$nulls":7},"1401","Reserviert D (Forderungen aus Lieferungen und Leistungen)"]
["Kontenklasse 1 Finanz-/ Privatkonten","Forderungen aus Lieferungen und Leistungen","1402 - Reserviert D (Forderungen aus Lieferungen und Leistungen)",{"$nulls":7},"1402","Reserviert D (Forderungen aus Lieferungen und Leistungen)"]
["Kontenklasse 1 Finanz-/ Privatkonten","Forderungen aus Lieferungen und Leistungen","1403 - Reserviert D (Forderungen aus Lieferungen und Leistungen)",{"$nulls":7},"1403","Reserviert D (Forderungen aus Lieferungen und Leistungen)"]
["Kontenklasse 1 Finanz-/ Privatkonten","Forderungen aus Lieferungen und Leistungen","1404 - Reserviert D (Forderungen aus Lieferungen und Leistungen)",{"$nulls":7},"1404","Reserviert D (Forderungen aus Lieferungen und Leistungen)"]
["Kontenklasse 1 Finanz-/ Privatkonten","Forderungen aus Lieferungen und Leistungen","1405 - Reserviert D (Forderungen aus Lieferungen und Leistungen)",{"$nulls":7},"1405","Reserviert D (Forderungen aus Lieferungen und Leistungen)"]
["Kontenklasse 1 Finanz-/ Privatkonten","Forderungen aus Lieferungen und Leistungen","1406 - Reserviert D (Forderungen aus Lieferungen und Leistungen)",{"$nulls":7},"1406","Reserviert D (Forderungen aus Lieferungen und Leistungen)"]
["Kontenklasse 1 Finanz-/ Privatkonten","Forderungen aus Lieferungen und Leistungen","1407 - Forderungen aus Garantieleistungen",{"$nulls":7},"1407","Forderungen aus Garantieleistungen"]
["Kontenklasse 1 Finanz-/ Privatkonten","Forderungen aus Lieferungen und Leistungen","1408 - Forderungen aus Verkaufsförderung",{"$nulls":7},"1408","Forderungen aus Verkaufsförderung"]
["Kontenklasse 1 Finanz-/ Privatkonten","Forderungen aus Lieferungen und Leistungen","1409 - Forderungen aus Lieferungen und Leistungen gegen Hersteller Sonstiges",{"$nulls":7},"1409","Forderungen aus Lieferungen und Leistungen gegen Hersteller Sonstiges"]
["Kontenklasse 1 Finanz-/ Privatkonten","Forderungen aus Lieferungen und Leistungen","1410 - Forderungen aus Lieferungen und Leistungen ohne Kontokorrent",{"$nulls":7},"1410","Forderungen aus Lieferungen und Leistungen ohne Kontokorrent"]
["Kontenklasse 1 Finanz-/ Privatkonten","Forderungen aus Lieferungen und Leistungen","1451 - Forderungen aus Lieferungen und Leistungen ohne Kontokorrent – Restlaufzeit bis 1 Jahr",{"$nulls":7},"1451","Forderungen aus Lieferungen und Leistungen ohne Kontokorrent – Restlaufzeit bis 1 Jahr"]
["Kontenklasse 1 Finanz-/ Privatkonten","Forderungen aus Lieferungen und Leistungen","1455 - Restlaufzeit größer 1 Jahr",{"$nulls":7},"1455","Restlaufzeit größer 1 Jahr"]
["Kontenklasse 1 Finanz-/ Privatkonten","Forderungen aus Lieferungen und Leistungen","1460 - Zweifelhafte Forderungen",{"$nulls":7},"1460","Zweifelhafte Forderungen"]
["Kontenklasse 1 Finanz-/ Privatkonten","Forderungen aus Lieferungen und Leistungen","1461 - Restlaufzeit bis 1 Jahr",{"$nulls":7},"1461","Restlaufzeit bis 1 Jahr"]
["Kontenklasse 1 Finanz-/ Privatkonten","Forderungen aus Lieferungen und Leistungen","1465 - Restlaufzeit größer 1 Jahr",{"$nulls":7},"1465","Restlaufzeit größer 1 Jahr"]
["Kontenklasse 1 Finanz-/ Privatkonten","Forderungen aus Lieferungen und Leistungen","1470 - Forderungen aus Lieferung und Leistungen gegen verbundene Unternehmen",{"$nulls":7},{"$f":"MID(C387,1,4)","v":"1470"},{"$f":"MID(C387,8,255)","v":"Forderungen aus Lieferung und Leistungen gegen verbundene Unternehmen"}]
["Kontenklasse 1 Finanz-/ Privatkonten","Forderungen aus Lieferungen und Leistungen","1471 - Restlaufzeit bis 1 Jahr",{"$nulls":7},"1471","Restlaufzeit bis 1 Jahr"]
["Kontenklasse 1 Finanz-/ Privatkonten","Forderungen aus Lieferungen und Leistungen","1475 - Restlaufzeit größer 1 Jahr",{"$nulls":7},"1475","Restlaufzeit größer 1 Jahr"]
["Kontenklasse 1 Finanz-/ Privatkonten","Forderungen aus Lieferungen und Leistungen","1478 - Wertberichtigungen auf Forderungen mit einer Restlaufzeit bis zu 1 Jahr gegen verbundene Unternehmen",{"$nulls":7},"1478","Wertberichtigungen auf Forderungen mit einer Restlaufzeit bis zu 1 Jahr gegen verbundene Unternehmen"]
["Kontenklasse 1 Finanz-/ Privatkonten","Forderungen aus Lieferungen und Leistungen","1479 - Wertberichtigungen auf Forderungen mit einer Restlaufzeit von mehr als 1 Jahr gegen verbundene Unternehmen",{"$nulls":7},"1479","Wertberichtigungen auf Forderungen mit einer Restlaufzeit von mehr als 1 Jahr gegen verbundene Unternehmen"]
["Kontenklasse 1 Finanz-/ Privatkonten","Forderungen aus Lieferungen und Leistungen","1480 - Forderungen aus Lieferungen und Leistungen gegen Unternehmen, mit denen ein Beteiligungsverhältnis besteht",{"$nulls":7},"1480","Forderungen aus Lieferungen und Leistungen gegen Unternehmen, mit denen ein Beteiligungsverhältnis besteht"]
["Kontenklasse 1 Finanz-/ Privatkonten","Forderungen aus Lieferungen und Leistungen","1481 - Restlaufzeit bis 1 Jahr",{"$nulls":7},"1481","Restlaufzeit bis 1 Jahr"]
["Kontenklasse 1 Finanz-/ Privatkonten","Forderungen aus Lieferungen und Leistungen","1485 - Restlaufzeit größer 1 Jahr",{"$nulls":7},"1485","Restlaufzeit größer 1 Jahr"]
["Kontenklasse 1 Finanz-/ Privatkonten","Forderungen aus Lieferungen und Leistungen","1488 - Wertberichtigungen auf Forderungen mit einer Restlaufzeit bis zu 1 Jahr gegen Unternehmen, mit denen ein Beteiligungsverhältnis besteht",{"$nulls":7},"1488","Wertberichtigungen auf Forderungen mit einer Restlaufzeit bis zu 1 Jahr gegen Unternehmen, mit denen ein Beteiligungsverhältnis besteht"]
["Kontenklasse 1 Finanz-/ Privatkonten","Forderungen aus Lieferungen und Leistungen","1489 - Wertberichtigungen auf Forderungen mit einer Restlaufzeit von mehr als 1 Jahr gegen Unternehmen, mit denen ein Beteiligungsverhältnis besteht",{"$nulls":7},"1489","Wertberichtigungen auf Forderungen mit einer Restlaufzeit von mehr als 1 Jahr gegen Unternehmen, mit denen ein Beteiligungsverhältnis besteht"]
["Kontenklasse 1 Finanz-/ Privatkonten","Forderungen aus Lieferungen und Leistungen","1490 - Forderungen aus Lieferungen und Leistungen gegen Gesellschafter",{"$nulls":7},"1490","Forderungen aus Lieferungen und Leistungen gegen Gesellschafter"]
["Kontenklasse 1 Finanz-/ Privatkonten","Forderungen aus Lieferungen und Leistungen","1491 - Restlaufzeit bis 1 Jahr",{"$nulls":7},"1491","Restlaufzeit bis 1 Jahr"]
["Kontenklasse 1 Finanz-/ Privatkonten","Forderungen aus Lieferungen und Leistungen","1495 - Restlaufzeit größer 1 Jahr",{"$nulls":7},"1495","Restlaufzeit größer 1 Jahr"]
["Kontenklasse 1 Finanz-/ Privatkonten","Forderungen aus Lieferungen und Leistungen","1498 - Gegenkonto zu sonstigen Vermögensgegenständen bei Buchungen über Debitorenkonto",{"$nulls":7},"1498","Gegenkonto zu sonstigen Vermögensgegenständen bei Buchungen über Debitorenkonto"]
["Kontenklasse 1 Finanz-/ Privatkonten","Forderungen aus Lieferungen und Leistungen","1499 - Gegenkonto 1451-1497 bei Aufteilung Debitorenkonto",{"$nulls":7},"1499","Gegenkonto 1451-1497 bei Aufteilung Debitorenkonto"]
["Kontenklasse 1 Finanz-/ Privatkonten","Sonstige Vermögensgegenstände","1500 - Sonstige Vermögensgegenstände",{"$nulls":7},"1500","Sonstige Vermögensgegenstände"]
["Kontenklasse 1 Finanz-/ Privatkonten","Sonstige Vermögensgegenstände","1501 - Restlaufzeit bis 1 Jahr",{"$nulls":7},"1501","Restlaufzeit bis 1 Jahr"]
["Kontenklasse 1 Finanz-/ Privatkonten","Sonstige Vermögensgegenstände","1502 - Restlaufzeit größer 1 Jahr",{"$nulls":7},"1502","Restlaufzeit größer 1 Jahr"]
["Kontenklasse 1 Finanz-/ Privatkonten","Sonstige Vermögensgegenstände","1503 - Forderungen gegen Vorstandsmitglieder und Geschäftsführer – Restlaufzeit bis 1 Jahr",{"$nulls":7},"1503","Forderungen gegen Vorstandsmitglieder und Geschäftsführer – Restlaufzeit bis 1 Jahr"]
["Kontenklasse 1 Finanz-/ Privatkonten","Sonstige Vermögensgegenstände","1504 - Forderungen gegen Vorstandsmitglieder und Geschäftsführer – Restlaufzeit größer 1 Jahr",{"$nulls":7},"1504","Forderungen gegen Vorstandsmitglieder und Geschäftsführer – Restlaufzeit größer 1 Jahr"]
["Kontenklasse 1 Finanz-/ Privatkonten","Sonstige Vermögensgegenstände","1505 - Forderungen gegen Aufsichtsrats- und Beiratsmitglieder – Restlaufzeit bis 1 Jahr",{"$nulls":7},"1505","Forderungen gegen Aufsichtsrats- und Beiratsmitglieder – Restlaufzeit bis 1 Jahr"]
["Kontenklasse 1 Finanz-/ Privatkonten","Sonstige Vermögensgegenstände","1506 - Forderungen gegen Aufsichtsrats- und Beiratsmitglieder – Restlaufzeit größer 1 Jahr",{"$nulls":7},"1506","Forderungen gegen Aufsichtsrats- und Beiratsmitglieder – Restlaufzeit größer 1 Jahr"]
["Kontenklasse 1 Finanz-/ Privatkonten","Sonstige Vermögensgegenstände","1507 - Forderungen gegen sonstige Gesellschafter -- Restlaufzeit bis 1 Jahr",{"$nulls":7},"1507","Forderungen gegen sonstige Gesellschafter -- Restlaufzeit bis 1 Jahr"]
["Kontenklasse 1 Finanz-/ Privatkonten","Sonstige Vermögensgegenstände","1508 - Forderungen gegen sonstige Gesellschafter – Restlaufzeit größer 1 Jahr",{"$nulls":7},"1508","Forderungen gegen sonstige Gesellschafter – Restlaufzeit größer 1 Jahr"]
["Kontenklasse 1 Finanz-/ Privatkonten","Sonstige Vermögensgegenstände","1510 - Geleistete Anzahlungen auf Vorräte",{"$nulls":7},"1510","Geleistete Anzahlungen auf Vorräte"]
["Kontenklasse 1 Finanz-/ Privatkonten","Sonstige Vermögensgegenstände","1511 - Geleistete Anzahlungen 7% Vorsteuer",{"$nulls":7},"1511","Geleistete Anzahlungen 7% Vorsteuer"]
["Kontenklasse 1 Finanz-/ Privatkonten","Sonstige Vermögensgegenstände","1512 - Reserviert D",{"$nulls":7},"1512","Reserviert D"]
["Kontenklasse 1 Finanz-/ Privatkonten","Sonstige Vermögensgegenstände","1513 - Reserviert D",{"$nulls":7},"1513","Reserviert D"]
["Kontenklasse 1 Finanz-/ Privatkonten","Sonstige Vermögensgegenstände","1514 - Reserviert D",{"$nulls":7},"1514","Reserviert D"]
["Kontenklasse 1 Finanz-/ Privatkonten","Sonstige Vermögensgegenstände","1515 - Reserviert D",{"$nulls":7},"1515","Reserviert D"]
["Kontenklasse 1 Finanz-/ Privatkonten","Sonstige Vermögensgegenstände","1516 - Geleistete Anzahlungen 15% Vorsteuer",{"$nulls":7},"1516","Geleistete Anzahlungen 15% Vorsteuer"]
["Kontenklasse 1 Finanz-/ Privatkonten","Sonstige Vermögensgegenstände","1517 - Geleistete Anzahlungen 16% Vorsteuer",{"$nulls":7},"1517","Geleistete Anzahlungen 16% Vorsteuer"]
["Kontenklasse 1 Finanz-/ Privatkonten","Sonstige Vermögensgegenstände","1518 - Geleistete Anzahlungen 19% Vorsteuer",{"$nulls":7},"1518","Geleistete Anzahlungen 19% Vorsteuer"]
["Kontenklasse 1 Finanz-/ Privatkonten","Sonstige Vermögensgegenstände","1520 - Forderungen gegenüber Krankenkassen aus Aufwendungsausgleichsgesetz",{"$nulls":7},"1520","Forderungen gegenüber Krankenkassen aus Aufwendungsausgleichsgesetz"]
["Kontenklasse 1 Finanz-/ Privatkonten","Sonstige Vermögensgegenstände","1521 - Agenturwarenabrechnung",{"$nulls":7},"1521","Agenturwarenabrechnung"]
["Kontenklasse 1 Finanz-/ Privatkonten","Sonstige Vermögensgegenstände","1524 - Einzahlungsansprüche zu Nebenleistungen oder Zuzahlungen",{"$nulls":7},"1524","Einzahlungsansprüche zu Nebenleistungen oder Zuzahlungen"]
["Kontenklasse 1 Finanz-/ Privatkonten","Sonstige Vermögensgegenstände","1525 - Kautionen",{"$nulls":7},"1525","Kautionen"]
["Kontenklasse 1 Finanz-/ Privatkonten","Sonstige Vermögensgegenstände","1526 - Restlaufzeit bis 1 Jahr",{"$nulls":7},"1526","Restlaufzeit bis 1 Jahr"]
["Kontenklasse 1 Finanz-/ Privatkonten","Sonstige Vermögensgegenstände","1527 - Restlaufzeit größer 1 Jahr",{"$nulls":7},"1527","Restlaufzeit größer 1 Jahr"]
["Kontenklasse 1 Finanz-/ Privatkonten","Sonstige Vermögensgegenstände","1528 - Nachträglich abziehbare Vorsteuer, § 15a Abs. 2 UStG",{"$nulls":7},"1528","Nachträglich abziehbare Vorsteuer, § 15a Abs. 2 UStG"]
["Kontenklasse 1 Finanz-/ Privatkonten","Sonstige Vermögensgegenstände","1529 - Zurückzuzahlende Vorsteuer, § 15a Abs. 2 UStG",{"$nulls":7},"1529","Zurückzuzahlende Vorsteuer, § 15a Abs. 2 UStG"]
["Kontenklasse 1 Finanz-/ Privatkonten","Sonstige Vermögensgegenstände","1530 - Forderungen gegen Personal aus Lohn- und Gehaltsabrechnung",{"$nulls":7},"1530","Forderungen gegen Personal aus Lohn- und Gehaltsabrechnung"]
["Kontenklasse 1 Finanz-/ Privatkonten","Sonstige Vermögensgegenstände","1531 - Restlaufzeit bis 1 Jahr",{"$nulls":7},"1531","Restlaufzeit bis 1 Jahr"]
["Kontenklasse 1 Finanz-/ Privatkonten","Sonstige Vermögensgegenstände","1537 - Restlaufzeit größer 1 Jahr",{"$nulls":7},"1537","Restlaufzeit größer 1 Jahr"]
["Kontenklasse 1 Finanz-/ Privatkonten","Sonstige Vermögensgegenstände","1538 - Körperschaftsteuerguthaben nach § 37 KStG- Restlaufzeit bis 1 Jahr",{"$nulls":7},"1538","Körperschaftsteuerguthaben nach § 37 KStG- Restlaufzeit bis 1 Jahr"]
["Kontenklasse 1 Finanz-/ Privatkonten","Sonstige Vermögensgegenstände","1539 - Körperschaftsteuerguthaben nach § 37 KStG- Restlaufzeit größer 1 Jahr",{"$nulls":7},"1539","Körperschaftsteuerguthaben nach § 37 KStG- Restlaufzeit größer 1 Jahr"]
["Kontenklasse 1 Finanz-/ Privatkonten","Sonstige Vermögensgegenstände","1540 - Forderungen aus Gewerbesteuerüberzahlungen",{"$nulls":7},"1540","Forderungen aus Gewerbesteuerüberzahlungen"]
["Kontenklasse 1 Finanz-/ Privatkonten","Sonstige Vermögensgegenstände","1542 - Steuererstattungsansprüche gegenüber anderen Ländern",{"$nulls":7},"1542","Steuererstattungsansprüche gegenüber anderen Ländern"]
["Kontenklasse 1 Finanz-/ Privatkonten","Sonstige Vermögensgegenstände","1543 - Forderungen gegen Finanzamt aus abgeführtem Bauabzugsbetrag",{"$nulls":7},"1543","Forderungen gegen Finanzamt aus abgeführtem Bauabzugsbetrag"]
["Kontenklasse 1 Finanz-/ Privatkonten","Sonstige Vermögensgegenstände","1544 - Forderungen gegen Bundesagentur für Arbeit",{"$nulls":7},"1544","Forderungen gegen Bundesagentur für Arbeit"]
["Kontenklasse 1 Finanz-/ Privatkonten","Sonstige Vermögensgegenstände","1545 - Umsatzsteuerforderungen",{"$nulls":7},"1545","Umsatzsteuerforderungen"]
["Kontenklasse 1 Finanz-/ Privatkonten","Sonstige Vermögensgegenstände","1547 - Forderungen aus entrichteten Verbrauchsteuern",{"$nulls":7},"1547","Forderungen aus entrichteten Verbrauchsteuern"]
["Kontenklasse 1 Finanz-/ Privatkonten","Sonstige Vermögensgegenstände","1548 - Vorsteuer im Folgejahr abziehbar",{"$nulls":7},"1548","Vorsteuer im Folgejahr abziehbar"]
["Kontenklasse 1 Finanz-/ Privatkonten","Sonstige Vermögensgegenstände","1549 - Körperschaftsteuerrückforderung",{"$nulls":7},"1549","Körperschaftsteuerrückforderung"]
["Kontenklasse 1 Finanz-/ Privatkonten","Sonstige Vermögensgegenstände","1550 - Darlehen (gewährt)",{"$nulls":7},"1550","Darlehen (gewährt)"]
["Kontenklasse 1 Finanz-/ Privatkonten","Sonstige Vermögensgegenstände","1551 - Restlaufzeit bis 1 Jahr",{"$nulls":7},"1551","Restlaufzeit bis 1 Jahr"]
["Kontenklasse 1 Finanz-/ Privatkonten","Sonstige Vermögensgegenstände","1555 - Restlaufzeit größer 1 Jahr",{"$nulls":7},"1555","Restlaufzeit größer 1 Jahr"]
["Kontenklasse 1 Finanz-/ Privatkonten","Sonstige Vermögensgegenstände","1556 - Nachträgliche abziehbare Vorsteuer, § 15a Abs. 1 UStG, bewegliche Wirtschaftsgüter",{"$nulls":7},"1556","Nachträgliche abziehbare Vorsteuer, § 15a Abs. 1 UStG, bewegliche Wirtschaftsgüter"]
["Kontenklasse 1 Finanz-/ Privatkonten","Sonstige Vermögensgegenstände","1557 - Zurückzuzahlende Vorsteuer, § 15a Abs. 1 UStG, bewegliche Wirtschaftsgüter",{"$nulls":7},"1557","Zurückzuzahlende Vorsteuer, § 15a Abs. 1 UStG, bewegliche Wirtschaftsgüter"]
["Kontenklasse 1 Finanz-/ Privatkonten","Sonstige Vermögensgegenstände","1558 - Nachträgliche abziehbare Vorsteuer, § 15a Abs. 1 UStG, unbewegliche Wirtschaftsgüter",{"$nulls":7},"1558","Nachträgliche abziehbare Vorsteuer, § 15a Abs. 1 UStG, unbewegliche Wirtschaftsgüter"]
["Kontenklasse 1 Finanz-/ Privatkonten","Sonstige Vermögensgegenstände","1559 - Zurückzuzahlende Vorsteuer, § 15a Abs. 1 UStG, unbewegliche Wirtschaftsgüter",{"$nulls":7},"1559","Zurückzuzahlende Vorsteuer, § 15a Abs. 1 UStG, unbewegliche Wirtschaftsgüter"]
["Kontenklasse 1 Finanz-/ Privatkonten","Sonstige Vermögensgegenstände","1560 - Aufzuteilende Vorsteuer",{"$nulls":7},"1560","Aufzuteilende Vorsteuer"]
["Kontenklasse 1 Finanz-/ Privatkonten","Sonstige Vermögensgegenstände","1561 - Aufzuteilende Vorsteuer 7 %",{"$nulls":7},"1561","Aufzuteilende Vorsteuer 7 %"]
["Kontenklasse 1 Finanz-/ Privatkonten","Sonstige Vermögensgegenstände","1562 - Aufzuteilende Vorsteuer aus innergemeinschaftlichem Erwerb",{"$nulls":7},"1562","Aufzuteilende Vorsteuer aus innergemeinschaftlichem Erwerb"]
["Kontenklasse 1 Finanz-/ Privatkonten","Sonstige Vermögensgegenstände","1563 - Aufzuteilende Vorsteuer aus innergemeinschaftlichem Erwerb 19%",{"$nulls":7},{"$f":"MID(C451,1,4)","v":"1563"},{"$f":"MID(C451,8,255)","v":"Aufzuteilende Vorsteuer aus innergemeinschaftlichem Erwerb 19%"}]
["Kontenklasse 1 Finanz-/ Privatkonten","Sonstige Vermögensgegenstände","1564 - Reserviert D",{"$nulls":7},"1564","Reserviert D"]
["Kontenklasse 1 Finanz-/ Privatkonten","Sonstige Vermögensgegenstände","1565 - Reserviert D",{"$nulls":7},"1565","Reserviert D"]
["Kontenklasse 1 Finanz-/ Privatkonten","Sonstige Vermögensgegenstände","1566 - Aufzuteilende Vorsteuer 19 %",{"$nulls":7},"1566","Aufzuteilende Vorsteuer 19 %"]
["Kontenklasse 1 Finanz-/ Privatkonten","Sonstige Vermögensgegenstände","1567 - Aufzuteilende Vorsteuer nach §§ 13a/13b UStG",{"$nulls":7},"1567","Aufzuteilende Vorsteuer nach §§ 13a/13b UStG"]
["Kontenklasse 1 Finanz-/ Privatkonten","Sonstige Vermögensgegenstände","1568 - Reserviert D",{"$nulls":7},"1568","Reserviert D"]
["Kontenklasse 1 Finanz-/ Privatkonten","Sonstige Vermögensgegenstände","1569 - Aufzuteilende Vorsteuer nach §§ 13a/13b UStG 19 %",{"$nulls":7},"1569","Aufzuteilende Vorsteuer nach §§ 13a/13b UStG 19 %"]
["Kontenklasse 1 Finanz-/ Privatkonten","Sonstige Vermögensgegenstände","1570 - Abziehbare Vorsteuer",{"$nulls":7},"1570","Abziehbare Vorsteuer"]
["Kontenklasse 1 Finanz-/ Privatkonten","Sonstige Vermögensgegenstände","1571 - Abziehbare Vorsteuer 7 %",{"$nulls":7},"1571","Abziehbare Vorsteuer 7 %"]
["Kontenklasse 1 Finanz-/ Privatkonten","Sonstige Vermögensgegenstände","1572 - Abziehbare Vorsteuer aus innergemeinschaftlichem Erwerb",{"$nulls":7},"1572","Abziehbare Vorsteuer aus innergemeinschaftlichem Erwerb"]
["Kontenklasse 1 Finanz-/ Privatkonten","Sonstige Vermögensgegenstände","1573 - Reserviert D",{"$nulls":7},"1573","Reserviert D"]
["Kontenklasse 1 Finanz-/ Privatkonten","Sonstige Vermögensgegenstände","1574 - Abziehbare Vorsteuer aus innergemeinschaftlichem Erwerb 19%",{"$nulls":7},"1574","Abziehbare Vorsteuer aus innergemeinschaftlichem Erwerb 19%"]
["Kontenklasse 1 Finanz-/ Privatkonten","Sonstige Vermögensgegenstände","1575 - Reserviert D",{"$nulls":7},"1575","Reserviert D"]
["Kontenklasse 1 Finanz-/ Privatkonten","Sonstige Vermögensgegenstände","1576 - Abziehbare Vorsteuer 19 %",{"$nulls":7},"1576","Abziehbare Vorsteuer 19 %"]
["Kontenklasse 1 Finanz-/ Privatkonten","Sonstige Vermögensgegenstände","1577 - Abziehbare Vorsteuer nach § 13b UStG 19 %",{"$nulls":7},"1577","Abziehbare Vorsteuer nach § 13b UStG 19 %"]
["Kontenklasse 1 Finanz-/ Privatkonten","Sonstige Vermögensgegenstände","1578 - Abziehbare Vorsteuer nach § 13b UStG",{"$nulls":7},"1578","Abziehbare Vorsteuer nach § 13b UStG"]
["Kontenklasse 1 Finanz-/ Privatkonten","Sonstige Vermögensgegenstände","1579 - Reserviert D",{"$nulls":7},"1579","Reserviert D"]
["Kontenklasse 1 Finanz-/ Privatkonten","Sonstige Vermögensgegenstände","1580 - Reserviert D",{"$nulls":7},"1580","Reserviert D"]
["Kontenklasse 1 Finanz-/ Privatkonten","Sonstige Vermögensgegenstände","1581 - Reserviert D",{"$nulls":7},"1581","Reserviert D"]
["Kontenklasse 1 Finanz-/ Privatkonten","Sonstige Vermögensgegenstände","1582 - Reserviert D",{"$nulls":7},"1582","Reserviert D"]
["Kontenklasse 1 Finanz-/ Privatkonten","Sonstige Vermögensgegenstände","1583 - Reserviert D",{"$nulls":7},"1583","Reserviert D"]
["Kontenklasse 1 Finanz-/ Privatkonten","Sonstige Vermögensgegenstände","1584 - Abziehbare Vorsteuer aus innergemeinschaftlichem Erwerb von Neufahrzeugen von Lieferanten ohne Umsatzsteuer-Identifikationsnummer",{"$nulls":7},"1584","Abziehbare Vorsteuer aus innergemeinschaftlichem Erwerb von Neufahrzeugen von Lieferanten ohne Umsatzsteuer-Identifikationsnummer"]
["Kontenklasse 1 Finanz-/ Privatkonten","Sonstige Vermögensgegenstände","1585 - Abziehbare Vorsteuer aus der Auslagerung von Gegenständen aus einem Umsatzsteuerlager",{"$nulls":7},"1585","Abziehbare Vorsteuer aus der Auslagerung von Gegenständen aus einem Umsatzsteuerlager"]
["Kontenklasse 1 Finanz-/ Privatkonten","Sonstige Vermögensgegenstände","1588 - Bezahlte Einfuhrumsatzsteuer",{"$nulls":7},"1588","Bezahlte Einfuhrumsatzsteuer"]
["Kontenklasse 1 Finanz-/ Privatkonten","Sonstige Vermögensgegenstände","1589 - Reserviert D",{"$nulls":7},"1589","Reserviert D"]
["Kontenklasse 1 Finanz-/ Privatkonten","Sonstige Vermögensgegenstände","1590 - Durchlaufende Posten (Sonstige)",{"$nulls":7},"1590","Durchlaufende Posten (Sonstige)"]
["Kontenklasse 1 Finanz-/ Privatkonten","Sonstige Vermögensgegenstände","1591 - Durchlaufende Posten Straßenverkehrsamt (Zulassung)",{"$nulls":7},"1591","Durchlaufende Posten Straßenverkehrsamt (Zulassung)"]
["Kontenklasse 1 Finanz-/ Privatkonten","Sonstige Vermögensgegenstände","1592 - Durchlaufende Posten HU",{"$nulls":7},"1592","Durchlaufende Posten HU"]
["Kontenklasse 1 Finanz-/ Privatkonten","Sonstige Vermögensgegenstände","1593 - Verrechnungskonto erhaltene Anzahlungen bei Buchung über Debitorenkonto",{"$nulls":7},"1593","Verrechnungskonto erhaltene Anzahlungen bei Buchung über Debitorenkonto"]
["Kontenklasse 1 Finanz-/ Privatkonten","Sonstige Vermögensgegenstände","1594 - Forderungen gegen verbundene Unternehmen",{"$nulls":7},"1594","Forderungen gegen verbundene Unternehmen"]
["Kontenklasse 1 Finanz-/ Privatkonten","Sonstige Vermögensgegenstände","1595 - Restlaufzeit bis 1 Jahr",{"$nulls":7},"1595","Restlaufzeit bis 1 Jahr"]
["Kontenklasse 1 Finanz-/ Privatkonten","Sonstige Vermögensgegenstände","1596 - Restlaufzeit größer 1 Jahr",{"$nulls":7},"1596","Restlaufzeit größer 1 Jahr"]
["Kontenklasse 1 Finanz-/ Privatkonten","Sonstige Vermögensgegenstände","1597 - Forderungen gegen Unternehmen, mit denen ein Beteiligungsverhältnis besteht",{"$nulls":7},"1597","Forderungen gegen Unternehmen, mit denen ein Beteiligungsverhältnis besteht"]
["Kontenklasse 1 Finanz-/ Privatkonten","Sonstige Vermögensgegenstände","1598 - Restlaufzeit bis 1 Jahr",{"$nulls":7},"1598","Restlaufzeit bis 1 Jahr"]
["Kontenklasse 1 Finanz-/ Privatkonten","Sonstige Vermögensgegenstände","1599 - Restlaufzeit größer 1 Jahr",{"$nulls":7},"1599","Restlaufzeit größer 1 Jahr"]
["Kontenklasse 1 Finanz-/ Privatkonten","Verbindlichkeiten aus Lieferungen und Leistungen","1600 - Verbindlichkeiten aus Lieferungen und Leistungen",{"$nulls":7},"1600","Verbindlichkeiten aus Lieferungen und Leistungen"]
["Kontenklasse 1 Finanz-/ Privatkonten","Verbindlichkeiten aus Lieferungen und Leistungen","1601 - Reserviert D (Verbindlichkeiten aus Lieferungen und Leistungen)",{"$nulls":7},"1601","Reserviert D (Verbindlichkeiten aus Lieferungen und Leistungen)"]
["Kontenklasse 1 Finanz-/ Privatkonten","Verbindlichkeiten aus Lieferungen und Leistungen","1602 - Reserviert D (Verbindlichkeiten aus Lieferungen und Leistungen)",{"$nulls":7},"1602","Reserviert D (Verbindlichkeiten aus Lieferungen und Leistungen)"]
["Kontenklasse 1 Finanz-/ Privatkonten","Verbindlichkeiten aus Lieferungen und Leistungen","1603 - Reserviert D (Verbindlichkeiten aus Lieferungen und Leistungen)",{"$nulls":7},"1603","Reserviert D (Verbindlichkeiten aus Lieferungen und Leistungen)"]
["Kontenklasse 1 Finanz-/ Privatkonten","Verbindlichkeiten aus Lieferungen und Leistungen","1605 - Verbindlichkeiten aus Lieferungen und Leistungen Hersteller Fahrzeuge",{"$nulls":7},"1605","Verbindlichkeiten aus Lieferungen und Leistungen Hersteller Fahrzeuge"]
["Kontenklasse 1 Finanz-/ Privatkonten","Verbindlichkeiten aus Lieferungen und Leistungen","1606 - Verbindlichkeiten aus Lieferungen und Leistungen Hersteller Teile und Zubehör",{"$nulls":7},"1606","Verbindlichkeiten aus Lieferungen und Leistungen Hersteller Teile und Zubehör"]
["Kontenklasse 1 Finanz-/ Privatkonten","Verbindlichkeiten aus Lieferungen und Leistungen","1607 - Verbindlichkeiten aus Lieferungen und Leistungen Hersteller Sonstiges",{"$nulls":7},"1607","Verbindlichkeiten aus Lieferungen und Leistungen Hersteller Sonstiges"]
["Kontenklasse 1 Finanz-/ Privatkonten","Verbindlichkeiten aus Lieferungen und Leistungen","1610 - Verbindlichkeiten aus Lieferungen und Leistungen ohne Kontokorrent",{"$nulls":7},"1610","Verbindlichkeiten aus Lieferungen und Leistungen ohne Kontokorrent"]
["Kontenklasse 1 Finanz-/ Privatkonten","Verbindlichkeiten aus Lieferungen und Leistungen","1625 - Verbindlichkeiten aus Lieferungen und Leistungen – Restlaufzeit bis 1 Jahr",{"$nulls":7},"1625","Verbindlichkeiten aus Lieferungen und Leistungen – Restlaufzeit bis 1 Jahr"]
["Kontenklasse 1 Finanz-/ Privatkonten","Verbindlichkeiten aus Lieferungen und Leistungen","1626 - Restlaufzeit 1 bis 5 Jahre",{"$nulls":7},"1626","Restlaufzeit 1 bis 5 Jahre"]
["Kontenklasse 1 Finanz-/ Privatkonten","Verbindlichkeiten aus Lieferungen und Leistungen","1628 - Restlaufzeit größer 5 Jahre",{"$nulls":7},"1628","Restlaufzeit größer 5 Jahre"]
["Kontenklasse 1 Finanz-/ Privatkonten","Verbindlichkeiten aus Lieferungen und Leistungen","1630 - Verbindlichkeiten aus Lieferungen und Leistungen gegenüber verbundenen Unternehmen",{"$nulls":7},"1630","Verbindlichkeiten aus Lieferungen und Leistungen gegenüber verbundenen Unternehmen"]
["Kontenklasse 1 Finanz-/ Privatkonten","Verbindlichkeiten aus Lieferungen und Leistungen","1631 - Restlaufzeit bis 1 Jahr",{"$nulls":7},"1631","Restlaufzeit bis 1 Jahr"]
["Kontenklasse 1 Finanz-/ Privatkonten","Verbindlichkeiten aus Lieferungen und Leistungen","1635 - Restlaufzeit 1 bis 5 Jahre",{"$nulls":7},"1635","Restlaufzeit 1 bis 5 Jahre"]
["Kontenklasse 1 Finanz-/ Privatkonten","Verbindlichkeiten aus Lieferungen und Leistungen","1638 - Restlaufzeit größer 5 Jahre",{"$nulls":7},"1638","Restlaufzeit größer 5 Jahre"]
["Kontenklasse 1 Finanz-/ Privatkonten","Verbindlichkeiten aus Lieferungen und Leistungen","1640 - Verbindlichkeiten aus Lieferungen und Leistungen gegenüber Unternehmen, mit denen ein  Beteiligungsverhältnis besteht",{"$nulls":7},"1640","Verbindlichkeiten aus Lieferungen und Leistungen gegenüber Unternehmen, mit denen ein  Beteiligungsverhältnis besteht"]
["Kontenklasse 1 Finanz-/ Privatkonten","Verbindlichkeiten aus Lieferungen und Leistungen","1641 - Restlaufzeit bis 1 Jahr",{"$nulls":7},"1641","Restlaufzeit bis 1 Jahr"]
["Kontenklasse 1 Finanz-/ Privatkonten","Verbindlichkeiten aus Lieferungen und Leistungen","1645 - Restlaufzeit 1 bis 5 Jahre",{"$nulls":7},"1645","Restlaufzeit 1 bis 5 Jahre"]
["Kontenklasse 1 Finanz-/ Privatkonten","Verbindlichkeiten aus Lieferungen und Leistungen","1648 - Restlaufzeit größer 5 Jahre",{"$nulls":7},"1648","Restlaufzeit größer 5 Jahre"]
["Kontenklasse 1 Finanz-/ Privatkonten","Verbindlichkeiten aus Lieferungen und Leistungen","1650 - Verbindlichkeiten aus Lieferungen und Leistungen gegenüber Gesellschaftern",{"$nulls":7},"1650","Verbindlichkeiten aus Lieferungen und Leistungen gegenüber Gesellschaftern"]
["Kontenklasse 1 Finanz-/ Privatkonten","Verbindlichkeiten aus Lieferungen und Leistungen","1651 - Restlaufzeit bis 1 Jahr",{"$nulls":7},"1651","Restlaufzeit bis 1 Jahr"]
["Kontenklasse 1 Finanz-/ Privatkonten","Verbindlichkeiten aus Lieferungen und Leistungen","1655 - Restlaufzeit 1 bis 5 Jahre",{"$nulls":7},"1655","Restlaufzeit 1 bis 5 Jahre"]
["Kontenklasse 1 Finanz-/ Privatkonten","Verbindlichkeiten aus Lieferungen und Leistungen","1658 - Restlaufzeit größer 5 Jahre",{"$nulls":7},"1658","Restlaufzeit größer 5 Jahre"]
["Kontenklasse 1 Finanz-/ Privatkonten","Verbindlichkeiten aus Lieferungen und Leistungen","1659 - Gegenkonto 1625-1658 bei Aufteilung Kreditorenkonto",{"$nulls":7},"1659","Gegenkonto 1625-1658 bei Aufteilung Kreditorenkonto"]
["Kontenklasse 1 Finanz-/ Privatkonten","Verbindlichkeiten aus Lieferungen und Leistungen","1660 - Schuldwechsel",{"$nulls":7},"1660","Schuldwechsel"]
["Kontenklasse 1 Finanz-/ Privatkonten","Verbindlichkeiten aus Lieferungen und Leistungen","1661 - Restlaufzeit bis 1 Jahr",{"$nulls":7},"1661","Restlaufzeit bis 1 Jahr"]
["Kontenklasse 1 Finanz-/ Privatkonten","Verbindlichkeiten aus Lieferungen und Leistungen","1662 - Restlaufzeit 1 bis 5 Jahre",{"$nulls":7},"1662","Restlaufzeit 1 bis 5 Jahre"]
["Kontenklasse 1 Finanz-/ Privatkonten","Verbindlichkeiten aus Lieferungen und Leistungen","1663 - Restlaufzeit größer 5 Jahre",{"$nulls":7},"1663","Restlaufzeit größer 5 Jahre"]
["Kontenklasse 1 Finanz-/ Privatkonten","Verbindlichkeiten aus Lieferungen und Leistungen","1665 - Verbindlichkeiten gegenüber GmbH-Gesellschaftern",{"$nulls":7},"1665","Verbindlichkeiten gegenüber GmbH-Gesellschaftern"]
["Kontenklasse 1 Finanz-/ Privatkonten","Verbindlichkeiten aus Lieferungen und Leistungen","1666 - Restlaufzeit bis 1 Jahr",{"$nulls":7},{"$f":"MID(C515,1,4)","v":"1666"},{"$f":"MID(C515,8,255)","v":"Restlaufzeit bis 1 Jahr"}]
["Kontenklasse 1 Finanz-/ Privatkonten","Verbindlichkeiten aus Lieferungen und Leistungen","1667 - Restlaufzeit 1 bis 5 Jahre",{"$nulls":7},"1667","Restlaufzeit 1 bis 5 Jahre"]
["Kontenklasse 1 Finanz-/ Privatkonten","Verbindlichkeiten aus Lieferungen und Leistungen","1668 - Restlaufzeit größer 5 Jahre",{"$nulls":7},"1668","Restlaufzeit größer 5 Jahre"]
["Kontenklasse 1 Finanz-/ Privatkonten","Verbindlichkeiten aus Lieferungen und Leistungen","1670 - Verbindlichkeiten gegenüber persönlich haftenden Gesellschaftern",{"$nulls":7},"1670","Verbindlichkeiten gegenüber persönlich haftenden Gesellschaftern"]
["Kontenklasse 1 Finanz-/ Privatkonten","Verbindlichkeiten aus Lieferungen und Leistungen","1671 - Restlaufzeit bis 1 Jahr",{"$nulls":7},"1671","Restlaufzeit bis 1 Jahr"]
["Kontenklasse 1 Finanz-/ Privatkonten","Verbindlichkeiten aus Lieferungen und Leistungen","1672 - Restlaufzeit 1 bis 5 Jahre",{"$nulls":7},"1672","Restlaufzeit 1 bis 5 Jahre"]
["Kontenklasse 1 Finanz-/ Privatkonten","Verbindlichkeiten aus Lieferungen und Leistungen","1673 - Restlaufzeit größer 5 Jahre",{"$nulls":7},"1673","Restlaufzeit größer 5 Jahre"]
["Kontenklasse 1 Finanz-/ Privatkonten","Verbindlichkeiten aus Lieferungen und Leistungen","1675 - Verbindlichkeiten gegenüber Kommanditisten",{"$nulls":7},"1675","Verbindlichkeiten gegenüber Kommanditisten"]
["Kontenklasse 1 Finanz-/ Privatkonten","Verbindlichkeiten aus Lieferungen und Leistungen","1676 - Restlaufzeit bis 1 Jahr",{"$nulls":7},"1676","Restlaufzeit bis 1 Jahr"]
["Kontenklasse 1 Finanz-/ Privatkonten","Verbindlichkeiten aus Lieferungen und Leistungen","1677 - Restlaufzeit 1 bis 5 Jahre",{"$nulls":7},"1677","Restlaufzeit 1 bis 5 Jahre"]
["Kontenklasse 1 Finanz-/ Privatkonten","Verbindlichkeiten aus Lieferungen und Leistungen","1678 - Restlaufzeit größer 5 Jahre",{"$nulls":7},"1678","Restlaufzeit größer 5 Jahre"]
["Kontenklasse 1 Finanz-/ Privatkonten","Verbindlichkeiten aus Lieferungen und Leistungen","1695 - Verbindlichkeiten gegenüber stillen Gesellschaftern",{"$nulls":7},"1695","Verbindlichkeiten gegenüber stillen Gesellschaftern"]
["Kontenklasse 1 Finanz-/ Privatkonten","Verbindlichkeiten aus Lieferungen und Leistungen","1696 - Restlaufzeit bis 1 Jahr",{"$nulls":7},"1696","Restlaufzeit bis 1 Jahr"]
["Kontenklasse 1 Finanz-/ Privatkonten","Verbindlichkeiten aus Lieferungen und Leistungen","1697 - Restlaufzeit 1 bis 5 Jahre",{"$nulls":7},"1697","Restlaufzeit 1 bis 5 Jahre"]
["Kontenklasse 1 Finanz-/ Privatkonten","Verbindlichkeiten aus Lieferungen und Leistungen","1698 - Restlaufzeit größer 5 Jahre",{"$nulls":7},"1698","Restlaufzeit größer 5 Jahre"]
["Kontenklasse 1 Finanz-/ Privatkonten","Sonstige Verbindlichkeiten","1700 - Sonstige Verbindlichkeiten",{"$nulls":7},"1700","Sonstige Verbindlichkeiten"]
["Kontenklasse 1 Finanz-/ Privatkonten","Sonstige Verbindlichkeiten","1701 - Restlaufzeit bis 1 Jahr",{"$nulls":7},"1701","Restlaufzeit bis 1 Jahr"]
["Kontenklasse 1 Finanz-/ Privatkonten","Sonstige Verbindlichkeiten","1702 - Restlaufzeit 1 bis 5 Jahre",{"$nulls":7},"1702","Restlaufzeit 1 bis 5 Jahre"]
["Kontenklasse 1 Finanz-/ Privatkonten","Sonstige Verbindlichkeiten","1703 - Restlaufzeit größer 5 Jahre",{"$nulls":7},"1703","Restlaufzeit größer 5 Jahre"]
["Kontenklasse 1 Finanz-/ Privatkonten","Sonstige Verbindlichkeiten","1705 - Darlehen (erhaltene)",{"$nulls":7},"1705","Darlehen (erhaltene)"]
["Kontenklasse 1 Finanz-/ Privatkonten","Sonstige Verbindlichkeiten","1706 - Restlaufzeit bis 1 Jahr",{"$nulls":7},"1706","Restlaufzeit bis 1 Jahr"]
["Kontenklasse 1 Finanz-/ Privatkonten","Sonstige Verbindlichkeiten","1707 - Restlaufzeit 1 bis 5 Jahre",{"$nulls":7},"1707","Restlaufzeit 1 bis 5 Jahre"]
["Kontenklasse 1 Finanz-/ Privatkonten","Sonstige Verbindlichkeiten","1708 - Restlaufzeit größer 5 Jahre",{"$nulls":7},"1708","Restlaufzeit größer 5 Jahre"]
["Kontenklasse 1 Finanz-/ Privatkonten","Sonstige Verbindlichkeiten","1709 - Gewinnverfügungskonto stiller Gesellschafter",{"$nulls":7},"1709","Gewinnverfügungskonto stiller Gesellschafter"]
["Kontenklasse 1 Finanz-/ Privatkonten","Sonstige Verbindlichkeiten","1710 - Erhaltene Anzahlungen (Verbindlichkeiten)",{"$nulls":7},"1710","Erhaltene Anzahlungen (Verbindlichkeiten)"]
["Kontenklasse 1 Finanz-/ Privatkonten","Sonstige Verbindlichkeiten","1718 - Erhaltene, versteuerte Anzahlungen 19 % USt (Verbindlichkeiten)",{"$nulls":7},"1718","Erhaltene, versteuerte Anzahlungen 19 % USt (Verbindlichkeiten)"]
["Kontenklasse 1 Finanz-/ Privatkonten","Sonstige Verbindlichkeiten","1719 - Erhaltene Anzahlungen – Restlaufzeit bis 1 Jahr",{"$nulls":7},"1719","Erhaltene Anzahlungen – Restlaufzeit bis 1 Jahr"]
["Kontenklasse 1 Finanz-/ Privatkonten","Sonstige Verbindlichkeiten","1720 - Restlaufzeit 1 bis 5 Jahre",{"$nulls":7},"1720","Restlaufzeit 1 bis 5 Jahre"]
["Kontenklasse 1 Finanz-/ Privatkonten","Sonstige Verbindlichkeiten","1721 - Restlaufzeit größer 5 Jahre",{"$nulls":7},"1721","Restlaufzeit größer 5 Jahre"]
["Kontenklasse 1 Finanz-/ Privatkonten","Sonstige Verbindlichkeiten","1722 - Erhaltene Anzahlungen (von Vorräten offen abgesetzt)",{"$nulls":7},"1722","Erhaltene Anzahlungen (von Vorräten offen abgesetzt)"]
["Kontenklasse 1 Finanz-/ Privatkonten","Sonstige Verbindlichkeiten","1729 - Verrechnungskonto für Verkaufshilfen",{"$nulls":7},"1729","Verrechnungskonto für Verkaufshilfen"]
["Kontenklasse 1 Finanz-/ Privatkonten","Sonstige Verbindlichkeiten","1730 - Kreditkartenabrechnung",{"$nulls":7},"1730","Kreditkartenabrechnung"]
["Kontenklasse 1 Finanz-/ Privatkonten","Sonstige Verbindlichkeiten","1731 - Agenturwarenabrechnung",{"$nulls":7},"1731","Agenturwarenabrechnung"]
["Kontenklasse 1 Finanz-/ Privatkonten","Sonstige Verbindlichkeiten","1732 - Erhaltene Kautionen",{"$nulls":7},"1732","Erhaltene Kautionen"]
["Kontenklasse 1 Finanz-/ Privatkonten","Sonstige Verbindlichkeiten","1733 - Restlaufzeit bis 1 Jahr",{"$nulls":7},"1733","Restlaufzeit bis 1 Jahr"]
["Kontenklasse 1 Finanz-/ Privatkonten","Sonstige Verbindlichkeiten","1734 - Restlaufzeit 1 bis 5 Jahre",{"$nulls":7},"1734","Restlaufzeit 1 bis 5 Jahre"]
["Kontenklasse 1 Finanz-/ Privatkonten","Sonstige Verbindlichkeiten","1735 - Restlaufzeit größer 5 Jahre",{"$nulls":7},"1735","Restlaufzeit größer 5 Jahre"]
["Kontenklasse 1 Finanz-/ Privatkonten","Sonstige Verbindlichkeiten","1736 - Verbindlichkeiten aus Steuern und Abgaben",{"$nulls":7},"1736","Verbindlichkeiten aus Steuern und Abgaben"]
["Kontenklasse 1 Finanz-/ Privatkonten","Sonstige Verbindlichkeiten","1737 - Restlaufzeit bis 1 Jahr",{"$nulls":7},"1737","Restlaufzeit bis 1 Jahr"]
["Kontenklasse 1 Finanz-/ Privatkonten","Sonstige Verbindlichkeiten","1738 - Restlaufzeit 1 bis 5 Jahre",{"$nulls":7},"1738","Restlaufzeit 1 bis 5 Jahre"]
["Kontenklasse 1 Finanz-/ Privatkonten","Sonstige Verbindlichkeiten","1739 - Restlaufzeit größer 5 Jahre",{"$nulls":7},"1739","Restlaufzeit größer 5 Jahre"]
["Kontenklasse 1 Finanz-/ Privatkonten","Sonstige Verbindlichkeiten","1740 - Verbindlichkeiten aus Lohn und Gehalt",{"$nulls":7},"1740","Verbindlichkeiten aus Lohn und Gehalt"]
["Kontenklasse 1 Finanz-/ Privatkonten","Sonstige Verbindlichkeiten","1741 - Verbindlichkeiten aus Lohn- und Kirchensteuer",{"$nulls":7},"1741","Verbindlichkeiten aus Lohn- und Kirchensteuer"]
["Kontenklasse 1 Finanz-/ Privatkonten","Sonstige Verbindlichkeiten","1742 - Verbindlichkeiten im Rahmen der sozialen Sicherheit",{"$nulls":7},"1742","Verbindlichkeiten im Rahmen der sozialen Sicherheit"]
["Kontenklasse 1 Finanz-/ Privatkonten","Sonstige Verbindlichkeiten","1743 - Restlaufzeit bis 1 Jahr",{"$nulls":7},"1743","Restlaufzeit bis 1 Jahr"]
["Kontenklasse 1 Finanz-/ Privatkonten","Sonstige Verbindlichkeiten","1744 - Restlaufzeit 1 bis 5 Jahre",{"$nulls":7},"1744","Restlaufzeit 1 bis 5 Jahre"]
["Kontenklasse 1 Finanz-/ Privatkonten","Sonstige Verbindlichkeiten","1745 - Restlaufzeit größer 5 Jahre",{"$nulls":7},"1745","Restlaufzeit größer 5 Jahre"]
["Kontenklasse 1 Finanz-/ Privatkonten","Sonstige Verbindlichkeiten","1746 - Verbindlichkeiten aus Einbehaltungen (KapESt und SolZ auf KapESt) für offene Ausschüttungen",{"$nulls":7},"1746","Verbindlichkeiten aus Einbehaltungen (KapESt und SolZ auf KapESt) für offene Ausschüttungen"]
["Kontenklasse 1 Finanz-/ Privatkonten","Sonstige Verbindlichkeiten","1747 - Verbindlichkeiten für Verbrauchsteuer",{"$nulls":7},"1747","Verbindlichkeiten für Verbrauchsteuer"]
["Kontenklasse 1 Finanz-/ Privatkonten","Sonstige Verbindlichkeiten","1748 - Verbindlichkeiten aus Einbehaltungen von Arbeitnehmern",{"$nulls":7},"1748","Verbindlichkeiten aus Einbehaltungen von Arbeitnehmern"]
["Kontenklasse 1 Finanz-/ Privatkonten","Sonstige Verbindlichkeiten","1749 - Verbindlichkeiten gegenüber dem Finanzamt aus abgeführten Bauabzugsbetrag",{"$nulls":7},"1749","Verbindlichkeiten gegenüber dem Finanzamt aus abgeführten Bauabzugsbetrag"]
["Kontenklasse 1 Finanz-/ Privatkonten","Sonstige Verbindlichkeiten","1750 - Verbindlichkeiten aus Vermögensbildung",{"$nulls":7},"1750","Verbindlichkeiten aus Vermögensbildung"]
["Kontenklasse 1 Finanz-/ Privatkonten","Sonstige Verbindlichkeiten","1751 - Restlaufzeit bis 1 Jahr",{"$nulls":7},"1751","Restlaufzeit bis 1 Jahr"]
["Kontenklasse 1 Finanz-/ Privatkonten","Sonstige Verbindlichkeiten","1752 - Restlaufzeit 1 bis 5 Jahre",{"$nulls":7},"1752","Restlaufzeit 1 bis 5 Jahre"]
["Kontenklasse 1 Finanz-/ Privatkonten","Sonstige Verbindlichkeiten","1753 - Restlaufzeit größer 5 Jahre",{"$nulls":7},"1753","Restlaufzeit größer 5 Jahre"]
["Kontenklasse 1 Finanz-/ Privatkonten","Sonstige Verbindlichkeiten","1754 - Steuerzahlungen an andere Länder",{"$nulls":7},"1754","Steuerzahlungen an andere Länder"]
["Kontenklasse 1 Finanz-/ Privatkonten","Sonstige Verbindlichkeiten","1755 - Lohn- und Gehaltsverrechnung",{"$nulls":7},"1755","Lohn- und Gehaltsverrechnung"]
["Kontenklasse 1 Finanz-/ Privatkonten","Sonstige Verbindlichkeiten","1759 - Voraussichtliche Beitragsschuld gegenüber den Sozialversicherungsträgern",{"$nulls":7},"1759","Voraussichtliche Beitragsschuld gegenüber den Sozialversicherungsträgern"]
["Kontenklasse 1 Finanz-/ Privatkonten","Sonstige Verbindlichkeiten","1760 - Umsatzsteuer nicht fällig",{"$nulls":7},"1760","Umsatzsteuer nicht fällig"]
["Kontenklasse 1 Finanz-/ Privatkonten","Sonstige Verbindlichkeiten","1761 - Umsatzsteuer nicht fällig 7 %",{"$nulls":7},"1761","Umsatzsteuer nicht fällig 7 %"]
["Kontenklasse 1 Finanz-/ Privatkonten","Sonstige Verbindlichkeiten","1762 - Umsatzsteuer nicht fällig aus im Inland steuerpflichtigen EG-Lieferungen",{"$nulls":7},"1762","Umsatzsteuer nicht fällig aus im Inland steuerpflichtigen EG-Lieferungen"]
["Kontenklasse 1 Finanz-/ Privatkonten","Sonstige Verbindlichkeiten","1763 - Reserviert D",{"$nulls":7},"1763","Reserviert D"]
["Kontenklasse 1 Finanz-/ Privatkonten","Sonstige Verbindlichkeiten","1764 - Umsatzsteuer nicht fällig aus im Inland steuerpflichtigen EG-Lieferungen 19 %",{"$nulls":7},"1764","Umsatzsteuer nicht fällig aus im Inland steuerpflichtigen EG-Lieferungen 19 %"]
["Kontenklasse 1 Finanz-/ Privatkonten","Sonstige Verbindlichkeiten","1765 - Reserviert D",{"$nulls":7},"1765","Reserviert D"]
["Kontenklasse 1 Finanz-/ Privatkonten","Sonstige Verbindlichkeiten","1766 - Umsatzsteuer nicht fällig 19%",{"$nulls":7},{"$f":"MID(C579,1,4)","v":"1766"},{"$f":"MID(C579,8,255)","v":"Umsatzsteuer nicht fällig 19%"}]
["Kontenklasse 1 Finanz-/ Privatkonten","Sonstige Verbindlichkeiten","1767 - Umsatzsteuer aus im anderen EG-Land steuerpflichtigen Lieferungen",{"$nulls":7},"1767","Umsatzsteuer aus im anderen EG-Land steuerpflichtigen Lieferungen"]
["Kontenklasse 1 Finanz-/ Privatkonten","Sonstige Verbindlichkeiten","1768 - Umsatzsteuer aus im anderen EG-Land steuerpflichtigen sonstigen Leistungen und Werklieferungen",{"$nulls":7},"1768","Umsatzsteuer aus im anderen EG-Land steuerpflichtigen sonstigen Leistungen und Werklieferungen"]
["Kontenklasse 1 Finanz-/ Privatkonten","Sonstige Verbindlichkeiten","1769 - Umsatzsteuer aus der Auslagerung von Gegenständen aus einem Umsatzsteuerlager",{"$nulls":7},"1769","Umsatzsteuer aus der Auslagerung von Gegenständen aus einem Umsatzsteuerlager"]
["Kontenklasse 1 Finanz-/ Privatkonten","Sonstige Verbindlichkeiten","1770 - Umsatzsteuer",{"$nulls":7},"1770","Umsatzsteuer"]
["Kontenklasse 1 Finanz-/ Privatkonten","Sonstige Verbindlichkeiten","1771 - Umsatzsteuer 7 %",{"$nulls":7},"1771","Umsatzsteuer 7 %"]
["Kontenklasse 1 Finanz-/ Privatkonten","Sonstige Verbindlichkeiten","1772 - Umsatzsteuer aus innergemeinschaftlichem Erwerb",{"$nulls":7},"1772","Umsatzsteuer aus innergemeinschaftlichem Erwerb"]
["Kontenklasse 1 Finanz-/ Privatkonten","Sonstige Verbindlichkeiten","1773 - Reserviert D",{"$nulls":7},"1773","Reserviert D"]
["Kontenklasse 1 Finanz-/ Privatkonten","Sonstige Verbindlichkeiten","1774 - Umsatzsteuer aus innergemeinschaftlichem Erwerb 19 %",{"$nulls":7},"1774","Umsatzsteuer aus innergemeinschaftlichem Erwerb 19 %"]
["Kontenklasse 1 Finanz-/ Privatkonten","Sonstige Verbindlichkeiten","1775 - Reserviert D",{"$nulls":7},"1775","Reserviert D"]
["Kontenklasse 1 Finanz-/ Privatkonten","Sonstige Verbindlichkeiten","1776 - Umsatzsteuer 19 %",{"$nulls":7},"1776","Umsatzsteuer 19 %"]
["Kontenklasse 1 Finanz-/ Privatkonten","Sonstige Verbindlichkeiten","1777 - Umsatzsteuer aus im Inland steuerpflichtigen EG-Lieferungen",{"$nulls":7},"1777","Umsatzsteuer aus im Inland steuerpflichtigen EG-Lieferungen"]
["Kontenklasse 1 Finanz-/ Privatkonten","Sonstige Verbindlichkeiten","1778 - Umsatzsteuer aus im Inland steuerpflichtigen EG- Lieferungen 19 %",{"$nulls":7},"1778","Umsatzsteuer aus im Inland steuerpflichtigen EG- Lieferungen 19 %"]
["Kontenklasse 1 Finanz-/ Privatkonten","Sonstige Verbindlichkeiten","1779 - Umsatzsteuer aus innergemeinschaftlichem Erwerb ohne Vorsteuerabzug",{"$nulls":7},"1779","Umsatzsteuer aus innergemeinschaftlichem Erwerb ohne Vorsteuerabzug"]
["Kontenklasse 1 Finanz-/ Privatkonten","Sonstige Verbindlichkeiten","1780 - Umsatzsteuer-Vorauszahlungen",{"$nulls":7},"1780","Umsatzsteuer-Vorauszahlungen"]
["Kontenklasse 1 Finanz-/ Privatkonten","Sonstige Verbindlichkeiten","1781 - Umsatzsteuer-Vorauszahlungen 1/11",{"$nulls":7},"1781","Umsatzsteuer-Vorauszahlungen 1/11"]
["Kontenklasse 1 Finanz-/ Privatkonten","Sonstige Verbindlichkeiten","1782 - Nachsteuer, UStVA Kz. 65",{"$nulls":7},"1782","Nachsteuer, UStVA Kz. 65"]
["Kontenklasse 1 Finanz-/ Privatkonten","Sonstige Verbindlichkeiten","1783 - In Rechnung unrichtig oder unberechtigt ausgewiesene Steuerbeträge, UStVA Kz. 69",{"$nulls":7},"1783","In Rechnung unrichtig oder unberechtigt ausgewiesene Steuerbeträge, UStVA Kz. 69"]
["Kontenklasse 1 Finanz-/ Privatkonten","Sonstige Verbindlichkeiten","1784 - Umsatzsteuer aus innergemeinschaftlichem Erwerb von Neufahrzeugen von Lieferanten ohne Umsatzsteuer-Identifikationsnummer",{"$nulls":7},"1784","Umsatzsteuer aus innergemeinschaftlichem Erwerb von Neufahrzeugen von Lieferanten ohne Umsatzsteuer-Identifikationsnummer"]
["Kontenklasse 1 Finanz-/ Privatkonten","Sonstige Verbindlichkeiten","1785 - Umsatzsteuer nach § 13b UStG",{"$nulls":7},"1785","Umsatzsteuer nach § 13b UStG"]
["Kontenklasse 1 Finanz-/ Privatkonten","Sonstige Verbindlichkeiten","1786 - Reserviert D",{"$nulls":7},"1786","Reserviert D"]
["Kontenklasse 1 Finanz-/ Privatkonten","Sonstige Verbindlichkeiten","1787 - Umsatzsteuer nach § 13b UStG, 19 % USt",{"$nulls":7},"1787","Umsatzsteuer nach § 13b UStG, 19 % USt"]
["Kontenklasse 1 Finanz-/ Privatkonten","Sonstige Verbindlichkeiten","1788 - Einfuhrumsatzsteuer aufgeschoben bis",{"$nulls":7},"1788","Einfuhrumsatzsteuer aufgeschoben bis"]
["Kontenklasse 1 Finanz-/ Privatkonten","Sonstige Verbindlichkeiten","1789 - Umsatzsteuer laufendes Jahr",{"$nulls":7},"1789","Umsatzsteuer laufendes Jahr"]
["Kontenklasse 1 Finanz-/ Privatkonten","Sonstige Verbindlichkeiten","1790 - Umsatzsteuer Vorjahr",{"$nulls":7},"1790","Umsatzsteuer Vorjahr"]
["Kontenklasse 1 Finanz-/ Privatkonten","Sonstige Verbindlichkeiten","1791 - Umsatzsteuer frühere Jahre",{"$nulls":7},"1791","Umsatzsteuer frühere Jahre"]
["Kontenklasse 1 Finanz-/ Privatkonten","Sonstige Verbindlichkeiten","1792 - Sonstige Verrechnungskonten (Interimskonten)",{"$nulls":7},"1792","Sonstige Verrechnungskonten (Interimskonten)"]
["Kontenklasse 1 Finanz-/ Privatkonten","Sonstige Verbindlichkeiten","1793 - Verrechnungskonto geleistete Anzahlungen bei Buchungen über Kreditorenkonto",{"$nulls":7},"1793","Verrechnungskonto geleistete Anzahlungen bei Buchungen über Kreditorenkonto"]
["Kontenklasse 1 Finanz-/ Privatkonten","Sonstige Verbindlichkeiten","1794 - Sonstiges Verrechnungskonto",{"$nulls":7},"1794","Sonstiges Verrechnungskonto"]
["Kontenklasse 1 Finanz-/ Privatkonten","Sonstige Verbindlichkeiten","1795 - Umsatzsteuer auf Altteile",{"$nulls":7},"1795","Umsatzsteuer auf Altteile"]
["Kontenklasse 1 Finanz-/ Privatkonten","Sonstige Verbindlichkeiten","1796 - Sonstiges Verrechnungskonto",{"$nulls":7},"1796","Sonstiges Verrechnungskonto"]
["Kontenklasse 1 Finanz-/ Privatkonten","Sonstige Verbindlichkeiten","1797 - Sonstiges Verrechnungskonto",{"$nulls":7},"1797","Sonstiges Verrechnungskonto"]
["Kontenklasse 1 Finanz-/ Privatkonten","Privatkonten",{"$nulls":8},"",""]
["Kontenklasse 1 Finanz-/ Privatkonten","Vollhafter","1800 - Privatentnahmen allgemein",{"$nulls":7},"1800","Privatentnahmen allgemein"]
["Kontenklasse 1 Finanz-/ Privatkonten","Vollhafter","1801 - Privatentnahmen allgemein",{"$nulls":7},"1801","Privatentnahmen allgemein"]
["Kontenklasse 1 Finanz-/ Privatkonten","Vollhafter","1802 - Privatentnahmen allgemein",{"$nulls":7},"1802","Privatentnahmen allgemein"]
["Kontenklasse 1 Finanz-/ Privatkonten","Vollhafter","1803 - Privatentnahmen allgemein",{"$nulls":7},"1803","Privatentnahmen allgemein"]
["Kontenklasse 1 Finanz-/ Privatkonten","Vollhafter","1804 - Privatentnahmen allgemein",{"$nulls":7},"1804","Privatentnahmen allgemein"]
["Kontenklasse 1 Finanz-/ Privatkonten","Vollhafter","1805 - Privatentnahmen allgemein",{"$nulls":7},"1805","Privatentnahmen allgemein"]
["Kontenklasse 1 Finanz-/ Privatkonten","Vollhafter","1806 - Privatentnahmen allgemein",{"$nulls":7},"1806","Privatentnahmen allgemein"]
["Kontenklasse 1 Finanz-/ Privatkonten","Vollhafter","1807 - Privatentnahmen allgemein",{"$nulls":7},"1807","Privatentnahmen allgemein"]
["Kontenklasse 1 Finanz-/ Privatkonten","Vollhafter","1808 - Privatentnahmen allgemein",{"$nulls":7},"1808","Privatentnahmen allgemein"]
["Kontenklasse 1 Finanz-/ Privatkonten","Vollhafter","1809 - Privatentnahmen allgemein",{"$nulls":7},"1809","Privatentnahmen allgemein"]
["Kontenklasse 1 Finanz-/ Privatkonten","Vollhafter","1810 - Privatsteuern",{"$nulls":7},"1810","Privatsteuern"]
["Kontenklasse 1 Finanz-/ Privatkonten","Vollhafter","1811 - Privatsteuern",{"$nulls":7},"1811","Privatsteuern"]
["Kontenklasse 1 Finanz-/ Privatkonten","Vollhafter","1812 - Privatsteuern",{"$nulls":7},"1812","Privatsteuern"]
["Kontenklasse 1 Finanz-/ Privatkonten","Vollhafter","1813 - Privatsteuern",{"$nulls":7},"1813","Privatsteuern"]
["Kontenklasse 1 Finanz-/ Privatkonten","Vollhafter","1814 - Privatsteuern",{"$nulls":7},"1814","Privatsteuern"]
["Kontenklasse 1 Finanz-/ Privatkonten","Vollhafter","1815 - Privatsteuern",{"$nulls":7},"1815","Privatsteuern"]
["Kontenklasse 1 Finanz-/ Privatkonten","Vollhafter","1816 - Privatsteuern",{"$nulls":7},"1816","Privatsteuern"]
["Kontenklasse 1 Finanz-/ Privatkonten","Vollhafter","1817 - Privatsteuern",{"$nulls":7},"1817","Privatsteuern"]
["Kontenklasse 1 Finanz-/ Privatkonten","Vollhafter","1818 - Privatsteuern",{"$nulls":7},"1818","Privatsteuern"]
["Kontenklasse 1 Finanz-/ Privatkonten","Vollhafter","1819 - Privatsteuern",{"$nulls":7},"1819","Privatsteuern"]
["Kontenklasse 1 Finanz-/ Privatkonten","Vollhafter","1820 - Sonderausgaben beschränkt abzugsfähig",{"$nulls":7},"1820","Sonderausgaben beschränkt abzugsfähig"]
["Kontenklasse 1 Finanz-/ Privatkonten","Vollhafter","1821 - Sonderausgaben beschränkt abzugsfähig",{"$nulls":7},"1821","Sonderausgaben beschränkt abzugsfähig"]
["Kontenklasse 1 Finanz-/ Privatkonten","Vollhafter","1822 - Sonderausgaben beschränkt abzugsfähig",{"$nulls":7},"1822","Sonderausgaben beschränkt abzugsfähig"]
["Kontenklasse 1 Finanz-/ Privatkonten","Vollhafter","1823 - Sonderausgaben beschränkt abzugsfähig",{"$nulls":7},"1823","Sonderausgaben beschränkt abzugsfähig"]
["Kontenklasse 1 Finanz-/ Privatkonten","Vollhafter","1824 - Sonderausgaben beschränkt abzugsfähig",{"$nulls":7},"1824","Sonderausgaben beschränkt abzugsfähig"]
["Kontenklasse 1 Finanz-/ Privatkonten","Vollhafter","1825 - Sonderausgaben beschränkt abzugsfähig",{"$nulls":7},"1825","Sonderausgaben beschränkt abzugsfähig"]
["Kontenklasse 1 Finanz-/ Privatkonten","Vollhafter","1826 - Sonderausgaben beschränkt abzugsfähig",{"$nulls":7},"1826","Sonderausgaben beschränkt abzugsfähig"]
["Kontenklasse 1 Finanz-/ Privatkonten","Vollhafter","1827 - Sonderausgaben beschränkt abzugsfähig",{"$nulls":7},"1827","Sonderausgaben beschränkt abzugsfähig"]
["Kontenklasse 1 Finanz-/ Privatkonten","Vollhafter","1828 - Sonderausgaben beschränkt abzugsfähig",{"$nulls":7},"1828","Sonderausgaben beschränkt abzugsfähig"]
["Kontenklasse 1 Finanz-/ Privatkonten","Vollhafter","1829 - Sonderausgaben beschränkt abzugsfähig",{"$nulls":7},"1829","Sonderausgaben beschränkt abzugsfähig"]
["Kontenklasse 1 Finanz-/ Privatkonten","Vollhafter","1830 - Sonderausgaben unbeschränkt abzugsfähig",{"$nulls":7},"1830","Sonderausgaben unbeschränkt abzugsfähig"]
["Kontenklasse 1 Finanz-/ Privatkonten","Vollhafter","1831 - Sonderausgaben unbeschränkt abzugsfähig",{"$nulls":7},{"$f":"MID(C643,1,4)","v":"1831"},{"$f":"MID(C643,8,255)","v":"Sonderausgaben unbeschränkt abzugsfähig"}]
["Kontenklasse 1 Finanz-/ Privatkonten","Vollhafter","1832 - Sonderausgaben unbeschränkt abzugsfähig",{"$nulls":7},"1832","Sonderausgaben unbeschränkt abzugsfähig"]
["Kontenklasse 1 Finanz-/ Privatkonten","Vollhafter","1833 - Sonderausgaben unbeschränkt abzugsfähig",{"$nulls":7},"1833","Sonderausgaben unbeschränkt abzugsfähig"]
["Kontenklasse 1 Finanz-/ Privatkonten","Vollhafter","1834 - Sonderausgaben unbeschränkt abzugsfähig",{"$nulls":7},"1834","Sonderausgaben unbeschränkt abzugsfähig"]
["Kontenklasse 1 Finanz-/ Privatkonten","Vollhafter","1835 - Sonderausgaben unbeschränkt abzugsfähig",{"$nulls":7},"1835","Sonderausgaben unbeschränkt abzugsfähig"]
["Kontenklasse 1 Finanz-/ Privatkonten","Vollhafter","1836 - Sonderausgaben unbeschränkt abzugsfähig",{"$nulls":7},"1836","Sonderausgaben unbeschränkt abzugsfähig"]
["Kontenklasse 1 Finanz-/ Privatkonten","Vollhafter","1837 - Sonderausgaben unbeschränkt abzugsfähig",{"$nulls":7},"1837","Sonderausgaben unbeschränkt abzugsfähig"]
["Kontenklasse 1 Finanz-/ Privatkonten","Vollhafter","1838 - Sonderausgaben unbeschränkt abzugsfähig",{"$nulls":7},"1838","Sonderausgaben unbeschränkt abzugsfähig"]
["Kontenklasse 1 Finanz-/ Privatkonten","Vollhafter","1839 - Sonderausgaben unbeschränkt abzugsfähig",{"$nulls":7},"1839","Sonderausgaben unbeschränkt abzugsfähig"]
["Kontenklasse 1 Finanz-/ Privatkonten","Vollhafter","1840 - Zuwendungen, Spenden",{"$nulls":7},"1840","Zuwendungen, Spenden"]
["Kontenklasse 1 Finanz-/ Privatkonten","Vollhafter","1841 - Zuwendungen, Spenden",{"$nulls":7},"1841","Zuwendungen, Spenden"]
["Kontenklasse 1 Finanz-/ Privatkonten","Vollhafter","1842 - Zuwendungen, Spenden",{"$nulls":7},"1842","Zuwendungen, Spenden"]
["Kontenklasse 1 Finanz-/ Privatkonten","Vollhafter","1843 - Zuwendungen, Spenden",{"$nulls":7},"1843","Zuwendungen, Spenden"]
["Kontenklasse 1 Finanz-/ Privatkonten","Vollhafter","1844 - Zuwendungen, Spenden",{"$nulls":7},"1844","Zuwendungen, Spenden"]
["Kontenklasse 1 Finanz-/ Privatkonten","Vollhafter","1845 - Zuwendungen, Spenden",{"$nulls":7},"1845","Zuwendungen, Spenden"]
["Kontenklasse 1 Finanz-/ Privatkonten","Vollhafter","1846 - Zuwendungen, Spenden",{"$nulls":7},"1846","Zuwendungen, Spenden"]
["Kontenklasse 1 Finanz-/ Privatkonten","Vollhafter","1847 - Zuwendungen, Spenden",{"$nulls":7},"1847","Zuwendungen, Spenden"]
["Kontenklasse 1 Finanz-/ Privatkonten","Vollhafter","1848 - Zuwendungen, Spenden",{"$nulls":7},"1848","Zuwendungen, Spenden"]
["Kontenklasse 1 Finanz-/ Privatkonten","Vollhafter","1849 - Zuwendungen, Spenden",{"$nulls":7},"1849","Zuwendungen, Spenden"]
["Kontenklasse 1 Finanz-/ Privatkonten","Vollhafter","1850 - Außergewöhnliche Belastungen",{"$nulls":7},"1850","Außergewöhnliche Belastungen"]
["Kontenklasse 1 Finanz-/ Privatkonten","Vollhafter","1851 - Außergewöhnliche Belastungen",{"$nulls":7},"1851","Außergewöhnliche Belastungen"]
["Kontenklasse 1 Finanz-/ Privatkonten","Vollhafter","1852 - Außergewöhnliche Belastungen",{"$nulls":7},"1852","Außergewöhnliche Belastungen"]
["Kontenklasse 1 Finanz-/ Privatkonten","Vollhafter","1853 - Außergewöhnliche Belastungen",{"$nulls":7},"1853","Außergewöhnliche Belastungen"]
["Kontenklasse 1 Finanz-/ Privatkonten","Vollhafter","1854 - Außergewöhnliche Belastungen",{"$nulls":7},"1854","Außergewöhnliche Belastungen"]
["Kontenklasse 1 Finanz-/ Privatkonten","Vollhafter","1855 - Außergewöhnliche Belastungen",{"$nulls":7},"1855","Außergewöhnliche Belastungen"]
["Kontenklasse 1 Finanz-/ Privatkonten","Vollhafter","1856 - Außergewöhnliche Belastungen",{"$nulls":7},"1856","Außergewöhnliche Belastungen"]
["Kontenklasse 1 Finanz-/ Privatkonten","Vollhafter","1857 - Außergewöhnliche Belastungen",{"$nulls":7},"1857","Außergewöhnliche Belastungen"]
["Kontenklasse 1 Finanz-/ Privatkonten","Vollhafter","1858 - Außergewöhnliche Belastungen",{"$nulls":7},"1858","Außergewöhnliche Belastungen"]
["Kontenklasse 1 Finanz-/ Privatkonten","Vollhafter","1859 - Außergewöhnliche Belastungen",{"$nulls":7},"1859","Außergewöhnliche Belastungen"]
["Kontenklasse 1 Finanz-/ Privatkonten","Vollhafter","1860 - Grundstücksaufwand",{"$nulls":7},"1860","Grundstücksaufwand"]
["Kontenklasse 1 Finanz-/ Privatkonten","Vollhafter","1861 - Grundstücksaufwand",{"$nulls":7},"1861","Grundstücksaufwand"]
["Kontenklasse 1 Finanz-/ Privatkonten","Vollhafter","1862 - Grundstücksaufwand",{"$nulls":7},"1862","Grundstücksaufwand"]
["Kontenklasse 1 Finanz-/ Privatkonten","Vollhafter","1863 - Grundstücksaufwand",{"$nulls":7},"1863","Grundstücksaufwand"]
["Kontenklasse 1 Finanz-/ Privatkonten","Vollhafter","1864 - Grundstücksaufwand",{"$nulls":7},"1864","Grundstücksaufwand"]
["Kontenklasse 1 Finanz-/ Privatkonten","Vollhafter","1865 - Grundstücksaufwand",{"$nulls":7},"1865","Grundstücksaufwand"]
["Kontenklasse 1 Finanz-/ Privatkonten","Vollhafter","1866 - Grundstücksaufwand",{"$nulls":7},"1866","Grundstücksaufwand"]
["Kontenklasse 1 Finanz-/ Privatkonten","Vollhafter","1867 - Grundstücksaufwand",{"$nulls":7},"1867","Grundstücksaufwand"]
["Kontenklasse 1 Finanz-/ Privatkonten","Vollhafter","1868 - Grundstücksaufwand",{"$nulls":7},"1868","Grundstücksaufwand"]
["Kontenklasse 1 Finanz-/ Privatkonten","Vollhafter","1869 - Grundstücksaufwand (Umsatzsteuerschlüssel möglich)",{"$nulls":7},"1869","Grundstücksaufwand (Umsatzsteuerschlüssel möglich)"]
["Kontenklasse 1 Finanz-/ Privatkonten","Vollhafter","1870 - Grundstücksertrag",{"$nulls":7},"1870","Grundstücksertrag"]
["Kontenklasse 1 Finanz-/ Privatkonten","Vollhafter","1871 - Grundstücksertrag",{"$nulls":7},"1871","Grundstücksertrag"]
["Kontenklasse 1 Finanz-/ Privatkonten","Vollhafter","1872 - Grundstücksertrag",{"$nulls":7},"1872","Grundstücksertrag"]
["Kontenklasse 1 Finanz-/ Privatkonten","Vollhafter","1873 - Grundstücksertrag",{"$nulls":7},"1873","Grundstücksertrag"]
["Kontenklasse 1 Finanz-/ Privatkonten","Vollhafter","1874 - Grundstücksertrag",{"$nulls":7},"1874","Grundstücksertrag"]
["Kontenklasse 1 Finanz-/ Privatkonten","Vollhafter","1875 - Grundstücksertrag",{"$nulls":7},"1875","Grundstücksertrag"]
["Kontenklasse 1 Finanz-/ Privatkonten","Vollhafter","1876 - Grundstücksertrag",{"$nulls":7},"1876","Grundstücksertrag"]
["Kontenklasse 1 Finanz-/ Privatkonten","Vollhafter","1877 - Grundstücksertrag",{"$nulls":7},"1877","Grundstücksertrag"]
["Kontenklasse 1 Finanz-/ Privatkonten","Vollhafter","1878 - Grundstücksertrag",{"$nulls":7},"1878","Grundstücksertrag"]
["Kontenklasse 1 Finanz-/ Privatkonten","Vollhafter","1879 - Grundstücksertrag (Umsatzsteuerschlüssel möglich)",{"$nulls":7},"1879","Grundstücksertrag (Umsatzsteuerschlüssel möglich)"]
["Kontenklasse 1 Finanz-/ Privatkonten","Vollhafter","1880 - Unentgeltliche Wertabgaben",{"$nulls":7},"1880","Unentgeltliche Wertabgaben"]
["Kontenklasse 1 Finanz-/ Privatkonten","Vollhafter","1881 - Unentgeltliche Wertabgaben",{"$nulls":7},"1881","Unentgeltliche Wertabgaben"]
["Kontenklasse 1 Finanz-/ Privatkonten","Vollhafter","1882 - Unentgeltliche Wertabgaben",{"$nulls":7},"1882","Unentgeltliche Wertabgaben"]
["Kontenklasse 1 Finanz-/ Privatkonten","Vollhafter","1883 - Unentgeltliche Wertabgaben",{"$nulls":7},"1883","Unentgeltliche Wertabgaben"]
["Kontenklasse 1 Finanz-/ Privatkonten","Vollhafter","1884 - Unentgeltliche Wertabgaben",{"$nulls":7},"1884","Unentgeltliche Wertabgaben"]
["Kontenklasse 1 Finanz-/ Privatkonten","Vollhafter","1885 - Unentgeltliche Wertabgaben",{"$nulls":7},"1885","Unentgeltliche Wertabgaben"]
["Kontenklasse 1 Finanz-/ Privatkonten","Vollhafter","1886 - Unentgeltliche Wertabgaben",{"$nulls":7},"1886","Unentgeltliche Wertabgaben"]
["Kontenklasse 1 Finanz-/ Privatkonten","Vollhafter","1887 - Unentgeltliche Wertabgaben",{"$nulls":7},"1887","Unentgeltliche Wertabgaben"]
["Kontenklasse 1 Finanz-/ Privatkonten","Vollhafter","1888 - Unentgeltliche Wertabgaben",{"$nulls":7},"1888","Unentgeltliche Wertabgaben"]
["Kontenklasse 1 Finanz-/ Privatkonten","Vollhafter","1889 - Unentgeltliche Wertabgaben",{"$nulls":7},"1889","Unentgeltliche Wertabgaben"]
["Kontenklasse 1 Finanz-/ Privatkonten","Vollhafter","1890 - Privateinlagen",{"$nulls":7},"1890","Privateinlagen"]
["Kontenklasse 1 Finanz-/ Privatkonten","Vollhafter","1891 - Privateinlagen",{"$nulls":7},"1891","Privateinlagen"]
["Kontenklasse 1 Finanz-/ Privatkonten","Vollhafter","1892 - Privateinlagen",{"$nulls":7},"1892","Privateinlagen"]
["Kontenklasse 1 Finanz-/ Privatkonten","Vollhafter","1893 - Privateinlagen",{"$nulls":7},"1893","Privateinlagen"]
["Kontenklasse 1 Finanz-/ Privatkonten","Vollhafter","1894 - Privateinlagen",{"$nulls":7},"1894","Privateinlagen"]
["Kontenklasse 1 Finanz-/ Privatkonten","Vollhafter","1895 - Privateinlagen",{"$nulls":7},{"$f":"MID(C707,1,4)","v":"1895"},{"$f":"MID(C707,8,255)","v":"Privateinlagen"}]
["Kontenklasse 1 Finanz-/ Privatkonten","Vollhafter","1896 - Privateinlagen",{"$nulls":7},"1896","Privateinlagen"]
["Kontenklasse 1 Finanz-/ Privatkonten","Vollhafter","1897 - Privateinlagen",{"$nulls":7},"1897","Privateinlagen"]
["Kontenklasse 1 Finanz-/ Privatkonten","Vollhafter","1898 - Privateinlagen",{"$nulls":7},"1898","Privateinlagen"]
["Kontenklasse 1 Finanz-/ Privatkonten","Vollhafter","1899 - Privateinlagen",{"$nulls":7},"1899","Privateinlagen"]
["Kontenklasse 1 Finanz-/ Privatkonten","Teilhafter","1900 - Privatentnahmen allgemein",{"$nulls":7},"1900","Privatentnahmen allgemein"]
["Kontenklasse 1 Finanz-/ Privatkonten","Teilhafter","1901 - Privatentnahmen allgemein",{"$nulls":7},"1901","Privatentnahmen allgemein"]
["Kontenklasse 1 Finanz-/ Privatkonten","Teilhafter","1902 - Privatentnahmen allgemein",{"$nulls":7},"1902","Privatentnahmen allgemein"]
["Kontenklasse 1 Finanz-/ Privatkonten","Teilhafter","1903 - Privatentnahmen allgemein",{"$nulls":7},"1903","Privatentnahmen allgemein"]
["Kontenklasse 1 Finanz-/ Privatkonten","Teilhafter","1904 - Privatentnahmen allgemein",{"$nulls":7},"1904","Privatentnahmen allgemein"]
["Kontenklasse 1 Finanz-/ Privatkonten","Teilhafter","1905 - Privatentnahmen allgemein",{"$nulls":7},"1905","Privatentnahmen allgemein"]
["Kontenklasse 1 Finanz-/ Privatkonten","Teilhafter","1906 - Privatentnahmen allgemein",{"$nulls":7},"1906","Privatentnahmen allgemein"]
["Kontenklasse 1 Finanz-/ Privatkonten","Teilhafter","1907 - Privatentnahmen allgemein",{"$nulls":7},"1907","Privatentnahmen allgemein"]
["Kontenklasse 1 Finanz-/ Privatkonten","Teilhafter","1908 - Privatentnahmen allgemein",{"$nulls":7},"1908","Privatentnahmen allgemein"]
["Kontenklasse 1 Finanz-/ Privatkonten","Teilhafter","1909 - Privatentnahmen allgemein",{"$nulls":7},"1909","Privatentnahmen allgemein"]
["Kontenklasse 1 Finanz-/ Privatkonten","Teilhafter","1910 - Privatsteuern",{"$nulls":7},"1910","Privatsteuern"]
["Kontenklasse 1 Finanz-/ Privatkonten","Teilhafter","1911 - Privatsteuern",{"$nulls":7},"1911","Privatsteuern"]
["Kontenklasse 1 Finanz-/ Privatkonten","Teilhafter","1912 - Privatsteuern",{"$nulls":7},"1912","Privatsteuern"]
["Kontenklasse 1 Finanz-/ Privatkonten","Teilhafter","1913 - Privatsteuern",{"$nulls":7},"1913","Privatsteuern"]
["Kontenklasse 1 Finanz-/ Privatkonten","Teilhafter","1914 - Privatsteuern",{"$nulls":7},"1914","Privatsteuern"]
["Kontenklasse 1 Finanz-/ Privatkonten","Teilhafter","1915 - Privatsteuern",{"$nulls":7},"1915","Privatsteuern"]
["Kontenklasse 1 Finanz-/ Privatkonten","Teilhafter","1916 - Privatsteuern",{"$nulls":7},"1916","Privatsteuern"]
["Kontenklasse 1 Finanz-/ Privatkonten","Teilhafter","1917 - Privatsteuern",{"$nulls":7},"1917","Privatsteuern"]
["Kontenklasse 1 Finanz-/ Privatkonten","Teilhafter","1918 - Privatsteuern",{"$nulls":7},"1918","Privatsteuern"]
["Kontenklasse 1 Finanz-/ Privatkonten","Teilhafter","1919 - Privatsteuern",{"$nulls":7},"1919","Privatsteuern"]
["Kontenklasse 1 Finanz-/ Privatkonten","Teilhafter","1920 - Sonderausgaben beschränkt abzugsfähig",{"$nulls":7},"1920","Sonderausgaben beschränkt abzugsfähig"]
["Kontenklasse 1 Finanz-/ Privatkonten","Teilhafter","1921 - Sonderausgaben beschränkt abzugsfähig",{"$nulls":7},"1921","Sonderausgaben beschränkt abzugsfähig"]
["Kontenklasse 1 Finanz-/ Privatkonten","Teilhafter","1922 - Sonderausgaben beschränkt abzugsfähig",{"$nulls":7},"1922","Sonderausgaben beschränkt abzugsfähig"]
["Kontenklasse 1 Finanz-/ Privatkonten","Teilhafter","1923 - Sonderausgaben beschränkt abzugsfähig",{"$nulls":7},"1923","Sonderausgaben beschränkt abzugsfähig"]
["Kontenklasse 1 Finanz-/ Privatkonten","Teilhafter","1924 - Sonderausgaben beschränkt abzugsfähig",{"$nulls":7},"1924","Sonderausgaben beschränkt abzugsfähig"]
["Kontenklasse 1 Finanz-/ Privatkonten","Teilhafter","1925 - Sonderausgaben beschränkt abzugsfähig",{"$nulls":7},"1925","Sonderausgaben beschränkt abzugsfähig"]
["Kontenklasse 1 Finanz-/ Privatkonten","Teilhafter","1926 - Sonderausgaben beschränkt abzugsfähig",{"$nulls":7},"1926","Sonderausgaben beschränkt abzugsfähig"]
["Kontenklasse 1 Finanz-/ Privatkonten","Teilhafter","1927 - Sonderausgaben beschränkt abzugsfähig",{"$nulls":7},"1927","Sonderausgaben beschränkt abzugsfähig"]
["Kontenklasse 1 Finanz-/ Privatkonten","Teilhafter","1928 - Sonderausgaben beschränkt abzugsfähig",{"$nulls":7},"1928","Sonderausgaben beschränkt abzugsfähig"]
["Kontenklasse 1 Finanz-/ Privatkonten","Teilhafter","1929 - Sonderausgaben beschränkt abzugsfähig",{"$nulls":7},"1929","Sonderausgaben beschränkt abzugsfähig"]
["Kontenklasse 1 Finanz-/ Privatkonten","Teilhafter","1930 - Sonderausgaben unbeschränkt abzugsfähig",{"$nulls":7},"1930","Sonderausgaben unbeschränkt abzugsfähig"]
["Kontenklasse 1 Finanz-/ Privatkonten","Teilhafter","1931 - Sonderausgaben unbeschränkt abzugsfähig",{"$nulls":7},"1931","Sonderausgaben unbeschränkt abzugsfähig"]
["Kontenklasse 1 Finanz-/ Privatkonten","Teilhafter","1932 - Sonderausgaben unbeschränkt abzugsfähig",{"$nulls":7},"1932","Sonderausgaben unbeschränkt abzugsfähig"]
["Kontenklasse 1 Finanz-/ Privatkonten","Teilhafter","1933 - Sonderausgaben unbeschränkt abzugsfähig",{"$nulls":7},"1933","Sonderausgaben unbeschränkt abzugsfähig"]
["Kontenklasse 1 Finanz-/ Privatkonten","Teilhafter","1934 - Sonderausgaben unbeschränkt abzugsfähig",{"$nulls":7},"1934","Sonderausgaben unbeschränkt abzugsfähig"]
["Kontenklasse 1 Finanz-/ Privatkonten","Teilhafter","1935 - Sonderausgaben unbeschränkt abzugsfähig",{"$nulls":7},"1935","Sonderausgaben unbeschränkt abzugsfähig"]
["Kontenklasse 1 Finanz-/ Privatkonten","Teilhafter","1936 - Sonderausgaben unbeschränkt abzugsfähig",{"$nulls":7},"1936","Sonderausgaben unbeschränkt abzugsfähig"]
["Kontenklasse 1 Finanz-/ Privatkonten","Teilhafter","1937 - Sonderausgaben unbeschränkt abzugsfähig",{"$nulls":7},"1937","Sonderausgaben unbeschränkt abzugsfähig"]
["Kontenklasse 1 Finanz-/ Privatkonten","Teilhafter","1938 - Sonderausgaben unbeschränkt abzugsfähig",{"$nulls":7},"1938","Sonderausgaben unbeschränkt abzugsfähig"]
["Kontenklasse 1 Finanz-/ Privatkonten","Teilhafter","1939 - Sonderausgaben unbeschränkt abzugsfähig",{"$nulls":7},"1939","Sonderausgaben unbeschränkt abzugsfähig"]
["Kontenklasse 1 Finanz-/ Privatkonten","Teilhafter","1940 - Zuwendungen, Spenden",{"$nulls":7},"1940","Zuwendungen, Spenden"]
["Kontenklasse 1 Finanz-/ Privatkonten","Teilhafter","1941 - Zuwendungen, Spenden",{"$nulls":7},"1941","Zuwendungen, Spenden"]
["Kontenklasse 1 Finanz-/ Privatkonten","Teilhafter","1942 - Zuwendungen, Spenden",{"$nulls":7},"1942","Zuwendungen, Spenden"]
["Kontenklasse 1 Finanz-/ Privatkonten","Teilhafter","1943 - Zuwendungen, Spenden",{"$nulls":7},"1943","Zuwendungen, Spenden"]
["Kontenklasse 1 Finanz-/ Privatkonten","Teilhafter","1944 - Zuwendungen, Spenden",{"$nulls":7},"1944","Zuwendungen, Spenden"]
["Kontenklasse 1 Finanz-/ Privatkonten","Teilhafter","1945 - Zuwendungen, Spenden",{"$nulls":7},"1945","Zuwendungen, Spenden"]
["Kontenklasse 1 Finanz-/ Privatkonten","Teilhafter","1946 - Zuwendungen, Spenden",{"$nulls":7},"1946","Zuwendungen, Spenden"]
["Kontenklasse 1 Finanz-/ Privatkonten","Teilhafter","1947 - Zuwendungen, Spenden",{"$nulls":7},"1947","Zuwendungen, Spenden"]
["Kontenklasse 1 Finanz-/ Privatkonten","Teilhafter","1948 - Zuwendungen, Spenden",{"$nulls":7},"1948","Zuwendungen, Spenden"]
["Kontenklasse 1 Finanz-/ Privatkonten","Teilhafter","1949 - Zuwendungen, Spenden",{"$nulls":7},"1949","Zuwendungen, Spenden"]
["Kontenklasse 1 Finanz-/ Privatkonten","Teilhafter","1950 - Außergewöhnliche Belastungen",{"$nulls":7},"1950","Außergewöhnliche Belastungen"]
["Kontenklasse 1 Finanz-/ Privatkonten","Teilhafter","1951 - Außergewöhnliche Belastungen",{"$nulls":7},"1951","Außergewöhnliche Belastungen"]
["Kontenklasse 1 Finanz-/ Privatkonten","Teilhafter","1952 - Außergewöhnliche Belastungen",{"$nulls":7},"1952","Außergewöhnliche Belastungen"]
["Kontenklasse 1 Finanz-/ Privatkonten","Teilhafter","1953 - Außergewöhnliche Belastungen",{"$nulls":7},"1953","Außergewöhnliche Belastungen"]
["Kontenklasse 1 Finanz-/ Privatkonten","Teilhafter","1954 - Außergewöhnliche Belastungen",{"$nulls":7},"1954","Außergewöhnliche Belastungen"]
["Kontenklasse 1 Finanz-/ Privatkonten","Teilhafter","1955 - Außergewöhnliche Belastungen",{"$nulls":7},"1955","Außergewöhnliche Belastungen"]
["Kontenklasse 1 Finanz-/ Privatkonten","Teilhafter","1956 - Außergewöhnliche Belastungen",{"$nulls":7},"1956","Außergewöhnliche Belastungen"]
["Kontenklasse 1 Finanz-/ Privatkonten","Teilhafter","1957 - Außergewöhnliche Belastungen",{"$nulls":7},"1957","Außergewöhnliche Belastungen"]
["Kontenklasse 1 Finanz-/ Privatkonten","Teilhafter","1958 - Außergewöhnliche Belastungen",{"$nulls":7},"1958","Außergewöhnliche Belastungen"]
["Kontenklasse 1 Finanz-/ Privatkonten","Teilhafter","1959 - Außergewöhnliche Belastungen",{"$nulls":7},{"$f":"MID(C771,1,4)","v":"1959"},{"$f":"MID(C771,8,255)","v":"Außergewöhnliche Belastungen"}]
["Kontenklasse 1 Finanz-/ Privatkonten","Teilhafter","1960 - Grundstücksaufwand",{"$nulls":7},"1960","Grundstücksaufwand"]
["Kontenklasse 1 Finanz-/ Privatkonten","Teilhafter","1961 - Grundstücksaufwand",{"$nulls":7},"1961","Grundstücksaufwand"]
["Kontenklasse 1 Finanz-/ Privatkonten","Teilhafter","1962 - Grundstücksaufwand",{"$nulls":7},"1962","Grundstücksaufwand"]
["Kontenklasse 1 Finanz-/ Privatkonten","Teilhafter","1963 - Grundstücksaufwand",{"$nulls":7},"1963","Grundstücksaufwand"]
["Kontenklasse 1 Finanz-/ Privatkonten","Teilhafter","1964 - Grundstücksaufwand",{"$nulls":7},"1964","Grundstücksaufwand"]
["Kontenklasse 1 Finanz-/ Privatkonten","Teilhafter","1965 - Grundstücksaufwand",{"$nulls":7},"1965","Grundstücksaufwand"]
["Kontenklasse 1 Finanz-/ Privatkonten","Teilhafter","1966 - Grundstücksaufwand",{"$nulls":7},"1966","Grundstücksaufwand"]
["Kontenklasse 1 Finanz-/ Privatkonten","Teilhafter","1967 - Grundstücksaufwand",{"$nulls":7},"1967","Grundstücksaufwand"]
["Kontenklasse 1 Finanz-/ Privatkonten","Teilhafter","1968 - Grundstücksaufwand",{"$nulls":7},"1968","Grundstücksaufwand"]
["Kontenklasse 1 Finanz-/ Privatkonten","Teilhafter","1969 - Grundstücksaufwand",{"$nulls":7},"1969","Grundstücksaufwand"]
["Kontenklasse 1 Finanz-/ Privatkonten","Teilhafter","1970 - Grundstücksertrag",{"$nulls":7},"1970","Grundstücksertrag"]
["Kontenklasse 1 Finanz-/ Privatkonten","Teilhafter","1971 - Grundstücksertrag",{"$nulls":7},"1971","Grundstücksertrag"]
["Kontenklasse 1 Finanz-/ Privatkonten","Teilhafter","1972 - Grundstücksertrag",{"$nulls":7},"1972","Grundstücksertrag"]
["Kontenklasse 1 Finanz-/ Privatkonten","Teilhafter","1973 - Grundstücksertrag",{"$nulls":7},"1973","Grundstücksertrag"]
["Kontenklasse 1 Finanz-/ Privatkonten","Teilhafter","1974 - Grundstücksertrag",{"$nulls":7},"1974","Grundstücksertrag"]
["Kontenklasse 1 Finanz-/ Privatkonten","Teilhafter","1975 - Grundstücksertrag",{"$nulls":7},"1975","Grundstücksertrag"]
["Kontenklasse 1 Finanz-/ Privatkonten","Teilhafter","1976 - Grundstücksertrag",{"$nulls":7},"1976","Grundstücksertrag"]
["Kontenklasse 1 Finanz-/ Privatkonten","Teilhafter","1977 - Grundstücksertrag",{"$nulls":7},"1977","Grundstücksertrag"]
["Kontenklasse 1 Finanz-/ Privatkonten","Teilhafter","1978 - Grundstücksertrag",{"$nulls":7},"1978","Grundstücksertrag"]
["Kontenklasse 1 Finanz-/ Privatkonten","Teilhafter","1979 - Grundstücksertrag",{"$nulls":7},"1979","Grundstücksertrag"]
["Kontenklasse 1 Finanz-/ Privatkonten","Teilhafter","1980 - Unentgeltliche Wertabgaben",{"$nulls":7},"1980","Unentgeltliche Wertabgaben"]
["Kontenklasse 1 Finanz-/ Privatkonten","Teilhafter","1981 - Unentgeltliche Wertabgaben",{"$nulls":7},"1981","Unentgeltliche Wertabgaben"]
["Kontenklasse 1 Finanz-/ Privatkonten","Teilhafter","1982 - Unentgeltliche Wertabgaben",{"$nulls":7},"1982","Unentgeltliche Wertabgaben"]
["Kontenklasse 1 Finanz-/ Privatkonten","Teilhafter","1983 - Unentgeltliche Wertabgaben",{"$nulls":7},"1983","Unentgeltliche Wertabgaben"]
["Kontenklasse 1 Finanz-/ Privatkonten","Teilhafter","1984 - Unentgeltliche Wertabgaben",{"$nulls":7},"1984","Unentgeltliche Wertabgaben"]
["Kontenklasse 1 Finanz-/ Privatkonten","Teilhafter","1985 - Unentgeltliche Wertabgaben",{"$nulls":7},"1985","Unentgeltliche Wertabgaben"]
["Kontenklasse 1 Finanz-/ Privatkonten","Teilhafter","1986 - Unentgeltliche Wertabgaben",{"$nulls":7},"1986","Unentgeltliche Wertabgaben"]
["Kontenklasse 1 Finanz-/ Privatkonten","Teilhafter","1987 - Unentgeltliche Wertabgaben",{"$nulls":7},"1987","Unentgeltliche Wertabgaben"]
["Kontenklasse 1 Finanz-/ Privatkonten","Teilhafter","1988 - Unentgeltliche Wertabgaben",{"$nulls":7},"1988","Unentgeltliche Wertabgaben"]
["Kontenklasse 1 Finanz-/ Privatkonten","Teilhafter","1989 - Unentgeltliche Wertabgaben",{"$nulls":7},"1989","Unentgeltliche Wertabgaben"]
["Kontenklasse 1 Finanz-/ Privatkonten","Teilhafter","1990 - Privateinlagen",{"$nulls":7},"1990","Privateinlagen"]
["Kontenklasse 1 Finanz-/ Privatkonten","Teilhafter","1991 - Privateinlagen",{"$nulls":7},"1991","Privateinlagen"]
["Kontenklasse 1 Finanz-/ Privatkonten","Teilhafter","1992 - Privateinlagen",{"$nulls":7},"1992","Privateinlagen"]
["Kontenklasse 1 Finanz-/ Privatkonten","Teilhafter","1993 - Privateinlagen",{"$nulls":7},"1993","Privateinlagen"]
["Kontenklasse 1 Finanz-/ Privatkonten","Teilhafter","1994 - Privateinlagen",{"$nulls":7},"1994","Privateinlagen"]
["Kontenklasse 1 Finanz-/ Privatkonten","Teilhafter","1995 - Privateinlagen",{"$nulls":7},"1995","Privateinlagen"]
["Kontenklasse 1 Finanz-/ Privatkonten","Teilhafter","1996 - Privateinlagen",{"$nulls":7},"1996","Privateinlagen"]
["Kontenklasse 1 Finanz-/ Privatkonten","Teilhafter","1997 - Privateinlagen",{"$nulls":7},"1997","Privateinlagen"]
["Kontenklasse 1 Finanz-/ Privatkonten","Teilhafter","1998 - Privateinlagen",{"$nulls":7},"1998","Privateinlagen"]
["Kontenklasse 1 Finanz-/ Privatkonten","Teilhafter","1999 - Privateinlagen",{"$nulls":7},"1999","Privateinlagen"]
["Neutrales Ergebnis","Außerordentliche Aufwendungen","2000 - Außerordentliche Aufwendungen",{"$nulls":7},"2000","Außerordentliche Aufwendungen"]
["Neutrales Ergebnis","Außerordentliche Aufwendungen","2001 - Außerordentliche Aufwendungen, finanzwirksam",{"$nulls":7},"2001","Außerordentliche Aufwendungen, finanzwirksam"]
["Neutrales Ergebnis","Außerordentliche Aufwendungen","2004 - Verluste durch Verschmelzung und Umwandlung",{"$nulls":7},"2004","Verluste durch Verschmelzung und Umwandlung"]
["Neutrales Ergebnis","Außerordentliche Aufwendungen","2005 - Außerordentliche Aufwendungen, nicht finanzwirksam",{"$nulls":7},"2005","Außerordentliche Aufwendungen, nicht finanzwirksam"]
["Neutrales Ergebnis","Außerordentliche Aufwendungen","2006 - Verluste durch außergewöhnliche Schadensfälle",{"$nulls":7},"2006","Verluste durch außergewöhnliche Schadensfälle"]
["Neutrales Ergebnis","Außerordentliche Aufwendungen","2007 - Aufwendungen für Restrukturierungs- und Sanierungsmaßnahmen",{"$nulls":7},"2007","Aufwendungen für Restrukturierungs- und Sanierungsmaßnahmen"]
["Neutrales Ergebnis","Außerordentliche Aufwendungen","2008 - Verluste aus der Veräußerung oder der Aufgabe von Geschäftsaktivitäten nach Steuern",{"$nulls":7},"2008","Verluste aus der Veräußerung oder der Aufgabe von Geschäftsaktivitäten nach Steuern"]
["Neutrales Ergebnis","Betriebs- und periodenfremde Aufwendungen","2010 - Betriebsfremde Aufwendungen, soweit nicht außerordentlich",{"$nulls":7},"2010","Betriebsfremde Aufwendungen, soweit nicht außerordentlich"]
["Neutrales Ergebnis","Betriebs- und periodenfremde Aufwendungen","2020 - Periodenfremde Aufwendungen, soweit nicht außerordentlich",{"$nulls":7},"2020","Periodenfremde Aufwendungen, soweit nicht außerordentlich"]
["Neutrales Ergebnis","Außerordentliche Aufwendungen aus der Anwendung von Übergangsvorschriften i. S. d. BilMoG","2090 - Außerordentliche Aufwendungen aus der Anwendung von Übergangsvorschriften",{"$nulls":7},"2090","Außerordentliche Aufwendungen aus der Anwendung von Übergangsvorschriften"]
["Neutrales Ergebnis","Außerordentliche Aufwendungen aus der Anwendung von Übergangsvorschriften i. S. d. BilMoG","2091 - Außerordentliche Aufwendungen aus der Anwendung von Übergangsvorschriften (Pensionsrückstellungen)",{"$nulls":7},"2091","Außerordentliche Aufwendungen aus der Anwendung von Übergangsvorschriften (Pensionsrückstellungen)"]
["Neutrales Ergebnis","Außerordentliche Aufwendungen aus der Anwendung von Übergangsvorschriften i. S. d. BilMoG","2092 - Außerordentliche Aufwendungen aus der Anwendung von Übergangsvorschriften (Bilanzierungshilfen)",{"$nulls":7},"2092","Außerordentliche Aufwendungen aus der Anwendung von Übergangsvorschriften (Bilanzierungshilfen)"]
["Neutrales Ergebnis","Außerordentliche Aufwendungen aus der Anwendung von Übergangsvorschriften i. S. d. BilMoG","2094 - Außerordentliche Aufwendungen aus der Anwendung von Übergangsvorschriften (latente Steuern)",{"$nulls":7},"2094","Außerordentliche Aufwendungen aus der Anwendung von Übergangsvorschriften (latente Steuern)"]
["Neutrales Ergebnis","Zinsen und ähnliche Aufwendungen","2100 - Zinsen und ähnliche Aufwendungen",{"$nulls":7},"2100","Zinsen und ähnliche Aufwendungen"]
["Neutrales Ergebnis","Zinsen und ähnliche Aufwendungen","2102 - Steuerlich nicht abzugsfähige, andere Nebenleistungen zu Steuern § 4 Abs. 5b EStG",{"$nulls":7},"2102","Steuerlich nicht abzugsfähige, andere Nebenleistungen zu Steuern § 4 Abs. 5b EStG"]
["Neutrales Ergebnis","Zinsen und ähnliche Aufwendungen","2103 - Steuerlich abzugsfähige andere Nebenleistungen zu Steuern",{"$nulls":7},"2103","Steuerlich abzugsfähige andere Nebenleistungen zu Steuern"]
["Neutrales Ergebnis","Zinsen und ähnliche Aufwendungen","2104 - Steuerlich nicht abzugsfähige andere Nebenleistungen zu Steuern",{"$nulls":7},"2104","Steuerlich nicht abzugsfähige andere Nebenleistungen zu Steuern"]
["Neutrales Ergebnis","Zinsen und ähnliche Aufwendungen","2105 - Zinsaufwendungen § 233 a AO, § 4 Abs. 5 b EStG",{"$nulls":7},"2105","Zinsaufwendungen § 233 a AO, § 4 Abs. 5 b EStG"]
["Neutrales Ergebnis","Zinsen und ähnliche Aufwendungen","2106 - Zinsen aus Abzinsung des Körperschaftsteuer-Erhöhungsbetrages § 38 KStG",{"$nulls":7},"2106","Zinsen aus Abzinsung des Körperschaftsteuer-Erhöhungsbetrages § 38 KStG"]
["Neutrales Ergebnis","Zinsen und ähnliche Aufwendungen","2107 - Zinsaufwendungen § 233 a AO betriebliche Steuern",{"$nulls":7},"2107","Zinsaufwendungen § 233 a AO betriebliche Steuern"]
["Neutrales Ergebnis","Zinsen und ähnliche Aufwendungen","2108 - Zinsaufwendungen §§ 233 a bis 237 AO Personensteuer",{"$nulls":7},"2108","Zinsaufwendungen §§ 233 a bis 237 AO Personensteuer"]
["Neutrales Ergebnis","Zinsen und ähnliche Aufwendungen","2109 - Zinsaufwendungen an verbundene Unternehmen",{"$nulls":7},"2109","Zinsaufwendungen an verbundene Unternehmen"]
["Neutrales Ergebnis","Zinsen und ähnliche Aufwendungen","2110 - Zinsaufwendungen für kurzfristige Verbindlichkeiten",{"$nulls":7},"2110","Zinsaufwendungen für kurzfristige Verbindlichkeiten"]
["Neutrales Ergebnis","Zinsen und ähnliche Aufwendungen","2111 - Zinsaufwendungen Fahrzeuge",{"$nulls":7},{"$f":"MID(C835,1,4)","v":"2111"},{"$f":"MID(C835,8,255)","v":"Zinsaufwendungen Fahrzeuge"}]
["Neutrales Ergebnis","Zinsen und ähnliche Aufwendungen","2112 - Gebühren Fahrzeugfinanzierungen",{"$nulls":7},"2112","Gebühren Fahrzeugfinanzierungen"]
["Neutrales Ergebnis","Zinsen und ähnliche Aufwendungen","2113 - Nicht abzugsfähige Schuldzinsen gemäß § 4 Abs. 4 a EStG (Hinzurechnungsbetrag)",{"$nulls":7},"2113","Nicht abzugsfähige Schuldzinsen gemäß § 4 Abs. 4 a EStG (Hinzurechnungsbetrag)"]
["Neutrales Ergebnis","Zinsen und ähnliche Aufwendungen","2114 - Zinsen für Gesellschafterdarlehen",{"$nulls":7},"2114","Zinsen für Gesellschafterdarlehen"]
["Neutrales Ergebnis","Zinsen und ähnliche Aufwendungen","2115 - Zinsen und ähnliche Aufwendungen §§ 3 Nr. 40, 3 c EStG / § 8 b Abs. 1 KStG (inländische Kap.Ges.)",{"$nulls":7},"2115","Zinsen und ähnliche Aufwendungen §§ 3 Nr. 40, 3 c EStG / § 8 b Abs. 1 KStG (inländische Kap.Ges.)"]
["Neutrales Ergebnis","Zinsen und ähnliche Aufwendungen","2116 - Zinsen und ähnliche Aufwendungen an verbundene Unternehmen §§ 3 Nr. 40, 3 c EStG / § 8 b Abs. 1 KStG (inländische Kap.Ges.)",{"$nulls":7},"2116","Zinsen und ähnliche Aufwendungen an verbundene Unternehmen §§ 3 Nr. 40, 3 c EStG / § 8 b Abs. 1 KStG (inländische Kap.Ges.)"]
["Neutrales Ergebnis","Zinsen und ähnliche Aufwendungen","2117 - Zinsen an Gesellschafter mit einer Beteiligung von mehr als 25 % bzw. diesen nahe stehenden Personen",{"$nulls":7},"2117","Zinsen an Gesellschafter mit einer Beteiligung von mehr als 25 % bzw. diesen nahe stehenden Personen"]
["Neutrales Ergebnis","Zinsen und ähnliche Aufwendungen","2118 - Zinsen auf Kontokorrentkonten",{"$nulls":7},"2118","Zinsen auf Kontokorrentkonten"]
["Neutrales Ergebnis","Zinsen und ähnliche Aufwendungen","2119 - Zinsaufwendungen für kurzfristige Verbindlichkeiten an verbundene Unternehmen",{"$nulls":7},"2119","Zinsaufwendungen für kurzfristige Verbindlichkeiten an verbundene Unternehmen"]
["Neutrales Ergebnis","Zinsen und ähnliche Aufwendungen","2120 - Zinsaufwendungen für langfristige Verbindlichkeiten",{"$nulls":7},"2120","Zinsaufwendungen für langfristige Verbindlichkeiten"]
["Neutrales Ergebnis","Zinsen und ähnliche Aufwendungen","2123 - Abschreibungen auf Disagio / Damnum zur Finanzierung",{"$nulls":7},"2123","Abschreibungen auf Disagio / Damnum zur Finanzierung"]
["Neutrales Ergebnis","Zinsen und ähnliche Aufwendungen","2124 - Abschreibungen auf Disagio / Damnum zur Finanzierung des Anlagevermögens",{"$nulls":7},"2124","Abschreibungen auf Disagio / Damnum zur Finanzierung des Anlagevermögens"]
["Neutrales Ergebnis","Zinsen und ähnliche Aufwendungen","2126 - Zinsen zur Finanzierung des Anlagevermögens",{"$nulls":7},"2126","Zinsen zur Finanzierung des Anlagevermögens"]
["Neutrales Ergebnis","Zinsen und ähnliche Aufwendungen","2127 - Renten und dauernde Lasten",{"$nulls":7},"2127","Renten und dauernde Lasten"]
["Neutrales Ergebnis","Zinsen und ähnliche Aufwendungen","2128 - Zinsaufwendungen an Mitunternehmer für die Hingabe von Kapital § 15 EStG",{"$nulls":7},"2128","Zinsaufwendungen an Mitunternehmer für die Hingabe von Kapital § 15 EStG"]
["Neutrales Ergebnis","Zinsen und ähnliche Aufwendungen","2129 - Zinsaufwendungen für langfristige Verbindlichkeiten an verbundene Unternehmen",{"$nulls":7},"2129","Zinsaufwendungen für langfristige Verbindlichkeiten an verbundene Unternehmen"]
["Neutrales Ergebnis","Zinsen und ähnliche Aufwendungen","2130 - Diskontaufwendungen",{"$nulls":7},"2130","Diskontaufwendungen"]
["Neutrales Ergebnis","Zinsen und ähnliche Aufwendungen","2139 - Diskontaufwendungen an verbundene Unternehmen",{"$nulls":7},"2139","Diskontaufwendungen an verbundene Unternehmen"]
["Neutrales Ergebnis","Zinsen und ähnliche Aufwendungen","2140 - Zinsähnliche Aufwendungen",{"$nulls":7},"2140","Zinsähnliche Aufwendungen"]
["Neutrales Ergebnis","Zinsen und ähnliche Aufwendungen","2141 - Kreditprovisionen und Verwaltungskostenbeiträge",{"$nulls":7},"2141","Kreditprovisionen und Verwaltungskostenbeiträge"]
["Neutrales Ergebnis","Zinsen und ähnliche Aufwendungen","2142 - Zinsanteil der Zuführungen zu Pensionsrückstellungen",{"$nulls":7},"2142","Zinsanteil der Zuführungen zu Pensionsrückstellungen"]
["Neutrales Ergebnis","Zinsen und ähnliche Aufwendungen","2143 - Zinsaufwendungen aus der Abzinsung von Verbindlichkeiten",{"$nulls":7},"2143","Zinsaufwendungen aus der Abzinsung von Verbindlichkeiten"]
["Neutrales Ergebnis","Zinsen und ähnliche Aufwendungen","2144 - Zinsaufwendungen aus der Abzinsung von Rückstellungen",{"$nulls":7},"2144","Zinsaufwendungen aus der Abzinsung von Rückstellungen"]
["Neutrales Ergebnis","Zinsen und ähnliche Aufwendungen","2145 - Zinsaufwendungen aus der Abzinsung von Pensionsrückstellungen und ähnlichen/vergleichbaren Verpflichtungen",{"$nulls":7},"2145","Zinsaufwendungen aus der Abzinsung von Pensionsrückstellungen und ähnlichen/vergleichbaren Verpflichtungen"]
["Neutrales Ergebnis","Zinsen und ähnliche Aufwendungen","2146 - Zinsaufwendungen aus der Abzinsung von Pensionsrückstellungen und ähnlichen/vergleichbaren Verpflichtungen zur Verrechnung nach § 246 Abs. 2 HGB",{"$nulls":7},"2146","Zinsaufwendungen aus der Abzinsung von Pensionsrückstellungen und ähnlichen/vergleichbaren Verpflichtungen zur Verrechnung nach § 246 Abs. 2 HGB"]
["Neutrales Ergebnis","Zinsen und ähnliche Aufwendungen","2147 - Aufwendungen aus Vermögensgegenständen zur Verrechnung nach § 246 Abs. 2 HGB",{"$nulls":7},"2147","Aufwendungen aus Vermögensgegenständen zur Verrechnung nach § 246 Abs. 2 HGB"]
["Neutrales Ergebnis","Zinsen und ähnliche Aufwendungen","2148 - Steuerlich nicht abzugsfähige Zinsaufwendungen aus der Abzinsung von Rückstellungen",{"$nulls":7},"2148","Steuerlich nicht abzugsfähige Zinsaufwendungen aus der Abzinsung von Rückstellungen"]
["Neutrales Ergebnis","Zinsen und ähnliche Aufwendungen","2149 - Zinsähnliche Aufwendungen an verbundene Unternehmen",{"$nulls":7},"2149","Zinsähnliche Aufwendungen an verbundene Unternehmen"]
["Neutrales Ergebnis","Aufwendungen aus Währungsumrechnungen und aus der Bewertung von Finanzmittelfonds","2150 - Aufwendungen aus der Währungsumrechnung",{"$nulls":7},"2150","Aufwendungen aus der Währungsumrechnung"]
["Neutrales Ergebnis","Aufwendungen aus Währungsumrechnungen und aus der Bewertung von Finanzmittelfonds","2151 - Aufwendungen aus der Währungsumrechnung (nicht §256a HGB)",{"$nulls":7},"2151","Aufwendungen aus der Währungsumrechnung (nicht §256a HGB)"]
["Neutrales Ergebnis","Aufwendungen aus Währungsumrechnungen und aus der Bewertung von Finanzmittelfonds","2166 - Aufwendungen aus Bewertung Finanzmittelfonds",{"$nulls":7},"2166","Aufwendungen aus Bewertung Finanzmittelfonds"]
["Neutrales Ergebnis","Nicht abziehbare Vorsteuer","2170 - Nicht abziehbare Vorsteuer",{"$nulls":7},"2170","Nicht abziehbare Vorsteuer"]
["Neutrales Ergebnis","Nicht abziehbare Vorsteuer","2171 - Nicht abziehbare Vorsteuer 7 %",{"$nulls":7},"2171","Nicht abziehbare Vorsteuer 7 %"]
["Neutrales Ergebnis","Nicht abziehbare Vorsteuer","2174 - Reserviert D",{"$nulls":7},"2174","Reserviert D"]
["Neutrales Ergebnis","Nicht abziehbare Vorsteuer","2175 - Reserviert D",{"$nulls":7},"2175","Reserviert D"]
["Neutrales Ergebnis","Nicht abziehbare Vorsteuer","2176 - Nicht abziehbare Vorsteuer 19 %",{"$nulls":7},"2176","Nicht abziehbare Vorsteuer 19 %"]
["Neutrales Ergebnis","Steuern vom Einkommen und vom Ertrag","2200 - Körperschaftsteuer",{"$nulls":7},"2200","Körperschaftsteuer"]
["Neutrales Ergebnis","Steuern vom Einkommen und vom Ertrag","2203 - Körperschaftsteuer für Vorjahre",{"$nulls":7},"2203","Körperschaftsteuer für Vorjahre"]
["Neutrales Ergebnis","Steuern vom Einkommen und vom Ertrag","2204 - Körperschaftsteuererstattungen für Vorjahre",{"$nulls":7},"2204","Körperschaftsteuererstattungen für Vorjahre"]
["Neutrales Ergebnis","Steuern vom Einkommen und vom Ertrag","2208 - Solidaritätszuschlag",{"$nulls":7},"2208","Solidaritätszuschlag"]
["Neutrales Ergebnis","Steuern vom Einkommen und vom Ertrag","2209 - Solidaritätszuschlag für Vorjahre",{"$nulls":7},"2209","Solidaritätszuschlag für Vorjahre"]
["Neutrales Ergebnis","Steuern vom Einkommen und vom Ertrag","2210 - Solidaritätszuschlagerstattungen für Vorjahre",{"$nulls":7},"2210","Solidaritätszuschlagerstattungen für Vorjahre"]
["Neutrales Ergebnis","Steuern vom Einkommen und vom Ertrag","2213 - Kapitalertragsteuer 25 %",{"$nulls":7},"2213","Kapitalertragsteuer 25 %"]
["Neutrales Ergebnis","Steuern vom Einkommen und vom Ertrag","2216 - Anrechenbarer Solidaritätszuschlag auf Kapitalertragsteuer 25 %",{"$nulls":7},"2216","Anrechenbarer Solidaritätszuschlag auf Kapitalertragsteuer 25 %"]
["Neutrales Ergebnis","Steuern vom Einkommen und vom Ertrag","2219 - Ausländische Quellensteuer",{"$nulls":7},"2219","Ausländische Quellensteuer"]
["Neutrales Ergebnis","Steuern vom Einkommen und vom Ertrag","2250 - Aufwendungen aus der Zuführung und Auflösung von latenten Steuern",{"$nulls":7},"2250","Aufwendungen aus der Zuführung und Auflösung von latenten Steuern"]
["Neutrales Ergebnis","Steuern vom Einkommen und vom Ertrag","2255 - Erträge aus der Zuführung und Auflösung von latenten Steuern",{"$nulls":7},"2255","Erträge aus der Zuführung und Auflösung von latenten Steuern"]
["Neutrales Ergebnis","Steuern vom Einkommen und vom Ertrag","2260 - Aufwendungen aus der Zuführung zu Steuerrückstellungen für Steuerstundung (BStBK)",{"$nulls":7},"2260","Aufwendungen aus der Zuführung zu Steuerrückstellungen für Steuerstundung (BStBK)"]
["Neutrales Ergebnis","Steuern vom Einkommen und vom Ertrag","2265 - Erträge aus der Auflösung von Steuerrückstellungen für Steuerstundung (BStBK)",{"$nulls":7},"2265","Erträge aus der Auflösung von Steuerrückstellungen für Steuerstundung (BStBK)"]
["Neutrales Ergebnis","Steuern vom Einkommen und vom Ertrag","2279 - Gewerbesteuer (ab 2008)",{"$nulls":7},"2279","Gewerbesteuer (ab 2008)"]
["Neutrales Ergebnis","Steuern vom Einkommen und vom Ertrag","2280 - Gewerbesteuernachzahlungen Vorjahre",{"$nulls":7},"2280","Gewerbesteuernachzahlungen Vorjahre"]
["Neutrales Ergebnis","Steuern vom Einkommen und vom Ertrag","2281 - Gewerbesteuernachzahlungen und -erstattungen für Vorjahre, § 4 Abs. 5 b EStG",{"$nulls":7},"2281","Gewerbesteuernachzahlungen und -erstattungen für Vorjahre, § 4 Abs. 5 b EStG"]
["Neutrales Ergebnis","Steuern vom Einkommen und vom Ertrag","2282 - Gewerbesteuererstattungen Vorjahre",{"$nulls":7},"2282","Gewerbesteuererstattungen Vorjahre"]
["Neutrales Ergebnis","Steuern vom Einkommen und vom Ertrag","2283 - Erträge aus der Auflösung von Gewerbesteuerrückstellungen, § 4 Abs. 5 b EStG",{"$nulls":7},"2283","Erträge aus der Auflösung von Gewerbesteuerrückstellungen, § 4 Abs. 5 b EStG"]
["Neutrales Ergebnis","Steuern vom Einkommen und vom Ertrag","2284 - Erträge aus der Auflösung von Gewerbesteuerrückstellungen",{"$nulls":7},"2284","Erträge aus der Auflösung von Gewerbesteuerrückstellungen"]
["Neutrales Ergebnis","Steuern vom Einkommen und vom Ertrag","2285 - Steuernachzahlungen Vorjahre für sonstige Steuern",{"$nulls":7},"2285","Steuernachzahlungen Vorjahre für sonstige Steuern"]
["Neutrales Ergebnis","Steuern vom Einkommen und vom Ertrag","2287 - Steuererstattungen für Vorjahre für sonstige Steuern",{"$nulls":7},"2287","Steuererstattungen für Vorjahre für sonstige Steuern"]
["Neutrales Ergebnis","Steuern vom Einkommen und vom Ertrag","2289 - Erträge aus der Auflösung von Rückstellungen für sonstige Steuern",{"$nulls":7},"2289","Erträge aus der Auflösung von Rückstellungen für sonstige Steuern"]
["Neutrales Ergebnis","Steuern vom Einkommen und vom Ertrag","2290 - Sonstige Steuern",{"$nulls":7},"2290","Sonstige Steuern"]
["Neutrales Ergebnis","Sonstige betriebliche Aufwendungen -- Allgemein","2300 - Sonstige Aufwendungen",{"$nulls":7},"2300","Sonstige Aufwendungen"]
["Neutrales Ergebnis","Sonstige betriebliche Aufwendungen -- Allgemein","2308 - Sonstige nicht abziehbare Aufwendungen",{"$nulls":7},"2308","Sonstige nicht abziehbare Aufwendungen"]
["Neutrales Ergebnis","Restbuchwerte bei Anlagenabgängen","2310 - Anlagenabgänge Sachanlagen (Restbuchwert bei Buchverlust)",{"$nulls":7},"2310","Anlagenabgänge Sachanlagen (Restbuchwert bei Buchverlust)"]
["Neutrales Ergebnis","Restbuchwerte bei Anlagenabgängen","2311 - Anlagenabgänge immaterielle Vermögensgegenstände (Restbuchwert bei Buchverlust)",{"$nulls":7},"2311","Anlagenabgänge immaterielle Vermögensgegenstände (Restbuchwert bei Buchverlust)"]
["Neutrales Ergebnis","Restbuchwerte bei Anlagenabgängen","2312 - Anlagenabgänge Finanzanlagen (Restbuchwert bei Buchverlust)",{"$nulls":7},"2312","Anlagenabgänge Finanzanlagen (Restbuchwert bei Buchverlust)"]
["Neutrales Ergebnis","Restbuchwerte bei Anlagenabgängen","2313 - Anlagenabgänge Finanzanlagen § 3 Nr. 40 EStG / § 8 b Abs. 3 KStG (inländische Kap.Ges.) (Restbuchwert bei Buchverlust)",{"$nulls":7},{"$f":"MID(C899,1,4)","v":"2313"},{"$f":"MID(C899,8,255)","v":"Anlagenabgänge Finanzanlagen § 3 Nr. 40 EStG / § 8 b Abs. 3 KStG (inländische Kap.Ges.) (Restbuchwert bei Buchverlust)"}]
["Neutrales Ergebnis","Restbuchwerte bei Anlagenabgängen","2315 - Anlagenabgänge Sachanlagen (Restbuchwert bei Buchgewinn)",{"$nulls":7},"2315","Anlagenabgänge Sachanlagen (Restbuchwert bei Buchgewinn)"]
["Neutrales Ergebnis","Restbuchwerte bei Anlagenabgängen","2316 - Anlagenabgänge immaterielle Vermögensgegenstände (Restbuchwert bei Buchgewinn)",{"$nulls":7},"2316","Anlagenabgänge immaterielle Vermögensgegenstände (Restbuchwert bei Buchgewinn)"]
["Neutrales Ergebnis","Restbuchwerte bei Anlagenabgängen","2317 - Anlagenabgänge Finanzanlagen (Restbuchwert bei Buchgewinn)",{"$nulls":7},"2317","Anlagenabgänge Finanzanlagen (Restbuchwert bei Buchgewinn)"]
["Neutrales Ergebnis","Restbuchwerte bei Anlagenabgängen","2318 - Anlagenabgänge Finanzanlagen § 3 Nr. 40 EStG / § 8 b Abs. 2 KStG (inländische Kap.Ges.) (Restbuchwert bei Buchgewinn)",{"$nulls":7},"2318","Anlagenabgänge Finanzanlagen § 3 Nr. 40 EStG / § 8 b Abs. 2 KStG (inländische Kap.Ges.) (Restbuchwert bei Buchgewinn)"]
["Neutrales Ergebnis","Restbuchwerte bei Anlagenabgängen","2325 - Verluste aus dem Abgang von Gegenständen des Umlaufvermögens (außer Vorräte)",{"$nulls":7},"2325","Verluste aus dem Abgang von Gegenständen des Umlaufvermögens (außer Vorräte)"]
["Neutrales Ergebnis","Restbuchwerte bei Anlagenabgängen","2326 - Verluste aus dem Abgang von Gegenständen des Umlaufvermögens (außer Vorräte),  § 3 Nr. 40 EStG / § 8 b Abs. 3 KStG (inländische Kap.Ges.)",{"$nulls":7},"2326","Verluste aus dem Abgang von Gegenständen des Umlaufvermögens (außer Vorräte),  § 3 Nr. 40 EStG / § 8 b Abs. 3 KStG (inländische Kap.Ges.)"]
["Neutrales Ergebnis","Restbuchwerte bei Anlagenabgängen","2339 - Einstellungen in die steuerliche Rücklage nach § 4g EStG",{"$nulls":7},"2339","Einstellungen in die steuerliche Rücklage nach § 4g EStG"]
["Neutrales Ergebnis","Restbuchwerte bei Anlagenabgängen","2340 - Reserviert D",{"$nulls":7},"2340","Reserviert D"]
["Neutrales Ergebnis","Restbuchwerte bei Anlagenabgängen","2341 - Reserviert D",{"$nulls":7},"2341","Reserviert D"]
["Neutrales Ergebnis","Einstellung in den Sonderposten mit Rücklageanteil","2342 - Einstellungen in die steuerliche Rücklage nach § 6b Abs. 3 EStG",{"$nulls":7},"2342","Einstellungen in die steuerliche Rücklage nach § 6b Abs. 3 EStG"]
["Neutrales Ergebnis","Einstellung in den Sonderposten mit Rücklageanteil","2343 - Einstellungen in die steuerliche Rücklage nach § 6b Abs. 10 EStG",{"$nulls":7},"2343","Einstellungen in die steuerliche Rücklage nach § 6b Abs. 10 EStG"]
["Neutrales Ergebnis","Einstellung in den Sonderposten mit Rücklageanteil","2344 - Einstellungen in die Rücklage für Ersatzbeschaffung nach R 6.6 EStR",{"$nulls":7},"2344","Einstellungen in die Rücklage für Ersatzbeschaffung nach R 6.6 EStR"]
["Neutrales Ergebnis","Einstellung in den Sonderposten mit Rücklageanteil","2345 - Einstellungen in steuerliche Rücklagen",{"$nulls":7},"2345","Einstellungen in steuerliche Rücklagen"]
["Neutrales Ergebnis","Einstellung in den Sonderposten mit Rücklageanteil","2347 - Aufwendungen aus dem Erwerb eigener Anteile",{"$nulls":7},"2347","Aufwendungen aus dem Erwerb eigener Anteile"]
["Neutrales Ergebnis","Grundstücksaufwendungen (neutral)","2350 - Grundstücksaufwendungen, neutral",{"$nulls":7},"2350","Grundstücksaufwendungen, neutral"]
["Neutrales Ergebnis","Grundstücksaufwendungen (neutral)","2375 - Grundsteuer",{"$nulls":7},"2375","Grundsteuer"]
["Neutrales Ergebnis","Spenden und andere beschränkt abzugsfähige Aufwendungen","2380 - Zuwendungen, Spenden, steuerlich nicht abziehbar",{"$nulls":7},"2380","Zuwendungen, Spenden, steuerlich nicht abziehbar"]
["Neutrales Ergebnis","Spenden und andere beschränkt abzugsfähige Aufwendungen","2381 - Zuwendungen, Spenden für wissenschaftliche und kulturelle Zwecke",{"$nulls":7},"2381","Zuwendungen, Spenden für wissenschaftliche und kulturelle Zwecke"]
["Neutrales Ergebnis","Spenden und andere beschränkt abzugsfähige Aufwendungen","2382 - Zuwendungen, Spenden für mildtätige Zwecke",{"$nulls":7},"2382","Zuwendungen, Spenden für mildtätige Zwecke"]
["Neutrales Ergebnis","Spenden und andere beschränkt abzugsfähige Aufwendungen","2383 - Zuwendungen, Spenden für kirchliche, religiöse und gemeinnützige Zwecke",{"$nulls":7},"2383","Zuwendungen, Spenden für kirchliche, religiöse und gemeinnützige Zwecke"]
["Neutrales Ergebnis","Spenden und andere beschränkt abzugsfähige Aufwendungen","2384 - Zuwendungen, Spenden an politische Parteien",{"$nulls":7},"2384","Zuwendungen, Spenden an politische Parteien"]
["Neutrales Ergebnis","Spenden und andere beschränkt abzugsfähige Aufwendungen","2385 - Nicht abziehbare Hälfte der Aufsichtsratvergütungen",{"$nulls":7},"2385","Nicht abziehbare Hälfte der Aufsichtsratvergütungen"]
["Neutrales Ergebnis","Spenden und andere beschränkt abzugsfähige Aufwendungen","2386 - Abziehbare Aufsichtsratsvergütungen",{"$nulls":7},"2386","Abziehbare Aufsichtsratsvergütungen"]
["Neutrales Ergebnis","Spenden und andere beschränkt abzugsfähige Aufwendungen","2387 - Zuwendungen, Spenden an Stiftungen für gemeinnützige Zwecke i. S. d. § 52 Abs. 2 Nr. 1 -- 3 AO",{"$nulls":7},"2387","Zuwendungen, Spenden an Stiftungen für gemeinnützige Zwecke i. S. d. § 52 Abs. 2 Nr. 1 -- 3 AO"]
["Neutrales Ergebnis","Spenden und andere beschränkt abzugsfähige Aufwendungen","2388 - Zuwendungen, Spenden an Stiftungen für gemeinnützige Zwecke i. S. d. § 52 Abs. 2 Nr. 4 AO",{"$nulls":7},"2388","Zuwendungen, Spenden an Stiftungen für gemeinnützige Zwecke i. S. d. § 52 Abs. 2 Nr. 4 AO"]
["Neutrales Ergebnis","Spenden und andere beschränkt abzugsfähige Aufwendungen","2389 - Zuwendungen, Spenden an Stiftungen für kirchliche, religiöse und gemeinnützige Zwecke",{"$nulls":7},"2389","Zuwendungen, Spenden an Stiftungen für kirchliche, religiöse und gemeinnützige Zwecke"]
["Neutrales Ergebnis","Spenden und andere beschränkt abzugsfähige Aufwendungen","2390 - Zuwendungen, Spenden an Stiftungen für wissenschaftliche, mildtätige und kulturelle Zwecke",{"$nulls":7},"2390","Zuwendungen, Spenden an Stiftungen für wissenschaftliche, mildtätige und kulturelle Zwecke"]
["Neutrales Ergebnis","Forderungsverluste","2400 - Forderungsverluste (übliche Höhe)",{"$nulls":7},"2400","Forderungsverluste (übliche Höhe)"]
["Neutrales Ergebnis","Forderungsverluste","2402 - Forderungsverluste aus steuerfreien EG-Lieferungen (übliche Höhe)",{"$nulls":7},"2402","Forderungsverluste aus steuerfreien EG-Lieferungen (übliche Höhe)"]
["Neutrales Ergebnis","Forderungsverluste","2404 - Forderungsverluste aus im Inland steuerpflichtigen EG-Lieferungen 16 % Umsatzsteuer (übliche Höhe)",{"$nulls":7},"2404","Forderungsverluste aus im Inland steuerpflichtigen EG-Lieferungen 16 % Umsatzsteuer (übliche Höhe)"]
["Neutrales Ergebnis","Forderungsverluste","2406 - Forderungsverluste 19 % USt (übliche Höhe)",{"$nulls":7},"2406","Forderungsverluste 19 % USt (übliche Höhe)"]
["Neutrales Ergebnis","Forderungsverluste","2407 - Reserviert D",{"$nulls":7},"2407","Reserviert D"]
["Neutrales Ergebnis","Forderungsverluste","2408 - Forderungsverluste aus im Inland steuerpflichtigen EG-Lieferungen 19 % Umsatzsteuer (übliche Höhe)",{"$nulls":7},"2408","Forderungsverluste aus im Inland steuerpflichtigen EG-Lieferungen 19 % Umsatzsteuer (übliche Höhe)"]
["Neutrales Ergebnis","Forderungsverluste","2409 - Reserviert D",{"$nulls":7},"2409","Reserviert D"]
["Neutrales Ergebnis","Forderungsverluste","2430 - Forderungsverluste (unüblich hoch)",{"$nulls":7},"2430","Forderungsverluste (unüblich hoch)"]
["Neutrales Ergebnis","Forderungsverluste","2440 - Abschreibungen auf Forderungen gegenüber Kapitalgesellschaften, an denen eine Beteiligung besteht (soweit unüblich hoch), § 3c EStG/§8b Abs. 3 KStG",{"$nulls":7},"2440","Abschreibungen auf Forderungen gegenüber Kapitalgesellschaften, an denen eine Beteiligung besteht (soweit unüblich hoch), § 3c EStG/§8b Abs. 3 KStG"]
["Neutrales Ergebnis","Forderungsverluste","2441 - Abschreibungen auf Forderungen gegenüber Gesellschaftern und nahe stehenden Personen (soweit unüblich hoch), § 8b Abs. 3 KStG",{"$nulls":7},"2441","Abschreibungen auf Forderungen gegenüber Gesellschaftern und nahe stehenden Personen (soweit unüblich hoch), § 8b Abs. 3 KStG"]
["Neutrales Ergebnis","Forderungsverluste","2450 - Einstellungen in die Pauschalwertberichtigungen auf Forderungen",{"$nulls":7},"2450","Einstellungen in die Pauschalwertberichtigungen auf Forderungen"]
["Neutrales Ergebnis","Forderungsverluste","2451 - Einstellungen in die Einzelwertberichtigungen auf Forderungen",{"$nulls":7},"2451","Einstellungen in die Einzelwertberichtigungen auf Forderungen"]
["Neutrales Ergebnis","Einstellung in Rücklagen und Aufwendungen aus Verlustübernahme und abgeführten Gewinnen","2480 - Einstellungen in die Rücklage für Anteile an einem herrschenden oder mehrheitlich beteiligten Unternehmen",{"$nulls":7},"2480","Einstellungen in die Rücklage für Anteile an einem herrschenden oder mehrheitlich beteiligten Unternehmen"]
["Neutrales Ergebnis","Einstellung in Rücklagen und Aufwendungen aus Verlustübernahme und abgeführten Gewinnen","2490 - Aufwendungen aus Verlustübernahme",{"$nulls":7},"2490","Aufwendungen aus Verlustübernahme"]
["Neutrales Ergebnis","Einstellung in Rücklagen und Aufwendungen aus Verlustübernahme und abgeführten Gewinnen","2492 - Abgeführte Gewinne aufgrund einer Gewinngemeinschaft",{"$nulls":7},"2492","Abgeführte Gewinne aufgrund einer Gewinngemeinschaft"]
["Neutrales Ergebnis","Einstellung in Rücklagen und Aufwendungen aus Verlustübernahme und abgeführten Gewinnen","2493 - Abgeführte Gewinnanteile an stille Gesellschafter § 8 GewStG",{"$nulls":7},"2493","Abgeführte Gewinnanteile an stille Gesellschafter § 8 GewStG"]
["Neutrales Ergebnis","Einstellung in Rücklagen und Aufwendungen aus Verlustübernahme und abgeführten Gewinnen","2494 - Abgeführte Gewinne aufgrund eines Gewinn- oder Teilgewinnabführungsvertrages",{"$nulls":7},"2494","Abgeführte Gewinne aufgrund eines Gewinn- oder Teilgewinnabführungsvertrages"]
["Neutrales Ergebnis","Einstellung in Rücklagen und Aufwendungen aus Verlustübernahme und abgeführten Gewinnen","2495 - Einstellung in die Kapitalrücklage nach den Vorschriften über die vereinfachte Kapitalherabsetzung",{"$nulls":7},"2495","Einstellung in die Kapitalrücklage nach den Vorschriften über die vereinfachte Kapitalherabsetzung"]
["Neutrales Ergebnis","Einstellung in Rücklagen und Aufwendungen aus Verlustübernahme und abgeführten Gewinnen","2496 - Einstellungen in die gesetzliche Rücklage",{"$nulls":7},"2496","Einstellungen in die gesetzliche Rücklage"]
["Neutrales Ergebnis","Einstellung in Rücklagen und Aufwendungen aus Verlustübernahme und abgeführten Gewinnen","2497 - Einstellungen in satzungsmäßige Rücklagen",{"$nulls":7},"2497","Einstellungen in satzungsmäßige Rücklagen"]
["Neutrales Ergebnis","Einstellung in Rücklagen und Aufwendungen aus Verlustübernahme und abgeführten Gewinnen","2498 - Einstellungen in die Rücklage für aktivierte eigene Anteile",{"$nulls":7},"2498","Einstellungen in die Rücklage für aktivierte eigene Anteile"]
["Neutrales Ergebnis","Einstellung in Rücklagen und Aufwendungen aus Verlustübernahme und abgeführten Gewinnen","2499 - Einstellungen in andere Gewinnrücklagen",{"$nulls":7},"2499","Einstellungen in andere Gewinnrücklagen"]
["Neutrales Ergebnis","Außerordentliche Erträge","2500 - Außerordentliche Erträge",{"$nulls":7},"2500","Außerordentliche Erträge"]
["Neutrales Ergebnis","Außerordentliche Erträge","2501 - Außerordentliche Erträge, finanzwirksam",{"$nulls":7},"2501","Außerordentliche Erträge, finanzwirksam"]
["Neutrales Ergebnis","Außerordentliche Erträge","2504 - Erträge durch Verschmelzung und Umwandlung",{"$nulls":7},"2504","Erträge durch Verschmelzung und Umwandlung"]
["Neutrales Ergebnis","Außerordentliche Erträge","2505 - Außerordentliche Erträge, nicht finanzwirksam",{"$nulls":7},"2505","Außerordentliche Erträge, nicht finanzwirksam"]
["Neutrales Ergebnis","Außerordentliche Erträge","2506 - Erträge durch den Verkauf von bedeutenden Beteiligungen",{"$nulls":7},"2506","Erträge durch den Verkauf von bedeutenden Beteiligungen"]
["Neutrales Ergebnis","Außerordentliche Erträge","2507 - Erträge durch den Verkauf von bedeutenden Grundstücken",{"$nulls":7},"2507","Erträge durch den Verkauf von bedeutenden Grundstücken"]
["Neutrales Ergebnis","Außerordentliche Erträge","2508 - Gewinn aus der Veräußerung oder der Aufgabe von Geschäftsaktivitäten nach Steuern",{"$nulls":7},"2508","Gewinn aus der Veräußerung oder der Aufgabe von Geschäftsaktivitäten nach Steuern"]
["Neutrales Ergebnis","Betriebs- und periodenfremde Erträge","2510 - Betriebsfremde Erträge, soweit nicht außerordentlich",{"$nulls":7},"2510","Betriebsfremde Erträge, soweit nicht außerordentlich"]
["Neutrales Ergebnis","Betriebs- und periodenfremde Erträge","2520 - Periodenfremde Erträge, soweit nicht außerordentlich",{"$nulls":7},"2520","Periodenfremde Erträge, soweit nicht außerordentlich"]
["Neutrales Ergebnis","Außerordentliche Erträge aus der Anwendung von Übergangsvorschriften i. S. d. BilMoG","2590 - Außerordentliche Erträge aus der Anwendung von Übergangsvorschriften",{"$nulls":7},"2590","Außerordentliche Erträge aus der Anwendung von Übergangsvorschriften"]
["Neutrales Ergebnis","Außerordentliche Erträge aus der Anwendung von Übergangsvorschriften i. S. d. BilMoG","2591 - Außerordentliche Erträge aus der Anwendung von Übergangsvorschriften (Zuschreibung für Sachanlagevermögen)",{"$nulls":7},"2591","Außerordentliche Erträge aus der Anwendung von Übergangsvorschriften (Zuschreibung für Sachanlagevermögen)"]
["Neutrales Ergebnis","Außerordentliche Erträge aus der Anwendung von Übergangsvorschriften i. S. d. BilMoG","2592 - Außerordentliche Erträge aus der Anwendung von Übergangsvorschriften (Zuschreibung für Finanzanlagevermögen)",{"$nulls":7},"2592","Außerordentliche Erträge aus der Anwendung von Übergangsvorschriften (Zuschreibung für Finanzanlagevermögen)"]
["Neutrales Ergebnis","Außerordentliche Erträge aus der Anwendung von Übergangsvorschriften i. S. d. BilMoG","2593 - Außerordentliche Erträge aus der Anwendung von Übergangsvorschriften (Wertpapiere im Umlaufvermögen)",{"$nulls":7},"2593","Außerordentliche Erträge aus der Anwendung von Übergangsvorschriften (Wertpapiere im Umlaufvermögen)"]
["Neutrales Ergebnis","Außerordentliche Erträge aus der Anwendung von Übergangsvorschriften i. S. d. BilMoG","2594 - Außerordentliche Erträge aus der Anwendung von Übergangsvorschriften (latente Steuern)",{"$nulls":7},"2594","Außerordentliche Erträge aus der Anwendung von Übergangsvorschriften (latente Steuern)"]
["Neutrales Ergebnis","Erträge aus Beteiligungen","2600 - Erträge aus Beteiligungen",{"$nulls":7},{"$f":"MID(C963,1,4)","v":"2600"},{"$f":"MID(C963,8,255)","v":"Erträge aus Beteiligungen"}]
["Neutrales Ergebnis","Erträge aus Beteiligungen","2603 - Erträge aus Beteiligungen an Personengesellschaften (verbundene Unternehmen),§ 9 GewStG bzw. § 18 EStG8)",{"$nulls":7},"2603","Erträge aus Beteiligungen an Personengesellschaften (verbundene Unternehmen),§ 9 GewStG bzw. § 18 EStG8)"]
["Neutrales Ergebnis","Erträge aus Beteiligungen","2615 - Erträge aus Anteilen an Kapitalgesellschaften (Beteiligung) § 3 Nr. 40 EStG/§ 8b Abs. 1 KStG (inländische Kap.Ges.)",{"$nulls":7},"2615","Erträge aus Anteilen an Kapitalgesellschaften (Beteiligung) § 3 Nr. 40 EStG/§ 8b Abs. 1 KStG (inländische Kap.Ges.)"]
["Neutrales Ergebnis","Erträge aus Beteiligungen","2616 - Erträge aus Anteilen an Kapitalgesellschaften (verbundene Unternehmen) § 3 Nr. 40 EStG/§ 8b Abs. 1 KStG (inländische Kap.Ges.)",{"$nulls":7},"2616","Erträge aus Anteilen an Kapitalgesellschaften (verbundene Unternehmen) § 3 Nr. 40 EStG/§ 8b Abs. 1 KStG (inländische Kap.Ges.)"]
["Neutrales Ergebnis","Erträge aus Beteiligungen","2617 - Sonstige gewerbesteuerfreie Gewinne aus Anteilen an einer Kapitalgesellschaft (Kürzung gemäß § 9 Nr. 2 a GewStG)",{"$nulls":7},"2617","Sonstige gewerbesteuerfreie Gewinne aus Anteilen an einer Kapitalgesellschaft (Kürzung gemäß § 9 Nr. 2 a GewStG)"]
["Neutrales Ergebnis","Erträge aus Beteiligungen","2618 - Gewinnanteile aus gewerblichen und selbstständigen Mitunternehmerschaften § 9 GewStG bzw. § 18 EStG",{"$nulls":7},"2618","Gewinnanteile aus gewerblichen und selbstständigen Mitunternehmerschaften § 9 GewStG bzw. § 18 EStG"]
["Neutrales Ergebnis","Erträge aus Beteiligungen","2619 - Erträge aus Beteiligungen an verbundenen Unternehmen",{"$nulls":7},"2619","Erträge aus Beteiligungen an verbundenen Unternehmen"]
["Neutrales Ergebnis","Erträge aus Beteiligungen","2620 - Erträge aus anderen Wertpapieren und Ausleihungen des Finanzanlagevermögens",{"$nulls":7},"2620","Erträge aus anderen Wertpapieren und Ausleihungen des Finanzanlagevermögens"]
["Neutrales Ergebnis","Erträge aus Beteiligungen","2621 - Erträge aus Ausleihungen des Finanzanlagevermögens",{"$nulls":7},"2621","Erträge aus Ausleihungen des Finanzanlagevermögens"]
["Neutrales Ergebnis","Erträge aus Beteiligungen","2622 - Erträge aus Ausleihungen des Finanzanlagevermögens an verbundenen Unternehmen",{"$nulls":7},"2622","Erträge aus Ausleihungen des Finanzanlagevermögens an verbundenen Unternehmen"]
["Neutrales Ergebnis","Erträge aus Beteiligungen","2623 - Erträge aus Anteilen an Personengesellschaften (Finanzanlagevermögen)",{"$nulls":7},"2623","Erträge aus Anteilen an Personengesellschaften (Finanzanlagevermögen)"]
["Neutrales Ergebnis","Erträge aus Beteiligungen","2625 - Erträge aus Anteilen an Kapitalgesellschaften (Finanzanlagevermögen) § 3 Nr. 40 EStG/§ 8b Abs. 1 KStG (inländische Kap.Ges.)",{"$nulls":7},"2625","Erträge aus Anteilen an Kapitalgesellschaften (Finanzanlagevermögen) § 3 Nr. 40 EStG/§ 8b Abs. 1 KStG (inländische Kap.Ges.)"]
["Neutrales Ergebnis","Erträge aus Beteiligungen","2626 - Erträge aus Anteilen an Kapitalgesellschaften (verbundene Unternehmen) § 3 Nr. 40 EStG/§ 8b Abs. 1 KStG (inländische Kap.Ges.)",{"$nulls":7},"2626","Erträge aus Anteilen an Kapitalgesellschaften (verbundene Unternehmen) § 3 Nr. 40 EStG/§ 8b Abs. 1 KStG (inländische Kap.Ges.)"]
["Neutrales Ergebnis","Erträge aus Beteiligungen","2640 - Zins- und Dividendenerträge",{"$nulls":7},"2640","Zins- und Dividendenerträge"]
["Neutrales Ergebnis","Erträge aus Beteiligungen","2641 - Erhaltene Ausgleichszahlungen (als außenstehender Aktionär)",{"$nulls":7},"2641","Erhaltene Ausgleichszahlungen (als außenstehender Aktionär)"]
["Neutrales Ergebnis","Erträge aus Beteiligungen","2646 - Erträge aus Anteilen an Personengesellschaften (verbundene Unternehmen)",{"$nulls":7},"2646","Erträge aus Anteilen an Personengesellschaften (verbundene Unternehmen)"]
["Neutrales Ergebnis","Erträge aus Beteiligungen","2647 - Erträge aus anderen Wertpapieren des Finanzanlagevermögens an Kapitalgesellschaften (verbundene Unternehmen)",{"$nulls":7},"2647","Erträge aus anderen Wertpapieren des Finanzanlagevermögens an Kapitalgesellschaften (verbundene Unternehmen)"]
["Neutrales Ergebnis","Erträge aus Beteiligungen","2648 - Erträge aus anderen Wertpapieren des Finanzanlagevermögens an Personengesellschaften (verbundene Unternehmen)",{"$nulls":7},"2648","Erträge aus anderen Wertpapieren des Finanzanlagevermögens an Personengesellschaften (verbundene Unternehmen)"]
["Neutrales Ergebnis","Erträge aus Beteiligungen","2649 - Erträge aus anderen Wertpapieren und Ausleihungen des Finanzanlagevermögens aus verbundenen Unternehmen",{"$nulls":7},"2649","Erträge aus anderen Wertpapieren und Ausleihungen des Finanzanlagevermögens aus verbundenen Unternehmen"]
["Neutrales Ergebnis","Sonstige Zinsen und ähnliche Erträge","2650 - Sonstige Zinsen und ähnliche Erträge",{"$nulls":7},"2650","Sonstige Zinsen und ähnliche Erträge"]
["Neutrales Ergebnis","Sonstige Zinsen und ähnliche Erträge","2652 - Steuerfreie Aufzinsung des Körperschaftsteuerguthabens nach § 37 KStG",{"$nulls":7},"2652","Steuerfreie Aufzinsung des Körperschaftsteuerguthabens nach § 37 KStG"]
["Neutrales Ergebnis","Sonstige Zinsen und ähnliche Erträge","2653 - Zinserträge § 233a AO, § 4 Abs. 5b EStG, steuerfrei",{"$nulls":7},"2653","Zinserträge § 233a AO, § 4 Abs. 5b EStG, steuerfrei"]
["Neutrales Ergebnis","Sonstige Zinsen und ähnliche Erträge","2654 - Erträge aus anderen Wertpapieren und Ausleihungen des Umlaufvermögens",{"$nulls":7},"2654","Erträge aus anderen Wertpapieren und Ausleihungen des Umlaufvermögens"]
["Neutrales Ergebnis","Sonstige Zinsen und ähnliche Erträge","2655 - Erträge aus Anteilen an Kapitalgesellschaften (Umlaufvermögen) § 3 Nr. 40 EStG/§ 8b Abs. 1 KStG (inländische Kap.Ges.)",{"$nulls":7},"2655","Erträge aus Anteilen an Kapitalgesellschaften (Umlaufvermögen) § 3 Nr. 40 EStG/§ 8b Abs. 1 KStG (inländische Kap.Ges.)"]
["Neutrales Ergebnis","Sonstige Zinsen und ähnliche Erträge","2656 - Erträge aus Anteilen an Kapitalgesellschaften (verbundene Unternehmen) § 3 Nr. 40 EStG/§ 8b Abs. 1 KStG (inländische Kap.Ges.)",{"$nulls":7},"2656","Erträge aus Anteilen an Kapitalgesellschaften (verbundene Unternehmen) § 3 Nr. 40 EStG/§ 8b Abs. 1 KStG (inländische Kap.Ges.)"]
["Neutrales Ergebnis","Sonstige Zinsen und ähnliche Erträge","2657 - Zinserträge § 233a AO, steuerpflichtig",{"$nulls":7},"2657","Zinserträge § 233a AO, steuerpflichtig"]
["Neutrales Ergebnis","Sonstige Zinsen und ähnliche Erträge","2658 - Zinserträge § 233a AO, steuerfrei (Anlage A KSt)",{"$nulls":7},"2658","Zinserträge § 233a AO, steuerfrei (Anlage A KSt)"]
["Neutrales Ergebnis","Sonstige Zinsen und ähnliche Erträge","2659 - Sonstige Zinsen und ähnliche Erträge aus verbundenen Unternehmen",{"$nulls":7},"2659","Sonstige Zinsen und ähnliche Erträge aus verbundenen Unternehmen"]
["Neutrales Ergebnis","Sonstige Zinsen und ähnliche Erträge","2660 - Erträge aus der Währungsumrechnung",{"$nulls":7},"2660","Erträge aus der Währungsumrechnung"]
["Neutrales Ergebnis","Sonstige Zinsen und ähnliche Erträge","2661 - Erträge aus der Währungsumrechnung (nicht § 256a HGB)",{"$nulls":7},"2661","Erträge aus der Währungsumrechnung (nicht § 256a HGB)"]
["Neutrales Ergebnis","Sonstige Zinsen und ähnliche Erträge","2666 - Erträge aus Bewertung Finanzmittelfonds",{"$nulls":7},"2666","Erträge aus Bewertung Finanzmittelfonds"]
["Neutrales Ergebnis","Sonstige Zinsen und ähnliche Erträge","2670 - Diskonterträge",{"$nulls":7},"2670","Diskonterträge"]
["Neutrales Ergebnis","Sonstige Zinsen und ähnliche Erträge","2679 - Diskonterträge aus verbundenen Unternehmen",{"$nulls":7},"2679","Diskonterträge aus verbundenen Unternehmen"]
["Neutrales Ergebnis","Sonstige Zinsen und ähnliche Erträge","2680 - Zinsähnliche Erträge",{"$nulls":7},"2680","Zinsähnliche Erträge"]
["Neutrales Ergebnis","Sonstige Zinsen und ähnliche Erträge","2682 - Steuerfreie Zinserträge aus der Abzinsung von Rückstellungen",{"$nulls":7},"2682","Steuerfreie Zinserträge aus der Abzinsung von Rückstellungen"]
["Neutrales Ergebnis","Sonstige Zinsen und ähnliche Erträge","2683 - Zinserträge aus der Abzinsung von Verbindlichkeiten",{"$nulls":7},"2683","Zinserträge aus der Abzinsung von Verbindlichkeiten"]
["Neutrales Ergebnis","Sonstige Zinsen und ähnliche Erträge","2684 - Zinserträge aus der Abzinsung von Rückstellungen",{"$nulls":7},"2684","Zinserträge aus der Abzinsung von Rückstellungen"]
["Neutrales Ergebnis","Sonstige Zinsen und ähnliche Erträge","2685 - Zinserträge aus der Abzinsung von Pensionsrückstellungen und ähnlichen/vergleichbaren Verpflichtungen",{"$nulls":7},"2685","Zinserträge aus der Abzinsung von Pensionsrückstellungen und ähnlichen/vergleichbaren Verpflichtungen"]
["Neutrales Ergebnis","Sonstige Zinsen und ähnliche Erträge","2686 - Zinserträge aus der Abzinsung von Pensionsrückstellungen und ähnlichen/vergleichbaren Verpflichtungen zur Verrechnung nach § 246 Abs. 2 HGB",{"$nulls":7},"2686","Zinserträge aus der Abzinsung von Pensionsrückstellungen und ähnlichen/vergleichbaren Verpflichtungen zur Verrechnung nach § 246 Abs. 2 HGB"]
["Neutrales Ergebnis","Sonstige Zinsen und ähnliche Erträge","2687 - Erträge aus Vermögensgegenständen zur Verrechnung nach § 246 Abs. 2 HGB",{"$nulls":7},"2687","Erträge aus Vermögensgegenständen zur Verrechnung nach § 246 Abs. 2 HGB"]
["Neutrales Ergebnis","Sonstige Zinsen und ähnliche Erträge","2688 - Zinsertrag aus vorzeitiger Rückzahlung des Körperschaftsteuer-Erhöhungsbetrages § 38 KStG",{"$nulls":7},"2688","Zinsertrag aus vorzeitiger Rückzahlung des Körperschaftsteuer-Erhöhungsbetrages § 38 KStG"]
["Neutrales Ergebnis","Sonstige Zinsen und ähnliche Erträge","2689 - Zinsähnliche Erträge aus verbundenen Unternehmen",{"$nulls":7},"2689","Zinsähnliche Erträge aus verbundenen Unternehmen"]
["Neutrales Ergebnis","Sonstige Erträge","2700 - Sonstige Erträge",{"$nulls":7},"2700","Sonstige Erträge"]
["Neutrales Ergebnis","Sonstige Erträge","2710 - Erträge aus Zuschreibungen des Sachanlagevermögens",{"$nulls":7},"2710","Erträge aus Zuschreibungen des Sachanlagevermögens"]
["Neutrales Ergebnis","Sonstige Erträge","2711 - Erträge aus Zuschreibungen des immateriellen Anlagevermögens",{"$nulls":7},"2711","Erträge aus Zuschreibungen des immateriellen Anlagevermögens"]
["Neutrales Ergebnis","Sonstige Erträge","2712 - Erträge aus Zuschreibungen des Finanzanlagevermögens",{"$nulls":7},"2712","Erträge aus Zuschreibungen des Finanzanlagevermögens"]
["Neutrales Ergebnis","Sonstige Erträge","2713 - Erträge aus Zuschreibungen des Finanzanlagevermögens § 3 Nr. 40 EStG / § 8 b Abs. 3 Satz 8 KStG (inländische Kap.Ges.)",{"$nulls":7},"2713","Erträge aus Zuschreibungen des Finanzanlagevermögens § 3 Nr. 40 EStG / § 8 b Abs. 3 Satz 8 KStG (inländische Kap.Ges.)"]
["Neutrales Ergebnis","Sonstige Erträge","2714 - Erträge aus Zuschreibungen § 3 Nr. 40 EStG/§ 8b Abs. 2 KStG (inländische Kap.Ges)",{"$nulls":7},"2714","Erträge aus Zuschreibungen § 3 Nr. 40 EStG/§ 8b Abs. 2 KStG (inländische Kap.Ges)"]
["Neutrales Ergebnis","Sonstige Erträge","2715 - Erträge aus Zuschreibungen des Umlaufvermögens",{"$nulls":7},"2715","Erträge aus Zuschreibungen des Umlaufvermögens"]
["Neutrales Ergebnis","Sonstige Erträge","2716 - Erträge aus Zuschreibungen des Umlaufvermögens § 3 Nr. 40 EStG / § 8 b Abs. 3 Satz 8 KStG (inländische Kap.Ges.)",{"$nulls":7},"2716","Erträge aus Zuschreibungen des Umlaufvermögens § 3 Nr. 40 EStG / § 8 b Abs. 3 Satz 8 KStG (inländische Kap.Ges.)"]
["Neutrales Ergebnis","Sonstige Erträge","2725 - Erträge aus dem Abgang von Gegenständen des Umlaufvermögens (außer Vorräte)",{"$nulls":7},"2725","Erträge aus dem Abgang von Gegenständen des Umlaufvermögens (außer Vorräte)"]
["Neutrales Ergebnis","Sonstige Erträge","2726 - Erträge aus dem Abgang von Gegenständen des Umlaufvermögens (außer Vorräte) § 3 Nr. 40 EStG / § 8 b Abs. 2 KStG (inländische Kap.Ges.)",{"$nulls":7},"2726","Erträge aus dem Abgang von Gegenständen des Umlaufvermögens (außer Vorräte) § 3 Nr. 40 EStG / § 8 b Abs. 2 KStG (inländische Kap.Ges.)"]
["Neutrales Ergebnis","Sonstige Erträge","2727 - Erträge aus der Auflösung einer steuerlichen Rücklage nach § 6b Abs. 3 EStG",{"$nulls":7},"2727","Erträge aus der Auflösung einer steuerlichen Rücklage nach § 6b Abs. 3 EStG"]
["Neutrales Ergebnis","Sonstige Erträge","2728 - Erträge aus der Auflösung einer steuerlichen Rücklage nach § 6b Abs. 10 EStG",{"$nulls":7},"2728","Erträge aus der Auflösung einer steuerlichen Rücklage nach § 6b Abs. 10 EStG"]
["Neutrales Ergebnis","Sonstige Erträge","2729 - Erträge aus der Auflösung der Rücklage für Ersatzbeschaffung R 6.6 EStR",{"$nulls":7},"2729","Erträge aus der Auflösung der Rücklage für Ersatzbeschaffung R 6.6 EStR"]
["Neutrales Ergebnis","Sonstige Erträge","2730 - Erträge aus der Herabsetzung von Pauschalwertberichtigungen auf Forderungen",{"$nulls":7},"2730","Erträge aus der Herabsetzung von Pauschalwertberichtigungen auf Forderungen"]
["Neutrales Ergebnis","Sonstige Erträge","2731 - Erträge aus der Herabsetzung von Einzelwertberichtigungen auf Forderungen",{"$nulls":7},"2731","Erträge aus der Herabsetzung von Einzelwertberichtigungen auf Forderungen"]
["Neutrales Ergebnis","Sonstige Erträge","2732 - Erträge aus abgeschriebenen Forderungen",{"$nulls":7},"2732","Erträge aus abgeschriebenen Forderungen"]
["Neutrales Ergebnis","Sonstige Erträge","2733 - Erträge aus der Auflösung einer steuerlichen Rücklage nach § 7g Abs. 7 EStG a.F. (Existenzgründerrücklage)",{"$nulls":7},"2733","Erträge aus der Auflösung einer steuerlichen Rücklage nach § 7g Abs. 7 EStG a.F. (Existenzgründerrücklage)"]
["Neutrales Ergebnis","Sonstige Erträge","2735 - Erträge aus der Auflösung von Rückstellungen",{"$nulls":7},"2735","Erträge aus der Auflösung von Rückstellungen"]
["Neutrales Ergebnis","Sonstige Erträge","2737 - Erträge aus der Auflösung einer steuerlichen Rücklage nach § 4g EStG",{"$nulls":7},"2737","Erträge aus der Auflösung einer steuerlichen Rücklage nach § 4g EStG"]
["Neutrales Ergebnis","Sonstige Erträge","2738 - Erträge aus der Auflösung von steuerlichen Rücklagen nach § 52 Abs. 16 EStG",{"$nulls":7},"2738","Erträge aus der Auflösung von steuerlichen Rücklagen nach § 52 Abs. 16 EStG"]
["Neutrales Ergebnis","Sonstige Erträge","2739 - Erträge aus der Auflösung von steuerlichen Rücklagen (Ansparabschreibungen nach § 7g Abs. 2 EStG)",{"$nulls":7},"2739","Erträge aus der Auflösung von steuerlichen Rücklagen (Ansparabschreibungen nach § 7g Abs. 2 EStG)"]
["Neutrales Ergebnis","Sonstige Erträge","2740 - Erträge aus der Auflösung einer steuerlichen Rücklage",{"$nulls":7},"2740","Erträge aus der Auflösung einer steuerlichen Rücklage"]
["Neutrales Ergebnis","Sonstige Erträge","2741 - Erträge aus der Auflösung steuerrechtlicher Sonderabschreibungen",{"$nulls":7},{"$f":"MID(C1027,1,4)","v":"2741"},{"$f":"MID(C1027,8,255)","v":"Erträge aus der Auflösung steuerrechtlicher Sonderabschreibungen"}]
["Neutrales Ergebnis","Sonstige Erträge","2742 - Versicherungsentschädigungen und Schadenersatzleistungen",{"$nulls":7},"2742","Versicherungsentschädigungen und Schadenersatzleistungen"]
["Neutrales Ergebnis","Sonstige Erträge","2743 - Investitionszuschüsse (steuerpflichtig)",{"$nulls":7},"2743","Investitionszuschüsse (steuerpflichtig)"]
["Neutrales Ergebnis","Sonstige Erträge","2744 - Investitionszulagen (steuerfrei)",{"$nulls":7},"2744","Investitionszulagen (steuerfrei)"]
["Neutrales Ergebnis","Sonstige Erträge","2745 - Erträge aus Kapitalherabsetzung",{"$nulls":7},"2745","Erträge aus Kapitalherabsetzung"]
["Neutrales Ergebnis","Sonstige Erträge","2746 - Steuerfreie Erträge aus der Auflösung von steuerlichen Rücklagen",{"$nulls":7},"2746","Steuerfreie Erträge aus der Auflösung von steuerlichen Rücklagen"]
["Neutrales Ergebnis","Sonstige Erträge","2747 - Sonstige steuerfreie Betriebseinnahmen",{"$nulls":7},"2747","Sonstige steuerfreie Betriebseinnahmen"]
["Neutrales Ergebnis","Sonstige Erträge","2748 - Herstellerzuschüsse",{"$nulls":7},"2748","Herstellerzuschüsse"]
["Neutrales Ergebnis","Sonstige Erträge","2749 - Erstattungen Aufwendungsausgleichsgesetz",{"$nulls":7},"2749","Erstattungen Aufwendungsausgleichsgesetz"]
["Neutrales Ergebnis","Sonstige Erträge","2751 - Erlöse aus Vermietung und Verpachtung, umsatzsteuerfrei § 4 Nr. 12 UStG",{"$nulls":7},"2751","Erlöse aus Vermietung und Verpachtung, umsatzsteuerfrei § 4 Nr. 12 UStG"]
["Neutrales Ergebnis","Sonstige Erträge","2752 - Erlöse aus Vermietung und Verpachtung 19% USt",{"$nulls":7},"2752","Erlöse aus Vermietung und Verpachtung 19% USt"]
["Neutrales Ergebnis","Grundstückserträge (neutral)","2750 - Grundstückerträge",{"$nulls":7},"2750","Grundstückerträge"]
["Neutrales Ergebnis","Grundstückserträge (neutral)","2751 - Reserviert D",{"$nulls":7},"2751","Reserviert D"]
["Neutrales Ergebnis","Grundstückserträge (neutral)","2752 - Reserviert D",{"$nulls":7},"2752","Reserviert D"]
["Neutrales Ergebnis","Grundstückserträge (neutral)","2753 - Reserviert D",{"$nulls":7},"2753","Reserviert D"]
["Neutrales Ergebnis","Grundstückserträge (neutral)","2754 - Reserviert D",{"$nulls":7},"2754","Reserviert D"]
["Neutrales Ergebnis","Grundstückserträge (neutral)","2760 - Erträge aus der Aktivierung unentgeltlich erworbener Vermögensgegenstände",{"$nulls":7},"2760","Erträge aus der Aktivierung unentgeltlich erworbener Vermögensgegenstände"]
["Neutrales Ergebnis","Grundstückserträge (neutral)","2762 - Kostenerstattungen, Rückvergütungen und Gutschriften für frühere Jahre",{"$nulls":7},"2762","Kostenerstattungen, Rückvergütungen und Gutschriften für frühere Jahre"]
["Neutrales Ergebnis","Erträge aus Verlustübernahmen und Entnahmen aus Rücklagen","2790 - Erträge aus Verlustübernahme",{"$nulls":7},"2790","Erträge aus Verlustübernahme"]
["Neutrales Ergebnis","Erträge aus Verlustübernahmen und Entnahmen aus Rücklagen","2792 - Erhaltene Gewinne aufgrund einer Gewinngemeinschaft",{"$nulls":7},"2792","Erhaltene Gewinne aufgrund einer Gewinngemeinschaft"]
["Neutrales Ergebnis","Erträge aus Verlustübernahmen und Entnahmen aus Rücklagen","2794 - Erhaltene Gewinne aufgrund eines Gewinn- oder Teilgewinnabführungsvertrages",{"$nulls":7},"2794","Erhaltene Gewinne aufgrund eines Gewinn- oder Teilgewinnabführungsvertrages"]
["Neutrales Ergebnis","Erträge aus Verlustübernahmen und Entnahmen aus Rücklagen","2795 - Entnahmen aus der Kapitalrücklage",{"$nulls":7},"2795","Entnahmen aus der Kapitalrücklage"]
["Neutrales Ergebnis","Erträge aus Verlustübernahmen und Entnahmen aus Rücklagen","2796 - Entnahmen aus der gesetzlichen Rücklage",{"$nulls":7},"2796","Entnahmen aus der gesetzlichen Rücklage"]
["Neutrales Ergebnis","Erträge aus Verlustübernahmen und Entnahmen aus Rücklagen","2797 - Entnahmen aus satzungsmäßigen Rücklagen",{"$nulls":7},"2797","Entnahmen aus satzungsmäßigen Rücklagen"]
["Neutrales Ergebnis","Erträge aus Verlustübernahmen und Entnahmen aus Rücklagen","2798 - Entnahmen aus der Rücklage für aktivierte eigene Anteile",{"$nulls":7},"2798","Entnahmen aus der Rücklage für aktivierte eigene Anteile"]
["Neutrales Ergebnis","Erträge aus Verlustübernahmen und Entnahmen aus Rücklagen","2799 - Entnahmen aus anderen Gewinnrücklagen",{"$nulls":7},"2799","Entnahmen aus anderen Gewinnrücklagen"]
["Neutrales Ergebnis","Erträge aus Verlustübernahmen und Entnahmen aus Rücklagen","2840 - Entnahmen aus der Rücklage für Anteile an einem herrschenden oder mehrheitlich beteiligten Unternehmen",{"$nulls":7},"2840","Entnahmen aus der Rücklage für Anteile an einem herrschenden oder mehrheitlich beteiligten Unternehmen"]
["Neutrales Ergebnis","Gewinn- / Verlustvortrag und Vorabausschüttung","2860 - Gewinnvortrag nach Verwendung",{"$nulls":7},"2860","Gewinnvortrag nach Verwendung"]
["Neutrales Ergebnis","Gewinn- / Verlustvortrag und Vorabausschüttung","2868 - Verlustvortrag nach Verwendung",{"$nulls":7},"2868","Verlustvortrag nach Verwendung"]
["Neutrales Ergebnis","Gewinn- / Verlustvortrag und Vorabausschüttung","2869 - Vortrag auf neue Rechnung (GuV)",{"$nulls":7},"2869","Vortrag auf neue Rechnung (GuV)"]
["Neutrales Ergebnis","Gewinn- / Verlustvortrag und Vorabausschüttung","2870 - Vorabausschüttung",{"$nulls":7},"2870","Vorabausschüttung"]
["Neutrales Ergebnis","Erhaltene und gewährte Skonti","2900 - Erhaltene Skonti",{"$nulls":7},"2900","Erhaltene Skonti"]
["Neutrales Ergebnis","Erhaltene und gewährte Skonti","2901 - Erhaltene Skonti 7 % Vorsteuer",{"$nulls":7},"2901","Erhaltene Skonti 7 % Vorsteuer"]
["Neutrales Ergebnis","Erhaltene und gewährte Skonti","2902 - Reserviert D",{"$nulls":7},"2902","Reserviert D"]
["Neutrales Ergebnis","Erhaltene und gewährte Skonti","2903 - Reserviert D",{"$nulls":7},"2903","Reserviert D"]
["Neutrales Ergebnis","Erhaltene und gewährte Skonti","2904 - Reserviert D",{"$nulls":7},"2904","Reserviert D"]
["Neutrales Ergebnis","Erhaltene und gewährte Skonti","2905 - Erhaltene Skonti 19 % Vorsteuer",{"$nulls":7},"2905","Erhaltene Skonti 19 % Vorsteuer"]
["Neutrales Ergebnis","Erhaltene und gewährte Skonti","2906 - Reserviert D",{"$nulls":7},"2906","Reserviert D"]
["Neutrales Ergebnis","Erhaltene und gewährte Skonti","2907 - Reserviert D",{"$nulls":7},"2907","Reserviert D"]
["Neutrales Ergebnis","Erhaltene und gewährte Skonti","2910 - Erhaltene Skonti aus steuerpflichtigem innergemeinschaftlichem Erwerb",{"$nulls":7},"2910","Erhaltene Skonti aus steuerpflichtigem innergemeinschaftlichem Erwerb"]
["Neutrales Ergebnis","Erhaltene und gewährte Skonti","2911 - Erhaltene Skonti aus Einkauf Roh-, Hilfs- und Betriebsstoffe",{"$nulls":7},"2911","Erhaltene Skonti aus Einkauf Roh-, Hilfs- und Betriebsstoffe"]
["Neutrales Ergebnis","Erhaltene und gewährte Skonti","2912 - Erhaltene Skonti aus Leistungen, für die als Leistungsempfänger die Steuer nach § 13b UStG geschuldet wird",{"$nulls":7},"2912","Erhaltene Skonti aus Leistungen, für die als Leistungsempfänger die Steuer nach § 13b UStG geschuldet wird"]
["Neutrales Ergebnis","Erhaltene und gewährte Skonti","2913 - Erhaltene Skonti aus Leistungen, für die als Leistungsempfänger die Steuer nach § 13b UStG geschuldet wird ohne Vorsteuer aber mit Umsatzsteuer",{"$nulls":7},"2913","Erhaltene Skonti aus Leistungen, für die als Leistungsempfänger die Steuer nach § 13b UStG geschuldet wird ohne Vorsteuer aber mit Umsatzsteuer"]
["Neutrales Ergebnis","Erhaltene und gewährte Skonti","2914 - Erhaltene Skonti aus Einkauf Roh-, Hilfs- und Betriebsstoffe aus steuerpflichtigem innergemeinschaftlichen Erwerb",{"$nulls":7},"2914","Erhaltene Skonti aus Einkauf Roh-, Hilfs- und Betriebsstoffe aus steuerpflichtigem innergemeinschaftlichen Erwerb"]
["Neutrales Ergebnis","Erhaltene und gewährte Skonti","2930 - Gewährte Skonti",{"$nulls":7},"2930","Gewährte Skonti"]
["Neutrales Ergebnis","Erhaltene und gewährte Skonti","2936 - Gewährte Skonti 7 % USt",{"$nulls":7},"2936","Gewährte Skonti 7 % USt"]
["Neutrales Ergebnis","Erhaltene und gewährte Skonti","2940 - Reserviert D",{"$nulls":7},"2940","Reserviert D"]
["Neutrales Ergebnis","Erhaltene und gewährte Skonti","2941 - Reserviert D",{"$nulls":7},"2941","Reserviert D"]
["Neutrales Ergebnis","Erhaltene und gewährte Skonti","2942 - Reserviert D",{"$nulls":7},"2942","Reserviert D"]
["Neutrales Ergebnis","Erhaltene und gewährte Skonti","2943 - Reserviert D",{"$nulls":7},"2943","Reserviert D"]
["Neutrales Ergebnis","Erhaltene und gewährte Skonti","2944 - Gewährte Skonti 19 % USt",{"$nulls":7},"2944","Gewährte Skonti 19 % USt"]
["Neutrales Ergebnis","Erhaltene und gewährte Skonti","2945 - Reserviert D",{"$nulls":7},"2945","Reserviert D"]
["Neutrales Ergebnis","Erhaltene und gewährte Skonti","2946 - Reserviert D",{"$nulls":7},"2946","Reserviert D"]
["Neutrales Ergebnis","Erhaltene und gewährte Skonti","2950 - Gewährte Skonti aus steuerfreien innergemeinschaftlichen Lieferungen § 4 Nr. 1 b UStG",{"$nulls":7},"2950","Gewährte Skonti aus steuerfreien innergemeinschaftlichen Lieferungen § 4 Nr. 1 b UStG"]
["Neutrales Ergebnis","Erhaltene und gewährte Skonti","2951 - Reserviert D",{"$nulls":7},"2951","Reserviert D"]
["Neutrales Ergebnis","Erhaltene und gewährte Skonti","2954 - Gewährte Skonti aus im Inland steuerpflichtigen EG-Lieferungen",{"$nulls":7},"2954","Gewährte Skonti aus im Inland steuerpflichtigen EG-Lieferungen"]
["Neutrales Ergebnis","Erhaltene und gewährte Skonti","2956 - Gewährte Skonti aus Leistungen, für die der Leistungsempfänger die Umsatzsteuer nach § 13b UStG schuldet",{"$nulls":7},"2956","Gewährte Skonti aus Leistungen, für die der Leistungsempfänger die Umsatzsteuer nach § 13b UStG schuldet"]
["Kontenklasse 3 Wareneingang / Bestandskonten","Bestand Neuwagen und Vorführwagen","3000 - Bestand Neuwagen",{"$nulls":7},"3000","Bestand Neuwagen"]
["Kontenklasse 3 Wareneingang / Bestandskonten","Bestand Neuwagen und Vorführwagen","3001 - Wertberichtigung Neuwagen",{"$nulls":7},"3001","Wertberichtigung Neuwagen"]
["Kontenklasse 3 Wareneingang / Bestandskonten","Bestand Neuwagen und Vorführwagen","3010 - Bestand Vorführwagen",{"$nulls":7},"3010","Bestand Vorführwagen"]
["Kontenklasse 3 Wareneingang / Bestandskonten","Bestand Neuwagen und Vorführwagen","3011 - Wertberichtigung Vorführwagen",{"$nulls":7},"3011","Wertberichtigung Vorführwagen"]
["Kontenklasse 3 Wareneingang / Bestandskonten","Bestand Neuwagen und Vorführwagen","3020 - Bestand Fahrzeuge Herstellerauslieferung",{"$nulls":7},"3020","Bestand Fahrzeuge Herstellerauslieferung"]
["Kontenklasse 3 Wareneingang / Bestandskonten","Bestand Neuwagen und Vorführwagen","3021 - Wertberichtigung Fahrzeuge Herstellerauslieferung",{"$nulls":7},"3021","Wertberichtigung Fahrzeuge Herstellerauslieferung"]
["Kontenklasse 3 Wareneingang / Bestandskonten","Bestand Neuwagen und Vorführwagen","3030 - Bestand Überführung",{"$nulls":7},"3030","Bestand Überführung"]
["Kontenklasse 3 Wareneingang / Bestandskonten","Bestand Gebrauchtwagen","3100 - Bestand Gebrauchtwagen regelbesteuert",{"$nulls":7},{"$f":"MID(C1091,1,4)","v":"3100"},{"$f":"MID(C1091,8,255)","v":"Bestand Gebrauchtwagen regelbesteuert"}]
["Kontenklasse 3 Wareneingang / Bestandskonten","Bestand Gebrauchtwagen","3101 - Wertberichtigung Gebrauchtwagen regelbesteuert",{"$nulls":7},"3101","Wertberichtigung Gebrauchtwagen regelbesteuert"]
["Kontenklasse 3 Wareneingang / Bestandskonten","Bestand Gebrauchtwagen","3110 - Bestand Gebrauchtwagen differenzbesteuert",{"$nulls":7},"3110","Bestand Gebrauchtwagen differenzbesteuert"]
["Kontenklasse 3 Wareneingang / Bestandskonten","Bestand Gebrauchtwagen","3111 - Wertberichtigung Gebrauchtwagen differenzbesteuert",{"$nulls":7},"3111","Wertberichtigung Gebrauchtwagen differenzbesteuert"]
["Kontenklasse 3 Wareneingang / Bestandskonten","Sonstige Bestände Verkauf Fahrzeuge","3200 - Bestand Zulassungspauschale",{"$nulls":7},"3200","Bestand Zulassungspauschale"]
["Kontenklasse 3 Wareneingang / Bestandskonten","Sonstige Bestände Verkauf Fahrzeuge","3210 - Bestand Fahrzeuggarantie",{"$nulls":7},"3210","Bestand Fahrzeuggarantie"]
["Kontenklasse 3 Wareneingang / Bestandskonten","Sonstige Bestände Verkauf Fahrzeuge","3220 - Bestand Nachrüstung/Aufbauten",{"$nulls":7},"3220","Bestand Nachrüstung/Aufbauten"]
["Kontenklasse 3 Wareneingang / Bestandskonten","Bestand Teile","3300 - Bestand Teile",{"$nulls":7},"3300","Bestand Teile"]
["Kontenklasse 3 Wareneingang / Bestandskonten","Bestand Teile","3301 - Wertberichtigung Teile",{"$nulls":7},"3301","Wertberichtigung Teile"]
["Kontenklasse 3 Wareneingang / Bestandskonten","Bestand Werkstatt","3400 - Bestand Werkstatt",{"$nulls":7},"3400","Bestand Werkstatt"]
["Kontenklasse 3 Wareneingang / Bestandskonten","Bestand Werkstatt","3401 - Wertberichtigung Werkstatt",{"$nulls":7},"3401","Wertberichtigung Werkstatt"]
["Kontenklasse 3 Wareneingang / Bestandskonten","Bestand Werkstatt","3410 - Noch nicht abgerechnete Reparaturen",{"$nulls":7},"3410","Noch nicht abgerechnete Reparaturen"]
["Kontenklasse 3 Wareneingang / Bestandskonten","Bestand Werkstatt","3420 - Bestand Fremdleistungen",{"$nulls":7},"3420","Bestand Fremdleistungen"]
["Kontenklasse 3 Wareneingang / Bestandskonten","Bestand weitere Bereiche","3500 - Bestand weitere Bereiche",{"$nulls":7},"3500","Bestand weitere Bereiche"]
["Kontenklasse 3 Wareneingang / Bestandskonten","Bestand weitere Bereiche","3501 - Wertberichtigung weitere Bereiche",{"$nulls":7},"3501","Wertberichtigung weitere Bereiche"]
["Kontenklasse 3 Wareneingang / Bestandskonten","Bestand weitere Bereiche","3510 - Bestand Mietfahrzeuge",{"$nulls":7},"3510","Bestand Mietfahrzeuge"]
["Kontenklasse 3 Wareneingang / Bestandskonten","Bestand weitere Bereiche","3511 - Wertberichtigung Mietfahrzeuge",{"$nulls":7},"3511","Wertberichtigung Mietfahrzeuge"]
["Kontenklasse 3 Wareneingang / Bestandskonten","Boni / Verkaufshilfen","3800 - Bestand Boni",{"$nulls":7},"3800","Bestand Boni"]
["Kontenklasse 3 Wareneingang / Bestandskonten","Boni / Verkaufshilfen","3850 - Verkaufshilfen",{"$nulls":7},"3850","Verkaufshilfen"]
["Kontenklasse 3 Wareneingang / Bestandskonten","Boni / Verkaufshilfen","3900 - Roh-, Hilfs-, Betriebsstoffe z.B. Heizöl zum Verbrauch",{"$nulls":7},"3900","Roh-, Hilfs-, Betriebsstoffe z.B. Heizöl zum Verbrauch"]
["Kontenklasse 3 Wareneingang / Bestandskonten","Boni / Verkaufshilfen","3940 - Innergemeinschaftlicher Erwerb 19 % Vorsteuer und 19 % Umsatzsteuer",{"$nulls":7},"3940","Innergemeinschaftlicher Erwerb 19 % Vorsteuer und 19 % Umsatzsteuer"]
["Kontenklasse 3 Wareneingang / Bestandskonten","Boni / Verkaufshilfen","3941 - Reserviert D",{"$nulls":7},"3941","Reserviert D"]
["Kontenklasse 3 Wareneingang / Bestandskonten","Boni / Verkaufshilfen","3942 - Reserviert D",{"$nulls":7},"3942","Reserviert D"]
["Kontenklasse 3 Wareneingang / Bestandskonten","Boni / Verkaufshilfen","3943 - Reserviert D",{"$nulls":7},"3943","Reserviert D"]
["Kontenklasse 3 Wareneingang / Bestandskonten","Boni / Verkaufshilfen","3944 - Reserviert D",{"$nulls":7},"3944","Reserviert D"]
["Kontenklasse 3 Wareneingang / Bestandskonten","Boni / Verkaufshilfen","3945 - Reserviert D",{"$nulls":7},"3945","Reserviert D"]
["Kontenklasse 3 Wareneingang / Bestandskonten","Boni / Verkaufshilfen","3946 - Reserviert D",{"$nulls":7},"3946","Reserviert D"]
["Kontenklasse 3 Wareneingang / Bestandskonten","Boni / Verkaufshilfen","3947 - Reserviert D",{"$nulls":7},"3947","Reserviert D"]
["Kontenklasse 3 Wareneingang / Bestandskonten","Boni / Verkaufshilfen","3948 - Reserviert D",{"$nulls":7},"3948","Reserviert D"]
["Kontenklasse 3 Wareneingang / Bestandskonten","Boni / Verkaufshilfen","3949 - Reserviert D",{"$nulls":7},"3949","Reserviert D"]
["Kontenklasse 3 Wareneingang / Bestandskonten","Boni / Verkaufshilfen","3950 - Innergemeinschaftlicher Erwerb ohne Vorsteuer und 19 % Umsatzsteuer",{"$nulls":7},"3950","Innergemeinschaftlicher Erwerb ohne Vorsteuer und 19 % Umsatzsteuer"]
["Kontenklasse 3 Wareneingang / Bestandskonten","Boni / Verkaufshilfen","3951 - Reserviert D",{"$nulls":7},"3951","Reserviert D"]
["Kontenklasse 3 Wareneingang / Bestandskonten","Boni / Verkaufshilfen","3952 - Reserviert D",{"$nulls":7},"3952","Reserviert D"]
["Kontenklasse 3 Wareneingang / Bestandskonten","Boni / Verkaufshilfen","3953 - Reserviert D",{"$nulls":7},"3953","Reserviert D"]
["Kontenklasse 3 Wareneingang / Bestandskonten","Boni / Verkaufshilfen","3954 - Reserviert D",{"$nulls":7},"3954","Reserviert D"]
["Kontenklasse 3 Wareneingang / Bestandskonten","Boni / Verkaufshilfen","3960 - Innergemeinschaftlicher Erwerb von Neufahrzeugen von Lieferanten ohne Umsatzsteuer-Identifikationsnummer 19 % Vorsteuer und 19 % Umsatzsteuer",{"$nulls":7},"3960","Innergemeinschaftlicher Erwerb von Neufahrzeugen von Lieferanten ohne Umsatzsteuer-Identifikationsnummer 19 % Vorsteuer und 19 % Umsatzsteuer"]
["Kontenklasse 3 Wareneingang / Bestandskonten","Boni / Verkaufshilfen","3961 - Reserviert D",{"$nulls":7},"3961","Reserviert D"]
["Kontenklasse 3 Wareneingang / Bestandskonten","Boni / Verkaufshilfen","3962 - Reserviert D",{"$nulls":7},"3962","Reserviert D"]
["Kontenklasse 3 Wareneingang / Bestandskonten","Boni / Verkaufshilfen","3963 - Reserviert D",{"$nulls":7},"3963","Reserviert D"]
["Kontenklasse 3 Wareneingang / Bestandskonten","Boni / Verkaufshilfen","3964 - Reserviert D",{"$nulls":7},"3964","Reserviert D"]
["Kontenklasse 3 Wareneingang / Bestandskonten","Boni / Verkaufshilfen","3965 - Reserviert D",{"$nulls":7},"3965","Reserviert D"]
["Kontenklasse 3 Wareneingang / Bestandskonten","Boni / Verkaufshilfen","3966 - Reserviert D",{"$nulls":7},"3966","Reserviert D"]
["Kontenklasse 3 Wareneingang / Bestandskonten","Boni / Verkaufshilfen","3967 - Reserviert D",{"$nulls":7},"3967","Reserviert D"]
["Kontenklasse 3 Wareneingang / Bestandskonten","Boni / Verkaufshilfen","3968 - Reserviert D",{"$nulls":7},"3968","Reserviert D"]
["Kontenklasse 3 Wareneingang / Bestandskonten","Boni / Verkaufshilfen","3969 - Reserviert D",{"$nulls":7},"3969","Reserviert D"]
["Einsatzwerte","Löhne produktiv und Nebenkosten","4100 - Fertigungslöhne produktiv",{"$nulls":7},"4100","Fertigungslöhne produktiv"]
["Einsatzwerte","Löhne produktiv und Nebenkosten","4110 - Aushilfslöhne produktiv",{"$nulls":7},"4110","Aushilfslöhne produktiv"]
["Einsatzwerte","Löhne produktiv und Nebenkosten","4120 - Leiharbeiter produktiv",{"$nulls":7},"4120","Leiharbeiter produktiv"]
["Einsatzwerte","Löhne produktiv und Nebenkosten","4130 - Lehrgangsgebühren für Schulungen produktiv",{"$nulls":7},"4130","Lehrgangsgebühren für Schulungen produktiv"]
["Einsatzwerte","Löhne produktiv und Nebenkosten","4135 - Ausbildungsvergütungen produktiv",{"$nulls":7},"4135","Ausbildungsvergütungen produktiv"]
["Kosten","Löhne produktiv und Nebenkosten","4140 - Gesetzliche soziale Aufwendungen Löhne produktiv",{"$nulls":7},"4140","Gesetzliche soziale Aufwendungen Löhne produktiv"]
["Kosten","Löhne produktiv und Nebenkosten","4145 - Freiwillige soziale Aufwendungen Löhne produktiv – lohnsteuerpflichtig",{"$nulls":7},"4145","Freiwillige soziale Aufwendungen Löhne produktiv – lohnsteuerpflichtig"]
["Kosten","Löhne produktiv und Nebenkosten","4146 - Freiwillige soziale Aufwendungen Löhne produktiv – lohnsteuerfrei",{"$nulls":7},"4146","Freiwillige soziale Aufwendungen Löhne produktiv – lohnsteuerfrei"]
["Kosten","Löhne / Gehälter und Nebenkosten","4200 - Löhne und Gehälter",{"$nulls":7},"4200","Löhne und Gehälter"]
["Kosten","Löhne / Gehälter und Nebenkosten","4210 - Aushilfslöhne",{"$nulls":7},"4210","Aushilfslöhne"]
["Kosten","Löhne / Gehälter und Nebenkosten","4214 - Freiwillige Zuwendungen an Minijobber",{"$nulls":7},"4214","Freiwillige Zuwendungen an Minijobber"]
["Kosten","Löhne / Gehälter und Nebenkosten","4212 - Löhne für Minijobs",{"$nulls":7},"4212","Löhne für Minijobs"]
["Kosten","Löhne / Gehälter und Nebenkosten","4215 - Sachzuwendungen und Dienstleistungen an Minijobber",{"$nulls":7},"4215","Sachzuwendungen und Dienstleistungen an Minijobber"]
["Kosten","Löhne / Gehälter und Nebenkosten","4216 - Pauschale Steuern und Abgaben für Sachzuwendungen und Dienstleistungen an Minijobber",{"$nulls":7},"4216","Pauschale Steuern und Abgaben für Sachzuwendungen und Dienstleistungen an Minijobber"]
["Kosten","Löhne / Gehälter und Nebenkosten","4220 - Leiharbeiter",{"$nulls":7},"4220","Leiharbeiter"]
["Kosten","Löhne / Gehälter und Nebenkosten","4230 - Lehrgangsgebühren für Schulungen",{"$nulls":7},"4230","Lehrgangsgebühren für Schulungen"]
["Kosten","Löhne / Gehälter und Nebenkosten","4235 - Ausbildungsvergütungen",{"$nulls":7},"4235","Ausbildungsvergütungen"]
["Kosten","Löhne / Gehälter und Nebenkosten","4240 - Gesetzliche soziale Aufwendungen Löhne und Gehälter",{"$nulls":7},"4240","Gesetzliche soziale Aufwendungen Löhne und Gehälter"]
["Kosten","Löhne / Gehälter und Nebenkosten","4245 - Freiwillige soziale Aufwendungen Löhne und Gehälter – lohnsteuerpflichtig",{"$nulls":7},"4245","Freiwillige soziale Aufwendungen Löhne und Gehälter – lohnsteuerpflichtig"]
["Kosten","Löhne / Gehälter und Nebenkosten","4246 - Freiwillige soziale Aufwendungen Löhne und Gehälter – lohnsteuerfrei",{"$nulls":7},{"$f":"MID(C1155,1,4)","v":"4246"},{"$f":"MID(C1155,8,255)","v":"Freiwillige soziale Aufwendungen Löhne und Gehälter – lohnsteuerfrei"}]
["Kosten","Löhne / Gehälter und Nebenkosten","4250 - Vergütungen an angestellte Mitunternehmer § 15 EStG (Personengesellschaft)",{"$nulls":7},"4250","Vergütungen an angestellte Mitunternehmer § 15 EStG (Personengesellschaft)"]
["Kosten","Löhne / Gehälter und Nebenkosten","4255 - Geschäftsführergehälter",{"$nulls":7},"4255","Geschäftsführergehälter"]
["Kosten","Löhne / Gehälter und Nebenkosten","4260 - Geschäftsführergehälter der GmbH-Gesellschafter",{"$nulls":7},"4260","Geschäftsführergehälter der GmbH-Gesellschafter"]
["Kosten","Löhne / Gehälter und Nebenkosten","4261 - Tantiemen",{"$nulls":7},"4261","Tantiemen"]
["Kosten","Löhne / Gehälter und Nebenkosten","4262 - Freiwillige Zuwendungen an Gesellschafter/Geschäftsführer",{"$nulls":7},"4262","Freiwillige Zuwendungen an Gesellschafter/Geschäftsführer"]
["Kosten","Löhne / Gehälter und Nebenkosten","4263 - Freiwillige Zuwendungen an angestellte Mitunternehmer § 15 EStG",{"$nulls":7},"4263","Freiwillige Zuwendungen an angestellte Mitunternehmer § 15 EStG"]
["Kosten","Löhne / Gehälter und Nebenkosten","4264 - Sachzuwendungen und Dienstleistungen an Gesellschafter/Geschäftsführer",{"$nulls":7},"4264","Sachzuwendungen und Dienstleistungen an Gesellschafter/Geschäftsführer"]
["Kosten","Löhne / Gehälter und Nebenkosten","4265 - Sachzuwendungen und Dienstleistungen an angestellte Mitunternehmer § 15 EStG",{"$nulls":7},"4265","Sachzuwendungen und Dienstleistungen an angestellte Mitunternehmer § 15 EStG"]
["Kosten","Löhne / Gehälter und Nebenkosten","4266 - Pauschale Steuern und Abgaben für Sachzuwendungen und Dienstleistungen an Gesellschafter/Geschäftsführer",{"$nulls":7},"4266","Pauschale Steuern und Abgaben für Sachzuwendungen und Dienstleistungen an Gesellschafter/Geschäftsführer"]
["Kosten","Löhne / Gehälter und Nebenkosten","4267 - Pauschale Steuern und Abgaben für Sachzuwendungen und Dienstleistungen an angestellte Mitunternehmer § 15 EStG",{"$nulls":7},"4267","Pauschale Steuern und Abgaben für Sachzuwendungen und Dienstleistungen an angestellte Mitunternehmer § 15 EStG"]
["Kosten","Löhne / Gehälter und Nebenkosten","4280 - Gesetzliche soziale Aufwendungen für Mitunternehmer § 15 EStG (Konto wird derzeit nicht",{"$nulls":7},"4280","Gesetzliche soziale Aufwendungen für Mitunternehmer § 15 EStG (Konto wird derzeit nicht"]
["Kosten","Löhne / Gehälter und Nebenkosten","4285 - Freiwillige soziale Aufwendungen Geschäftsführer – lohnsteuerpflichtig",{"$nulls":7},"4285","Freiwillige soziale Aufwendungen Geschäftsführer – lohnsteuerpflichtig"]
["Kosten","Löhne / Gehälter und Nebenkosten","4286 - Freiwillige soziale Aufwendungen Geschäftsführer – lohnsteuerfrei",{"$nulls":7},"4286","Freiwillige soziale Aufwendungen Geschäftsführer – lohnsteuerfrei"]
["Kosten","Mitarbeiterprovisionen und Nebenkosten","4300 - Mitarbeiterprovisionen",{"$nulls":7},"4300","Mitarbeiterprovisionen"]
["Kosten","sonstige Personalkosten","4350 - Beiträge zur Berufsgenossenschaft",{"$nulls":7},"4350","Beiträge zur Berufsgenossenschaft"]
["Kosten","sonstige Personalkosten","4355 - Ausgleichsabgabe im Sinne des Schwerbehindertengesetzes",{"$nulls":7},"4355","Ausgleichsabgabe im Sinne des Schwerbehindertengesetzes"]
["Kosten","sonstige Personalkosten","4360 - Aufwendungen für Altersversorgung",{"$nulls":7},"4360","Aufwendungen für Altersversorgung"]
["Kosten","sonstige Personalkosten","4365 - Aufwendungen für Altersversorgung für Mitunternehmer § 15 EStG",{"$nulls":7},"4365","Aufwendungen für Altersversorgung für Mitunternehmer § 15 EStG"]
["Kosten","sonstige Personalkosten","4366 - Aufwendungen für Altersversorgung für Gesellschafter-Geschäftsführer",{"$nulls":7},"4366","Aufwendungen für Altersversorgung für Gesellschafter-Geschäftsführer"]
["Kosten","sonstige Personalkosten","4367 - Aufwendung für Unterstützung",{"$nulls":7},"4367","Aufwendung für Unterstützung"]
["Kosten","sonstige Personalkosten","4370 - Pauschalierte Lohnsteuer und Sozialversicherungsabgaben für Aushilfen",{"$nulls":7},"4370","Pauschalierte Lohnsteuer und Sozialversicherungsabgaben für Aushilfen"]
["Kosten","sonstige Personalkosten","4380 - Vermögenswirksame Leistungen",{"$nulls":7},"4380","Vermögenswirksame Leistungen"]
["Kosten","sonstige Personalkosten","4384 - Sachzuwendungen und Dienstleistungen an Arbeitnehmer",{"$nulls":7},"4384","Sachzuwendungen und Dienstleistungen an Arbeitnehmer"]
["Kosten","sonstige Personalkosten","4385 - Abfindungen",{"$nulls":7},"4385","Abfindungen"]
["Kosten","sonstige Personalkosten","4390 - Lohn- und Gehaltsfortzahlung",{"$nulls":7},"4390","Lohn- und Gehaltsfortzahlung"]
["Kosten","Anlagen / Gebäude- und Raumkosten","4400 - Miete, Pacht",{"$nulls":7},"4400","Miete, Pacht"]
["Kosten","Anlagen / Gebäude- und Raumkosten","4401 - Leasing (unbewegliche Wirtschaftsgüter)",{"$nulls":7},"4401","Leasing (unbewegliche Wirtschaftsgüter)"]
["Kosten","Anlagen / Gebäude- und Raumkosten","4402 - Aufwendungen für gemietete oder gepachtete unbewegliche Wirtschaftsgüter, die gewerbe-",{"$nulls":7},"4402","Aufwendungen für gemietete oder gepachtete unbewegliche Wirtschaftsgüter, die gewerbe-"]
["Kosten","Anlagen / Gebäude- und Raumkosten","4404 - Vergütungen an Mitunternehmer für die miet- oder pachtweise Überlassung ihrer unbeweglichen Wirtschaftsgüter § 15 EStG",{"$nulls":7},"4404","Vergütungen an Mitunternehmer für die miet- oder pachtweise Überlassung ihrer unbeweglichen Wirtschaftsgüter § 15 EStG"]
["Kosten","Anlagen / Gebäude- und Raumkosten","4405 - Vergütungen an Gesellschafter für die miet- oder pachtweise Überlassung ihrer unbeweglichen Wirtschaftsgüter",{"$nulls":7},"4405","Vergütungen an Gesellschafter für die miet- oder pachtweise Überlassung ihrer unbeweglichen Wirtschaftsgüter"]
["Kosten","Anlagen / Gebäude- und Raumkosten","4410 - Energiekosten",{"$nulls":7},"4410","Energiekosten"]
["Kosten","Anlagen / Gebäude- und Raumkosten","4411 - Energiekosten Heizung",{"$nulls":7},"4411","Energiekosten Heizung"]
["Kosten","Anlagen / Gebäude- und Raumkosten","4412 - Energiekosten Strom",{"$nulls":7},"4412","Energiekosten Strom"]
["Kosten","Anlagen / Gebäude- und Raumkosten","4413 - Energiekosten Gas",{"$nulls":7},"4413","Energiekosten Gas"]
["Kosten","Anlagen / Gebäude- und Raumkosten","4414 - Energiekosten Wasser",{"$nulls":7},"4414","Energiekosten Wasser"]
["Kosten","Anlagen / Gebäude- und Raumkosten","4420 - Reinigungskosten",{"$nulls":7},"4420","Reinigungskosten"]
["Kosten","Anlagen / Gebäude- und Raumkosten","4430 - Instandhaltungskosten",{"$nulls":7},"4430","Instandhaltungskosten"]
["Kosten","Anlagen / Gebäude- und Raumkosten","4431 - Reparaturen und Instandhaltung technische Anlagen und Maschinen",{"$nulls":7},"4431","Reparaturen und Instandhaltung technische Anlagen und Maschinen"]
["Kosten","Anlagen / Gebäude- und Raumkosten","4432 - Zuführung zu Aufwandsrückstellungen",{"$nulls":7},"4432","Zuführung zu Aufwandsrückstellungen"]
["Kosten","Anlagen / Gebäude- und Raumkosten","4440 - Kosten der Gebäudeversicherung",{"$nulls":7},"4440","Kosten der Gebäudeversicherung"]
["Kosten","Anlagen / Gebäude- und Raumkosten","4450 - Kosten zur Gebäudesicherheit",{"$nulls":7},"4450","Kosten zur Gebäudesicherheit"]
["Kosten","Anlagen / Gebäude- und Raumkosten","4460 - Sonstige Gebäudekosten",{"$nulls":7},"4460","Sonstige Gebäudekosten"]
["Kosten","Fahrzeugkosten","4500 - Kosten Vorführwagen / Betriebsfahrzeuge / Fuhrpark",{"$nulls":7},"4500","Kosten Vorführwagen / Betriebsfahrzeuge / Fuhrpark"]
["Kosten","Fahrzeugkosten","4501 - Kfz-Steuern",{"$nulls":7},"4501","Kfz-Steuern"]
["Kosten","Fahrzeugkosten","4502 - Kfz-Versicherungen",{"$nulls":7},"4502","Kfz-Versicherungen"]
["Kosten","Fahrzeugkosten","4503 - Benzin",{"$nulls":7},"4503","Benzin"]
["Kosten","Fahrzeugkosten","4504 - Serviceleistungen / Mobilitätskosten",{"$nulls":7},"4504","Serviceleistungen / Mobilitätskosten"]
["Kosten","Kosten der Warenabgabe","4530 - Händlerbeteiligung an Aktionen/Absatzfinanzierung",{"$nulls":7},"4530","Händlerbeteiligung an Aktionen/Absatzfinanzierung"]
["Kosten","Kosten der Warenabgabe","4540 - Zugaben an Kunden",{"$nulls":7},"4540","Zugaben an Kunden"]
["Kosten","Kosten der Warenabgabe","4550 - Fracht- und Verpackungskosten",{"$nulls":7},"4550","Fracht- und Verpackungskosten"]
["Kosten","Kosten der Warenabgabe","4560 - Vermittlungsprovisionen",{"$nulls":7},"4560","Vermittlungsprovisionen"]
["Kosten","Kosten der Warenabgabe","4570 - eigene Garantie / Kulanz",{"$nulls":7},"4570","eigene Garantie / Kulanz"]
["Kosten","Kosten der Warenabgabe","4580 - Externe Fahrzeugaufbereitungskosten, Transportkosten",{"$nulls":7},"4580","Externe Fahrzeugaufbereitungskosten, Transportkosten"]
["Kosten","Kosten der Warenabgabe","4588 - Verbrauchsmaterial",{"$nulls":7},"4588","Verbrauchsmaterial"]
["Kosten","Kosten der Warenabgabe","4589 - Kleininventar",{"$nulls":7},"4589","Kleininventar"]
["Kosten","Kosten der Warenabgabe","4590 - Händlerbeteiligung an Leasing-Restwertabsicherung",{"$nulls":7},"4590","Händlerbeteiligung an Leasing-Restwertabsicherung"]
["Kosten","Kosten der Warenabgabe","4591 - Zuführung zur Rückstellung für Leasing-Rückläufer",{"$nulls":7},"4591","Zuführung zur Rückstellung für Leasing-Rückläufer"]
["Kosten","Abschreibungen","4600 - Abschreibungen auf Aufwendungen für die Ingangsetzung und Erweiterung des Geschäfts-betriebs",{"$nulls":7},"4600","Abschreibungen auf Aufwendungen für die Ingangsetzung und Erweiterung des Geschäfts-betriebs"]
["Kosten","Abschreibungen","4610 - Abschreibungen auf Gebäude und Gebäudeeinrichtungen",{"$nulls":7},"4610","Abschreibungen auf Gebäude und Gebäudeeinrichtungen"]
["Kosten","Abschreibungen","4611 - Abschreibungen auf den Geschäfts- oder Firmenwert",{"$nulls":7},"4611","Abschreibungen auf den Geschäfts- oder Firmenwert"]
["Kosten","Abschreibungen","4612 - Außerplanmäßige Abschreibungen auf den Geschäfts- oder Firmenwert",{"$nulls":7},"4612","Außerplanmäßige Abschreibungen auf den Geschäfts- oder Firmenwert"]
["Kosten","Abschreibungen","4615 - Abschreibungen auf immaterielle Vermögensgegenstände",{"$nulls":7},"4615","Abschreibungen auf immaterielle Vermögensgegenstände"]
["Kosten","Abschreibungen","4616 - Abschreibungen auf selbst geschaffene immaterielle Vermögensgegenstände",{"$nulls":7},"4616","Abschreibungen auf selbst geschaffene immaterielle Vermögensgegenstände"]
["Kosten","Abschreibungen","4618 - Außerplanmäßige Abschreibungen auf immaterielle Vermögensgegenstände",{"$nulls":7},{"$f":"MID(C1219,1,4)","v":"4618"},{"$f":"MID(C1219,8,255)","v":"Außerplanmäßige Abschreibungen auf immaterielle Vermögensgegenstände"}]
["Kosten","Abschreibungen","4619 - Außerplanmäßige Abschreibungen auf selbst geschaffene immaterielle Vermögensgegenstände",{"$nulls":7},"4619","Außerplanmäßige Abschreibungen auf selbst geschaffene immaterielle Vermögensgegenstände"]
["Kosten","Abschreibungen","4620 - Abschreibungen auf Sachanlagen",{"$nulls":7},"4620","Abschreibungen auf Sachanlagen"]
["Kosten","Abschreibungen","4621 - Abschreibungen auf Kfz-Fuhrpark / Betriebsfahrzeuge",{"$nulls":7},"4621","Abschreibungen auf Kfz-Fuhrpark / Betriebsfahrzeuge"]
["Kosten","Abschreibungen","4622 - Abschreibungen auf Vorführwagen",{"$nulls":7},"4622","Abschreibungen auf Vorführwagen"]
["Kosten","Abschreibungen","4623 - Abschreibungen auf Mietfahrzeuge",{"$nulls":7},"4623","Abschreibungen auf Mietfahrzeuge"]
["Kosten","Abschreibungen","4624 - Abschreibungen auf Leasingfahrzeuge",{"$nulls":7},"4624","Abschreibungen auf Leasingfahrzeuge"]
["Kosten","Abschreibungen","4630 - Abschreibungen auf Sachanlagen aufgrund steuerlicher Sondervorschriften",{"$nulls":7},"4630","Abschreibungen auf Sachanlagen aufgrund steuerlicher Sondervorschriften"]
["Kosten","Abschreibungen","4640 - Sofortabschreibungen geringwertiger Wirtschaftsgüter",{"$nulls":7},"4640","Sofortabschreibungen geringwertiger Wirtschaftsgüter"]
["Kosten","Abschreibungen","4645 - Abschreibungen auf Sammelposten Wirtschaftsgüter",{"$nulls":7},"4645","Abschreibungen auf Sammelposten Wirtschaftsgüter"]
["Kosten","Abschreibungen","4650 - Außerplanmäßige Abschreibungen auf Sachanlagen",{"$nulls":7},"4650","Außerplanmäßige Abschreibungen auf Sachanlagen"]
["Kosten","Abschreibungen","4652 - Absetzung für außergewöhnliche technische und wirtschaftliche Abnutzung sonstiger Wirt-schaftsgüter",{"$nulls":7},"4652","Absetzung für außergewöhnliche technische und wirtschaftliche Abnutzung sonstiger Wirt-schaftsgüter"]
["Kosten","Abschreibungen","4654 - Sonderabschreibungen nach § 7 g Abs. 5 EStG (ohne Kfz)",{"$nulls":7},"4654","Sonderabschreibungen nach § 7 g Abs. 5 EStG (ohne Kfz)"]
["Kosten","Abschreibungen","4656 - Kürzung der Anschaffungs- oder Herstellungskosten gemäß § 7 g Abs. 2 EStG n.  F.",{"$nulls":7},"4656","Kürzung der Anschaffungs- oder Herstellungskosten gemäß § 7 g Abs. 2 EStG n.  F."]
["Kosten","Abschreibungen","4658 - Abschreibungen auf Finanzanlagen (dauerhaft)",{"$nulls":7},"4658","Abschreibungen auf Finanzanlagen (dauerhaft)"]
["Kosten","Abschreibungen","4659 - Abschreibungen auf Finanzanlagen (nicht dauerhaft)",{"$nulls":7},"4659","Abschreibungen auf Finanzanlagen (nicht dauerhaft)"]
["Kosten","Abschreibungen","4660 - Abschreibungen auf Finanzanlagen § 3 Nr. 40 EStG / § 8b Abs. 3 KStG (inländische Kap.Ges.) (dauerhaft)",{"$nulls":7},"4660","Abschreibungen auf Finanzanlagen § 3 Nr. 40 EStG / § 8b Abs. 3 KStG (inländische Kap.Ges.) (dauerhaft)"]
["Kosten","Abschreibungen","4661 - Abschreibungen auf Finanzanlagen -- verbundene Unternehmen",{"$nulls":7},"4661","Abschreibungen auf Finanzanlagen -- verbundene Unternehmen"]
["Kosten","Abschreibungen","4662 - Aufwendungen aufgrund von Verlustanteilen an gewerblichen und selbständigen Mitunternehmerschaften § 8 GewStG bzw. § 18 EStG",{"$nulls":7},"4662","Aufwendungen aufgrund von Verlustanteilen an gewerblichen und selbständigen Mitunternehmerschaften § 8 GewStG bzw. § 18 EStG"]
["Kosten","Abschreibungen","4664 - Abschreibungen auf Finanzanlagen aufgrund § 6 b EStG-Rücklage, § 3 Nr. 40 EStG / § 8 b Abs. 3 KStG (inländische Kap.Ges.)",{"$nulls":7},"4664","Abschreibungen auf Finanzanlagen aufgrund § 6 b EStG-Rücklage, § 3 Nr. 40 EStG / § 8 b Abs. 3 KStG (inländische Kap.Ges.)"]
["Kosten","Abschreibungen","4666 - Abschreibungen auf Finanzanlagen aufgrund § 6 b EStG-Rücklage",{"$nulls":7},"4666","Abschreibungen auf Finanzanlagen aufgrund § 6 b EStG-Rücklage"]
["Kosten","Abschreibungen","4668 - Abschreibungen auf Wertpapiere des Umlaufvermögens",{"$nulls":7},"4668","Abschreibungen auf Wertpapiere des Umlaufvermögens"]
["Kosten","Abschreibungen","4669 - Abschreibungen auf Wertpapiere des Umlaufvermögens -- verbundene Unternehmen",{"$nulls":7},"4669","Abschreibungen auf Wertpapiere des Umlaufvermögens -- verbundene Unternehmen"]
["Kosten","Abschreibungen","4670 - Abschreibungen auf Wertpapiere des Umlaufvermögens § 3 Nr. 40 EStG / § 8 b Abs. 3 KStG (inländische Kap.Ges.)",{"$nulls":7},"4670","Abschreibungen auf Wertpapiere des Umlaufvermögens § 3 Nr. 40 EStG / § 8 b Abs. 3 KStG (inländische Kap.Ges.)"]
["Kosten","Abschreibungen","4672 - Abschreibungen auf sonstige Vermögensgegenstände des Umlaufvermögens (soweit unüblich Höhe)",{"$nulls":7},"4672","Abschreibungen auf sonstige Vermögensgegenstände des Umlaufvermögens (soweit unüblich Höhe)"]
["Kosten","Abschreibungen","4673 - Abschreibungen auf Roh-, Hilfs- und Betriebsstoffe/Waren (soweit unüblich Höhe)",{"$nulls":7},"4673","Abschreibungen auf Roh-, Hilfs- und Betriebsstoffe/Waren (soweit unüblich Höhe)"]
["Kosten","Abschreibungen","4674 - Abschreibungen auf Umlaufvermögen steuerrechtlich bedingt (soweit unübliche Höhe)",{"$nulls":7},"4674","Abschreibungen auf Umlaufvermögen steuerrechtlich bedingt (soweit unübliche Höhe)"]
["Kosten","Abschreibungen","4675 - Abschreibungen auf fertige und unfertige Erzeugnisse (soweit unüblich Höhe)",{"$nulls":7},"4675","Abschreibungen auf fertige und unfertige Erzeugnisse (soweit unüblich Höhe)"]
["Kosten","Abschreibungen","4676 - Abschreibungen auf Umlaufvermögen außer Vorräte und Wertpapiere des Umlaufvermögens (soweit übliche Höhe)",{"$nulls":7},"4676","Abschreibungen auf Umlaufvermögen außer Vorräte und Wertpapiere des Umlaufvermögens (soweit übliche Höhe)"]
["Kosten","Abschreibungen","4678 - Abschreibungen auf Umlaufvermögen steuerrechtlich bedingt (soweit übliche Höhe)",{"$nulls":7},"4678","Abschreibungen auf Umlaufvermögen steuerrechtlich bedingt (soweit übliche Höhe)"]
["Kosten","Abschreibungen","4690 - Wertberichtigungen auf Handelswaren (Fahrzeuge und Teile)",{"$nulls":7},"4690","Wertberichtigungen auf Handelswaren (Fahrzeuge und Teile)"]
["Kosten","Kosten des Geschäftsbetriebes","4700 - Büromaterial",{"$nulls":7},"4700","Büromaterial"]
["Kosten","Kosten des Geschäftsbetriebes","4705 - Zeitschriften, Bücher",{"$nulls":7},"4705","Zeitschriften, Bücher"]
["Kosten","Kosten des Geschäftsbetriebes","4710 - Kommunikation Portokosten",{"$nulls":7},"4710","Kommunikation Portokosten"]
["Kosten","Kosten des Geschäftsbetriebes","4715 - Kommunikation Telefon / Internet / Fax",{"$nulls":7},"4715","Kommunikation Telefon / Internet / Fax"]
["Kosten","Kosten des Geschäftsbetriebes","4720 - Betriebsversicherungen",{"$nulls":7},"4720","Betriebsversicherungen"]
["Kosten","Kosten des Geschäftsbetriebes","4725 - Gebühren, Beiträge, Abgaben",{"$nulls":7},"4725","Gebühren, Beiträge, Abgaben"]
["Kosten","Kosten des Geschäftsbetriebes","4730 - Rechts- und Beratungskosten, Gutachten",{"$nulls":7},"4730","Rechts- und Beratungskosten, Gutachten"]
["Kosten","Kosten des Geschäftsbetriebes","4735 - Buchführungs- und Abschlusskosten (StB/WP)",{"$nulls":7},"4735","Buchführungs- und Abschlusskosten (StB/WP)"]
["Kosten","Kosten des Geschäftsbetriebes","4740 - Entsorgungskosten",{"$nulls":7},"4740","Entsorgungskosten"]
["Kosten","Kosten des Geschäftsbetriebes","4760 - Mieten / Pachtgebühren für bewegliche Wirtschaftsgüter",{"$nulls":7},"4760","Mieten / Pachtgebühren für bewegliche Wirtschaftsgüter"]
["Kosten","Kosten des Geschäftsbetriebes","4762 - Leasinggebühren für bewegliche Wirtschaftsgüter",{"$nulls":7},"4762","Leasinggebühren für bewegliche Wirtschaftsgüter"]
["Kosten","Kosten des Geschäftsbetriebes","4763 - Aufwendungen für gemietete oder gepachtete bewegliche Wirtschaftsgüter, die gewerbesteuer-lich hinzuzurechnen sind",{"$nulls":7},"4763","Aufwendungen für gemietete oder gepachtete bewegliche Wirtschaftsgüter, die gewerbesteuer-lich hinzuzurechnen sind"]
["Kosten","Kosten des Geschäftsbetriebes","4764 - Vergütungen an Gesellschafter für die miet- oder pachtweise Überlassung ihrer beweglichen Wirtschaftsgüter",{"$nulls":7},"4764","Vergütungen an Gesellschafter für die miet- oder pachtweise Überlassung ihrer beweglichen Wirtschaftsgüter"]
["Kosten","Kosten des Geschäftsbetriebes","4765 - Vergütungen an Mitunternehmer für die miet- oder pachtweise Überlassung ihrer beweglichen Wirtschaftsgüter § 15 EStG",{"$nulls":7},"4765","Vergütungen an Mitunternehmer für die miet- oder pachtweise Überlassung ihrer beweglichen Wirtschaftsgüter § 15 EStG"]
["Kosten","Kosten des Geschäftsbetriebes","4770 - Berufskleidung",{"$nulls":7},"4770","Berufskleidung"]
["Kosten","Kosten des Geschäftsbetriebes","4775 - Fortbildungskosten (Seminare)",{"$nulls":7},"4775","Fortbildungskosten (Seminare)"]
["Kosten","Kosten des Geschäftsbetriebes","4780 - Kosten der Datenverarbeitung",{"$nulls":7},"4780","Kosten der Datenverarbeitung"]
["Kosten","Kosten des Geschäftsbetriebes","4781 - Wartungskosten Hard- und Software",{"$nulls":7},"4781","Wartungskosten Hard- und Software"]
["Kosten","Kosten des Geschäftsbetriebes","4782 - Leitungskosten (inkl. Telefon und Fax)",{"$nulls":7},"4782","Leitungskosten (inkl. Telefon und Fax)"]
["Kosten","Kosten des Geschäftsbetriebes","4783 - Kosten IT-Dienstleistungen",{"$nulls":7},"4783","Kosten IT-Dienstleistungen"]
["Kosten","Kosten des Geschäftsbetriebes","4790 - Sonstige Kosten des Geschäftsbetriebes",{"$nulls":7},"4790","Sonstige Kosten des Geschäftsbetriebes"]
["Kosten","Kosten des Geschäftsbetriebes","4792 - Vergütungen an Mitunternehmer § 15 EStG",{"$nulls":7},"4792","Vergütungen an Mitunternehmer § 15 EStG"]
["Kosten","Kosten des Geschäftsbetriebes","4793 - Haftungsvergütung an Mitunternehmer § 15 EStG",{"$nulls":7},"4793","Haftungsvergütung an Mitunternehmer § 15 EStG"]
["Kosten","Kosten des Geschäftsbetriebes","4795 - Aufwendungen für die zeitlich befristete Überlassung von Rechten (Lizenzen, Konzessionen)",{"$nulls":7},"4795","Aufwendungen für die zeitlich befristete Überlassung von Rechten (Lizenzen, Konzessionen)"]
["Kosten","Kosten des Geschäftsbetriebes","4797 - Aufwendungen aus Anteilen an Kapitalgesellschaften §§ 3 Nr. 40, 3 c EStG / § 8 b Abs. 1 KStG (inländische Kap.Ges.)",{"$nulls":7},"4797","Aufwendungen aus Anteilen an Kapitalgesellschaften §§ 3 Nr. 40, 3 c EStG / § 8 b Abs. 1 KStG (inländische Kap.Ges.)"]
["Kosten","Kosten des Geschäftsbetriebes","4798 - Veräußerungskosten § 3 Nr. 40 EStG / § 8 b Abs. 2 KStG (inländische Kap.Ges.)",{"$nulls":7},"4798","Veräußerungskosten § 3 Nr. 40 EStG / § 8 b Abs. 2 KStG (inländische Kap.Ges.)"]
["Kosten","Werbe- und Reisekosten","4800 - Werbekosten",{"$nulls":7},"4800","Werbekosten"]
["Kosten","Werbe- und Reisekosten","4805 - Werbekostenzuschüsse / -erstattungen",{"$nulls":7},"4805","Werbekostenzuschüsse / -erstattungen"]
["Kosten","Werbe- und Reisekosten","4810 - Geschenke abzugsfähig",{"$nulls":7},"4810","Geschenke abzugsfähig"]
["Kosten","Werbe- und Reisekosten","4811 - Geschenke nicht abzugsfähig",{"$nulls":7},"4811","Geschenke nicht abzugsfähig"]
["Kosten","Werbe- und Reisekosten","4820 - Repräsentationskosten abzugsfähig",{"$nulls":7},"4820","Repräsentationskosten abzugsfähig"]
["Kosten","Werbe- und Reisekosten","4821 - Repräsentationskosten nicht abzugsfähig",{"$nulls":7},"4821","Repräsentationskosten nicht abzugsfähig"]
["Kosten","Werbe- und Reisekosten","4830 - Bewirtungskosten abzugsfähig",{"$nulls":7},"4830","Bewirtungskosten abzugsfähig"]
["Kosten","Werbe- und Reisekosten","4831 - Bewirtungskosten nicht abzugsfähig",{"$nulls":7},{"$f":"MID(C1283,1,4)","v":"4831"},{"$f":"MID(C1283,8,255)","v":"Bewirtungskosten nicht abzugsfähig"}]
["Kosten","Werbe- und Reisekosten","4840 - Reisekosten Arbeitnehmer abzugsfähig",{"$nulls":7},"4840","Reisekosten Arbeitnehmer abzugsfähig"]
["Kosten","Werbe- und Reisekosten","4845 - Reisekosten Unternehmer abzugsfähig",{"$nulls":7},"4845","Reisekosten Unternehmer abzugsfähig"]
["Kosten","Werbe- und Reisekosten","4846 - Reisekosten Unternehmer nicht abzugsfähig",{"$nulls":7},"4846","Reisekosten Unternehmer nicht abzugsfähig"]
["Kosten","Umlagen Gemeinkosten","4900 - Umlagen Indirektkosten",{"$nulls":7},"4900","Umlagen Indirektkosten"]
["Kosten","Umlagen Gemeinkosten","4910 - Umlagen Strukturkosten",{"$nulls":7},"4910","Umlagen Strukturkosten"]
["Einsatzwerte","Interne Aufwendungen","5001 - Wertausgleich (Neuwagen, Gebrauchtwagen)",{"$nulls":7},"5001","Wertausgleich (Neuwagen, Gebrauchtwagen)"]
["Einsatzwerte","Interne Aufwendungen","5002 - Zugaben",{"$nulls":7},"5002","Zugaben"]
["Einsatzwerte","Interne Aufwendungen","5003 - Eigene Kulanz",{"$nulls":7},"5003","Eigene Kulanz"]
["Einsatzwerte","Interne Aufwendungen","5004 - Übergabedurchsicht / Fertigmachen",{"$nulls":7},"5004","Übergabedurchsicht / Fertigmachen"]
["Einsatzwerte","Interne Aufwendungen","5005 - Werkstattleistungen / Instandsetzungsarbeiten / Aufrüstungen",{"$nulls":7},"5005","Werkstattleistungen / Instandsetzungsarbeiten / Aufrüstungen"]
["Einsatzwerte","Interne Aufwendungen","5006 - Nacharbeiten",{"$nulls":7},"5006","Nacharbeiten"]
["Einsatzwerte","Interne Aufwendungen","5007 - Materialkosten zu Lasten Werkstatt",{"$nulls":7},"5007","Materialkosten zu Lasten Werkstatt"]
["Einsatzwerte","Interne Aufwendungen","5008 - Mobilitätskosten",{"$nulls":7},"5008","Mobilitätskosten"]
["Einsatzwerte","Interne Aufwendungen","5009 - Lohnkosten produktiv",{"$nulls":7},"5009","Lohnkosten produktiv"]
["Einsatzwerte","Interne Aufwendungen","5010 - Fertigungslöhne produktiv (z.B. zur Filialverrechnung)",{"$nulls":7},"5010","Fertigungslöhne produktiv (z.B. zur Filialverrechnung)"]
["Einsatzwerte","Interne Aufwendungen","5011 - Sonstige interne Sachkosten",{"$nulls":7},"5011","Sonstige interne Sachkosten"]
["Einsatzwerte","Interne Aufwendungen","5012 - Sonstige interne Personalkosten",{"$nulls":7},"5012","Sonstige interne Personalkosten"]
["Einsatzwerte","Interne Aufwendungen","5013 - Instandhaltung eigenes Inventar",{"$nulls":7},"5013","Instandhaltung eigenes Inventar"]
["Kosten","Fahrzeugkosten","5501 - Kosten Vorführwagen / Geschäftsfahrzeuge / Gebrauchtwagen",{"$nulls":7},"5501","Kosten Vorführwagen / Geschäftsfahrzeuge / Gebrauchtwagen"]
["Kosten","Kalkulatorische Kosten","5601 - Kalkulatorische Miete / Pacht",{"$nulls":7},"5601","Kalkulatorische Miete / Pacht"]
["Kosten","Kalkulatorische Kosten","5602 - Gegenkonto kalkulatorische Miete / Pacht",{"$nulls":7},"5602","Gegenkonto kalkulatorische Miete / Pacht"]
["Kosten","Kalkulatorische Kosten","5610 - Kalkulatorischer Unternehmerlohn",{"$nulls":7},"5610","Kalkulatorischer Unternehmerlohn"]
["Kosten","Kalkulatorische Kosten","5611 - Gegenkonto kalkulatorischer Unternehmerlohn",{"$nulls":7},"5611","Gegenkonto kalkulatorischer Unternehmerlohn"]
["Kosten","Kalkulatorische Kosten","5620 - Kalkulatorische Zinsen",{"$nulls":7},"5620","Kalkulatorische Zinsen"]
["Kosten","Kalkulatorische Kosten","5621 - Gegenkonto kalkulatorische Zinsen",{"$nulls":7},"5621","Gegenkonto kalkulatorische Zinsen"]
["Kosten","Kalkulatorische Kosten","5630 - Kalkulatorische Abschreibungen",{"$nulls":7},"5630","Kalkulatorische Abschreibungen"]
["Kosten","Kalkulatorische Kosten","5631 - Gegenkonto kalkulatorische Abschreibungen",{"$nulls":7},"5631","Gegenkonto kalkulatorische Abschreibungen"]
["Umsatzerlöse","Interne Erlöse","5701 - Interne Erlöse",{"$nulls":7},"5701","Interne Erlöse"]
["Umsatzerlöse","Interne Erlöse","5702 - Interne Erlöse Theke / Shop",{"$nulls":7},"5702","Interne Erlöse Theke / Shop"]
["Umsatzerlöse","Interne Erlöse","5703 - Fiktiver Umsatz (Agenturgeschäft)",{"$nulls":7},"5703","Fiktiver Umsatz (Agenturgeschäft)"]
["Umsatzerlöse","Interne Erlöse","5704 - Fiktiver Umsatz / Kulanzanteil (Agenturgeschäft)",{"$nulls":7},"5704","Fiktiver Umsatz / Kulanzanteil (Agenturgeschäft)"]
["Umsatzerlöse","Interne Erlösschmälerungen","5801 - Interne Erlösschmälerungen",{"$nulls":7},"5801","Interne Erlösschmälerungen"]
["Umsatzerlöse","Interne Erlösschmälerungen","5802 - Interne Erlösschmälerungen Theke / Shop",{"$nulls":7},"5802","Interne Erlösschmälerungen Theke / Shop"]
["Umsatzerlöse","Interne Erlösschmälerungen","5803 - Fiktive Kulanz (Agenturgeschäft)",{"$nulls":7},"5803","Fiktive Kulanz (Agenturgeschäft)"]
["Kontenklasse 5 Internes","Gegenkonten / Verrechnungskonten","5901 - Gegenkonto Wertausgleich",{"$nulls":7},"5901","Gegenkonto Wertausgleich"]
["Kontenklasse 5 Internes","Gegenkonten / Verrechnungskonten","5902 - Gegenkonto fiktiver Umsatz / Kulanz",{"$nulls":7},"5902","Gegenkonto fiktiver Umsatz / Kulanz"]
["Kontenklasse 5 Internes","Gegenkonten / Verrechnungskonten","5903 - Verrechnungskonto Servicevertrag",{"$nulls":7},"5903","Verrechnungskonto Servicevertrag"]
["Kontenklasse 5 Internes","Gegenkonten / Verrechnungskonten","5999 - Internes Verrechnungskonto",{"$nulls":7},"5999","Internes Verrechnungskonto"]
["Einsatzwerte","Verrechnete Anschaffungskosten Verkauf Neuwagen und Vorführwagen","7000 - VAK Verkauf Neuwagen",{"$nulls":7},"7000","VAK Verkauf Neuwagen"]
["Einsatzwerte","Verrechnete Anschaffungskosten Verkauf Neuwagen und Vorführwagen","7001 - VAK Wertberichtigung Neuwagen (das Konto wird derzeit nicht bebucht)",{"$nulls":7},"7001","VAK Wertberichtigung Neuwagen (das Konto wird derzeit nicht bebucht)"]
["Einsatzwerte","Verrechnete Anschaffungskosten Verkauf Neuwagen und Vorführwagen","7010 - VAK Vorführwagen",{"$nulls":7},"7010","VAK Vorführwagen"]
["Einsatzwerte","Verrechnete Anschaffungskosten Verkauf Neuwagen und Vorführwagen","7011 - VAK Wertberichtigung Vorführwagen (das Konto wird derzeit nicht bebucht)",{"$nulls":7},"7011","VAK Wertberichtigung Vorführwagen (das Konto wird derzeit nicht bebucht)"]
["Einsatzwerte","Verrechnete Anschaffungskosten Verkauf Neuwagen und Vorführwagen","7020 - VAK Fahrzeuge Herstellerauslieferung",{"$nulls":7},"7020","VAK Fahrzeuge Herstellerauslieferung"]
["Einsatzwerte","Verrechnete Anschaffungskosten Verkauf Neuwagen und Vorführwagen","7021 - VAK Wertberichtigung Fahrzeuge Herstellerauslieferung (das Konto wird derzeit nicht bebucht)",{"$nulls":7},"7021","VAK Wertberichtigung Fahrzeuge Herstellerauslieferung (das Konto wird derzeit nicht bebucht)"]
["Einsatzwerte","Verrechnete Anschaffungskosten Verkauf Neuwagen und Vorführwagen","7030 - VAK Überführungen",{"$nulls":7},"7030","VAK Überführungen"]
["Einsatzwerte","Verrechnete Anschaffungskosten Verkauf Gebrauchtwagen","7100 - VAK Gebrauchtwagen regelbesteuert",{"$nulls":7},"7100","VAK Gebrauchtwagen regelbesteuert"]
["Einsatzwerte","Verrechnete Anschaffungskosten Verkauf Gebrauchtwagen","7101 - VAK Wertberichtigung Gebrauchtwagen regelbesteuert (das Konto wird derzeit nicht bebucht)",{"$nulls":7},"7101","VAK Wertberichtigung Gebrauchtwagen regelbesteuert (das Konto wird derzeit nicht bebucht)"]
["Einsatzwerte","Verrechnete Anschaffungskosten Verkauf Gebrauchtwagen","7110 - VAK Gebrauchtwagen differenzbesteuert",{"$nulls":7},"7110","VAK Gebrauchtwagen differenzbesteuert"]
["Einsatzwerte","Verrechnete Anschaffungskosten Verkauf Gebrauchtwagen","7111 - VAK Wertberichtigung Gebrauchtwagen differenzbesteuert (das Konto wird derzeit nicht bebucht)",{"$nulls":7},"7111","VAK Wertberichtigung Gebrauchtwagen differenzbesteuert (das Konto wird derzeit nicht bebucht)"]
["Einsatzwerte","Verrechnete Anschaffungskosten Verkauf Gebrauchtwagen","7120 - Werkstattleistungen / Instandsetzungsarbeiten",{"$nulls":7},"7120","Werkstattleistungen / Instandsetzungsarbeiten"]
["Einsatzwerte","Sonstige verrechnete Anschaffungskosten Verkauf Fahrzeuge","7200 - VAK Zulassungspauschale",{"$nulls":7},"7200","VAK Zulassungspauschale"]
["Einsatzwerte","Sonstige verrechnete Anschaffungskosten Verkauf Fahrzeuge","7210 - VAK Fahrzeuggarantie (NW / GW)",{"$nulls":7},"7210","VAK Fahrzeuggarantie (NW / GW)"]
["Einsatzwerte","Sonstige verrechnete Anschaffungskosten Verkauf Fahrzeuge","7220 - VAK Nachrüstungen / Aufbauten (NW / GW)",{"$nulls":7},"7220","VAK Nachrüstungen / Aufbauten (NW / GW)"]
["Einsatzwerte","Sonstige verrechnete Anschaffungskosten Verkauf Fahrzeuge","7240 - Übergabedurchsichten / Fertigmachen",{"$nulls":7},"7240","Übergabedurchsichten / Fertigmachen"]
["Einsatzwerte","Verrechnete Anschaffungskosten Verkauf Teile","7300 - VAK Teile über Theke",{"$nulls":7},"7300","VAK Teile über Theke"]
["Einsatzwerte","Verrechnete Anschaffungskosten Verkauf Teile","7301 - VAK Wertberichtigung Teile (das Konto wird derzeit nicht bebucht)",{"$nulls":7},"7301","VAK Wertberichtigung Teile (das Konto wird derzeit nicht bebucht)"]
["Einsatzwerte","Verrechnete Anschaffungskosten Verkauf Teile","7310 - VAK Teile durch die Werkstatt",{"$nulls":7},"7310","VAK Teile durch die Werkstatt"]
["Einsatzwerte","Verrechnete Anschaffungskosten Werkstatt","7400 - VAK Werkstatt",{"$nulls":7},"7400","VAK Werkstatt"]
["Einsatzwerte","Verrechnete Anschaffungskosten Werkstatt","7401 - VAK Wertberichtigung Werkstatt (das Konto wird derzeit nicht bebucht)",{"$nulls":7},"7401","VAK Wertberichtigung Werkstatt (das Konto wird derzeit nicht bebucht)"]
["Einsatzwerte","Verrechnete Anschaffungskosten Werkstatt","7420 - VAK Fremdleistungen",{"$nulls":7},"7420","VAK Fremdleistungen"]
["Einsatzwerte","Verrechnete Anschaffungskosten Werkstatt","7440 - VAK Schnelldienst",{"$nulls":7},"7440","VAK Schnelldienst"]
["Einsatzwerte","Verrechnete Anschaffungskosten weitere Bereiche","7500 - VAK weitere Bereiche",{"$nulls":7},"7500","VAK weitere Bereiche"]
["Einsatzwerte","Verrechnete Anschaffungskosten weitere Bereiche","7501 - VAK Wertberichtigung weitere Bereiche (das Konto wird derzeit nicht bebucht)",{"$nulls":7},"7501","VAK Wertberichtigung weitere Bereiche (das Konto wird derzeit nicht bebucht)"]
["Einsatzwerte","Verrechnete Anschaffungskosten weitere Bereiche","7510 - VAK Mietfahrzeuge",{"$nulls":7},{"$f":"MID(C1347,1,4)","v":"7510"},{"$f":"MID(C1347,8,255)","v":"VAK Mietfahrzeuge"}]
["Einsatzwerte","Verrechnete Anschaffungskosten weitere Bereiche","7511 - VAK Wertberichtigung Mietfahrzeuge (das Konto wird derzeit nicht bebucht)",{"$nulls":7},"7511","VAK Wertberichtigung Mietfahrzeuge (das Konto wird derzeit nicht bebucht)"]
["Einsatzwerte","Boni / Verkaufshilfen","7800 - Boni",{"$nulls":7},"7800","Boni"]
["Einsatzwerte","Boni / Verkaufshilfen","7850 - Verkaufshilfen",{"$nulls":7},"7850","Verkaufshilfen"]
["Umsatzerlöse","Erlöse Neuwagen und Vorführwagen","8000 - Erlöse Verkauf Neuwagen",{"$nulls":7},"8000","Erlöse Verkauf Neuwagen"]
["Umsatzerlöse","Erlöse Neuwagen und Vorführwagen","8001 - Nachlässe Verkauf Neuwagen",{"$nulls":7},"8001","Nachlässe Verkauf Neuwagen"]
["Umsatzerlöse","Erlöse Neuwagen und Vorführwagen","8010 - Erlöse Vorführwagen",{"$nulls":7},"8010","Erlöse Vorführwagen"]
["Umsatzerlöse","Erlöse Neuwagen und Vorführwagen","8011 - Nachlässe Vorführwagen",{"$nulls":7},"8011","Nachlässe Vorführwagen"]
["Umsatzerlöse","Erlöse Neuwagen und Vorführwagen","8020 - Erlöse Fahrzeuge Herstellerauslieferung",{"$nulls":7},"8020","Erlöse Fahrzeuge Herstellerauslieferung"]
["Umsatzerlöse","Erlöse Neuwagen und Vorführwagen","8021 - Nachlässe Fahrzeuge Herstellerauslieferung",{"$nulls":7},"8021","Nachlässe Fahrzeuge Herstellerauslieferung"]
["Umsatzerlöse","Erlöse Neuwagen und Vorführwagen","8030 - Erlöse Überführung",{"$nulls":7},"8030","Erlöse Überführung"]
["Umsatzerlöse","Erlöse Gebrauchtwagen","8100 - Erlöse Gebrauchtwagen regelbesteuert",{"$nulls":7},"8100","Erlöse Gebrauchtwagen regelbesteuert"]
["Umsatzerlöse","Erlöse Gebrauchtwagen","8110 - Erlöse Gebrauchtwagen differenzbesteuert",{"$nulls":7},"8110","Erlöse Gebrauchtwagen differenzbesteuert"]
["Umsatzerlöse","Erlöse Gebrauchtwagen","8111 - Mehrerlöse Differenzbesteuerung",{"$nulls":7},"8111","Mehrerlöse Differenzbesteuerung"]
["Umsatzerlöse","Erlöse Gebrauchtwagen","8112 - Mindererlöse Differenzbesteuerung",{"$nulls":7},"8112","Mindererlöse Differenzbesteuerung"]
["Umsatzerlöse","Sonstige Erlöse Verkauf Fahrzeuge (NW / GW)","8200 - Erlöse Zulassungspauschale",{"$nulls":7},"8200","Erlöse Zulassungspauschale"]
["Umsatzerlöse","Sonstige Erlöse Verkauf Fahrzeuge (NW / GW)","8210 - Erlöse aus Verkauf von Fahrzeuggarantie",{"$nulls":7},"8210","Erlöse aus Verkauf von Fahrzeuggarantie"]
["Umsatzerlöse","Sonstige Erlöse Verkauf Fahrzeuge (NW / GW)","8220 - Erlöse Nachrüstungen / Aufbauten",{"$nulls":7},"8220","Erlöse Nachrüstungen / Aufbauten"]
["Umsatzerlöse","Erlöse Teile","8300 - Erlöse aus dem Verkauf von Teilen über Theke",{"$nulls":7},"8300","Erlöse aus dem Verkauf von Teilen über Theke"]
["Umsatzerlöse","Erlöse Teile","8301 - Nachlässe auf den Verkauf von Teilen über Theke",{"$nulls":7},"8301","Nachlässe auf den Verkauf von Teilen über Theke"]
["Umsatzerlöse","Erlöse Teile","8310 - Erlöse aus dem Verkauf von Teilen durch die Werkstatt",{"$nulls":7},"8310","Erlöse aus dem Verkauf von Teilen durch die Werkstatt"]
["Umsatzerlöse","Erlöse Teile","8311 - Nachlässe auf den Verkauf von Teilen durch die Werkstatt",{"$nulls":7},"8311","Nachlässe auf den Verkauf von Teilen durch die Werkstatt"]
["Umsatzerlöse","Erlöse Werkstatt","8400 - Erlöse Werkstatt",{"$nulls":7},"8400","Erlöse Werkstatt"]
["Umsatzerlöse","Erlöse Werkstatt","8401 - Nachlässe auf Erlöse Werkstatt",{"$nulls":7},"8401","Nachlässe auf Erlöse Werkstatt"]
["Umsatzerlöse","Erlöse Werkstatt","8410 - Lohnerlöse",{"$nulls":7},"8410","Lohnerlöse"]
["Umsatzerlöse","Erlöse Werkstatt","8411 - Nachlässe Lohnerlöse",{"$nulls":7},"8411","Nachlässe Lohnerlöse"]
["Umsatzerlöse","Erlöse Werkstatt","8420 - Erlöse Fremdleistungen",{"$nulls":7},"8420","Erlöse Fremdleistungen"]
["Umsatzerlöse","Erlöse Werkstatt","8440 - Erlöse Schnelldienst",{"$nulls":7},"8440","Erlöse Schnelldienst"]
["Umsatzerlöse","Erlöse weitere Bereiche","8500 - Erlöse weitere Bereiche",{"$nulls":7},"8500","Erlöse weitere Bereiche"]
["Umsatzerlöse","Erlöse weitere Bereiche","8501 - Nachlässe weitere Bereiche",{"$nulls":7},"8501","Nachlässe weitere Bereiche"]
["Umsatzerlöse","Erlöse weitere Bereiche","8510 - Erlöse aus Verkauf von Mietfahrzeugen",{"$nulls":7},"8510","Erlöse aus Verkauf von Mietfahrzeugen"]
["Umsatzerlöse","Erlöse weitere Bereiche","8520 - Erlöse aus Vermietung von Mietfahrzeugen",{"$nulls":7},"8520","Erlöse aus Vermietung von Mietfahrzeugen"]
["Umsatzerlöse","Provisionen","8800 - Provisionen",{"$nulls":7},"8800","Provisionen"]
["Umsatzerlöse","Provisionen","8801 - Nachlässe Provisionen",{"$nulls":7},"8801","Nachlässe Provisionen"]
["Umsatzerlöse","Provisionen","8810 - Provisionen Agenturgeschäft (mit Vermittlungsumsatz)",{"$nulls":7},"8810","Provisionen Agenturgeschäft (mit Vermittlungsumsatz)"]
["Umsatzerlöse","Provisionen","8820 - Provisionen Agenturgeschäft (ohne Vermittlungsumsatz)",{"$nulls":7},"8820","Provisionen Agenturgeschäft (ohne Vermittlungsumsatz)"]
["Umsatzerlöse","Provisionen","8830 - Leistungsprovision",{"$nulls":7},"8830","Leistungsprovision"]
["Umsatzerlöse","Provisionen","8840 - Zusatzprovision",{"$nulls":7},"8840","Zusatzprovision"]
["Umsatzerlöse","Provisionen","8850 - Werkseitige Mengenrabatte",{"$nulls":7},"8850","Werkseitige Mengenrabatte"]
["Umsatzerlöse","Provisionen","8860 - Barzugaben Agenturgeschäft",{"$nulls":7},"8860","Barzugaben Agenturgeschäft"]
["Umsatzerlöse","Provisionen","8870 - Provisionen Leasing / Finanzierung / Versicherung",{"$nulls":7},"8870","Provisionen Leasing / Finanzierung / Versicherung"]
["Umsatzerlöse","Provisionen","8880 - Direktnachlässe für Leasing / Finanzierung / Versicherung",{"$nulls":7},"8880","Direktnachlässe für Leasing / Finanzierung / Versicherung"]
["Umsatzerlöse","Sonstige Erlöse","8900 - Sonstige Erlöse",{"$nulls":7},"8900","Sonstige Erlöse"]
["Umsatzerlöse","Sonstige Erlöse","8910 - Weiterberechnete Werbekosten",{"$nulls":7},"8910","Weiterberechnete Werbekosten"]
["Umsatzerlöse","Sonstige Erlöse","8912 - Weiterberechnung Umlagen Indirektkosten",{"$nulls":7},"8912","Weiterberechnung Umlagen Indirektkosten"]
["Umsatzerlöse","Sonstige Erlöse","8914 - Weiterberechnung Umlagen Strukturkosten",{"$nulls":7},"8914","Weiterberechnung Umlagen Strukturkosten"]
["Umsatzerlöse","Sonstige Erlöse","8916 - Geldwerter Vorteil (Kfz)",{"$nulls":7},"8916","Geldwerter Vorteil (Kfz)"]
["Umsatzerlöse","Sonstige Erlöse","8917 - Geldwerter Vorteil (sonstige)",{"$nulls":7},"8917","Geldwerter Vorteil (sonstige)"]
["Umsatzerlöse","Sonstige Erlöse","8919 - Andere Nebenerlöse",{"$nulls":7},"8919","Andere Nebenerlöse"]
["Umsatzerlöse","Sonstige Erlöse","8920 - Steuerfreie Umsätze gemäß § 4 Nr. 8 ff UStG",{"$nulls":7},"8920","Steuerfreie Umsätze gemäß § 4 Nr. 8 ff UStG"]
["Umsatzerlöse","Sonstige Erlöse","8924 - Steuerfreie Umsätze gemäß § 4 Nr. 1 a UStG",{"$nulls":7},"8924","Steuerfreie Umsätze gemäß § 4 Nr. 1 a UStG"]
["Umsatzerlöse","Sonstige Erlöse","8928 - Steuerfreie innergemeinschaftliche Lieferungen gemäß § 4 Nr. 1 b UStG",{"$nulls":7},"8928","Steuerfreie innergemeinschaftliche Lieferungen gemäß § 4 Nr. 1 b UStG"]
["Umsatzerlöse","Sonstige Erlöse","8929 - Reserviert D",{"$nulls":7},"8929","Reserviert D"]
["Umsatzerlöse","Sonstige Erlöse","8930 - Reserviert D",{"$nulls":7},"8930","Reserviert D"]
["Umsatzerlöse","Sonstige Erlöse","8931 - Reserviert D",{"$nulls":7},"8931","Reserviert D"]
["Umsatzerlöse","Sonstige Erlöse","8932 - Reserviert D",{"$nulls":7},"8932","Reserviert D"]
["Umsatzerlöse","Sonstige Erlöse","8933 - Reserviert D",{"$nulls":7},"8933","Reserviert D"]
["Umsatzerlöse","Sonstige Erlöse","8934 - Steuerfreie innergemeinschaftliche Lieferungen von Neufahrzeugen an Abnehmer ohne Umsatzsteuer-Identifikationsnummer",{"$nulls":7},"8934","Steuerfreie innergemeinschaftliche Lieferungen von Neufahrzeugen an Abnehmer ohne Umsatzsteuer-Identifikationsnummer"]
["Umsatzerlöse","Sonstige Erlöse","8935 - Reserviert D",{"$nulls":7},"8935","Reserviert D"]
["Umsatzerlöse","Sonstige Erlöse","8936 - Steuerfreie Umsätze Offshore usw.",{"$nulls":7},"8936","Steuerfreie Umsätze Offshore usw."]
["Umsatzerlöse","Sonstige Erlöse","8938 - Sonstige steuerfreie Umsätze gemäß § 4 Nr. 2 – 7 UStG",{"$nulls":7},"8938","Sonstige steuerfreie Umsätze gemäß § 4 Nr. 2 – 7 UStG"]
["Umsatzerlöse","Sonstige Erlöse","8940 - Erlöse aus im Inland steuerpflichtigen EG-Lieferungen 19 % USt",{"$nulls":7},"8940","Erlöse aus im Inland steuerpflichtigen EG-Lieferungen 19 % USt"]
["Umsatzerlöse","Sonstige Erlöse","8941 - Reserviert D",{"$nulls":7},"8941","Reserviert D"]
["Umsatzerlöse","Sonstige Erlöse","8942 - Erlöse aus im anderen EG-Land steuerpflichtigen Lieferungen",{"$nulls":7},"8942","Erlöse aus im anderen EG-Land steuerpflichtigen Lieferungen"]
["Umsatzerlöse","Sonstige Erlöse","8943 - Erlöse aus im Drittland steuerbaren Leistungen, im Inland nicht steuerbare Umsätze",{"$nulls":7},{"$f":"MID(C1411,1,4)","v":"8943"},{"$f":"MID(C1411,8,255)","v":"Erlöse aus im Drittland steuerbaren Leistungen, im Inland nicht steuerbare Umsätze"}]
["Umsatzerlöse","Sonstige Erlöse","8944 - Reserviert D",{"$nulls":7},"8944","Reserviert D"]
["Umsatzerlöse","Sonstige Erlöse","8945 - Erlöse aus im anderen EG-Land steuerpflichtigen sonstigen Leistungen, für die der Leistungsempfänger die Umsatzsteuer schuldet",{"$nulls":7},"8945","Erlöse aus im anderen EG-Land steuerpflichtigen sonstigen Leistungen, für die der Leistungsempfänger die Umsatzsteuer schuldet"]
["Umsatzerlöse","Sonstige Erlöse","8947 - Erlöse aus im anderen EG-Land steuerbaren Leistungen, im Inland nicht steuerbare Umsätze",{"$nulls":7},"8947","Erlöse aus im anderen EG-Land steuerbaren Leistungen, im Inland nicht steuerbare Umsätze"]
["Umsatzerlöse","Sonstige Erlöse","8952 - Erlöse aus Verkäufen Sachanlagevermögen (bei Buchverlust)",{"$nulls":7},"8952","Erlöse aus Verkäufen Sachanlagevermögen (bei Buchverlust)"]
["Umsatzerlöse","Sonstige Erlöse","8954 - Erlöse aus Verkäufen immaterieller Vermögensgegenstände (bei Buchverlust)",{"$nulls":7},"8954","Erlöse aus Verkäufen immaterieller Vermögensgegenstände (bei Buchverlust)"]
["Umsatzerlöse","Sonstige Erlöse","8955 - Erlöse aus Verkäufen Finanzanlagen (bei Buchverlust)",{"$nulls":7},"8955","Erlöse aus Verkäufen Finanzanlagen (bei Buchverlust)"]
["Umsatzerlöse","Sonstige Erlöse","8956 - Erlöse aus Verkäufen Finanzanlagen § 3 Nr. 40 EStG / § 8 b KStG (inländische Kap.Ges.) (bei Buchverlust)",{"$nulls":7},"8956","Erlöse aus Verkäufen Finanzanlagen § 3 Nr. 40 EStG / § 8 b KStG (inländische Kap.Ges.) (bei Buchverlust)"]
["Umsatzerlöse","Sonstige Erlöse","8958 - Erlöse aus Verkäufen Sachanlagevermögen (bei Buchgewinn)",{"$nulls":7},"8958","Erlöse aus Verkäufen Sachanlagevermögen (bei Buchgewinn)"]
["Umsatzerlöse","Sonstige Erlöse","8959 - Erstattete Vorsteuer anderer Länder",{"$nulls":7},"8959","Erstattete Vorsteuer anderer Länder"]
["Umsatzerlöse","Sonstige Erlöse","8960 - Erlöse aus Verkäufen immaterieller Vermögensgegenstände (bei Buchgewinn)",{"$nulls":7},"8960","Erlöse aus Verkäufen immaterieller Vermögensgegenstände (bei Buchgewinn)"]
["Umsatzerlöse","Sonstige Erlöse","8961 - Erlöse aus Verkäufen Finanzanlagen (bei Buchgewinn)",{"$nulls":7},"8961","Erlöse aus Verkäufen Finanzanlagen (bei Buchgewinn)"]
["Umsatzerlöse","Sonstige Erlöse","8962 - Erlöse aus Verkäufen Finanzanlagen § 3 Nr. 40 EStG / § 8 b KStG (inländische Kap.Ges.) (bei Buchgewinn)",{"$nulls":7},"8962","Erlöse aus Verkäufen Finanzanlagen § 3 Nr. 40 EStG / § 8 b KStG (inländische Kap.Ges.) (bei Buchgewinn)"]
["Umsatzerlöse","Sonstige Erlöse","8963 - Sonstige betriebliche Erträge von verbundenen Unternehmen",{"$nulls":7},"8963","Sonstige betriebliche Erträge von verbundenen Unternehmen"]
["Umsatzerlöse","Sonstige Erlöse","8964 - Unentgeltliche Wertabgaben",{"$nulls":7},"8964","Unentgeltliche Wertabgaben"]
["Umsatzerlöse","Sonstige Erlöse","8966 - Verwendung von Gegenständen für Zwecke außerhalb des Unternehmens ohne USt",{"$nulls":7},"8966","Verwendung von Gegenständen für Zwecke außerhalb des Unternehmens ohne USt"]
["Umsatzerlöse","Sonstige Erlöse","8967 - Verwendung von Gegenständen für Zwecke außerhalb des Unternehmens 19 % Ust (Kfz-Nutzung)",{"$nulls":7},"8967","Verwendung von Gegenständen für Zwecke außerhalb des Unternehmens 19 % Ust (Kfz-Nutzung)"]
["Umsatzerlöse","Sonstige Erlöse","8968 - Verwendung von Gegenständen für Zwecke außerhalb des Unternehmens 19 % USt",{"$nulls":7},"8968","Verwendung von Gegenständen für Zwecke außerhalb des Unternehmens 19 % USt"]
["Umsatzerlöse","Sonstige Erlöse","8969 - Reserviert D",{"$nulls":7},"8969","Reserviert D"]
["Umsatzerlöse","Sonstige Erlöse","8970 - Entnahme durch den Unternehmer für Zwecke außerhalb des Unternehmens (Waren) 19 % UST",{"$nulls":7},"8970","Entnahme durch den Unternehmer für Zwecke außerhalb des Unternehmens (Waren) 19 % UST"]
["Umsatzerlöse","Sonstige Erlöse","8975 - Entnahme durch den Unternehmer für Zwecke außerhalb des Unternehmens (Waren) ohne Ust",{"$nulls":7},"8975","Entnahme durch den Unternehmer für Zwecke außerhalb des Unternehmens (Waren) ohne Ust"]
["Umsatzerlöse","Sonstige Erlöse","8980 - Reserviert D",{"$nulls":7},"8980","Reserviert D"]
["Umsatzerlöse","Sonstige Erlöse","8981 - Reserviert D",{"$nulls":7},"8981","Reserviert D"]
["Umsatzerlöse","Sonstige Erlöse","8982 - Erlöse voller Steuersatz",{"$nulls":7},"8982","Erlöse voller Steuersatz"]
["Umsatzerlöse","Sonstige Erlöse","8983 - Erlöse ermäßigter Steuersatz",{"$nulls":7},"8983","Erlöse ermäßigter Steuersatz"]
["Umsatzerlöse","Sonstige Erlöse","8984 - Erlöse Altteile",{"$nulls":7},"8984","Erlöse Altteile"]
["Umsatzerlöse","Sonstige Erlöse","8985 - Erlöse steuerfrei",{"$nulls":7},"8985","Erlöse steuerfrei"]
["Umsatzerlöse","Sonstige Erlöse","8990 - Bestandsveränderungen in Arbeit befindliche Aufträge",{"$nulls":7},"8990","Bestandsveränderungen in Arbeit befindliche Aufträge"]
["Umsatzerlöse","Sonstige Erlöse","8994 - Andere aktivierte Eigenleistungen",{"$nulls":7},"8994","Andere aktivierte Eigenleistungen"]
["Umsatzerlöse","Sonstige Erlöse","8996 - Aktivierte Eigenleistungen zur Erstellung von selbst geschaffenen immateriellen Vermögensgegenständen",{"$nulls":7},"8996","Aktivierte Eigenleistungen zur Erstellung von selbst geschaffenen immateriellen Vermögensgegenständen"]
["Umsatzerlöse","Sonstige Erlöse","8999 - Erlös-/Differenzsammelkonto",{"$nulls":7},"8999","Erlös-/Differenzsammelkonto"]
["Kontenklasse 9 Statistische Konten","Saldenvorträge","9000 - Saldenvorträge, Sachkonten",{"$nulls":7},"9000","Saldenvorträge, Sachkonten"]
["Kontenklasse 9 Statistische Konten","Saldenvorträge","9001 - Saldenvorträge, Sachkonten",{"$nulls":7},"9001","Saldenvorträge, Sachkonten"]
["Kontenklasse 9 Statistische Konten","Saldenvorträge","9008 - Saldenvorträge, Debitoren",{"$nulls":7},"9008","Saldenvorträge, Debitoren"]
["Kontenklasse 9 Statistische Konten","Saldenvorträge","9009 - Saldenvorträge, Kreditoren",{"$nulls":7},"9009","Saldenvorträge, Kreditoren"]
["Kontenklasse 9 Statistische Konten","Saldenvorträge","9081 - Offene Posten aus 2011",{"$nulls":7},"9081","Offene Posten aus 2011"]
["Kontenklasse 9 Statistische Konten","Saldenvorträge","9082 - Offene Posten aus 2012",{"$nulls":7},"9082","Offene Posten aus 2012"]
["Kontenklasse 9 Statistische Konten","Saldenvorträge","9083 - Offene Posten aus 2013",{"$nulls":7},"9083","Offene Posten aus 2013"]
["Kontenklasse 9 Statistische Konten","Saldenvorträge","9090 - Summenvortragskonto",{"$nulls":7},"9090","Summenvortragskonto"]
["Kontenklasse 9 Statistische Konten","Bestand Fahrzeuge","9100 - Jahresabsatzziel",{"$nulls":7},"9100","Jahresabsatzziel"]
["Kontenklasse 9 Statistische Konten","Bestand Fahrzeuge","9101 - Bestand in Stück",{"$nulls":7},"9101","Bestand in Stück"]
["Kontenklasse 9 Statistische Konten","Bestand Fahrzeuge","9102 - Bis 30 Standtage in Stück",{"$nulls":7},"9102","Bis 30 Standtage in Stück"]
["Kontenklasse 9 Statistische Konten","Bestand Fahrzeuge","9103 - 31 – 60 Standtage in Stück",{"$nulls":7},"9103","31 – 60 Standtage in Stück"]
["Kontenklasse 9 Statistische Konten","Bestand Fahrzeuge","9104 - 61 – 90 Standtage in Stück",{"$nulls":7},"9104","61 – 90 Standtage in Stück"]
["Kontenklasse 9 Statistische Konten","Bestand Fahrzeuge","9105 - 91 – 180 Standtage in Stück",{"$nulls":7},"9105","91 – 180 Standtage in Stück"]
["Kontenklasse 9 Statistische Konten","Bestand Fahrzeuge","9106 - 181 – 360 Standtage in Stück (Risikobestand)",{"$nulls":7},"9106","181 – 360 Standtage in Stück (Risikobestand)"]
["Kontenklasse 9 Statistische Konten","Bestand Fahrzeuge","9107 - Über 360 Standtage in Stück (Risikobestand)",{"$nulls":7},"9107","Über 360 Standtage in Stück (Risikobestand)"]
["Kontenklasse 9 Statistische Konten","Bestand Fahrzeuge","9108 - Fahrzeugalter bis 1 Jahr in Stück",{"$nulls":7},"9108","Fahrzeugalter bis 1 Jahr in Stück"]
["Kontenklasse 9 Statistische Konten","Bestand Fahrzeuge","9109 - Fahrzeugalter über 1 – 2 Jahre in Stück",{"$nulls":7},"9109","Fahrzeugalter über 1 – 2 Jahre in Stück"]
["Kontenklasse 9 Statistische Konten","Bestand Fahrzeuge","9110 - Fahrzeugalter über 2 Jahre in Stück",{"$nulls":7},"9110","Fahrzeugalter über 2 Jahre in Stück"]
["Kontenklasse 9 Statistische Konten","Bestand Fahrzeuge","9111 - Bestand in €",{"$nulls":7},"9111","Bestand in €"]
["Kontenklasse 9 Statistische Konten","Bestand Fahrzeuge","9112 - Bis 30 Standtage in €",{"$nulls":7},"9112","Bis 30 Standtage in €"]
["Kontenklasse 9 Statistische Konten","Bestand Fahrzeuge","9113 - 31 – 60 Standtage in €",{"$nulls":7},"9113","31 – 60 Standtage in €"]
["Kontenklasse 9 Statistische Konten","Bestand Fahrzeuge","9114 - 61 – 90 Standtage in €",{"$nulls":7},"9114","61 – 90 Standtage in €"]
["Kontenklasse 9 Statistische Konten","Bestand Fahrzeuge","9115 - 91 – 180 Standtage in €",{"$nulls":7},"9115","91 – 180 Standtage in €"]
["Kontenklasse 9 Statistische Konten","Bestand Fahrzeuge","9116 - 181 – 360 Standtage in € (Risikobestand)",{"$nulls":7},"9116","181 – 360 Standtage in € (Risikobestand)"]
["Kontenklasse 9 Statistische Konten","Bestand Fahrzeuge","9117 - Über 360 Standtage in € (Risikobestand)",{"$nulls":7},"9117","Über 360 Standtage in € (Risikobestand)"]
["Kontenklasse 9 Statistische Konten","Bestand Fahrzeuge","9118 - Fahrzeugalter bis 1 Jahr in €",{"$nulls":7},"9118","Fahrzeugalter bis 1 Jahr in €"]
["Kontenklasse 9 Statistische Konten","Bestand Fahrzeuge","9119 - Fahrzeugalter über 1 – 2 Jahre in €",{"$nulls":7},"9119","Fahrzeugalter über 1 – 2 Jahre in €"]
["Kontenklasse 9 Statistische Konten","Bestand Fahrzeuge","9120 - Fahrzeugalter über 2 Jahre in €",{"$nulls":7},"9120","Fahrzeugalter über 2 Jahre in €"]
["Kontenklasse 9 Statistische Konten","Bestand Fahrzeuge","9121 - Anzahl Standtage",{"$nulls":7},"9121","Anzahl Standtage"]
["Kontenklasse 9 Statistische Konten","Verkaufte Fahrzeuge","9130 - Anzahl fakturierte Fahrzeuge",{"$nulls":7},"9130","Anzahl fakturierte Fahrzeuge"]
["Kontenklasse 9 Statistische Konten","Verkaufte Fahrzeuge","9131 - Auftragseingänge in Stück",{"$nulls":7},"9131","Auftragseingänge in Stück"]
["Kontenklasse 9 Statistische Konten","After Sales","9140 - Werkstattdurchgänge",{"$nulls":7},"9140","Werkstattdurchgänge"]
["Kontenklasse 9 Statistische Konten","After Sales","9141 - Anwesenheitsstunden",{"$nulls":7},{"$f":"MID(C1475,1,4)","v":"9141"},{"$f":"MID(C1475,8,255)","v":"Anwesenheitsstunden"}]
["Kontenklasse 9 Statistische Konten","After Sales","9142 - Geleistete Stunden",{"$nulls":7},"9142","Geleistete Stunden"]
["Kontenklasse 9 Statistische Konten","After Sales","9143 - Fakturierte Stunden intern",{"$nulls":7},"9143","Fakturierte Stunden intern"]
["Kontenklasse 9 Statistische Konten","After Sales","9144 - Fakturierte Stunden extern",{"$nulls":7},"9144","Fakturierte Stunden extern"]
["Kontenklasse 9 Statistische Konten","After Sales","9145 - Unproduktive Stunden",{"$nulls":7},"9145","Unproduktive Stunden"]
["Kontenklasse 9 Statistische Konten","After Sales","9146 - Anzahl bezahlter Stunden",{"$nulls":7},"9146","Anzahl bezahlter Stunden"]
["Kontenklasse 9 Statistische Konten","After Sales","9147 - Stundenverrechnungssatz",{"$nulls":7},"9147","Stundenverrechnungssatz"]
["Kontenklasse 9 Statistische Konten","After Sales","9154 - Teilebestand in €",{"$nulls":7},"9154","Teilebestand in €"]
["Kontenklasse 9 Statistische Konten","After Sales","9155 - Bis 30 Tage Lagerdauer in €",{"$nulls":7},"9155","Bis 30 Tage Lagerdauer in €"]
["Kontenklasse 9 Statistische Konten","After Sales","9156 - 31 – 60 Tage Lagerdauer in €",{"$nulls":7},"9156","31 – 60 Tage Lagerdauer in €"]
["Kontenklasse 9 Statistische Konten","After Sales","9157 - 61 – 90 Tage Lagerdauer in €",{"$nulls":7},"9157","61 – 90 Tage Lagerdauer in €"]
["Kontenklasse 9 Statistische Konten","After Sales","9158 - 91 – 180 Tage Lagerdauer in €",{"$nulls":7},"9158","91 – 180 Tage Lagerdauer in €"]
["Kontenklasse 9 Statistische Konten","After Sales","9159 - 181 – 360 Tage Lagerdauer in € (Risikobestand)",{"$nulls":7},"9159","181 – 360 Tage Lagerdauer in € (Risikobestand)"]
["Kontenklasse 9 Statistische Konten","After Sales","9160 - Über 360 Tage Lagerdauer in € (Risikobestand)",{"$nulls":7},"9160","Über 360 Tage Lagerdauer in € (Risikobestand)"]
["Kontenklasse 9 Statistische Konten","After Sales","9161 - Stammkundenfahrzeuge (13 Monate)",{"$nulls":7},"9161","Stammkundenfahrzeuge (13 Monate)"]
["Kontenklasse 9 Statistische Konten","After Sales","9162 - Units in Operation",{"$nulls":7},"9162","Units in Operation"]
["Kontenklasse 9 Statistische Konten","Mitarbeiter","9170 - Gesamt",{"$nulls":7},"9170","Gesamt"]
["Kontenklasse 9 Statistische Konten","Mitarbeiter","9171 - Geschäftsführer",{"$nulls":7},"9171","Geschäftsführer"]
["Kontenklasse 9 Statistische Konten","Mitarbeiter","9172 - Sonstige Mitarbeiter",{"$nulls":7},"9172","Sonstige Mitarbeiter"]
["Kontenklasse 9 Statistische Konten","Mitarbeiter","9173 - Aushilfen",{"$nulls":7},"9173","Aushilfen"]
["Kontenklasse 9 Statistische Konten","Mitarbeiter","9174 - Azubis",{"$nulls":7},"9174","Azubis"]
["Kontenklasse 9 Statistische Konten","Mitarbeiter","9175 - Serviceberater",{"$nulls":7},"9175","Serviceberater"]
["Kontenklasse 9 Statistische Konten","Mitarbeiter","9176 - Verkäufer",{"$nulls":7},"9176","Verkäufer"]
["Kontenklasse 9 Statistische Konten","Mitarbeiter","9177 - Produktive Kräfte",{"$nulls":7},"9177","Produktive Kräfte"]
["Kontenklasse 9 Statistische Konten","Mitarbeiter","9178 - Abteilungsleiter",{"$nulls":7},"9178","Abteilungsleiter"]
["Kontenklasse 9 Statistische Konten","Mitarbeiter","9179 - Disponent",{"$nulls":7},"9179","Disponent"]
["Kontenklasse 9 Statistische Konten","Finanzdaten","9180 - Kontokorrent-Limit gesamt € (Summe aller dem Unternehmen zur Verfügung stehenden KK-Linien)",{"$nulls":7},"9180","Kontokorrent-Limit gesamt € (Summe aller dem Unternehmen zur Verfügung stehenden KK-Linien)"]
["Kontenklasse 9 Statistische Konten","Finanzdaten","9181 - Forderungsbestand in €",{"$nulls":7},"9181","Forderungsbestand in €"]
["Kontenklasse 9 Statistische Konten","Finanzdaten","9182 - Forderungsbestand in Tagen",{"$nulls":7},"9182","Forderungsbestand in Tagen"]
["Kontenklasse 9 Statistische Konten","Finanzdaten","9183 - Forderungen bis 30 Tage fällig",{"$nulls":7},"9183","Forderungen bis 30 Tage fällig"]
["Kontenklasse 9 Statistische Konten","Finanzdaten","9184 - Forderungen 31 – 60 Tage fällig",{"$nulls":7},"9184","Forderungen 31 – 60 Tage fällig"]
["Kontenklasse 9 Statistische Konten","Finanzdaten","9185 - Forderungen 61 – 90 Tage fällig",{"$nulls":7},"9185","Forderungen 61 – 90 Tage fällig"]
["Kontenklasse 9 Statistische Konten","Finanzdaten","9186 - Forderungen ab 91 Tage fällig",{"$nulls":7},"9186","Forderungen ab 91 Tage fällig"]
["Kontenklasse 9 Statistische Konten","Statistische Gegenkonten","9190 - Gegenkonto zu statistischen Währungskonten",{"$nulls":7},"9190","Gegenkonto zu statistischen Währungskonten"]
["Kontenklasse 9 Statistische Konten","Statistische Gegenkonten","9191 - Gegenkonto zu statistischen Mengenkonten",{"$nulls":7},"9191","Gegenkonto zu statistischen Mengenkonten"]
["Kontenklasse 9 Statistische Konten","Statistische Gegenkonten","9200 - Beschäftige Personen",{"$nulls":7},"9200","Beschäftige Personen"]
["Kontenklasse 9 Statistische Konten","Statistische Gegenkonten","9209 - Gegenkonto zu 9200",{"$nulls":7},"9209","Gegenkonto zu 9200"]
["Kontenklasse 9 Statistische Konten","Statistische Gegenkonten","9210 - Produktive Löhne",{"$nulls":7},"9210","Produktive Löhne"]
["Kontenklasse 9 Statistische Konten","Statistische Gegenkonten","9219 - Gegenkonto zu 9210",{"$nulls":7},"9219","Gegenkonto zu 9210"]
["Kontenklasse 9 Statistische Konten","Passive Rechnungsabgrenzung","9230 - Baukostenzuschüsse",{"$nulls":7},"9230","Baukostenzuschüsse"]
["Kontenklasse 9 Statistische Konten","Passive Rechnungsabgrenzung","9232 - Investitionszulagen",{"$nulls":7},"9232","Investitionszulagen"]
["Kontenklasse 9 Statistische Konten","Passive Rechnungsabgrenzung","9234 - Investitionszuschüsse",{"$nulls":7},"9234","Investitionszuschüsse"]
["Kontenklasse 9 Statistische Konten","Passive Rechnungsabgrenzung","9239 - Gegenkonto zu 9230 bis 9238",{"$nulls":7},"9239","Gegenkonto zu 9230 bis 9238"]
["Kontenklasse 9 Statistische Konten","Passive Rechnungsabgrenzung","9240 - Investitionsverbindlichkeiten bei den Leistungsverbindlichkeiten",{"$nulls":7},"9240","Investitionsverbindlichkeiten bei den Leistungsverbindlichkeiten"]
["Kontenklasse 9 Statistische Konten","Passive Rechnungsabgrenzung","9241 - Investitionsverbindlichkeiten aus Sachanlagenkäufen bei Leistungsverbindlichkeiten",{"$nulls":7},"9241","Investitionsverbindlichkeiten aus Sachanlagenkäufen bei Leistungsverbindlichkeiten"]
["Kontenklasse 9 Statistische Konten","Passive Rechnungsabgrenzung","9242 - Investitionsverbindlichkeiten aus Käufen von immateriellen Vermögensgegenstände bei Leistungsverbindlichkeiten",{"$nulls":7},"9242","Investitionsverbindlichkeiten aus Käufen von immateriellen Vermögensgegenstände bei Leistungsverbindlichkeiten"]
["Kontenklasse 9 Statistische Konten","Passive Rechnungsabgrenzung","9243 - Investitionsverbindlichkeiten aus Käufen von Finanzanlagen bei Leistungsverbindlichkeiten",{"$nulls":7},"9243","Investitionsverbindlichkeiten aus Käufen von Finanzanlagen bei Leistungsverbindlichkeiten"]
["Kontenklasse 9 Statistische Konten","Passive Rechnungsabgrenzung","9244 - Gegenkonto zu 9240-9243",{"$nulls":7},"9244","Gegenkonto zu 9240-9243"]
["Kontenklasse 9 Statistische Konten","Passive Rechnungsabgrenzung","9245 - Forderungen aus Sachanlageverkäufen bei sonstigen Vermögensgegenständen",{"$nulls":7},"9245","Forderungen aus Sachanlageverkäufen bei sonstigen Vermögensgegenständen"]
["Kontenklasse 9 Statistische Konten","Passive Rechnungsabgrenzung","9246 - Forderungen aus Verkäufen immaterielle Vermögensgegenständen bei sonstigen Vermögensgegenständen",{"$nulls":7},"9246","Forderungen aus Verkäufen immaterielle Vermögensgegenständen bei sonstigen Vermögensgegenständen"]
["Kontenklasse 9 Statistische Konten","Passive Rechnungsabgrenzung","9247 - Forderungen aus Finanzanlagen bei sonstigen Vermögensgegenständen",{"$nulls":7},"9247","Forderungen aus Finanzanlagen bei sonstigen Vermögensgegenständen"]
["Kontenklasse 9 Statistische Konten","Passive Rechnungsabgrenzung","9249 - Gegenkonto zu 9245-9247",{"$nulls":7},"9249","Gegenkonto zu 9245-9247"]
["Kontenklasse 9 Statistische Konten","Eigenkapitalersetzende Gesellschafterdarlehen","9250 - Eigenkapitalersetzende Gesellschafterdarlehen",{"$nulls":7},"9250","Eigenkapitalersetzende Gesellschafterdarlehen"]
["Kontenklasse 9 Statistische Konten","Eigenkapitalersetzende Gesellschafterdarlehen","9255 - Ungesicherte Gesellschafterdarlehen mit Restlaufzeit größer 5 Jahre",{"$nulls":7},"9255","Ungesicherte Gesellschafterdarlehen mit Restlaufzeit größer 5 Jahre"]
["Kontenklasse 9 Statistische Konten","Eigenkapitalersetzende Gesellschafterdarlehen","9259 - Gegenkonto zu 9250 und 9255",{"$nulls":7},"9259","Gegenkonto zu 9250 und 9255"]
["Kontenklasse 9 Statistische Konten","Aufgliederung der Rückstellungen","9260 - Kurzfristige Rückstellungen",{"$nulls":7},"9260","Kurzfristige Rückstellungen"]
["Kontenklasse 9 Statistische Konten","Aufgliederung der Rückstellungen","9262 - Mittelfristige Rückstellungen",{"$nulls":7},"9262","Mittelfristige Rückstellungen"]
["Kontenklasse 9 Statistische Konten","Aufgliederung der Rückstellungen","9264 - Langfristige Rückstellungen, außer Pensionen",{"$nulls":7},"9264","Langfristige Rückstellungen, außer Pensionen"]
["Kontenklasse 9 Statistische Konten","Aufgliederung der Rückstellungen","9269 - Gegenkonto zu 9260-9268",{"$nulls":7},"9269","Gegenkonto zu 9260-9268"]
["Kontenklasse 9 Statistische Konten","Statistische Konten für in der Bilanz auszuweisende Haftungsverhältnisse","9270 - Gegenkonto zu 9271-9279 (Soll-Buchung)",{"$nulls":7},"9270","Gegenkonto zu 9271-9279 (Soll-Buchung)"]
["Kontenklasse 9 Statistische Konten","Statistische Konten für in der Bilanz auszuweisende Haftungsverhältnisse","9271 - Verbindlichkeiten aus der Begebung und Übertragung von Wechseln",{"$nulls":7},"9271","Verbindlichkeiten aus der Begebung und Übertragung von Wechseln"]
["Kontenklasse 9 Statistische Konten","Statistische Konten für in der Bilanz auszuweisende Haftungsverhältnisse","9272 - Verbindlichkeiten aus der Begebung und Übertragung von Wechseln gegenüber verbundenen Unternehmen",{"$nulls":7},"9272","Verbindlichkeiten aus der Begebung und Übertragung von Wechseln gegenüber verbundenen Unternehmen"]
["Kontenklasse 9 Statistische Konten","Statistische Konten für in der Bilanz auszuweisende Haftungsverhältnisse","9273 - Verbindlichkeiten aus Bürgschaften, Wechsel- und Scheckbürgschaften",{"$nulls":7},"9273","Verbindlichkeiten aus Bürgschaften, Wechsel- und Scheckbürgschaften"]
["Kontenklasse 9 Statistische Konten","Statistische Konten für in der Bilanz auszuweisende Haftungsverhältnisse","9274 - Verbindlichkeiten aus Bürgschaften, Wechsel- und Scheckbürgschaften gegenüber verbundenen Unternehmen",{"$nulls":7},"9274","Verbindlichkeiten aus Bürgschaften, Wechsel- und Scheckbürgschaften gegenüber verbundenen Unternehmen"]
["Kontenklasse 9 Statistische Konten","Statistische Konten für in der Bilanz auszuweisende Haftungsverhältnisse","9275 - Verbindlichkeiten aus Gewährleistungsverträgen",{"$nulls":7},{"$f":"MID(C1539,1,4)","v":"9275"},{"$f":"MID(C1539,8,255)","v":"Verbindlichkeiten aus Gewährleistungsverträgen"}]
["Kontenklasse 9 Statistische Konten","Statistische Konten für in der Bilanz auszuweisende Haftungsverhältnisse","9276 - Verbindlichkeiten aus Gewährleistungsverträgen gegenüber verbundenen Unternehmen",{"$nulls":7},"9276","Verbindlichkeiten aus Gewährleistungsverträgen gegenüber verbundenen Unternehmen"]
["Kontenklasse 9 Statistische Konten","Statistische Konten für in der Bilanz auszuweisende Haftungsverhältnisse","9277 - Haftung aus der Bestellung von Sicherheiten für fremde Verbindlichkeiten",{"$nulls":7},"9277","Haftung aus der Bestellung von Sicherheiten für fremde Verbindlichkeiten"]
["Kontenklasse 9 Statistische Konten","Statistische Konten für in der Bilanz auszuweisende Haftungsverhältnisse","9278 - Haftung aus der Bestellung von Sicherheiten für fremde Verbindlichkeiten gegenüber verbundenen Unternehmen",{"$nulls":7},"9278","Haftung aus der Bestellung von Sicherheiten für fremde Verbindlichkeiten gegenüber verbundenen Unternehmen"]
["Kontenklasse 9 Statistische Konten","Statistische Konten für in der Bilanz auszuweisende Haftungsverhältnisse","9279 - Verpflichtungen aus Treuhandvermögen",{"$nulls":7},"9279","Verpflichtungen aus Treuhandvermögen"]
["Kontenklasse 9 Statistische Konten","Statistische Konten für die im Anhang anzugebenden sonstigen finanziellen Verpflichtungen","9280 - Gegenkonto zu 9281-9284",{"$nulls":7},"9280","Gegenkonto zu 9281-9284"]
["Kontenklasse 9 Statistische Konten","Statistische Konten für die im Anhang anzugebenden sonstigen finanziellen Verpflichtungen","9281 - Verpflichtungen aus Miet- und Leasingverträgen",{"$nulls":7},"9281","Verpflichtungen aus Miet- und Leasingverträgen"]
["Kontenklasse 9 Statistische Konten","Statistische Konten für die im Anhang anzugebenden sonstigen finanziellen Verpflichtungen","9282 - Verpflichtungen aus Miet- und Leasingverträgen gegenüber verbundenen Unternehmen",{"$nulls":7},"9282","Verpflichtungen aus Miet- und Leasingverträgen gegenüber verbundenen Unternehmen"]
["Kontenklasse 9 Statistische Konten","Statistische Konten für die im Anhang anzugebenden sonstigen finanziellen Verpflichtungen","9283 - Andere Verpflichtungen gemäß § 285 Nr. 3a HGB",{"$nulls":7},"9283","Andere Verpflichtungen gemäß § 285 Nr. 3a HGB"]
["Kontenklasse 9 Statistische Konten","Statistische Konten für die im Anhang anzugebenden sonstigen finanziellen Verpflichtungen","9284 - Andere Verpflichtungen gemäß § 285 Nr. 3aHGB gegenüber verbundenen Unternehmen",{"$nulls":7},"9284","Andere Verpflichtungen gemäß § 285 Nr. 3aHGB gegenüber verbundenen Unternehmen"]
["Kontenklasse 9 Statistische Konten","Statistische Konten für die im Anhang anzugebenden sonstigen finanziellen Verpflichtungen","9285 - Belegt DATEV",{"$nulls":7},"9285","Belegt DATEV"]
["Kontenklasse 9 Statistische Konten","Statistische Konten für die im Anhang anzugebenden sonstigen finanziellen Verpflichtungen","9286 - Belegt DATEV",{"$nulls":7},"9286","Belegt DATEV"]
["Kontenklasse 9 Statistische Konten","Statistische Konten für die im Anhang anzugebenden sonstigen finanziellen Verpflichtungen","9295 - Einlagen stiller Gesellschafter",{"$nulls":7},"9295","Einlagen stiller Gesellschafter"]
["Kontenklasse 9 Statistische Konten","Statistische Konten für die im Anhang anzugebenden sonstigen finanziellen Verpflichtungen","9297 - Steuerrechtlicher Ausgleichsposten",{"$nulls":7},"9297","Steuerrechtlicher Ausgleichsposten"]
["Kontenklasse 9 Statistische Konten","Privat Teilhafter (für Verrechnung Gesellschafterdarlehen mit Eigenkapitalcharakter -- Konto 9840-9849)","9401 - Privatentnahmen allgemein TH 2",{"$nulls":7},"9401","Privatentnahmen allgemein TH 2"]
["Kontenklasse 9 Statistische Konten","Privat Teilhafter (für Verrechnung Gesellschafterdarlehen mit Eigenkapitalcharakter -- Konto 9840-9849)","9402 - Privatentnahmen allgemein TH 3",{"$nulls":7},"9402","Privatentnahmen allgemein TH 3"]
["Kontenklasse 9 Statistische Konten","Privat Teilhafter (für Verrechnung Gesellschafterdarlehen mit Eigenkapitalcharakter -- Konto 9840-9849)","9403 - Privatentnahmen allgemein TH 4",{"$nulls":7},"9403","Privatentnahmen allgemein TH 4"]
["Kontenklasse 9 Statistische Konten","Privat Teilhafter (für Verrechnung Gesellschafterdarlehen mit Eigenkapitalcharakter -- Konto 9840-9849)","9404 - Privatentnahmen allgemein TH 5",{"$nulls":7},"9404","Privatentnahmen allgemein TH 5"]
["Kontenklasse 9 Statistische Konten","Privat Teilhafter (für Verrechnung Gesellschafterdarlehen mit Eigenkapitalcharakter -- Konto 9840-9849)","9405 - Privatentnahmen allgemein TH 6",{"$nulls":7},"9405","Privatentnahmen allgemein TH 6"]
["Kontenklasse 9 Statistische Konten","Privat Teilhafter (für Verrechnung Gesellschafterdarlehen mit Eigenkapitalcharakter -- Konto 9840-9849)","9406 - Privatentnahmen allgemein TH 7",{"$nulls":7},"9406","Privatentnahmen allgemein TH 7"]
["Kontenklasse 9 Statistische Konten","Privat Teilhafter (für Verrechnung Gesellschafterdarlehen mit Eigenkapitalcharakter -- Konto 9840-9849)","9407 - Privatentnahmen allgemein TH 8",{"$nulls":7},"9407","Privatentnahmen allgemein TH 8"]
["Kontenklasse 9 Statistische Konten","Privat Teilhafter (für Verrechnung Gesellschafterdarlehen mit Eigenkapitalcharakter -- Konto 9840-9849)","9408 - Privatentnahmen allgemein TH 9",{"$nulls":7},"9408","Privatentnahmen allgemein TH 9"]
["Kontenklasse 9 Statistische Konten","Privat Teilhafter (für Verrechnung Gesellschafterdarlehen mit Eigenkapitalcharakter -- Konto 9840-9849)","9409 - Privatentnahmen allgemein TH 10",{"$nulls":7},"9409","Privatentnahmen allgemein TH 10"]
["Kontenklasse 9 Statistische Konten","Privat Teilhafter (für Verrechnung Gesellschafterdarlehen mit Eigenkapitalcharakter -- Konto 9840-9849)","9410 - Privatsteuern TH 1",{"$nulls":7},"9410","Privatsteuern TH 1"]
["Kontenklasse 9 Statistische Konten","Privat Teilhafter (für Verrechnung Gesellschafterdarlehen mit Eigenkapitalcharakter -- Konto 9840-9849)","9411 - Privatsteuern TH 2",{"$nulls":7},"9411","Privatsteuern TH 2"]
["Kontenklasse 9 Statistische Konten","Privat Teilhafter (für Verrechnung Gesellschafterdarlehen mit Eigenkapitalcharakter -- Konto 9840-9849)","9412 - Privatsteuern TH 3",{"$nulls":7},"9412","Privatsteuern TH 3"]
["Kontenklasse 9 Statistische Konten","Privat Teilhafter (für Verrechnung Gesellschafterdarlehen mit Eigenkapitalcharakter -- Konto 9840-9849)","9413 - Privatsteuern TH 4",{"$nulls":7},"9413","Privatsteuern TH 4"]
["Kontenklasse 9 Statistische Konten","Privat Teilhafter (für Verrechnung Gesellschafterdarlehen mit Eigenkapitalcharakter -- Konto 9840-9849)","9414 - Privatsteuern TH 5",{"$nulls":7},"9414","Privatsteuern TH 5"]
["Kontenklasse 9 Statistische Konten","Privat Teilhafter (für Verrechnung Gesellschafterdarlehen mit Eigenkapitalcharakter -- Konto 9840-9849)","9415 - Privatsteuern TH 6",{"$nulls":7},"9415","Privatsteuern TH 6"]
["Kontenklasse 9 Statistische Konten","Privat Teilhafter (für Verrechnung Gesellschafterdarlehen mit Eigenkapitalcharakter -- Konto 9840-9849)","9416 - Privatsteuern TH 7",{"$nulls":7},"9416","Privatsteuern TH 7"]
["Kontenklasse 9 Statistische Konten","Privat Teilhafter (für Verrechnung Gesellschafterdarlehen mit Eigenkapitalcharakter -- Konto 9840-9849)","9417 - Privatsteuern TH 8",{"$nulls":7},"9417","Privatsteuern TH 8"]
["Kontenklasse 9 Statistische Konten","Privat Teilhafter (für Verrechnung Gesellschafterdarlehen mit Eigenkapitalcharakter -- Konto 9840-9849)","9418 - Privatsteuern TH 9",{"$nulls":7},"9418","Privatsteuern TH 9"]
["Kontenklasse 9 Statistische Konten","Privat Teilhafter (für Verrechnung Gesellschafterdarlehen mit Eigenkapitalcharakter -- Konto 9840-9849)","9419 - Privatsteuern TH 10",{"$nulls":7},"9419","Privatsteuern TH 10"]
["Kontenklasse 9 Statistische Konten","Privat Teilhafter (für Verrechnung Gesellschafterdarlehen mit Eigenkapitalcharakter -- Konto 9840-9849)","9420 - Sonderausgaben beschränkt abzugsfähig TH 1",{"$nulls":7},"9420","Sonderausgaben beschränkt abzugsfähig TH 1"]
["Kontenklasse 9 Statistische Konten","Privat Teilhafter (für Verrechnung Gesellschafterdarlehen mit Eigenkapitalcharakter -- Konto 9840-9849)","9421 - Sonderausgaben beschränkt abzugsfähig TH 2",{"$nulls":7},"9421","Sonderausgaben beschränkt abzugsfähig TH 2"]
["Kontenklasse 9 Statistische Konten","Privat Teilhafter (für Verrechnung Gesellschafterdarlehen mit Eigenkapitalcharakter -- Konto 9840-9849)","9422 - Sonderausgaben beschränkt abzugsfähig TH 3",{"$nulls":7},"9422","Sonderausgaben beschränkt abzugsfähig TH 3"]
["Kontenklasse 9 Statistische Konten","Privat Teilhafter (für Verrechnung Gesellschafterdarlehen mit Eigenkapitalcharakter -- Konto 9840-9849)","9423 - Sonderausgaben beschränkt abzugsfähig TH 4",{"$nulls":7},"9423","Sonderausgaben beschränkt abzugsfähig TH 4"]
["Kontenklasse 9 Statistische Konten","Privat Teilhafter (für Verrechnung Gesellschafterdarlehen mit Eigenkapitalcharakter -- Konto 9840-9849)","9424 - Sonderausgaben beschränkt abzugsfähig TH 5",{"$nulls":7},"9424","Sonderausgaben beschränkt abzugsfähig TH 5"]
["Kontenklasse 9 Statistische Konten","Privat Teilhafter (für Verrechnung Gesellschafterdarlehen mit Eigenkapitalcharakter -- Konto 9840-9849)","9425 - Sonderausgaben beschränkt abzugsfähig TH 6",{"$nulls":7},"9425","Sonderausgaben beschränkt abzugsfähig TH 6"]
["Kontenklasse 9 Statistische Konten","Privat Teilhafter (für Verrechnung Gesellschafterdarlehen mit Eigenkapitalcharakter -- Konto 9840-9849)","9426 - Sonderausgaben beschränkt abzugsfähig TH 7",{"$nulls":7},"9426","Sonderausgaben beschränkt abzugsfähig TH 7"]
["Kontenklasse 9 Statistische Konten","Privat Teilhafter (für Verrechnung Gesellschafterdarlehen mit Eigenkapitalcharakter -- Konto 9840-9849)","9427 - Sonderausgaben beschränkt abzugsfähig TH 8",{"$nulls":7},"9427","Sonderausgaben beschränkt abzugsfähig TH 8"]
["Kontenklasse 9 Statistische Konten","Privat Teilhafter (für Verrechnung Gesellschafterdarlehen mit Eigenkapitalcharakter -- Konto 9840-9849)","9428 - Sonderausgaben beschränkt abzugsfähig TH 9",{"$nulls":7},"9428","Sonderausgaben beschränkt abzugsfähig TH 9"]
["Kontenklasse 9 Statistische Konten","Privat Teilhafter (für Verrechnung Gesellschafterdarlehen mit Eigenkapitalcharakter -- Konto 9840-9849)","9429 - Sonderausgaben beschränkt abzugsfähig TH 10",{"$nulls":7},"9429","Sonderausgaben beschränkt abzugsfähig TH 10"]
["Kontenklasse 9 Statistische Konten","Privat Teilhafter (für Verrechnung Gesellschafterdarlehen mit Eigenkapitalcharakter -- Konto 9840-9849)","9430 - Sonderausgaben unbeschränkt abzugsfähig TH 1",{"$nulls":7},"9430","Sonderausgaben unbeschränkt abzugsfähig TH 1"]
["Kontenklasse 9 Statistische Konten","Privat Teilhafter (für Verrechnung Gesellschafterdarlehen mit Eigenkapitalcharakter -- Konto 9840-9849)","9431 - Sonderausgaben unbeschränkt abzugsfähig TH 2",{"$nulls":7},"9431","Sonderausgaben unbeschränkt abzugsfähig TH 2"]
["Kontenklasse 9 Statistische Konten","Privat Teilhafter (für Verrechnung Gesellschafterdarlehen mit Eigenkapitalcharakter -- Konto 9840-9849)","9432 - Sonderausgaben unbeschränkt abzugsfähig TH 3",{"$nulls":7},"9432","Sonderausgaben unbeschränkt abzugsfähig TH 3"]
["Kontenklasse 9 Statistische Konten","Privat Teilhafter (für Verrechnung Gesellschafterdarlehen mit Eigenkapitalcharakter -- Konto 9840-9849)","9433 - Sonderausgaben unbeschränkt abzugsfähig TH 4",{"$nulls":7},"9433","Sonderausgaben unbeschränkt abzugsfähig TH 4"]
["Kontenklasse 9 Statistische Konten","Privat Teilhafter (für Verrechnung Gesellschafterdarlehen mit Eigenkapitalcharakter -- Konto 9840-9849)","9434 - Sonderausgaben unbeschränkt abzugsfähig TH 5",{"$nulls":7},"9434","Sonderausgaben unbeschränkt abzugsfähig TH 5"]
["Kontenklasse 9 Statistische Konten","Privat Teilhafter (für Verrechnung Gesellschafterdarlehen mit Eigenkapitalcharakter -- Konto 9840-9849)","9435 - Sonderausgaben unbeschränkt abzugsfähig TH 6",{"$nulls":7},"9435","Sonderausgaben unbeschränkt abzugsfähig TH 6"]
["Kontenklasse 9 Statistische Konten","Privat Teilhafter (für Verrechnung Gesellschafterdarlehen mit Eigenkapitalcharakter -- Konto 9840-9849)","9436 - Sonderausgaben unbeschränkt abzugsfähig TH 7",{"$nulls":7},"9436","Sonderausgaben unbeschränkt abzugsfähig TH 7"]
["Kontenklasse 9 Statistische Konten","Privat Teilhafter (für Verrechnung Gesellschafterdarlehen mit Eigenkapitalcharakter -- Konto 9840-9849)","9437 - Sonderausgaben unbeschränkt abzugsfähig TH 8",{"$nulls":7},"9437","Sonderausgaben unbeschränkt abzugsfähig TH 8"]
["Kontenklasse 9 Statistische Konten","Privat Teilhafter (für Verrechnung Gesellschafterdarlehen mit Eigenkapitalcharakter -- Konto 9840-9849)","9438 - Sonderausgaben unbeschränkt abzugsfähig TH 9",{"$nulls":7},"9438","Sonderausgaben unbeschränkt abzugsfähig TH 9"]
["Kontenklasse 9 Statistische Konten","Privat Teilhafter (für Verrechnung Gesellschafterdarlehen mit Eigenkapitalcharakter -- Konto 9840-9849)","9439 - Sonderausgaben unbeschränkt abzugsfähig TH 10",{"$nulls":7},"9439","Sonderausgaben unbeschränkt abzugsfähig TH 10"]
["Kontenklasse 9 Statistische Konten","Privat Teilhafter (für Verrechnung Gesellschafterdarlehen mit Eigenkapitalcharakter -- Konto 9840-9849)","9440 - Zuwendungen, Spenden TH 1",{"$nulls":7},"9440","Zuwendungen, Spenden TH 1"]
["Kontenklasse 9 Statistische Konten","Privat Teilhafter (für Verrechnung Gesellschafterdarlehen mit Eigenkapitalcharakter -- Konto 9840-9849)","9441 - Zuwendungen, Spenden TH 2",{"$nulls":7},"9441","Zuwendungen, Spenden TH 2"]
["Kontenklasse 9 Statistische Konten","Privat Teilhafter (für Verrechnung Gesellschafterdarlehen mit Eigenkapitalcharakter -- Konto 9840-9849)","9442 - Zuwendungen, Spenden TH 3",{"$nulls":7},"9442","Zuwendungen, Spenden TH 3"]
["Kontenklasse 9 Statistische Konten","Privat Teilhafter (für Verrechnung Gesellschafterdarlehen mit Eigenkapitalcharakter -- Konto 9840-9849)","9443 - Zuwendungen, Spenden TH 4",{"$nulls":7},"9443","Zuwendungen, Spenden TH 4"]
["Kontenklasse 9 Statistische Konten","Privat Teilhafter (für Verrechnung Gesellschafterdarlehen mit Eigenkapitalcharakter -- Konto 9840-9849)","9444 - Zuwendungen, Spenden TH 5",{"$nulls":7},"9444","Zuwendungen, Spenden TH 5"]
["Kontenklasse 9 Statistische Konten","Privat Teilhafter (für Verrechnung Gesellschafterdarlehen mit Eigenkapitalcharakter -- Konto 9840-9849)","9445 - Zuwendungen, Spenden TH 6",{"$nulls":7},"9445","Zuwendungen, Spenden TH 6"]
["Kontenklasse 9 Statistische Konten","Privat Teilhafter (für Verrechnung Gesellschafterdarlehen mit Eigenkapitalcharakter -- Konto 9840-9849)","9446 - Zuwendungen, Spenden TH 7",{"$nulls":7},"9446","Zuwendungen, Spenden TH 7"]
["Kontenklasse 9 Statistische Konten","Privat Teilhafter (für Verrechnung Gesellschafterdarlehen mit Eigenkapitalcharakter -- Konto 9840-9849)","9447 - Zuwendungen, Spenden TH 8",{"$nulls":7},"9447","Zuwendungen, Spenden TH 8"]
["Kontenklasse 9 Statistische Konten","Privat Teilhafter (für Verrechnung Gesellschafterdarlehen mit Eigenkapitalcharakter -- Konto 9840-9849)","9448 - Zuwendungen, Spenden TH 9",{"$nulls":7},"9448","Zuwendungen, Spenden TH 9"]
["Kontenklasse 9 Statistische Konten","Privat Teilhafter (für Verrechnung Gesellschafterdarlehen mit Eigenkapitalcharakter -- Konto 9840-9849)","9449 - Zuwendungen, Spenden TH 10",{"$nulls":7},"9449","Zuwendungen, Spenden TH 10"]
["Kontenklasse 9 Statistische Konten","Privat Teilhafter (für Verrechnung Gesellschafterdarlehen mit Eigenkapitalcharakter -- Konto 9840-9849)","9450 - Außergewöhnliche Belastungen TH 1",{"$nulls":7},"9450","Außergewöhnliche Belastungen TH 1"]
["Kontenklasse 9 Statistische Konten","Privat Teilhafter (für Verrechnung Gesellschafterdarlehen mit Eigenkapitalcharakter -- Konto 9840-9849)","9451 - Außergewöhnliche Belastungen TH 2",{"$nulls":7},{"$f":"MID(C1603,1,4)","v":"9451"},{"$f":"MID(C1603,8,255)","v":"Außergewöhnliche Belastungen TH 2"}]
["Kontenklasse 9 Statistische Konten","Privat Teilhafter (für Verrechnung Gesellschafterdarlehen mit Eigenkapitalcharakter -- Konto 9840-9849)","9452 - Außergewöhnliche Belastungen TH 3",{"$nulls":7},"9452","Außergewöhnliche Belastungen TH 3"]
["Kontenklasse 9 Statistische Konten","Privat Teilhafter (für Verrechnung Gesellschafterdarlehen mit Eigenkapitalcharakter -- Konto 9840-9849)","9453 - Außergewöhnliche Belastungen TH 4",{"$nulls":7},"9453","Außergewöhnliche Belastungen TH 4"]
["Kontenklasse 9 Statistische Konten","Privat Teilhafter (für Verrechnung Gesellschafterdarlehen mit Eigenkapitalcharakter -- Konto 9840-9849)","9454 - Außergewöhnliche Belastungen TH 5",{"$nulls":7},"9454","Außergewöhnliche Belastungen TH 5"]
["Kontenklasse 9 Statistische Konten","Privat Teilhafter (für Verrechnung Gesellschafterdarlehen mit Eigenkapitalcharakter -- Konto 9840-9849)","9455 - Außergewöhnliche Belastungen TH 6",{"$nulls":7},"9455","Außergewöhnliche Belastungen TH 6"]
["Kontenklasse 9 Statistische Konten","Privat Teilhafter (für Verrechnung Gesellschafterdarlehen mit Eigenkapitalcharakter -- Konto 9840-9849)","9456 - Außergewöhnliche Belastungen TH 7",{"$nulls":7},"9456","Außergewöhnliche Belastungen TH 7"]
["Kontenklasse 9 Statistische Konten","Privat Teilhafter (für Verrechnung Gesellschafterdarlehen mit Eigenkapitalcharakter -- Konto 9840-9849)","9457 - Außergewöhnliche Belastungen TH 8",{"$nulls":7},"9457","Außergewöhnliche Belastungen TH 8"]
["Kontenklasse 9 Statistische Konten","Privat Teilhafter (für Verrechnung Gesellschafterdarlehen mit Eigenkapitalcharakter -- Konto 9840-9849)","9458 - Außergewöhnliche Belastungen TH 9",{"$nulls":7},"9458","Außergewöhnliche Belastungen TH 9"]
["Kontenklasse 9 Statistische Konten","Privat Teilhafter (für Verrechnung Gesellschafterdarlehen mit Eigenkapitalcharakter -- Konto 9840-9849)","9459 - Außergewöhnliche Belastungen TH 10",{"$nulls":7},"9459","Außergewöhnliche Belastungen TH 10"]
["Kontenklasse 9 Statistische Konten","Privat Teilhafter (für Verrechnung Gesellschafterdarlehen mit Eigenkapitalcharakter -- Konto 9840-9849)","9460 - Grundstücksaufwand TH 1",{"$nulls":7},"9460","Grundstücksaufwand TH 1"]
["Kontenklasse 9 Statistische Konten","Privat Teilhafter (für Verrechnung Gesellschafterdarlehen mit Eigenkapitalcharakter -- Konto 9840-9849)","9461 - Grundstücksaufwand TH 2",{"$nulls":7},"9461","Grundstücksaufwand TH 2"]
["Kontenklasse 9 Statistische Konten","Privat Teilhafter (für Verrechnung Gesellschafterdarlehen mit Eigenkapitalcharakter -- Konto 9840-9849)","9462 - Grundstücksaufwand TH 3",{"$nulls":7},"9462","Grundstücksaufwand TH 3"]
["Kontenklasse 9 Statistische Konten","Privat Teilhafter (für Verrechnung Gesellschafterdarlehen mit Eigenkapitalcharakter -- Konto 9840-9849)","9463 - Grundstücksaufwand TH 4",{"$nulls":7},"9463","Grundstücksaufwand TH 4"]
["Kontenklasse 9 Statistische Konten","Privat Teilhafter (für Verrechnung Gesellschafterdarlehen mit Eigenkapitalcharakter -- Konto 9840-9849)","9464 - Grundstücksaufwand TH 5",{"$nulls":7},"9464","Grundstücksaufwand TH 5"]
["Kontenklasse 9 Statistische Konten","Privat Teilhafter (für Verrechnung Gesellschafterdarlehen mit Eigenkapitalcharakter -- Konto 9840-9849)","9465 - Grundstücksaufwand TH 6",{"$nulls":7},"9465","Grundstücksaufwand TH 6"]
["Kontenklasse 9 Statistische Konten","Privat Teilhafter (für Verrechnung Gesellschafterdarlehen mit Eigenkapitalcharakter -- Konto 9840-9849)","9466 - Grundstücksaufwand TH 7",{"$nulls":7},"9466","Grundstücksaufwand TH 7"]
["Kontenklasse 9 Statistische Konten","Privat Teilhafter (für Verrechnung Gesellschafterdarlehen mit Eigenkapitalcharakter -- Konto 9840-9849)","9467 - Grundstücksaufwand TH 8",{"$nulls":7},"9467","Grundstücksaufwand TH 8"]
["Kontenklasse 9 Statistische Konten","Privat Teilhafter (für Verrechnung Gesellschafterdarlehen mit Eigenkapitalcharakter -- Konto 9840-9849)","9468 - Grundstücksaufwand TH 9",{"$nulls":7},"9468","Grundstücksaufwand TH 9"]
["Kontenklasse 9 Statistische Konten","Privat Teilhafter (für Verrechnung Gesellschafterdarlehen mit Eigenkapitalcharakter -- Konto 9840-9849)","9469 - Grundstücksaufwand TH 10",{"$nulls":7},"9469","Grundstücksaufwand TH 10"]
["Kontenklasse 9 Statistische Konten","Privat Teilhafter (für Verrechnung Gesellschafterdarlehen mit Eigenkapitalcharakter -- Konto 9840-9849)","9470 - Grundstücksertrag TH 1",{"$nulls":7},"9470","Grundstücksertrag TH 1"]
["Kontenklasse 9 Statistische Konten","Privat Teilhafter (für Verrechnung Gesellschafterdarlehen mit Eigenkapitalcharakter -- Konto 9840-9849)","9471 - Grundstücksertrag TH 2",{"$nulls":7},"9471","Grundstücksertrag TH 2"]
["Kontenklasse 9 Statistische Konten","Privat Teilhafter (für Verrechnung Gesellschafterdarlehen mit Eigenkapitalcharakter -- Konto 9840-9849)","9472 - Grundstücksertrag TH 3",{"$nulls":7},"9472","Grundstücksertrag TH 3"]
["Kontenklasse 9 Statistische Konten","Privat Teilhafter (für Verrechnung Gesellschafterdarlehen mit Eigenkapitalcharakter -- Konto 9840-9849)","9473 - Grundstücksertrag TH 4",{"$nulls":7},"9473","Grundstücksertrag TH 4"]
["Kontenklasse 9 Statistische Konten","Privat Teilhafter (für Verrechnung Gesellschafterdarlehen mit Eigenkapitalcharakter -- Konto 9840-9849)","9474 - Grundstücksertrag TH 5",{"$nulls":7},"9474","Grundstücksertrag TH 5"]
["Kontenklasse 9 Statistische Konten","Privat Teilhafter (für Verrechnung Gesellschafterdarlehen mit Eigenkapitalcharakter -- Konto 9840-9849)","9475 - Grundstücksertrag TH 6",{"$nulls":7},"9475","Grundstücksertrag TH 6"]
["Kontenklasse 9 Statistische Konten","Privat Teilhafter (für Verrechnung Gesellschafterdarlehen mit Eigenkapitalcharakter -- Konto 9840-9849)","9476 - Grundstücksertrag TH 7",{"$nulls":7},"9476","Grundstücksertrag TH 7"]
["Kontenklasse 9 Statistische Konten","Privat Teilhafter (für Verrechnung Gesellschafterdarlehen mit Eigenkapitalcharakter -- Konto 9840-9849)","9477 - Grundstücksertrag TH 8",{"$nulls":7},"9477","Grundstücksertrag TH 8"]
["Kontenklasse 9 Statistische Konten","Privat Teilhafter (für Verrechnung Gesellschafterdarlehen mit Eigenkapitalcharakter -- Konto 9840-9849)","9478 - Grundstücksertrag TH 9",{"$nulls":7},"9478","Grundstücksertrag TH 9"]
["Kontenklasse 9 Statistische Konten","Privat Teilhafter (für Verrechnung Gesellschafterdarlehen mit Eigenkapitalcharakter -- Konto 9840-9849)","9479 - Grundstücksertrag TH 10",{"$nulls":7},"9479","Grundstücksertrag TH 10"]
["Kontenklasse 9 Statistische Konten","Privat Teilhafter (für Verrechnung Gesellschafterdarlehen mit Eigenkapitalcharakter -- Konto 9840-9849)","9480 - Unentgeltliche Wertabgaben TH 1",{"$nulls":7},"9480","Unentgeltliche Wertabgaben TH 1"]
["Kontenklasse 9 Statistische Konten","Privat Teilhafter (für Verrechnung Gesellschafterdarlehen mit Eigenkapitalcharakter -- Konto 9840-9849)","9481 - Unentgeltliche Wertabgaben TH 2",{"$nulls":7},"9481","Unentgeltliche Wertabgaben TH 2"]
["Kontenklasse 9 Statistische Konten","Privat Teilhafter (für Verrechnung Gesellschafterdarlehen mit Eigenkapitalcharakter -- Konto 9840-9849)","9482 - Unentgeltliche Wertabgaben TH 3",{"$nulls":7},"9482","Unentgeltliche Wertabgaben TH 3"]
["Kontenklasse 9 Statistische Konten","Privat Teilhafter (für Verrechnung Gesellschafterdarlehen mit Eigenkapitalcharakter -- Konto 9840-9849)","9483 - Unentgeltliche Wertabgaben TH 4",{"$nulls":7},"9483","Unentgeltliche Wertabgaben TH 4"]
["Kontenklasse 9 Statistische Konten","Privat Teilhafter (für Verrechnung Gesellschafterdarlehen mit Eigenkapitalcharakter -- Konto 9840-9849)","9484 - Unentgeltliche Wertabgaben TH 5",{"$nulls":7},"9484","Unentgeltliche Wertabgaben TH 5"]
["Kontenklasse 9 Statistische Konten","Privat Teilhafter (für Verrechnung Gesellschafterdarlehen mit Eigenkapitalcharakter -- Konto 9840-9849)","9485 - Unentgeltliche Wertabgaben TH 6",{"$nulls":7},"9485","Unentgeltliche Wertabgaben TH 6"]
["Kontenklasse 9 Statistische Konten","Privat Teilhafter (für Verrechnung Gesellschafterdarlehen mit Eigenkapitalcharakter -- Konto 9840-9849)","9486 - Unentgeltliche Wertabgaben TH 7",{"$nulls":7},"9486","Unentgeltliche Wertabgaben TH 7"]
["Kontenklasse 9 Statistische Konten","Privat Teilhafter (für Verrechnung Gesellschafterdarlehen mit Eigenkapitalcharakter -- Konto 9840-9849)","9487 - Unentgeltliche Wertabgaben TH 8",{"$nulls":7},"9487","Unentgeltliche Wertabgaben TH 8"]
["Kontenklasse 9 Statistische Konten","Privat Teilhafter (für Verrechnung Gesellschafterdarlehen mit Eigenkapitalcharakter -- Konto 9840-9849)","9488 - Unentgeltliche Wertabgaben TH 9",{"$nulls":7},"9488","Unentgeltliche Wertabgaben TH 9"]
["Kontenklasse 9 Statistische Konten","Privat Teilhafter (für Verrechnung Gesellschafterdarlehen mit Eigenkapitalcharakter -- Konto 9840-9849)","9489 - Unentgeltliche Wertabgaben TH 10",{"$nulls":7},"9489","Unentgeltliche Wertabgaben TH 10"]
["Kontenklasse 9 Statistische Konten","Privat Teilhafter (für Verrechnung Gesellschafterdarlehen mit Eigenkapitalcharakter -- Konto 9840-9849)","9490 - Privateinlagen TH 1",{"$nulls":7},"9490","Privateinlagen TH 1"]
["Kontenklasse 9 Statistische Konten","Privat Teilhafter (für Verrechnung Gesellschafterdarlehen mit Eigenkapitalcharakter -- Konto 9840-9849)","9491 - Privateinlagen TH 2",{"$nulls":7},"9491","Privateinlagen TH 2"]
["Kontenklasse 9 Statistische Konten","Privat Teilhafter (für Verrechnung Gesellschafterdarlehen mit Eigenkapitalcharakter -- Konto 9840-9849)","9492 - Privateinlagen TH 3",{"$nulls":7},"9492","Privateinlagen TH 3"]
["Kontenklasse 9 Statistische Konten","Privat Teilhafter (für Verrechnung Gesellschafterdarlehen mit Eigenkapitalcharakter -- Konto 9840-9849)","9493 - Privateinlagen TH 4",{"$nulls":7},"9493","Privateinlagen TH 4"]
["Kontenklasse 9 Statistische Konten","Privat Teilhafter (für Verrechnung Gesellschafterdarlehen mit Eigenkapitalcharakter -- Konto 9840-9849)","9494 - Privateinlagen TH 5",{"$nulls":7},"9494","Privateinlagen TH 5"]
["Kontenklasse 9 Statistische Konten","Privat Teilhafter (für Verrechnung Gesellschafterdarlehen mit Eigenkapitalcharakter -- Konto 9840-9849)","9495 - Privateinlagen TH 6",{"$nulls":7},"9495","Privateinlagen TH 6"]
["Kontenklasse 9 Statistische Konten","Privat Teilhafter (für Verrechnung Gesellschafterdarlehen mit Eigenkapitalcharakter -- Konto 9840-9849)","9496 - Privateinlagen TH 7",{"$nulls":7},"9496","Privateinlagen TH 7"]
["Kontenklasse 9 Statistische Konten","Privat Teilhafter (für Verrechnung Gesellschafterdarlehen mit Eigenkapitalcharakter -- Konto 9840-9849)","9497 - Privateinlagen TH 8",{"$nulls":7},"9497","Privateinlagen TH 8"]
["Kontenklasse 9 Statistische Konten","Privat Teilhafter (für Verrechnung Gesellschafterdarlehen mit Eigenkapitalcharakter -- Konto 9840-9849)","9498 - Privateinlagen TH 9",{"$nulls":7},"9498","Privateinlagen TH 9"]
["Kontenklasse 9 Statistische Konten","Privat Teilhafter (für Verrechnung Gesellschafterdarlehen mit Eigenkapitalcharakter -- Konto 9840-9849)","9499 - Privateinlagen TH 10",{"$nulls":7},"9499","Privateinlagen TH 10"]
["Kontenklasse 9 Statistische Konten","Statistische Konten für die Kapitalkontenentwicklung","9500 - Anteil für Konto 0900 (TH 1)",{"$nulls":7},"9500","Anteil für Konto 0900 (TH 1)"]
["Kontenklasse 9 Statistische Konten","Statistische Konten für die Kapitalkontenentwicklung","9501 - Anteil für Konto 0901 (TH 2)",{"$nulls":7},"9501","Anteil für Konto 0901 (TH 2)"]
["Kontenklasse 9 Statistische Konten","Statistische Konten für die Kapitalkontenentwicklung","9502 - Anteil für Konto 0902 (TH 3)",{"$nulls":7},"9502","Anteil für Konto 0902 (TH 3)"]
["Kontenklasse 9 Statistische Konten","Statistische Konten für die Kapitalkontenentwicklung","9503 - Anteil für Konto 0903 (TH 4)",{"$nulls":7},"9503","Anteil für Konto 0903 (TH 4)"]
["Kontenklasse 9 Statistische Konten","Statistische Konten für die Kapitalkontenentwicklung","9504 - Anteil für Konto 0904 (TH 5)",{"$nulls":7},"9504","Anteil für Konto 0904 (TH 5)"]
["Kontenklasse 9 Statistische Konten","Statistische Konten für die Kapitalkontenentwicklung","9505 - Anteil für Konto 0905 (TH 6)",{"$nulls":7},"9505","Anteil für Konto 0905 (TH 6)"]
["Kontenklasse 9 Statistische Konten","Statistische Konten für die Kapitalkontenentwicklung","9506 - Anteil für Konto 0906 (TH 7)",{"$nulls":7},"9506","Anteil für Konto 0906 (TH 7)"]
["Kontenklasse 9 Statistische Konten","Statistische Konten für die Kapitalkontenentwicklung","9507 - Anteil für Konto 0907 (TH 8)",{"$nulls":7},"9507","Anteil für Konto 0907 (TH 8)"]
["Kontenklasse 9 Statistische Konten","Statistische Konten für die Kapitalkontenentwicklung","9508 - Anteil für Konto 0908 (TH 9)",{"$nulls":7},"9508","Anteil für Konto 0908 (TH 9)"]
["Kontenklasse 9 Statistische Konten","Statistische Konten für die Kapitalkontenentwicklung","9509 - Anteil für Konto 0909 (TH 10)",{"$nulls":7},"9509","Anteil für Konto 0909 (TH 10)"]
["Kontenklasse 9 Statistische Konten","Statistische Konten für die Kapitalkontenentwicklung","9510 - Anteil für Konto 0910 (TH 1)",{"$nulls":7},"9510","Anteil für Konto 0910 (TH 1)"]
["Kontenklasse 9 Statistische Konten","Statistische Konten für die Kapitalkontenentwicklung","9511 - Anteil für Konto 0911 (TH 2)",{"$nulls":7},"9511","Anteil für Konto 0911 (TH 2)"]
["Kontenklasse 9 Statistische Konten","Statistische Konten für die Kapitalkontenentwicklung","9512 - Anteil für Konto 0912 (TH 3)",{"$nulls":7},"9512","Anteil für Konto 0912 (TH 3)"]
["Kontenklasse 9 Statistische Konten","Statistische Konten für die Kapitalkontenentwicklung","9513 - Anteil für Konto 0913 (TH 4)",{"$nulls":7},"9513","Anteil für Konto 0913 (TH 4)"]
["Kontenklasse 9 Statistische Konten","Statistische Konten für die Kapitalkontenentwicklung","9514 - Anteil für Konto 0914 (TH 5)",{"$nulls":7},"9514","Anteil für Konto 0914 (TH 5)"]
["Kontenklasse 9 Statistische Konten","Statistische Konten für die Kapitalkontenentwicklung","9515 - Anteil für Konto 0915 (TH 6)",{"$nulls":7},{"$f":"MID(C1667,1,4)","v":"9515"},{"$f":"MID(C1667,8,255)","v":"Anteil für Konto 0915 (TH 6)"}]
["Kontenklasse 9 Statistische Konten","Statistische Konten für die Kapitalkontenentwicklung","9516 - Anteil für Konto 0916 (TH 7)",{"$nulls":7},"9516","Anteil für Konto 0916 (TH 7)"]
["Kontenklasse 9 Statistische Konten","Statistische Konten für die Kapitalkontenentwicklung","9517 - Anteil für Konto 0917 (TH 8)",{"$nulls":7},"9517","Anteil für Konto 0917 (TH 8)"]
["Kontenklasse 9 Statistische Konten","Statistische Konten für die Kapitalkontenentwicklung","9518 - Anteil für Konto 0918 (TH 9)",{"$nulls":7},"9518","Anteil für Konto 0918 (TH 9)"]
["Kontenklasse 9 Statistische Konten","Statistische Konten für die Kapitalkontenentwicklung","9519 - Anteil für Konto 0919 (TH 10)",{"$nulls":7},"9519","Anteil für Konto 0919 (TH 10)"]
["Kontenklasse 9 Statistische Konten","Statistische Konten für die Kapitalkontenentwicklung","9520 - Anteil für Konto 0920 (TH 1)",{"$nulls":7},"9520","Anteil für Konto 0920 (TH 1)"]
["Kontenklasse 9 Statistische Konten","Statistische Konten für die Kapitalkontenentwicklung","9521 - Anteil für Konto 0921 (TH 2)",{"$nulls":7},"9521","Anteil für Konto 0921 (TH 2)"]
["Kontenklasse 9 Statistische Konten","Statistische Konten für die Kapitalkontenentwicklung","9522 - Anteil für Konto 0922 (TH 3)",{"$nulls":7},"9522","Anteil für Konto 0922 (TH 3)"]
["Kontenklasse 9 Statistische Konten","Statistische Konten für die Kapitalkontenentwicklung","9523 - Anteil für Konto 0923 (TH 4)",{"$nulls":7},"9523","Anteil für Konto 0923 (TH 4)"]
["Kontenklasse 9 Statistische Konten","Statistische Konten für die Kapitalkontenentwicklung","9524 - Anteil für Konto 0924 (TH 5)",{"$nulls":7},"9524","Anteil für Konto 0924 (TH 5)"]
["Kontenklasse 9 Statistische Konten","Statistische Konten für die Kapitalkontenentwicklung","9525 - Anteil für Konto 0925 (TH 6)",{"$nulls":7},"9525","Anteil für Konto 0925 (TH 6)"]
["Kontenklasse 9 Statistische Konten","Statistische Konten für die Kapitalkontenentwicklung","9526 - Anteil für Konto 0926 (TH 7)",{"$nulls":7},"9526","Anteil für Konto 0926 (TH 7)"]
["Kontenklasse 9 Statistische Konten","Statistische Konten für die Kapitalkontenentwicklung","9527 - Anteil für Konto 0927 (TH 8)",{"$nulls":7},"9527","Anteil für Konto 0927 (TH 8)"]
["Kontenklasse 9 Statistische Konten","Statistische Konten für die Kapitalkontenentwicklung","9528 - Anteil für Konto 0928 (TH 9)",{"$nulls":7},"9528","Anteil für Konto 0928 (TH 9)"]
["Kontenklasse 9 Statistische Konten","Statistische Konten für die Kapitalkontenentwicklung","9529 - Anteil für Konto 0929 (TH 10)",{"$nulls":7},"9529","Anteil für Konto 0929 (TH 10)"]
["Kontenklasse 9 Statistische Konten","Statistische Konten für die Kapitalkontenentwicklung","9530 - Anteil für Konto 9950 (TH 1)",{"$nulls":7},"9530","Anteil für Konto 9950 (TH 1)"]
["Kontenklasse 9 Statistische Konten","Statistische Konten für die Kapitalkontenentwicklung","9531 - Anteil für Konto 9951 (TH 2)",{"$nulls":7},"9531","Anteil für Konto 9951 (TH 2)"]
["Kontenklasse 9 Statistische Konten","Statistische Konten für die Kapitalkontenentwicklung","9532 - Anteil für Konto 9952 (TH 3)",{"$nulls":7},"9532","Anteil für Konto 9952 (TH 3)"]
["Kontenklasse 9 Statistische Konten","Statistische Konten für die Kapitalkontenentwicklung","9533 - Anteil für Konto 9953 (TH 4)",{"$nulls":7},"9533","Anteil für Konto 9953 (TH 4)"]
["Kontenklasse 9 Statistische Konten","Statistische Konten für die Kapitalkontenentwicklung","9534 - Anteil für Konto 9954 (TH 5)",{"$nulls":7},"9534","Anteil für Konto 9954 (TH 5)"]
["Kontenklasse 9 Statistische Konten","Statistische Konten für die Kapitalkontenentwicklung","9535 - Anteil für Konto 9955 (TH 6)",{"$nulls":7},"9535","Anteil für Konto 9955 (TH 6)"]
["Kontenklasse 9 Statistische Konten","Statistische Konten für die Kapitalkontenentwicklung","9536 - Anteil für Konto 9956 (TH 7)",{"$nulls":7},"9536","Anteil für Konto 9956 (TH 7)"]
["Kontenklasse 9 Statistische Konten","Statistische Konten für die Kapitalkontenentwicklung","9537 - Anteil für Konto 9957 (TH 8)",{"$nulls":7},"9537","Anteil für Konto 9957 (TH 8)"]
["Kontenklasse 9 Statistische Konten","Statistische Konten für die Kapitalkontenentwicklung","9538 - Anteil für Konto 9958 (TH 9)",{"$nulls":7},"9538","Anteil für Konto 9958 (TH 9)"]
["Kontenklasse 9 Statistische Konten","Statistische Konten für die Kapitalkontenentwicklung","9539 - Anteil für Konto 9959 (TH 10)",{"$nulls":7},"9539","Anteil für Konto 9959 (TH 10)"]
["Kontenklasse 9 Statistische Konten","Statistische Konten für die Kapitalkontenentwicklung","9540 - Anteil für Konto 9930 (VH 1)",{"$nulls":7},"9540","Anteil für Konto 9930 (VH 1)"]
["Kontenklasse 9 Statistische Konten","Statistische Konten für die Kapitalkontenentwicklung","9541 - Anteil für Konto 9931 (VH 2)",{"$nulls":7},"9541","Anteil für Konto 9931 (VH 2)"]
["Kontenklasse 9 Statistische Konten","Statistische Konten für die Kapitalkontenentwicklung","9542 - Anteil für Konto 9932 (VH 3)",{"$nulls":7},"9542","Anteil für Konto 9932 (VH 3)"]
["Kontenklasse 9 Statistische Konten","Statistische Konten für die Kapitalkontenentwicklung","9543 - Anteil für Konto 9933 (VH 4)",{"$nulls":7},"9543","Anteil für Konto 9933 (VH 4)"]
["Kontenklasse 9 Statistische Konten","Statistische Konten für die Kapitalkontenentwicklung","9544 - Anteil für Konto 9934 (VH 5)",{"$nulls":7},"9544","Anteil für Konto 9934 (VH 5)"]
["Kontenklasse 9 Statistische Konten","Statistische Konten für die Kapitalkontenentwicklung","9545 - Anteil für Konto 9935 (VH 6)",{"$nulls":7},"9545","Anteil für Konto 9935 (VH 6)"]
["Kontenklasse 9 Statistische Konten","Statistische Konten für die Kapitalkontenentwicklung","9546 - Anteil für Konto 9936 (VH 7)",{"$nulls":7},"9546","Anteil für Konto 9936 (VH 7)"]
["Kontenklasse 9 Statistische Konten","Statistische Konten für die Kapitalkontenentwicklung","9547 - Anteil für Konto 9937 (VH 8)",{"$nulls":7},"9547","Anteil für Konto 9937 (VH 8)"]
["Kontenklasse 9 Statistische Konten","Statistische Konten für die Kapitalkontenentwicklung","9548 - Anteil für Konto 9938 (VH 9)",{"$nulls":7},"9548","Anteil für Konto 9938 (VH 9)"]
["Kontenklasse 9 Statistische Konten","Statistische Konten für die Kapitalkontenentwicklung","9549 - Anteil für Konto 9939 (VH 10)",{"$nulls":7},"9549","Anteil für Konto 9939 (VH 10)"]
["Kontenklasse 9 Statistische Konten","Statistische Konten für die Kapitalkontenentwicklung","9550 - Anteil für Konto 9810 (VH 1)",{"$nulls":7},"9550","Anteil für Konto 9810 (VH 1)"]
["Kontenklasse 9 Statistische Konten","Statistische Konten für die Kapitalkontenentwicklung","9551 - Anteil für Konto 9811 (VH 2)",{"$nulls":7},"9551","Anteil für Konto 9811 (VH 2)"]
["Kontenklasse 9 Statistische Konten","Statistische Konten für die Kapitalkontenentwicklung","9552 - Anteil für Konto 9812 (VH 3)",{"$nulls":7},"9552","Anteil für Konto 9812 (VH 3)"]
["Kontenklasse 9 Statistische Konten","Statistische Konten für die Kapitalkontenentwicklung","9553 - Anteil für Konto 9813 (VH 4)",{"$nulls":7},"9553","Anteil für Konto 9813 (VH 4)"]
["Kontenklasse 9 Statistische Konten","Statistische Konten für die Kapitalkontenentwicklung","9554 - Anteil für Konto 9814 (VH 5)",{"$nulls":7},"9554","Anteil für Konto 9814 (VH 5)"]
["Kontenklasse 9 Statistische Konten","Statistische Konten für die Kapitalkontenentwicklung","9555 - Anteil für Konto 9815 (VH 6)",{"$nulls":7},"9555","Anteil für Konto 9815 (VH 6)"]
["Kontenklasse 9 Statistische Konten","Statistische Konten für die Kapitalkontenentwicklung","9556 - Anteil für Konto 9816 (VH 7)",{"$nulls":7},"9556","Anteil für Konto 9816 (VH 7)"]
["Kontenklasse 9 Statistische Konten","Statistische Konten für die Kapitalkontenentwicklung","9557 - Anteil für Konto 9817 (VH 8)",{"$nulls":7},"9557","Anteil für Konto 9817 (VH 8)"]
["Kontenklasse 9 Statistische Konten","Statistische Konten für die Kapitalkontenentwicklung","9558 - Anteil für Konto 9818 (VH 9)",{"$nulls":7},"9558","Anteil für Konto 9818 (VH 9)"]
["Kontenklasse 9 Statistische Konten","Statistische Konten für die Kapitalkontenentwicklung","9559 - Anteil für Konto 9819 (VH 10)",{"$nulls":7},"9559","Anteil für Konto 9819 (VH 10)"]
["Kontenklasse 9 Statistische Konten","Statistische Konten für die Kapitalkontenentwicklung","9560 - Anteil für Konto 9820 (VH 1)",{"$nulls":7},"9560","Anteil für Konto 9820 (VH 1)"]
["Kontenklasse 9 Statistische Konten","Statistische Konten für die Kapitalkontenentwicklung","9561 - Anteil für Konto 9821 (VH 2)",{"$nulls":7},"9561","Anteil für Konto 9821 (VH 2)"]
["Kontenklasse 9 Statistische Konten","Statistische Konten für die Kapitalkontenentwicklung","9562 - Anteil für Konto 9822 (VH 3)",{"$nulls":7},"9562","Anteil für Konto 9822 (VH 3)"]
["Kontenklasse 9 Statistische Konten","Statistische Konten für die Kapitalkontenentwicklung","9563 - Anteil für Konto 9823 (VH 4)",{"$nulls":7},"9563","Anteil für Konto 9823 (VH 4)"]
["Kontenklasse 9 Statistische Konten","Statistische Konten für die Kapitalkontenentwicklung","9564 - Anteil für Konto 9824 (VH 5)",{"$nulls":7},"9564","Anteil für Konto 9824 (VH 5)"]
["Kontenklasse 9 Statistische Konten","Statistische Konten für die Kapitalkontenentwicklung","9565 - Anteil für Konto 9825 (VH 6)",{"$nulls":7},"9565","Anteil für Konto 9825 (VH 6)"]
["Kontenklasse 9 Statistische Konten","Statistische Konten für die Kapitalkontenentwicklung","9566 - Anteil für Konto 9826 (VH 7)",{"$nulls":7},"9566","Anteil für Konto 9826 (VH 7)"]
["Kontenklasse 9 Statistische Konten","Statistische Konten für die Kapitalkontenentwicklung","9567 - Anteil für Konto 9827 (VH 8)",{"$nulls":7},"9567","Anteil für Konto 9827 (VH 8)"]
["Kontenklasse 9 Statistische Konten","Statistische Konten für die Kapitalkontenentwicklung","9568 - Anteil für Konto 9828 (VH 9)",{"$nulls":7},"9568","Anteil für Konto 9828 (VH 9)"]
["Kontenklasse 9 Statistische Konten","Statistische Konten für die Kapitalkontenentwicklung","9569 - Anteil für Konto 9829 (VH 10)",{"$nulls":7},"9569","Anteil für Konto 9829 (VH 10)"]
["Kontenklasse 9 Statistische Konten","Statistische Konten für die Kapitalkontenentwicklung","9570 - Anteil für Konto 0870 (VH 1)",{"$nulls":7},"9570","Anteil für Konto 0870 (VH 1)"]
["Kontenklasse 9 Statistische Konten","Statistische Konten für die Kapitalkontenentwicklung","9571 - Anteil für Konto 0871 (VH 2)",{"$nulls":7},"9571","Anteil für Konto 0871 (VH 2)"]
["Kontenklasse 9 Statistische Konten","Statistische Konten für die Kapitalkontenentwicklung","9572 - Anteil für Konto 0872 (VH 3)",{"$nulls":7},"9572","Anteil für Konto 0872 (VH 3)"]
["Kontenklasse 9 Statistische Konten","Statistische Konten für die Kapitalkontenentwicklung","9573 - Anteil für Konto 0873 (VH 4)",{"$nulls":7},"9573","Anteil für Konto 0873 (VH 4)"]
["Kontenklasse 9 Statistische Konten","Statistische Konten für die Kapitalkontenentwicklung","9574 - Anteil für Konto 0874 (VH 5)",{"$nulls":7},"9574","Anteil für Konto 0874 (VH 5)"]
["Kontenklasse 9 Statistische Konten","Statistische Konten für die Kapitalkontenentwicklung","9575 - Anteil für Konto 0875 (VH 6)",{"$nulls":7},"9575","Anteil für Konto 0875 (VH 6)"]
["Kontenklasse 9 Statistische Konten","Statistische Konten für die Kapitalkontenentwicklung","9576 - Anteil für Konto 0876 (VH 7)",{"$nulls":7},"9576","Anteil für Konto 0876 (VH 7)"]
["Kontenklasse 9 Statistische Konten","Statistische Konten für die Kapitalkontenentwicklung","9577 - Anteil für Konto 0877 (VH 8)",{"$nulls":7},"9577","Anteil für Konto 0877 (VH 8)"]
["Kontenklasse 9 Statistische Konten","Statistische Konten für die Kapitalkontenentwicklung","9578 - Anteil für Konto 0878 (VH 9)",{"$nulls":7},"9578","Anteil für Konto 0878 (VH 9)"]
["Kontenklasse 9 Statistische Konten","Statistische Konten für die Kapitalkontenentwicklung","9579 - Anteil für Konto 0879 (VH 10)",{"$nulls":7},{"$f":"MID(C1731,1,4)","v":"9579"},{"$f":"MID(C1731,8,255)","v":"Anteil für Konto 0879 (VH 10)"}]
["Kontenklasse 9 Statistische Konten","Statistische Konten für die Kapitalkontenentwicklung","9580 - Anteil für Konto 0880 (VH 1)",{"$nulls":7},"9580","Anteil für Konto 0880 (VH 1)"]
["Kontenklasse 9 Statistische Konten","Statistische Konten für die Kapitalkontenentwicklung","9581 - Anteil für Konto 0881 (VH 2)",{"$nulls":7},"9581","Anteil für Konto 0881 (VH 2)"]
["Kontenklasse 9 Statistische Konten","Statistische Konten für die Kapitalkontenentwicklung","9582 - Anteil für Konto 0882 (VH 3)",{"$nulls":7},"9582","Anteil für Konto 0882 (VH 3)"]
["Kontenklasse 9 Statistische Konten","Statistische Konten für die Kapitalkontenentwicklung","9583 - Anteil für Konto 0883 (VH 4)",{"$nulls":7},"9583","Anteil für Konto 0883 (VH 4)"]
["Kontenklasse 9 Statistische Konten","Statistische Konten für die Kapitalkontenentwicklung","9584 - Anteil für Konto 0884 (VH 5)",{"$nulls":7},"9584","Anteil für Konto 0884 (VH 5)"]
["Kontenklasse 9 Statistische Konten","Statistische Konten für die Kapitalkontenentwicklung","9585 - Anteil für Konto 0885 (VH 6)",{"$nulls":7},"9585","Anteil für Konto 0885 (VH 6)"]
["Kontenklasse 9 Statistische Konten","Statistische Konten für die Kapitalkontenentwicklung","9586 - Anteil für Konto 0886 (VH 7)",{"$nulls":7},"9586","Anteil für Konto 0886 (VH 7)"]
["Kontenklasse 9 Statistische Konten","Statistische Konten für die Kapitalkontenentwicklung","9587 - Anteil für Konto 0887 (VH 8)",{"$nulls":7},"9587","Anteil für Konto 0887 (VH 8)"]
["Kontenklasse 9 Statistische Konten","Statistische Konten für die Kapitalkontenentwicklung","9588 - Anteil für Konto 0888 (VH 9)",{"$nulls":7},"9588","Anteil für Konto 0888 (VH 9)"]
["Kontenklasse 9 Statistische Konten","Statistische Konten für die Kapitalkontenentwicklung","9589 - Anteil für Konto 0889 (VH 10)",{"$nulls":7},"9589","Anteil für Konto 0889 (VH 10)"]
["Kontenklasse 9 Statistische Konten","Statistische Konten für die Kapitalkontenentwicklung","9590 - Anteil für Konto 0890 (VH 1)",{"$nulls":7},"9590","Anteil für Konto 0890 (VH 1)"]
["Kontenklasse 9 Statistische Konten","Statistische Konten für die Kapitalkontenentwicklung","9591 - Anteil für Konto 0891 (VH 2)",{"$nulls":7},"9591","Anteil für Konto 0891 (VH 2)"]
["Kontenklasse 9 Statistische Konten","Statistische Konten für die Kapitalkontenentwicklung","9592 - Anteil für Konto 0892 (VH 3)",{"$nulls":7},"9592","Anteil für Konto 0892 (VH 3)"]
["Kontenklasse 9 Statistische Konten","Statistische Konten für die Kapitalkontenentwicklung","9593 - Anteil für Konto 0893 (VH 4)",{"$nulls":7},"9593","Anteil für Konto 0893 (VH 4)"]
["Kontenklasse 9 Statistische Konten","Statistische Konten für die Kapitalkontenentwicklung","9594 - Anteil für Konto 0894 (VH 5)",{"$nulls":7},"9594","Anteil für Konto 0894 (VH 5)"]
["Kontenklasse 9 Statistische Konten","Statistische Konten für die Kapitalkontenentwicklung","9595 - Anteil für Konto 0895 (VH 6)",{"$nulls":7},"9595","Anteil für Konto 0895 (VH 6)"]
["Kontenklasse 9 Statistische Konten","Statistische Konten für die Kapitalkontenentwicklung","9596 - Anteil für Konto 0896 (VH 7)",{"$nulls":7},"9596","Anteil für Konto 0896 (VH 7)"]
["Kontenklasse 9 Statistische Konten","Statistische Konten für die Kapitalkontenentwicklung","9597 - Anteil für Konto 0897 (VH 8)",{"$nulls":7},"9597","Anteil für Konto 0897 (VH 8)"]
["Kontenklasse 9 Statistische Konten","Statistische Konten für die Kapitalkontenentwicklung","9598 - Anteil für Konto 0898 (VH 9)",{"$nulls":7},"9598","Anteil für Konto 0898 (VH 9)"]
["Kontenklasse 9 Statistische Konten","Statistische Konten für die Kapitalkontenentwicklung","9599 - Anteil für Konto 0899 (VH 10)",{"$nulls":7},"9599","Anteil für Konto 0899 (VH 10)"]
["Kontenklasse 9 Statistische Konten","Statistische Konten für die Kapitalkontenentwicklung","9600 - Name des Gesellschafters VH 1",{"$nulls":7},"9600","Name des Gesellschafters VH 1"]
["Kontenklasse 9 Statistische Konten","Statistische Konten für die Kapitalkontenentwicklung","9601 - Name des Gesellschafters VH 2",{"$nulls":7},"9601","Name des Gesellschafters VH 2"]
["Kontenklasse 9 Statistische Konten","Statistische Konten für die Kapitalkontenentwicklung","9602 - Name des Gesellschafters VH 3",{"$nulls":7},"9602","Name des Gesellschafters VH 3"]
["Kontenklasse 9 Statistische Konten","Statistische Konten für die Kapitalkontenentwicklung","9603 - Name des Gesellschafters VH 4",{"$nulls":7},"9603","Name des Gesellschafters VH 4"]
["Kontenklasse 9 Statistische Konten","Statistische Konten für die Kapitalkontenentwicklung","9604 - Name des Gesellschafters VH 5",{"$nulls":7},"9604","Name des Gesellschafters VH 5"]
["Kontenklasse 9 Statistische Konten","Statistische Konten für die Kapitalkontenentwicklung","9605 - Name des Gesellschafters VH 6",{"$nulls":7},"9605","Name des Gesellschafters VH 6"]
["Kontenklasse 9 Statistische Konten","Statistische Konten für die Kapitalkontenentwicklung","9606 - Name des Gesellschafters VH 7",{"$nulls":7},"9606","Name des Gesellschafters VH 7"]
["Kontenklasse 9 Statistische Konten","Statistische Konten für die Kapitalkontenentwicklung","9607 - Name des Gesellschafters VH 8",{"$nulls":7},"9607","Name des Gesellschafters VH 8"]
["Kontenklasse 9 Statistische Konten","Statistische Konten für die Kapitalkontenentwicklung","9608 - Name des Gesellschafters VH 9",{"$nulls":7},"9608","Name des Gesellschafters VH 9"]
["Kontenklasse 9 Statistische Konten","Statistische Konten für die Kapitalkontenentwicklung","9609 - Name des Gesellschafters VH 10",{"$nulls":7},"9609","Name des Gesellschafters VH 10"]
["Kontenklasse 9 Statistische Konten","Statistische Konten für die Kapitalkontenentwicklung","9610 - Tätigkeitsvergütung VH 1",{"$nulls":7},"9610","Tätigkeitsvergütung VH 1"]
["Kontenklasse 9 Statistische Konten","Statistische Konten für die Kapitalkontenentwicklung","9611 - Tätigkeitsvergütung VH 2",{"$nulls":7},"9611","Tätigkeitsvergütung VH 2"]
["Kontenklasse 9 Statistische Konten","Statistische Konten für die Kapitalkontenentwicklung","9612 - Tätigkeitsvergütung VH 3",{"$nulls":7},"9612","Tätigkeitsvergütung VH 3"]
["Kontenklasse 9 Statistische Konten","Statistische Konten für die Kapitalkontenentwicklung","9613 - Tätigkeitsvergütung VH 4",{"$nulls":7},"9613","Tätigkeitsvergütung VH 4"]
["Kontenklasse 9 Statistische Konten","Statistische Konten für die Kapitalkontenentwicklung","9614 - Tätigkeitsvergütung VH 5",{"$nulls":7},"9614","Tätigkeitsvergütung VH 5"]
["Kontenklasse 9 Statistische Konten","Statistische Konten für die Kapitalkontenentwicklung","9615 - Tätigkeitsvergütung VH 6",{"$nulls":7},"9615","Tätigkeitsvergütung VH 6"]
["Kontenklasse 9 Statistische Konten","Statistische Konten für die Kapitalkontenentwicklung","9616 - Tätigkeitsvergütung VH 7",{"$nulls":7},"9616","Tätigkeitsvergütung VH 7"]
["Kontenklasse 9 Statistische Konten","Statistische Konten für die Kapitalkontenentwicklung","9617 - Tätigkeitsvergütung VH 8",{"$nulls":7},"9617","Tätigkeitsvergütung VH 8"]
["Kontenklasse 9 Statistische Konten","Statistische Konten für die Kapitalkontenentwicklung","9618 - Tätigkeitsvergütung VH 9",{"$nulls":7},"9618","Tätigkeitsvergütung VH 9"]
["Kontenklasse 9 Statistische Konten","Statistische Konten für die Kapitalkontenentwicklung","9619 - Tätigkeitsvergütung VH 10",{"$nulls":7},"9619","Tätigkeitsvergütung VH 10"]
["Kontenklasse 9 Statistische Konten","Statistische Konten für die Kapitalkontenentwicklung","9620 - Tantieme VH 1",{"$nulls":7},"9620","Tantieme VH 1"]
["Kontenklasse 9 Statistische Konten","Statistische Konten für die Kapitalkontenentwicklung","9621 - Tantieme VH 2",{"$nulls":7},"9621","Tantieme VH 2"]
["Kontenklasse 9 Statistische Konten","Statistische Konten für die Kapitalkontenentwicklung","9622 - Tantieme VH 3",{"$nulls":7},"9622","Tantieme VH 3"]
["Kontenklasse 9 Statistische Konten","Statistische Konten für die Kapitalkontenentwicklung","9623 - Tantieme VH 4",{"$nulls":7},"9623","Tantieme VH 4"]
["Kontenklasse 9 Statistische Konten","Statistische Konten für die Kapitalkontenentwicklung","9624 - Tantieme VH 5",{"$nulls":7},"9624","Tantieme VH 5"]
["Kontenklasse 9 Statistische Konten","Statistische Konten für die Kapitalkontenentwicklung","9625 - Tantieme VH 6",{"$nulls":7},"9625","Tantieme VH 6"]
["Kontenklasse 9 Statistische Konten","Statistische Konten für die Kapitalkontenentwicklung","9626 - Tantieme VH 7",{"$nulls":7},"9626","Tantieme VH 7"]
["Kontenklasse 9 Statistische Konten","Statistische Konten für die Kapitalkontenentwicklung","9627 - Tantieme VH 8",{"$nulls":7},"9627","Tantieme VH 8"]
["Kontenklasse 9 Statistische Konten","Statistische Konten für die Kapitalkontenentwicklung","9628 - Tantieme VH 9",{"$nulls":7},"9628","Tantieme VH 9"]
["Kontenklasse 9 Statistische Konten","Statistische Konten für die Kapitalkontenentwicklung","9629 - Tantieme VH 10",{"$nulls":7},"9629","Tantieme VH 10"]
["Kontenklasse 9 Statistische Konten","Statistische Konten für die Kapitalkontenentwicklung","9630 - Darlehensverzinsung VH 1",{"$nulls":7},"9630","Darlehensverzinsung VH 1"]
["Kontenklasse 9 Statistische Konten","Statistische Konten für die Kapitalkontenentwicklung","9631 - Darlehensverzinsung VH 2",{"$nulls":7},"9631","Darlehensverzinsung VH 2"]
["Kontenklasse 9 Statistische Konten","Statistische Konten für die Kapitalkontenentwicklung","9632 - Darlehensverzinsung VH 3",{"$nulls":7},"9632","Darlehensverzinsung VH 3"]
["Kontenklasse 9 Statistische Konten","Statistische Konten für die Kapitalkontenentwicklung","9633 - Darlehensverzinsung VH 4",{"$nulls":7},"9633","Darlehensverzinsung VH 4"]
["Kontenklasse 9 Statistische Konten","Statistische Konten für die Kapitalkontenentwicklung","9634 - Darlehensverzinsung VH 5",{"$nulls":7},"9634","Darlehensverzinsung VH 5"]
["Kontenklasse 9 Statistische Konten","Statistische Konten für die Kapitalkontenentwicklung","9635 - Darlehensverzinsung VH 6",{"$nulls":7},"9635","Darlehensverzinsung VH 6"]
["Kontenklasse 9 Statistische Konten","Statistische Konten für die Kapitalkontenentwicklung","9636 - Darlehensverzinsung VH 7",{"$nulls":7},"9636","Darlehensverzinsung VH 7"]
["Kontenklasse 9 Statistische Konten","Statistische Konten für die Kapitalkontenentwicklung","9637 - Darlehensverzinsung VH 8",{"$nulls":7},"9637","Darlehensverzinsung VH 8"]
["Kontenklasse 9 Statistische Konten","Statistische Konten für die Kapitalkontenentwicklung","9638 - Darlehensverzinsung VH 9",{"$nulls":7},"9638","Darlehensverzinsung VH 9"]
["Kontenklasse 9 Statistische Konten","Statistische Konten für die Kapitalkontenentwicklung","9639 - Darlehensverzinsung VH 10",{"$nulls":7},"9639","Darlehensverzinsung VH 10"]
["Kontenklasse 9 Statistische Konten","Statistische Konten für die Kapitalkontenentwicklung","9640 - Gebrauchsüberlassung VH 1",{"$nulls":7},"9640","Gebrauchsüberlassung VH 1"]
["Kontenklasse 9 Statistische Konten","Statistische Konten für die Kapitalkontenentwicklung","9641 - Gebrauchsüberlassung VH 2",{"$nulls":7},"9641","Gebrauchsüberlassung VH 2"]
["Kontenklasse 9 Statistische Konten","Statistische Konten für die Kapitalkontenentwicklung","9642 - Gebrauchsüberlassung VH 3",{"$nulls":7},"9642","Gebrauchsüberlassung VH 3"]
["Kontenklasse 9 Statistische Konten","Statistische Konten für die Kapitalkontenentwicklung","9643 - Gebrauchsüberlassung VH 4",{"$nulls":7},{"$f":"MID(C1795,1,4)","v":"9643"},{"$f":"MID(C1795,8,255)","v":"Gebrauchsüberlassung VH 4"}]
["Kontenklasse 9 Statistische Konten","Statistische Konten für die Kapitalkontenentwicklung","9644 - Gebrauchsüberlassung VH 5",{"$nulls":7},"9644","Gebrauchsüberlassung VH 5"]
["Kontenklasse 9 Statistische Konten","Statistische Konten für die Kapitalkontenentwicklung","9645 - Gebrauchsüberlassung VH 6",{"$nulls":7},"9645","Gebrauchsüberlassung VH 6"]
["Kontenklasse 9 Statistische Konten","Statistische Konten für die Kapitalkontenentwicklung","9646 - GebrauchsüberlassungVH 7",{"$nulls":7},"9646","GebrauchsüberlassungVH 7"]
["Kontenklasse 9 Statistische Konten","Statistische Konten für die Kapitalkontenentwicklung","9647 - Gebrauchsüberlassung VH 8",{"$nulls":7},"9647","Gebrauchsüberlassung VH 8"]
["Kontenklasse 9 Statistische Konten","Statistische Konten für die Kapitalkontenentwicklung","9648 - Gebrauchsüberlassung VH 9",{"$nulls":7},"9648","Gebrauchsüberlassung VH 9"]
["Kontenklasse 9 Statistische Konten","Statistische Konten für die Kapitalkontenentwicklung","9649 - Gebrauchsüberlassung VH 10",{"$nulls":7},"9649","Gebrauchsüberlassung VH 10"]
["Kontenklasse 9 Statistische Konten","Statistische Konten für die Kapitalkontenentwicklung","9650 - Sonstige Vergütungen VH 1",{"$nulls":7},"9650","Sonstige Vergütungen VH 1"]
["Kontenklasse 9 Statistische Konten","Statistische Konten für die Kapitalkontenentwicklung","9651 - Sonstige Vergütungen VH 2",{"$nulls":7},"9651","Sonstige Vergütungen VH 2"]
["Kontenklasse 9 Statistische Konten","Statistische Konten für die Kapitalkontenentwicklung","9652 - Sonstige Vergütungen VH 3",{"$nulls":7},"9652","Sonstige Vergütungen VH 3"]
["Kontenklasse 9 Statistische Konten","Statistische Konten für die Kapitalkontenentwicklung","9653 - Sonstige Vergütungen VH 4",{"$nulls":7},"9653","Sonstige Vergütungen VH 4"]
["Kontenklasse 9 Statistische Konten","Statistische Konten für die Kapitalkontenentwicklung","9654 - Sonstige Vergütungen VH 5",{"$nulls":7},"9654","Sonstige Vergütungen VH 5"]
["Kontenklasse 9 Statistische Konten","Statistische Konten für die Kapitalkontenentwicklung","9655 - Sonstige Vergütungen VH 6",{"$nulls":7},"9655","Sonstige Vergütungen VH 6"]
["Kontenklasse 9 Statistische Konten","Statistische Konten für die Kapitalkontenentwicklung","9656 - Sonstige Vergütungen VH 7",{"$nulls":7},"9656","Sonstige Vergütungen VH 7"]
["Kontenklasse 9 Statistische Konten","Statistische Konten für die Kapitalkontenentwicklung","9657 - Sonstige Vergütungen VH 8",{"$nulls":7},"9657","Sonstige Vergütungen VH 8"]
["Kontenklasse 9 Statistische Konten","Statistische Konten für die Kapitalkontenentwicklung","9658 - Sonstige Vergütungen VH 9",{"$nulls":7},"9658","Sonstige Vergütungen VH 9"]
["Kontenklasse 9 Statistische Konten","Statistische Konten für die Kapitalkontenentwicklung","9659 - Sonstige Vergütungen VH 10",{"$nulls":7},"9659","Sonstige Vergütungen VH 10"]
["Kontenklasse 9 Statistische Konten","Statistische Konten für die Kapitalkontenentwicklung","9660 - Sonstige Vergütungen VH 1",{"$nulls":7},"9660","Sonstige Vergütungen VH 1"]
["Kontenklasse 9 Statistische Konten","Statistische Konten für die Kapitalkontenentwicklung","9661 - Sonstige Vergütungen VH 2",{"$nulls":7},"9661","Sonstige Vergütungen VH 2"]
["Kontenklasse 9 Statistische Konten","Statistische Konten für die Kapitalkontenentwicklung","9662 - Sonstige Vergütungen VH 3",{"$nulls":7},"9662","Sonstige Vergütungen VH 3"]
["Kontenklasse 9 Statistische Konten","Statistische Konten für die Kapitalkontenentwicklung","9663 - Sonstige Vergütungen VH 4",{"$nulls":7},"9663","Sonstige Vergütungen VH 4"]
["Kontenklasse 9 Statistische Konten","Statistische Konten für die Kapitalkontenentwicklung","9664 - Sonstige Vergütungen VH 5",{"$nulls":7},"9664","Sonstige Vergütungen VH 5"]
["Kontenklasse 9 Statistische Konten","Statistische Konten für die Kapitalkontenentwicklung","9665 - Sonstige Vergütungen VH 6",{"$nulls":7},"9665","Sonstige Vergütungen VH 6"]
["Kontenklasse 9 Statistische Konten","Statistische Konten für die Kapitalkontenentwicklung","9666 - Sonstige Vergütungen VH 7",{"$nulls":7},"9666","Sonstige Vergütungen VH 7"]
["Kontenklasse 9 Statistische Konten","Statistische Konten für die Kapitalkontenentwicklung","9667 - Sonstige Vergütungen VH 8",{"$nulls":7},"9667","Sonstige Vergütungen VH 8"]
["Kontenklasse 9 Statistische Konten","Statistische Konten für die Kapitalkontenentwicklung","9668 - Sonstige Vergütungen VH 9",{"$nulls":7},"9668","Sonstige Vergütungen VH 9"]
["Kontenklasse 9 Statistische Konten","Statistische Konten für die Kapitalkontenentwicklung","9669 - Sonstige Vergütungen VH 10",{"$nulls":7},"9669","Sonstige Vergütungen VH 10"]
["Kontenklasse 9 Statistische Konten","Statistische Konten für die Kapitalkontenentwicklung","9670 - Sonstige Vergütungen VH 1",{"$nulls":7},"9670","Sonstige Vergütungen VH 1"]
["Kontenklasse 9 Statistische Konten","Statistische Konten für die Kapitalkontenentwicklung","9671 - Sonstige Vergütungen VH 2",{"$nulls":7},"9671","Sonstige Vergütungen VH 2"]
["Kontenklasse 9 Statistische Konten","Statistische Konten für die Kapitalkontenentwicklung","9672 - Sonstige Vergütungen VH 3",{"$nulls":7},"9672","Sonstige Vergütungen VH 3"]
["Kontenklasse 9 Statistische Konten","Statistische Konten für die Kapitalkontenentwicklung","9673 - Sonstige Vergütungen VH 4",{"$nulls":7},"9673","Sonstige Vergütungen VH 4"]
["Kontenklasse 9 Statistische Konten","Statistische Konten für die Kapitalkontenentwicklung","9674 - Sonstige Vergütungen VH 5",{"$nulls":7},"9674","Sonstige Vergütungen VH 5"]
["Kontenklasse 9 Statistische Konten","Statistische Konten für die Kapitalkontenentwicklung","9675 - Sonstige Vergütungen VH 6",{"$nulls":7},"9675","Sonstige Vergütungen VH 6"]
["Kontenklasse 9 Statistische Konten","Statistische Konten für die Kapitalkontenentwicklung","9676 - Sonstige Vergütungen VH 7",{"$nulls":7},"9676","Sonstige Vergütungen VH 7"]
["Kontenklasse 9 Statistische Konten","Statistische Konten für die Kapitalkontenentwicklung","9677 - Sonstige Vergütungen VH 8",{"$nulls":7},"9677","Sonstige Vergütungen VH 8"]
["Kontenklasse 9 Statistische Konten","Statistische Konten für die Kapitalkontenentwicklung","9678 - Sonstige Vergütungen VH 9",{"$nulls":7},"9678","Sonstige Vergütungen VH 9"]
["Kontenklasse 9 Statistische Konten","Statistische Konten für die Kapitalkontenentwicklung","9679 - Sonstige Vergütungen VH 10",{"$nulls":7},"9679","Sonstige Vergütungen VH 10"]
["Kontenklasse 9 Statistische Konten","Statistische Konten für die Kapitalkontenentwicklung","9680 - Sonstige Vergütungen VH 1",{"$nulls":7},"9680","Sonstige Vergütungen VH 1"]
["Kontenklasse 9 Statistische Konten","Statistische Konten für die Kapitalkontenentwicklung","9681 - Sonstige Vergütungen VH 2",{"$nulls":7},"9681","Sonstige Vergütungen VH 2"]
["Kontenklasse 9 Statistische Konten","Statistische Konten für die Kapitalkontenentwicklung","9682 - Sonstige Vergütungen VH 3",{"$nulls":7},"9682","Sonstige Vergütungen VH 3"]
["Kontenklasse 9 Statistische Konten","Statistische Konten für die Kapitalkontenentwicklung","9683 - Sonstige Vergütungen VH 4",{"$nulls":7},"9683","Sonstige Vergütungen VH 4"]
["Kontenklasse 9 Statistische Konten","Statistische Konten für die Kapitalkontenentwicklung","9684 - Sonstige Vergütungen VH 5",{"$nulls":7},"9684","Sonstige Vergütungen VH 5"]
["Kontenklasse 9 Statistische Konten","Statistische Konten für die Kapitalkontenentwicklung","9685 - Sonstige Vergütungen VH 6",{"$nulls":7},"9685","Sonstige Vergütungen VH 6"]
["Kontenklasse 9 Statistische Konten","Statistische Konten für die Kapitalkontenentwicklung","9686 - Sonstige Vergütungen VH 7",{"$nulls":7},"9686","Sonstige Vergütungen VH 7"]
["Kontenklasse 9 Statistische Konten","Statistische Konten für die Kapitalkontenentwicklung","9687 - Sonstige Vergütungen VH 8",{"$nulls":7},"9687","Sonstige Vergütungen VH 8"]
["Kontenklasse 9 Statistische Konten","Statistische Konten für die Kapitalkontenentwicklung","9688 - Sonstige Vergütungen VH 9",{"$nulls":7},"9688","Sonstige Vergütungen VH 9"]
["Kontenklasse 9 Statistische Konten","Statistische Konten für die Kapitalkontenentwicklung","9689 - Sonstige Vergütungen VH 10",{"$nulls":7},"9689","Sonstige Vergütungen VH 10"]
["Kontenklasse 9 Statistische Konten","Statistische Konten für die Kapitalkontenentwicklung","9690 - Restanteil VH 1",{"$nulls":7},"9690","Restanteil VH 1"]
["Kontenklasse 9 Statistische Konten","Statistische Konten für die Kapitalkontenentwicklung","9691 - Restanteil VH 2",{"$nulls":7},"9691","Restanteil VH 2"]
["Kontenklasse 9 Statistische Konten","Statistische Konten für die Kapitalkontenentwicklung","9692 - Restanteil VH 3",{"$nulls":7},"9692","Restanteil VH 3"]
["Kontenklasse 9 Statistische Konten","Statistische Konten für die Kapitalkontenentwicklung","9693 - Restanteil VH 4",{"$nulls":7},"9693","Restanteil VH 4"]
["Kontenklasse 9 Statistische Konten","Statistische Konten für die Kapitalkontenentwicklung","9694 - Restanteil VH 5",{"$nulls":7},"9694","Restanteil VH 5"]
["Kontenklasse 9 Statistische Konten","Statistische Konten für die Kapitalkontenentwicklung","9695 - Restanteil VH 6",{"$nulls":7},"9695","Restanteil VH 6"]
["Kontenklasse 9 Statistische Konten","Statistische Konten für die Kapitalkontenentwicklung","9696 - Restanteil VH 7",{"$nulls":7},"9696","Restanteil VH 7"]
["Kontenklasse 9 Statistische Konten","Statistische Konten für die Kapitalkontenentwicklung","9697 - Restanteil VH 8",{"$nulls":7},"9697","Restanteil VH 8"]
["Kontenklasse 9 Statistische Konten","Statistische Konten für die Kapitalkontenentwicklung","9698 - Restanteil VH 9",{"$nulls":7},"9698","Restanteil VH 9"]
["Kontenklasse 9 Statistische Konten","Statistische Konten für die Kapitalkontenentwicklung","9699 - Restanteil VH 10",{"$nulls":7},"9699","Restanteil VH 10"]
["Kontenklasse 9 Statistische Konten","Statistische Konten für die Kapitalkontenentwicklung","9700 - Name des Gesellschafters TH 1",{"$nulls":7},"9700","Name des Gesellschafters TH 1"]
["Kontenklasse 9 Statistische Konten","Statistische Konten für die Kapitalkontenentwicklung","9701 - Name des Gesellschafters TH 2",{"$nulls":7},"9701","Name des Gesellschafters TH 2"]
["Kontenklasse 9 Statistische Konten","Statistische Konten für die Kapitalkontenentwicklung","9702 - Name des Gesellschafters TH 3",{"$nulls":7},"9702","Name des Gesellschafters TH 3"]
["Kontenklasse 9 Statistische Konten","Statistische Konten für die Kapitalkontenentwicklung","9703 - Name des Gesellschafters TH 4",{"$nulls":7},"9703","Name des Gesellschafters TH 4"]
["Kontenklasse 9 Statistische Konten","Statistische Konten für die Kapitalkontenentwicklung","9704 - Name des Gesellschafters TH 5",{"$nulls":7},"9704","Name des Gesellschafters TH 5"]
["Kontenklasse 9 Statistische Konten","Statistische Konten für die Kapitalkontenentwicklung","9705 - Name des Gesellschafters TH 6",{"$nulls":7},"9705","Name des Gesellschafters TH 6"]
["Kontenklasse 9 Statistische Konten","Statistische Konten für die Kapitalkontenentwicklung","9706 - Name des Gesellschafters TH 7",{"$nulls":7},"9706","Name des Gesellschafters TH 7"]
["Kontenklasse 9 Statistische Konten","Statistische Konten für die Kapitalkontenentwicklung","9707 - Name des Gesellschafters TH 8",{"$nulls":7},{"$f":"MID(C1859,1,4)","v":"9707"},{"$f":"MID(C1859,8,255)","v":"Name des Gesellschafters TH 8"}]
["Kontenklasse 9 Statistische Konten","Statistische Konten für die Kapitalkontenentwicklung","9708 - Name des Gesellschafters TH 9",{"$nulls":7},"9708","Name des Gesellschafters TH 9"]
["Kontenklasse 9 Statistische Konten","Statistische Konten für die Kapitalkontenentwicklung","9709 - Name des Gesellschafters TH 10",{"$nulls":7},"9709","Name des Gesellschafters TH 10"]
["Kontenklasse 9 Statistische Konten","Statistische Konten für die Kapitalkontenentwicklung","9710 - Tätigkeitsvergütung TH 1",{"$nulls":7},"9710","Tätigkeitsvergütung TH 1"]
["Kontenklasse 9 Statistische Konten","Statistische Konten für die Kapitalkontenentwicklung","9711 - Tätigkeitsvergütung TH 2",{"$nulls":7},"9711","Tätigkeitsvergütung TH 2"]
["Kontenklasse 9 Statistische Konten","Statistische Konten für die Kapitalkontenentwicklung","9712 - Tätigkeitsvergütung TH 3",{"$nulls":7},"9712","Tätigkeitsvergütung TH 3"]
["Kontenklasse 9 Statistische Konten","Statistische Konten für die Kapitalkontenentwicklung","9713 - Tätigkeitsvergütung TH 4",{"$nulls":7},"9713","Tätigkeitsvergütung TH 4"]
["Kontenklasse 9 Statistische Konten","Statistische Konten für die Kapitalkontenentwicklung","9714 - Tätigkeitsvergütung TH 5",{"$nulls":7},"9714","Tätigkeitsvergütung TH 5"]
["Kontenklasse 9 Statistische Konten","Statistische Konten für die Kapitalkontenentwicklung","9715 - Tätigkeitsvergütung TH 6",{"$nulls":7},"9715","Tätigkeitsvergütung TH 6"]
["Kontenklasse 9 Statistische Konten","Statistische Konten für die Kapitalkontenentwicklung","9716 - Tätigkeitsvergütung TH 7",{"$nulls":7},"9716","Tätigkeitsvergütung TH 7"]
["Kontenklasse 9 Statistische Konten","Statistische Konten für die Kapitalkontenentwicklung","9717 - Tätigkeitsvergütung TH 8",{"$nulls":7},"9717","Tätigkeitsvergütung TH 8"]
["Kontenklasse 9 Statistische Konten","Statistische Konten für die Kapitalkontenentwicklung","9718 - TätigkeitsvergütungTH 9",{"$nulls":7},"9718","TätigkeitsvergütungTH 9"]
["Kontenklasse 9 Statistische Konten","Statistische Konten für die Kapitalkontenentwicklung","9719 - Tätigkeitsvergütung TH 10",{"$nulls":7},"9719","Tätigkeitsvergütung TH 10"]
["Kontenklasse 9 Statistische Konten","Statistische Konten für die Kapitalkontenentwicklung","9720 - Tantieme TH 1",{"$nulls":7},"9720","Tantieme TH 1"]
["Kontenklasse 9 Statistische Konten","Statistische Konten für die Kapitalkontenentwicklung","9721 - Tantieme TH 2",{"$nulls":7},"9721","Tantieme TH 2"]
["Kontenklasse 9 Statistische Konten","Statistische Konten für die Kapitalkontenentwicklung","9722 - Tantieme  TH 3",{"$nulls":7},"9722","Tantieme  TH 3"]
["Kontenklasse 9 Statistische Konten","Statistische Konten für die Kapitalkontenentwicklung","9723 - Tantieme TH 4",{"$nulls":7},"9723","Tantieme TH 4"]
["Kontenklasse 9 Statistische Konten","Statistische Konten für die Kapitalkontenentwicklung","9724 - Tantieme TH 5",{"$nulls":7},"9724","Tantieme TH 5"]
["Kontenklasse 9 Statistische Konten","Statistische Konten für die Kapitalkontenentwicklung","9725 - Tantieme TH 6",{"$nulls":7},"9725","Tantieme TH 6"]
["Kontenklasse 9 Statistische Konten","Statistische Konten für die Kapitalkontenentwicklung","9726 - Tantieme TH 7",{"$nulls":7},"9726","Tantieme TH 7"]
["Kontenklasse 9 Statistische Konten","Statistische Konten für die Kapitalkontenentwicklung","9727 - Tantieme TH 8",{"$nulls":7},"9727","Tantieme TH 8"]
["Kontenklasse 9 Statistische Konten","Statistische Konten für die Kapitalkontenentwicklung","9728 - Tantieme TH 9",{"$nulls":7},"9728","Tantieme TH 9"]
["Kontenklasse 9 Statistische Konten","Statistische Konten für die Kapitalkontenentwicklung","9729 - Tantieme TH 10",{"$nulls":7},"9729","Tantieme TH 10"]
["Kontenklasse 9 Statistische Konten","Statistische Konten für die Kapitalkontenentwicklung","9730 - Darlehensverzinsung TH 1",{"$nulls":7},"9730","Darlehensverzinsung TH 1"]
["Kontenklasse 9 Statistische Konten","Statistische Konten für die Kapitalkontenentwicklung","9731 - Darlehensverzinsung TH 2",{"$nulls":7},"9731","Darlehensverzinsung TH 2"]
["Kontenklasse 9 Statistische Konten","Statistische Konten für die Kapitalkontenentwicklung","9732 - Darlehensverzinsung TH 3",{"$nulls":7},"9732","Darlehensverzinsung TH 3"]
["Kontenklasse 9 Statistische Konten","Statistische Konten für die Kapitalkontenentwicklung","9733 - Darlehensverzinsung TH 4",{"$nulls":7},"9733","Darlehensverzinsung TH 4"]
["Kontenklasse 9 Statistische Konten","Statistische Konten für die Kapitalkontenentwicklung","9734 - Darlehensverzinsung TH 5",{"$nulls":7},"9734","Darlehensverzinsung TH 5"]
["Kontenklasse 9 Statistische Konten","Statistische Konten für die Kapitalkontenentwicklung","9735 - Darlehensverzinsung TH 6",{"$nulls":7},"9735","Darlehensverzinsung TH 6"]
["Kontenklasse 9 Statistische Konten","Statistische Konten für die Kapitalkontenentwicklung","9736 - Darlehensverzinsung TH 7",{"$nulls":7},"9736","Darlehensverzinsung TH 7"]
["Kontenklasse 9 Statistische Konten","Statistische Konten für die Kapitalkontenentwicklung","9737 - Darlehensverzinsung TH 8",{"$nulls":7},"9737","Darlehensverzinsung TH 8"]
["Kontenklasse 9 Statistische Konten","Statistische Konten für die Kapitalkontenentwicklung","9738 - Darlehensverzinsung TH 9",{"$nulls":7},"9738","Darlehensverzinsung TH 9"]
["Kontenklasse 9 Statistische Konten","Statistische Konten für die Kapitalkontenentwicklung","9739 - Darlehensverzinsung TH 10",{"$nulls":7},"9739","Darlehensverzinsung TH 10"]
["Kontenklasse 9 Statistische Konten","Statistische Konten für die Kapitalkontenentwicklung","9740 - Gebrauchsüberlassung TH 1",{"$nulls":7},"9740","Gebrauchsüberlassung TH 1"]
["Kontenklasse 9 Statistische Konten","Statistische Konten für die Kapitalkontenentwicklung","9741 - Gebrauchsüberlassung TH 2",{"$nulls":7},"9741","Gebrauchsüberlassung TH 2"]
["Kontenklasse 9 Statistische Konten","Statistische Konten für die Kapitalkontenentwicklung","9742 - Gebrauchsüberlassung TH 3",{"$nulls":7},"9742","Gebrauchsüberlassung TH 3"]
["Kontenklasse 9 Statistische Konten","Statistische Konten für die Kapitalkontenentwicklung","9743 - Gebrauchsüberlassung TH 4",{"$nulls":7},"9743","Gebrauchsüberlassung TH 4"]
["Kontenklasse 9 Statistische Konten","Statistische Konten für die Kapitalkontenentwicklung","9744 - Gebrauchsüberlassung TH 5",{"$nulls":7},"9744","Gebrauchsüberlassung TH 5"]
["Kontenklasse 9 Statistische Konten","Statistische Konten für die Kapitalkontenentwicklung","9745 - Gebrauchsüberlassung TH 6",{"$nulls":7},"9745","Gebrauchsüberlassung TH 6"]
["Kontenklasse 9 Statistische Konten","Statistische Konten für die Kapitalkontenentwicklung","9746 - Gebrauchsüberlassung TH 7",{"$nulls":7},"9746","Gebrauchsüberlassung TH 7"]
["Kontenklasse 9 Statistische Konten","Statistische Konten für die Kapitalkontenentwicklung","9747 - Gebrauchsüberlassung TH 8",{"$nulls":7},"9747","Gebrauchsüberlassung TH 8"]
["Kontenklasse 9 Statistische Konten","Statistische Konten für die Kapitalkontenentwicklung","9748 - Gebrauchsüberlassung TH 9",{"$nulls":7},"9748","Gebrauchsüberlassung TH 9"]
["Kontenklasse 9 Statistische Konten","Statistische Konten für die Kapitalkontenentwicklung","9749 - Gebrauchsüberlassung TH 10",{"$nulls":7},"9749","Gebrauchsüberlassung TH 10"]
["Kontenklasse 9 Statistische Konten","Statistische Konten für die Kapitalkontenentwicklung","9750 - Sonstige Vergütungen TH 1",{"$nulls":7},"9750","Sonstige Vergütungen TH 1"]
["Kontenklasse 9 Statistische Konten","Statistische Konten für die Kapitalkontenentwicklung","9751 - Sonstige Vergütungen TH 2",{"$nulls":7},"9751","Sonstige Vergütungen TH 2"]
["Kontenklasse 9 Statistische Konten","Statistische Konten für die Kapitalkontenentwicklung","9752 - Sonstige Vergütungen TH 3",{"$nulls":7},"9752","Sonstige Vergütungen TH 3"]
["Kontenklasse 9 Statistische Konten","Statistische Konten für die Kapitalkontenentwicklung","9753 - Sonstige Vergütungen TH 4",{"$nulls":7},"9753","Sonstige Vergütungen TH 4"]
["Kontenklasse 9 Statistische Konten","Statistische Konten für die Kapitalkontenentwicklung","9754 - Sonstige Vergütungen TH 5",{"$nulls":7},"9754","Sonstige Vergütungen TH 5"]
["Kontenklasse 9 Statistische Konten","Statistische Konten für die Kapitalkontenentwicklung","9755 - Sonstige Vergütungen TH 6",{"$nulls":7},"9755","Sonstige Vergütungen TH 6"]
["Kontenklasse 9 Statistische Konten","Statistische Konten für die Kapitalkontenentwicklung","9756 - Sonstige Vergütungen TH 7",{"$nulls":7},"9756","Sonstige Vergütungen TH 7"]
["Kontenklasse 9 Statistische Konten","Statistische Konten für die Kapitalkontenentwicklung","9757 - Sonstige Vergütungen TH 8",{"$nulls":7},"9757","Sonstige Vergütungen TH 8"]
["Kontenklasse 9 Statistische Konten","Statistische Konten für die Kapitalkontenentwicklung","9758 - Sonstige Vergütungen TH 9",{"$nulls":7},"9758","Sonstige Vergütungen TH 9"]
["Kontenklasse 9 Statistische Konten","Statistische Konten für die Kapitalkontenentwicklung","9759 - Sonstige Vergütungen TH 10",{"$nulls":7},"9759","Sonstige Vergütungen TH 10"]
["Kontenklasse 9 Statistische Konten","Statistische Konten für die Kapitalkontenentwicklung","9760 - Sonstige Vergütungen TH 1",{"$nulls":7},"9760","Sonstige Vergütungen TH 1"]
["Kontenklasse 9 Statistische Konten","Statistische Konten für die Kapitalkontenentwicklung","9761 - Sonstige Vergütungen TH 2",{"$nulls":7},"9761","Sonstige Vergütungen TH 2"]
["Kontenklasse 9 Statistische Konten","Statistische Konten für die Kapitalkontenentwicklung","9762 - Sonstige Vergütungen TH 3",{"$nulls":7},"9762","Sonstige Vergütungen TH 3"]
["Kontenklasse 9 Statistische Konten","Statistische Konten für die Kapitalkontenentwicklung","9763 - Sonstige Vergütungen TH 4",{"$nulls":7},"9763","Sonstige Vergütungen TH 4"]
["Kontenklasse 9 Statistische Konten","Statistische Konten für die Kapitalkontenentwicklung","9764 - Sonstige Vergütungen TH 5",{"$nulls":7},"9764","Sonstige Vergütungen TH 5"]
["Kontenklasse 9 Statistische Konten","Statistische Konten für die Kapitalkontenentwicklung","9765 - Sonstige Vergütungen TH 6",{"$nulls":7},"9765","Sonstige Vergütungen TH 6"]
["Kontenklasse 9 Statistische Konten","Statistische Konten für die Kapitalkontenentwicklung","9766 - Sonstige Vergütungen TH 7",{"$nulls":7},"9766","Sonstige Vergütungen TH 7"]
["Kontenklasse 9 Statistische Konten","Statistische Konten für die Kapitalkontenentwicklung","9767 - Sonstige Vergütungen TH 8",{"$nulls":7},"9767","Sonstige Vergütungen TH 8"]
["Kontenklasse 9 Statistische Konten","Statistische Konten für die Kapitalkontenentwicklung","9768 - Sonstige Vergütungen TH 9",{"$nulls":7},"9768","Sonstige Vergütungen TH 9"]
["Kontenklasse 9 Statistische Konten","Statistische Konten für die Kapitalkontenentwicklung","9769 - Sonstige Vergütungen TH 10",{"$nulls":7},"9769","Sonstige Vergütungen TH 10"]
["Kontenklasse 9 Statistische Konten","Statistische Konten für die Kapitalkontenentwicklung","9770 - Sonstige Vergütungen TH 1",{"$nulls":7},"9770","Sonstige Vergütungen TH 1"]
["Kontenklasse 9 Statistische Konten","Statistische Konten für die Kapitalkontenentwicklung","9771 - Sonstige Vergütungen TH 2",{"$nulls":7},{"$f":"MID(C1923,1,4)","v":"9771"},{"$f":"MID(C1923,8,255)","v":"Sonstige Vergütungen TH 2"}]
["Kontenklasse 9 Statistische Konten","Statistische Konten für die Kapitalkontenentwicklung","9772 - Sonstige Vergütungen TH 3",{"$nulls":7},"9772","Sonstige Vergütungen TH 3"]
["Kontenklasse 9 Statistische Konten","Statistische Konten für die Kapitalkontenentwicklung","9773 - Sonstige Vergütungen TH 4",{"$nulls":7},"9773","Sonstige Vergütungen TH 4"]
["Kontenklasse 9 Statistische Konten","Statistische Konten für die Kapitalkontenentwicklung","9774 - Sonstige Vergütungen TH 5",{"$nulls":7},"9774","Sonstige Vergütungen TH 5"]
["Kontenklasse 9 Statistische Konten","Statistische Konten für die Kapitalkontenentwicklung","9775 - Sonstige Vergütungen TH 6",{"$nulls":7},"9775","Sonstige Vergütungen TH 6"]
["Kontenklasse 9 Statistische Konten","Statistische Konten für die Kapitalkontenentwicklung","9776 - Sonstige Vergütungen TH 7",{"$nulls":7},"9776","Sonstige Vergütungen TH 7"]
["Kontenklasse 9 Statistische Konten","Statistische Konten für die Kapitalkontenentwicklung","9777 - Sonstige Vergütungen TH 8",{"$nulls":7},"9777","Sonstige Vergütungen TH 8"]
["Kontenklasse 9 Statistische Konten","Statistische Konten für die Kapitalkontenentwicklung","9778 - Sonstige Vergütungen TH 9",{"$nulls":7},"9778","Sonstige Vergütungen TH 9"]
["Kontenklasse 9 Statistische Konten","Statistische Konten für die Kapitalkontenentwicklung","9779 - Sonstige Vergütungen TH 10",{"$nulls":7},"9779","Sonstige Vergütungen TH 10"]
["Kontenklasse 9 Statistische Konten","Statistische Konten für die Kapitalkontenentwicklung","9780 - Anteil für Konto 9840 (TH 1)",{"$nulls":7},"9780","Anteil für Konto 9840 (TH 1)"]
["Kontenklasse 9 Statistische Konten","Statistische Konten für die Kapitalkontenentwicklung","9781 - Anteil für Konto 9841 (TH 2)",{"$nulls":7},"9781","Anteil für Konto 9841 (TH 2)"]
["Kontenklasse 9 Statistische Konten","Statistische Konten für die Kapitalkontenentwicklung","9782 - Anteil für Konto 9842 (TH 3)",{"$nulls":7},"9782","Anteil für Konto 9842 (TH 3)"]
["Kontenklasse 9 Statistische Konten","Statistische Konten für die Kapitalkontenentwicklung","9783 - Anteil für Konto 9843 (TH 4)",{"$nulls":7},"9783","Anteil für Konto 9843 (TH 4)"]
["Kontenklasse 9 Statistische Konten","Statistische Konten für die Kapitalkontenentwicklung","9784 - Anteil für Konto 9844 (TH 5)",{"$nulls":7},"9784","Anteil für Konto 9844 (TH 5)"]
["Kontenklasse 9 Statistische Konten","Statistische Konten für die Kapitalkontenentwicklung","9785 - Anteil für Konto 9845 (TH 6)",{"$nulls":7},"9785","Anteil für Konto 9845 (TH 6)"]
["Kontenklasse 9 Statistische Konten","Statistische Konten für die Kapitalkontenentwicklung","9786 - Anteil für Konto 9846 (TH 7)",{"$nulls":7},"9786","Anteil für Konto 9846 (TH 7)"]
["Kontenklasse 9 Statistische Konten","Statistische Konten für die Kapitalkontenentwicklung","9787 - Anteil für Konto 9847 (TH 8)",{"$nulls":7},"9787","Anteil für Konto 9847 (TH 8)"]
["Kontenklasse 9 Statistische Konten","Statistische Konten für die Kapitalkontenentwicklung","9788 - Anteil für Konto 9848 (TH 9)",{"$nulls":7},"9788","Anteil für Konto 9848 (TH 9)"]
["Kontenklasse 9 Statistische Konten","Statistische Konten für die Kapitalkontenentwicklung","9789 - Anteil für Konto 9849 (TH 10)",{"$nulls":7},"9789","Anteil für Konto 9849 (TH 10)"]
["Kontenklasse 9 Statistische Konten","Statistische Konten für die Kapitalkontenentwicklung","9790 - Restanteil TH 1",{"$nulls":7},"9790","Restanteil TH 1"]
["Kontenklasse 9 Statistische Konten","Statistische Konten für die Kapitalkontenentwicklung","9791 - Restanteil TH 2",{"$nulls":7},"9791","Restanteil TH 2"]
["Kontenklasse 9 Statistische Konten","Statistische Konten für die Kapitalkontenentwicklung","9792 - Restanteil TH 3",{"$nulls":7},"9792","Restanteil TH 3"]
["Kontenklasse 9 Statistische Konten","Statistische Konten für die Kapitalkontenentwicklung","9793 - Restanteil TH 4",{"$nulls":7},"9793","Restanteil TH 4"]
["Kontenklasse 9 Statistische Konten","Statistische Konten für die Kapitalkontenentwicklung","9794 - Restanteil TH 5",{"$nulls":7},"9794","Restanteil TH 5"]
["Kontenklasse 9 Statistische Konten","Statistische Konten für die Kapitalkontenentwicklung","9795 - Restanteil TH 6",{"$nulls":7},"9795","Restanteil TH 6"]
["Kontenklasse 9 Statistische Konten","Statistische Konten für die Kapitalkontenentwicklung","9796 - Restanteil TH 7",{"$nulls":7},"9796","Restanteil TH 7"]
["Kontenklasse 9 Statistische Konten","Statistische Konten für die Kapitalkontenentwicklung","9797 - Restanteil TH 8",{"$nulls":7},"9797","Restanteil TH 8"]
["Kontenklasse 9 Statistische Konten","Statistische Konten für die Kapitalkontenentwicklung","9798 - Restanteil TH 9",{"$nulls":7},"9798","Restanteil TH 9"]
["Kontenklasse 9 Statistische Konten","Statistische Konten für die Kapitalkontenentwicklung","9799 - Restanteil TH 10",{"$nulls":7},"9799","Restanteil TH 10"]
["Kontenklasse 9 Statistische Konten","Kapital Personenhandelsgesellschaft Vollhafter","9800 - Abstimmsummenkonto für den Import von Buchungssätzen",{"$nulls":7},"9800","Abstimmsummenkonto für den Import von Buchungssätzen"]
["Kontenklasse 9 Statistische Konten","Kapital Personenhandelsgesellschaft Vollhafter","9810 - Kapitalkonto III",{"$nulls":7},"9810","Kapitalkonto III"]
["Kontenklasse 9 Statistische Konten","Kapital Personenhandelsgesellschaft Vollhafter","9811 - Kapitalkonto III",{"$nulls":7},"9811","Kapitalkonto III"]
["Kontenklasse 9 Statistische Konten","Kapital Personenhandelsgesellschaft Vollhafter","9812 - Kapitalkonto III",{"$nulls":7},"9812","Kapitalkonto III"]
["Kontenklasse 9 Statistische Konten","Kapital Personenhandelsgesellschaft Vollhafter","9813 - Kapitalkonto III",{"$nulls":7},"9813","Kapitalkonto III"]
["Kontenklasse 9 Statistische Konten","Kapital Personenhandelsgesellschaft Vollhafter","9814 - Kapitalkonto III",{"$nulls":7},"9814","Kapitalkonto III"]
["Kontenklasse 9 Statistische Konten","Kapital Personenhandelsgesellschaft Vollhafter","9815 - Kapitalkonto III",{"$nulls":7},"9815","Kapitalkonto III"]
["Kontenklasse 9 Statistische Konten","Kapital Personenhandelsgesellschaft Vollhafter","9816 - Kapitalkonto III",{"$nulls":7},"9816","Kapitalkonto III"]
["Kontenklasse 9 Statistische Konten","Kapital Personenhandelsgesellschaft Vollhafter","9817 - Kapitalkonto III",{"$nulls":7},"9817","Kapitalkonto III"]
["Kontenklasse 9 Statistische Konten","Kapital Personenhandelsgesellschaft Vollhafter","9818 - Kapitalkonto III",{"$nulls":7},"9818","Kapitalkonto III"]
["Kontenklasse 9 Statistische Konten","Kapital Personenhandelsgesellschaft Vollhafter","9819 - Kapitalkonto III",{"$nulls":7},"9819","Kapitalkonto III"]
["Kontenklasse 9 Statistische Konten","Kapital Personenhandelsgesellschaft Vollhafter","9820 - Verlust-/Vortragskonto VH 1",{"$nulls":7},"9820","Verlust-/Vortragskonto VH 1"]
["Kontenklasse 9 Statistische Konten","Kapital Personenhandelsgesellschaft Vollhafter","9821 - Verlust-/Vortragskonto VH 2",{"$nulls":7},"9821","Verlust-/Vortragskonto VH 2"]
["Kontenklasse 9 Statistische Konten","Kapital Personenhandelsgesellschaft Vollhafter","9822 - Verlust-/Vortragskonto VH 3",{"$nulls":7},"9822","Verlust-/Vortragskonto VH 3"]
["Kontenklasse 9 Statistische Konten","Kapital Personenhandelsgesellschaft Vollhafter","9823 - Verlust-/Vortragskonto VH 4",{"$nulls":7},"9823","Verlust-/Vortragskonto VH 4"]
["Kontenklasse 9 Statistische Konten","Kapital Personenhandelsgesellschaft Vollhafter","9824 - Verlust-/Vortragskonto VH 5",{"$nulls":7},"9824","Verlust-/Vortragskonto VH 5"]
["Kontenklasse 9 Statistische Konten","Kapital Personenhandelsgesellschaft Vollhafter","9825 - Verlust-/Vortragskonto VH 6",{"$nulls":7},"9825","Verlust-/Vortragskonto VH 6"]
["Kontenklasse 9 Statistische Konten","Kapital Personenhandelsgesellschaft Vollhafter","9826 - Verlust-/Vortragskonto VH 7",{"$nulls":7},"9826","Verlust-/Vortragskonto VH 7"]
["Kontenklasse 9 Statistische Konten","Kapital Personenhandelsgesellschaft Vollhafter","9827 - Verlust-/Vortragskonto VH 8",{"$nulls":7},"9827","Verlust-/Vortragskonto VH 8"]
["Kontenklasse 9 Statistische Konten","Kapital Personenhandelsgesellschaft Vollhafter","9828 - Verlust-/Vortragskonto VH 9",{"$nulls":7},"9828","Verlust-/Vortragskonto VH 9"]
["Kontenklasse 9 Statistische Konten","Kapital Personenhandelsgesellschaft Vollhafter","9829 - Verlust-/Vortragskonto VH 10",{"$nulls":7},"9829","Verlust-/Vortragskonto VH 10"]
["Kontenklasse 9 Statistische Konten","Kapital Personenhandelsgesellschaft Vollhafter","9830 - Verrechnungskonto für Einzahlungsverpflichtungen VH 1",{"$nulls":7},"9830","Verrechnungskonto für Einzahlungsverpflichtungen VH 1"]
["Kontenklasse 9 Statistische Konten","Kapital Personenhandelsgesellschaft Vollhafter","9831 - Verrechnungskonto für Einzahlungsverpflichtungen VH 2",{"$nulls":7},"9831","Verrechnungskonto für Einzahlungsverpflichtungen VH 2"]
["Kontenklasse 9 Statistische Konten","Kapital Personenhandelsgesellschaft Vollhafter","9832 - Verrechnungskonto für Einzahlungsverpflichtungen VH 3",{"$nulls":7},"9832","Verrechnungskonto für Einzahlungsverpflichtungen VH 3"]
["Kontenklasse 9 Statistische Konten","Kapital Personenhandelsgesellschaft Vollhafter","9833 - Verrechnungskonto für Einzahlungsverpflichtungen VH 4",{"$nulls":7},"9833","Verrechnungskonto für Einzahlungsverpflichtungen VH 4"]
["Kontenklasse 9 Statistische Konten","Kapital Personenhandelsgesellschaft Vollhafter","9834 - Verrechnungskonto für Einzahlungsverpflichtungen VH 5",{"$nulls":7},"9834","Verrechnungskonto für Einzahlungsverpflichtungen VH 5"]
["Kontenklasse 9 Statistische Konten","Kapital Personenhandelsgesellschaft Vollhafter","9835 - Verrechnungskonto für Einzahlungsverpflichtungen VH 6",{"$nulls":7},"9835","Verrechnungskonto für Einzahlungsverpflichtungen VH 6"]
["Kontenklasse 9 Statistische Konten","Kapital Personenhandelsgesellschaft Vollhafter","9836 - Verrechnungskonto für Einzahlungsverpflichtungen VH 7",{"$nulls":7},"9836","Verrechnungskonto für Einzahlungsverpflichtungen VH 7"]
["Kontenklasse 9 Statistische Konten","Kapital Personenhandelsgesellschaft Vollhafter","9837 - Verrechnungskonto für Einzahlungsverpflichtungen VH 8",{"$nulls":7},"9837","Verrechnungskonto für Einzahlungsverpflichtungen VH 8"]
["Kontenklasse 9 Statistische Konten","Kapital Personenhandelsgesellschaft Vollhafter","9838 - Verrechnungskonto für Einzahlungsverpflichtungen VH 9",{"$nulls":7},"9838","Verrechnungskonto für Einzahlungsverpflichtungen VH 9"]
["Kontenklasse 9 Statistische Konten","Kapital Personenhandelsgesellschaft Vollhafter","9839 - Verrechnungskonto für Einzahlungsverpflichtungen VH 10",{"$nulls":7},"9839","Verrechnungskonto für Einzahlungsverpflichtungen VH 10"]
["Kontenklasse 9 Statistische Konten","Kapital Personenhandelsgesellschaft Teilhafter","9840 - Kapitalkonto III",{"$nulls":7},"9840","Kapitalkonto III"]
["Kontenklasse 9 Statistische Konten","Kapital Personenhandelsgesellschaft Teilhafter","9841 - Kapitalkonto III",{"$nulls":7},"9841","Kapitalkonto III"]
["Kontenklasse 9 Statistische Konten","Kapital Personenhandelsgesellschaft Teilhafter","9842 - Kapitalkonto III",{"$nulls":7},"9842","Kapitalkonto III"]
["Kontenklasse 9 Statistische Konten","Kapital Personenhandelsgesellschaft Teilhafter","9843 - Kapitalkonto III",{"$nulls":7},"9843","Kapitalkonto III"]
["Kontenklasse 9 Statistische Konten","Kapital Personenhandelsgesellschaft Teilhafter","9844 - Kapitalkonto III",{"$nulls":7},{"$f":"MID(C1987,1,4)","v":"9844"},{"$f":"MID(C1987,8,255)","v":"Kapitalkonto III"}]
["Kontenklasse 9 Statistische Konten","Kapital Personenhandelsgesellschaft Teilhafter","9845 - Kapitalkonto III",{"$nulls":7},"9845","Kapitalkonto III"]
["Kontenklasse 9 Statistische Konten","Kapital Personenhandelsgesellschaft Teilhafter","9846 - Kapitalkonto III",{"$nulls":7},"9846","Kapitalkonto III"]
["Kontenklasse 9 Statistische Konten","Kapital Personenhandelsgesellschaft Teilhafter","9847 - Kapitalkonto III",{"$nulls":7},"9847","Kapitalkonto III"]
["Kontenklasse 9 Statistische Konten","Kapital Personenhandelsgesellschaft Teilhafter","9848 - Kapitalkonto III",{"$nulls":7},"9848","Kapitalkonto III"]
["Kontenklasse 9 Statistische Konten","Kapital Personenhandelsgesellschaft Teilhafter","9849 - Kapitalkonto III",{"$nulls":7},"9849","Kapitalkonto III"]
["Kontenklasse 9 Statistische Konten","Kapital Personenhandelsgesellschaft Teilhafter","9850 - Verrechnungskonto für Einzahlungsverpflichtungen TH 1",{"$nulls":7},"9850","Verrechnungskonto für Einzahlungsverpflichtungen TH 1"]
["Kontenklasse 9 Statistische Konten","Kapital Personenhandelsgesellschaft Teilhafter","9851 - Verrechnungskonto für Einzahlungsverpflichtungen TH 2",{"$nulls":7},"9851","Verrechnungskonto für Einzahlungsverpflichtungen TH 2"]
["Kontenklasse 9 Statistische Konten","Kapital Personenhandelsgesellschaft Teilhafter","9852 - Verrechnungskonto für Einzahlungsverpflichtungen TH 3",{"$nulls":7},"9852","Verrechnungskonto für Einzahlungsverpflichtungen TH 3"]
["Kontenklasse 9 Statistische Konten","Kapital Personenhandelsgesellschaft Teilhafter","9853 - Verrechnungskonto für Einzahlungsverpflichtungen TH 4",{"$nulls":7},"9853","Verrechnungskonto für Einzahlungsverpflichtungen TH 4"]
["Kontenklasse 9 Statistische Konten","Kapital Personenhandelsgesellschaft Teilhafter","9854 - Verrechnungskonto für Einzahlungsverpflichtungen TH 5",{"$nulls":7},"9854","Verrechnungskonto für Einzahlungsverpflichtungen TH 5"]
["Kontenklasse 9 Statistische Konten","Kapital Personenhandelsgesellschaft Teilhafter","9855 - Verrechnungskonto für Einzahlungsverpflichtungen TH 6",{"$nulls":7},"9855","Verrechnungskonto für Einzahlungsverpflichtungen TH 6"]
["Kontenklasse 9 Statistische Konten","Kapital Personenhandelsgesellschaft Teilhafter","9856 - Verrechnungskonto für Einzahlungsverpflichtungen TH 7",{"$nulls":7},"9856","Verrechnungskonto für Einzahlungsverpflichtungen TH 7"]
["Kontenklasse 9 Statistische Konten","Kapital Personenhandelsgesellschaft Teilhafter","9857 - Verrechnungskonto für Einzahlungsverpflichtungen TH 8",{"$nulls":7},"9857","Verrechnungskonto für Einzahlungsverpflichtungen TH 8"]
["Kontenklasse 9 Statistische Konten","Kapital Personenhandelsgesellschaft Teilhafter","9858 - Verrechnungskonto für Einzahlungsverpflichtungen TH 9",{"$nulls":7},"9858","Verrechnungskonto für Einzahlungsverpflichtungen TH 9"]
["Kontenklasse 9 Statistische Konten","Kapital Personenhandelsgesellschaft Teilhafter","9859 - Verrechnungskonto für Einzahlungsverpflcihtungen TH 10",{"$nulls":7},"9859","Verrechnungskonto für Einzahlungsverpflcihtungen TH 10"]
["Kontenklasse 9 Statistische Konten","Einzahlungsverpflichtungen im Bereich der Forderungen","9860 - Einzahlungsverpflichtungen persönlich haftender Gesellschafter VH 1",{"$nulls":7},"9860","Einzahlungsverpflichtungen persönlich haftender Gesellschafter VH 1"]
["Kontenklasse 9 Statistische Konten","Einzahlungsverpflichtungen im Bereich der Forderungen","9861 - Einzahlungsverpflichtungen persönlich haftender Gesellschafter VH 2",{"$nulls":7},"9861","Einzahlungsverpflichtungen persönlich haftender Gesellschafter VH 2"]
["Kontenklasse 9 Statistische Konten","Einzahlungsverpflichtungen im Bereich der Forderungen","9862 - Einzahlungsverpflichtungen persönlich haftender Gesellschafter VH 3",{"$nulls":7},"9862","Einzahlungsverpflichtungen persönlich haftender Gesellschafter VH 3"]
["Kontenklasse 9 Statistische Konten","Einzahlungsverpflichtungen im Bereich der Forderungen","9863 - Einzahlungsverpflichtungen persönlich haftender Gesellschafter VH 4",{"$nulls":7},"9863","Einzahlungsverpflichtungen persönlich haftender Gesellschafter VH 4"]
["Kontenklasse 9 Statistische Konten","Einzahlungsverpflichtungen im Bereich der Forderungen","9864 - Einzahlungsverpflichtungen persönlich haftender Gesellschafter VH 5",{"$nulls":7},"9864","Einzahlungsverpflichtungen persönlich haftender Gesellschafter VH 5"]
["Kontenklasse 9 Statistische Konten","Einzahlungsverpflichtungen im Bereich der Forderungen","9865 - Einzahlungsverpflichtungen persönlich haftender Gesellschafter VH 6",{"$nulls":7},"9865","Einzahlungsverpflichtungen persönlich haftender Gesellschafter VH 6"]
["Kontenklasse 9 Statistische Konten","Einzahlungsverpflichtungen im Bereich der Forderungen","9866 - Einzahlungsverpflichtungen persönlich haftender Gesellschafter VH 7",{"$nulls":7},"9866","Einzahlungsverpflichtungen persönlich haftender Gesellschafter VH 7"]
["Kontenklasse 9 Statistische Konten","Einzahlungsverpflichtungen im Bereich der Forderungen","9867 - Einzahlungsverpflichtungen persönlich haftender Gesellschafter VH 8",{"$nulls":7},"9867","Einzahlungsverpflichtungen persönlich haftender Gesellschafter VH 8"]
["Kontenklasse 9 Statistische Konten","Einzahlungsverpflichtungen im Bereich der Forderungen","9868 - Einzahlungsverpflichtungen persönlich haftender Gesellschafter VH 9",{"$nulls":7},"9868","Einzahlungsverpflichtungen persönlich haftender Gesellschafter VH 9"]
["Kontenklasse 9 Statistische Konten","Einzahlungsverpflichtungen im Bereich der Forderungen","9869 - Einzahlungsverpflichtungen persönlich haftender Gesellschafter VH 10",{"$nulls":7},"9869","Einzahlungsverpflichtungen persönlich haftender Gesellschafter VH 10"]
["Kontenklasse 9 Statistische Konten","Einzahlungsverpflichtungen im Bereich der Forderungen","9870 - Einzahlungsverpflichtungen Kommanditisten TH 1",{"$nulls":7},"9870","Einzahlungsverpflichtungen Kommanditisten TH 1"]
["Kontenklasse 9 Statistische Konten","Einzahlungsverpflichtungen im Bereich der Forderungen","9871 - Einzahlungsverpflichtungen Kommanditisten TH 2",{"$nulls":7},"9871","Einzahlungsverpflichtungen Kommanditisten TH 2"]
["Kontenklasse 9 Statistische Konten","Einzahlungsverpflichtungen im Bereich der Forderungen","9872 - Einzahlungsverpflichtungen Kommanditisten TH 3",{"$nulls":7},"9872","Einzahlungsverpflichtungen Kommanditisten TH 3"]
["Kontenklasse 9 Statistische Konten","Einzahlungsverpflichtungen im Bereich der Forderungen","9873 - Einzahlungsverpflichtungen Kommanditisten TH 4",{"$nulls":7},"9873","Einzahlungsverpflichtungen Kommanditisten TH 4"]
["Kontenklasse 9 Statistische Konten","Einzahlungsverpflichtungen im Bereich der Forderungen","9874 - Einzahlungsverpflichtungen Kommanditisten TH 5",{"$nulls":7},"9874","Einzahlungsverpflichtungen Kommanditisten TH 5"]
["Kontenklasse 9 Statistische Konten","Einzahlungsverpflichtungen im Bereich der Forderungen","9875 - Einzahlungsverpflichtungen Kommanditisten TH 6",{"$nulls":7},"9875","Einzahlungsverpflichtungen Kommanditisten TH 6"]
["Kontenklasse 9 Statistische Konten","Einzahlungsverpflichtungen im Bereich der Forderungen","9876 - Einzahlungsverpflichtungen Kommanditisten TH 7",{"$nulls":7},"9876","Einzahlungsverpflichtungen Kommanditisten TH 7"]
["Kontenklasse 9 Statistische Konten","Einzahlungsverpflichtungen im Bereich der Forderungen","9877 - Einzahlungsverpflichtungen Kommanditisten TH 8",{"$nulls":7},"9877","Einzahlungsverpflichtungen Kommanditisten TH 8"]
["Kontenklasse 9 Statistische Konten","Einzahlungsverpflichtungen im Bereich der Forderungen","9878 - Einzahlungsverpflichtungen Kommanditisten TH 9",{"$nulls":7},"9878","Einzahlungsverpflichtungen Kommanditisten TH 9"]
["Kontenklasse 9 Statistische Konten","Einzahlungsverpflichtungen im Bereich der Forderungen","9879 - Einzahlungsverpflichtungen Kommanditisten TH 10",{"$nulls":7},"9879","Einzahlungsverpflichtungen Kommanditisten TH 10"]
["Kontenklasse 9 Statistische Konten","Ausgleichsposten für aktivierte eigene Anteile und Bilanzierungshilfen","9880 - Ausgleichsposten für aktivierte eigene Anteile",{"$nulls":7},"9880","Ausgleichsposten für aktivierte eigene Anteile"]
["Kontenklasse 9 Statistische Konten","Ausgleichsposten für aktivierte eigene Anteile und Bilanzierungshilfen","9882 - Ausgleichsposten für aktivierte Bilanzierungshilfen",{"$nulls":7},"9882","Ausgleichsposten für aktivierte Bilanzierungshilfen"]
["Kontenklasse 9 Statistische Konten","Nicht durch Vermögenseinlagen gedeckte Entnahmen","9883 - Nicht durch Vermögenseinlagen gedeckte Entnahmen persönlich haftender Gesellschafter",{"$nulls":7},"9883","Nicht durch Vermögenseinlagen gedeckte Entnahmen persönlich haftender Gesellschafter"]
["Kontenklasse 9 Statistische Konten","Nicht durch Vermögenseinlagen gedeckte Entnahmen","9884 - Nicht durch Vermögenseinlagen gedeckte Entnahmen Kommanditisten",{"$nulls":7},"9884","Nicht durch Vermögenseinlagen gedeckte Entnahmen Kommanditisten"]
["Kontenklasse 9 Statistische Konten","Verrechnungskonto für nicht durch Vermögenseinlagen gedeckte Entnahmen","9885 - Verrechnungskonto für nicht durch Vermögenseinlagen gedeckte Entnahmen persönlich haftender Gesellschafter",{"$nulls":7},"9885","Verrechnungskonto für nicht durch Vermögenseinlagen gedeckte Entnahmen persönlich haftender Gesellschafter"]
["Kontenklasse 9 Statistische Konten","Verrechnungskonto für nicht durch Vermögenseinlagen gedeckte Entnahmen","9886 - Verrechnungskonto für nicht durch Vermögenseinlagen gedeckte Entnahmen Kommanditisten",{"$nulls":7},"9886","Verrechnungskonto für nicht durch Vermögenseinlagen gedeckte Entnahmen Kommanditisten"]
["Kontenklasse 9 Statistische Konten","Steueraufwand der Gesellschafter","9887 - Steueraufwand der Gesellschafter",{"$nulls":7},"9887","Steueraufwand der Gesellschafter"]
["Kontenklasse 9 Statistische Konten","Steueraufwand der Gesellschafter","9889 - Gegenkonto zu 9887",{"$nulls":7},"9889","Gegenkonto zu 9887"]
["Kontenklasse 9 Statistische Konten","Statistische Konten für Gewinnzuschlag","9890 - Statistisches Konto für den Gewinnzuschlag nach §§ 6b, 6c und 7g  a. F. EStG (Haben)",{"$nulls":7},"9890","Statistisches Konto für den Gewinnzuschlag nach §§ 6b, 6c und 7g  a. F. EStG (Haben)"]
["Kontenklasse 9 Statistische Konten","Statistische Konten für Gewinnzuschlag","9891 - Statistisches Konto für den Gewinnzuschlag nach §§ 6b, 6c und 7g a. F. EStG (Soll) -- Gegenkonto zu 9890",{"$nulls":7},"9891","Statistisches Konto für den Gewinnzuschlag nach §§ 6b, 6c und 7g a. F. EStG (Soll) -- Gegenkonto zu 9890"]
["Kontenklasse 9 Statistische Konten","Statistische Konten zu § 4 (4a) EStG","9910 - Gegenkonto zur  Minderung der Entnahmen § 4 (4a) EStG",{"$nulls":7},"9910","Gegenkonto zur  Minderung der Entnahmen § 4 (4a) EStG"]
["Kontenklasse 9 Statistische Konten","Statistische Konten zu § 4 (4a) EStG","9911 -  Minderung der Entnahmen § 4 (4a) EStG (Haben)",{"$nulls":7},"9911"," Minderung der Entnahmen § 4 (4a) EStG (Haben)"]
["Kontenklasse 9 Statistische Konten","Statistische Konten zu § 4 (4a) EStG","9912 - Erhöhung der Entnahmen § 4 (4a) EStG (Haben)",{"$nulls":7},"9912","Erhöhung der Entnahmen § 4 (4a) EStG (Haben)"]
["Kontenklasse 9 Statistische Konten","Statistische Konten zu § 4 (4a) EStG","9913 - Gegenkonto zur Erhöhung der Entnahmen § 4 (4a) EStG (Haben)",{"$nulls":7},"9913","Gegenkonto zur Erhöhung der Entnahmen § 4 (4a) EStG (Haben)"]
["Kontenklasse 9 Statistische Konten","Statistische Konten zu § 4 (4a) EStG","9916 - Reserviert D",{"$nulls":7},"9916","Reserviert D"]
["Kontenklasse 9 Statistische Konten","Statistische Konten zu § 4 (4a) EStG","9917 - Reserviert D",{"$nulls":7},"9917","Reserviert D"]
["Kontenklasse 9 Statistische Konten","Statistische Konten für Kinderbetreuungskosten","9918 - Kinderbetreuungskosten (wie Betriebsausgaben steuerlich anzusetzender Betrag)",{"$nulls":7},"9918","Kinderbetreuungskosten (wie Betriebsausgaben steuerlich anzusetzender Betrag)"]
["Kontenklasse 9 Statistische Konten","Statistische Konten für Kinderbetreuungskosten","9919 - Kinderbetreuungskosten  -- Gegenkonto zu 9918 (Haben)",{"$nulls":7},"9919","Kinderbetreuungskosten  -- Gegenkonto zu 9918 (Haben)"]
["Kontenklasse 9 Statistische Konten","Ausstehende Einlagen","9920 - Ausstehende Einlagen auf das Komplementär-Kapital, nicht eingefordert VH 1",{"$nulls":7},"9920","Ausstehende Einlagen auf das Komplementär-Kapital, nicht eingefordert VH 1"]
["Kontenklasse 9 Statistische Konten","Ausstehende Einlagen","9921 - Ausstehende Einlagen auf das Komplementär-Kapital, nicht eingefordert VH 2",{"$nulls":7},"9921","Ausstehende Einlagen auf das Komplementär-Kapital, nicht eingefordert VH 2"]
["Kontenklasse 9 Statistische Konten","Ausstehende Einlagen","9922 - Ausstehende Einlagen auff das Komplementär-Kapital, nicht eingefordert VH 3",{"$nulls":7},"9922","Ausstehende Einlagen auff das Komplementär-Kapital, nicht eingefordert VH 3"]
["Kontenklasse 9 Statistische Konten","Ausstehende Einlagen","9923 - Ausstehende Einlagen auf das Komplementär-Kapital, nicht eingefordert VH 4",{"$nulls":7},"9923","Ausstehende Einlagen auf das Komplementär-Kapital, nicht eingefordert VH 4"]
["Kontenklasse 9 Statistische Konten","Ausstehende Einlagen","9924 - Ausstehende Einlagen auf das Komplementär-Kapital, nicht eingefordert VH 5",{"$nulls":7},"9924","Ausstehende Einlagen auf das Komplementär-Kapital, nicht eingefordert VH 5"]
["Kontenklasse 9 Statistische Konten","Ausstehende Einlagen","9925 - Ausstehende Einlagen auf das Komplementär-Kapital, nicht eingefordert VH 6",{"$nulls":7},"9925","Ausstehende Einlagen auf das Komplementär-Kapital, nicht eingefordert VH 6"]
["Kontenklasse 9 Statistische Konten","Ausstehende Einlagen","9926 - Ausstehende Einlagen auf das Komplementär-Kapital, nicht eingefordert VH 7",{"$nulls":7},"9926","Ausstehende Einlagen auf das Komplementär-Kapital, nicht eingefordert VH 7"]
["Kontenklasse 9 Statistische Konten","Ausstehende Einlagen","9927 - Ausstehende Einlagen auf das Komplementär-Kapital, nicht eingefordert VH 8",{"$nulls":7},"9927","Ausstehende Einlagen auf das Komplementär-Kapital, nicht eingefordert VH 8"]
["Kontenklasse 9 Statistische Konten","Ausstehende Einlagen","9928 - Ausstehende Einlagen auf das Komplementär-Kapital, nicht eingefordert VH 9",{"$nulls":7},"9928","Ausstehende Einlagen auf das Komplementär-Kapital, nicht eingefordert VH 9"]
["Kontenklasse 9 Statistische Konten","Ausstehende Einlagen","9929 - Ausstehende Einlagen auf das Komplementär-Kapital, nicht eingefordert VH 10",{"$nulls":7},"9929","Ausstehende Einlagen auf das Komplementär-Kapital, nicht eingefordert VH 10"]
["Kontenklasse 9 Statistische Konten","Ausstehende Einlagen","9930 - Ausstehende Einlagen auf das Komplementär-Kapital, eingefordert VH 1",{"$nulls":7},{"$f":"MID(C2051,1,4)","v":"9930"},{"$f":"MID(C2051,8,255)","v":"Ausstehende Einlagen auf das Komplementär-Kapital, eingefordert VH 1"}]
["Kontenklasse 9 Statistische Konten","Ausstehende Einlagen","9931 - Ausstehende Einlagen auf das Komplementär-Kapital, eingefordert VH 2",{"$nulls":7},"9931","Ausstehende Einlagen auf das Komplementär-Kapital, eingefordert VH 2"]
["Kontenklasse 9 Statistische Konten","Ausstehende Einlagen","9932 - Ausstehende Einlagen auf das Komplementär-Kapital, eingefordert VH 3",{"$nulls":7},"9932","Ausstehende Einlagen auf das Komplementär-Kapital, eingefordert VH 3"]
["Kontenklasse 9 Statistische Konten","Ausstehende Einlagen","9933 - Ausstehende Einlagen auf das Komplementär-Kapital, eingefordert VH 4",{"$nulls":7},"9933","Ausstehende Einlagen auf das Komplementär-Kapital, eingefordert VH 4"]
["Kontenklasse 9 Statistische Konten","Ausstehende Einlagen","9934 - Ausstehende Einlagen auf das Komplementär-Kapital, eingefordert VH 5",{"$nulls":7},"9934","Ausstehende Einlagen auf das Komplementär-Kapital, eingefordert VH 5"]
["Kontenklasse 9 Statistische Konten","Ausstehende Einlagen","9935 - Ausstehende Einlagen auf das Komplementär-Kapital, eingefordert VH 6",{"$nulls":7},"9935","Ausstehende Einlagen auf das Komplementär-Kapital, eingefordert VH 6"]
["Kontenklasse 9 Statistische Konten","Ausstehende Einlagen","9936 - Ausstehende Einlagen auf das Komplementär-Kapital, eingefordert VH 7",{"$nulls":7},"9936","Ausstehende Einlagen auf das Komplementär-Kapital, eingefordert VH 7"]
["Kontenklasse 9 Statistische Konten","Ausstehende Einlagen","9937 - Ausstehende Einlagen auf das Komplementär-Kapital, eingefordert VH 8",{"$nulls":7},"9937","Ausstehende Einlagen auf das Komplementär-Kapital, eingefordert VH 8"]
["Kontenklasse 9 Statistische Konten","Ausstehende Einlagen","9938 - Ausstehende Einlagen auf das Komplementär-Kapital, eingefordert VH 9",{"$nulls":7},"9938","Ausstehende Einlagen auf das Komplementär-Kapital, eingefordert VH 9"]
["Kontenklasse 9 Statistische Konten","Ausstehende Einlagen","9939 - Ausstehende Einlagen auf das Komplementär-Kapital, eingefordert VH 10",{"$nulls":7},"9939","Ausstehende Einlagen auf das Komplementär-Kapital, eingefordert VH 10"]
["Kontenklasse 9 Statistische Konten","Ausstehende Einlagen","9940 - Ausstehende Einlagen auf das Kommandit-Kapital, nicht eingefordert TH 1",{"$nulls":7},"9940","Ausstehende Einlagen auf das Kommandit-Kapital, nicht eingefordert TH 1"]
["Kontenklasse 9 Statistische Konten","Ausstehende Einlagen","9941 - Ausstehende Einlagen auf das Kommandit-Kapital, nicht eingefordert TH 2",{"$nulls":7},"9941","Ausstehende Einlagen auf das Kommandit-Kapital, nicht eingefordert TH 2"]
["Kontenklasse 9 Statistische Konten","Ausstehende Einlagen","9942 - Ausstehende Einlagen auf das Kommandit-Kapital, nicht eingefordert TH 3",{"$nulls":7},"9942","Ausstehende Einlagen auf das Kommandit-Kapital, nicht eingefordert TH 3"]
["Kontenklasse 9 Statistische Konten","Ausstehende Einlagen","9943 - Ausstehende Einlagen auf das Kommandit-Kapital, nicht eingefordert TH 4",{"$nulls":7},"9943","Ausstehende Einlagen auf das Kommandit-Kapital, nicht eingefordert TH 4"]
["Kontenklasse 9 Statistische Konten","Ausstehende Einlagen","9944 - Ausstehende Einlagen auf das Kommandit-Kapital, nicht eingefordert TH 5",{"$nulls":7},"9944","Ausstehende Einlagen auf das Kommandit-Kapital, nicht eingefordert TH 5"]
["Kontenklasse 9 Statistische Konten","Ausstehende Einlagen","9945 - Ausstehende Einlagen auf das Kommandit-Kapital, nicht eingefordert TH 6",{"$nulls":7},"9945","Ausstehende Einlagen auf das Kommandit-Kapital, nicht eingefordert TH 6"]
["Kontenklasse 9 Statistische Konten","Ausstehende Einlagen","9946 - Ausstehende Einlagen auf das Kommandit-Kapital, nicht eingefordert TH 7",{"$nulls":7},"9946","Ausstehende Einlagen auf das Kommandit-Kapital, nicht eingefordert TH 7"]
["Kontenklasse 9 Statistische Konten","Ausstehende Einlagen","9947 - Ausstehende Einlagen auf das Kommandit-Kapital, nicht eingefordert TH 8",{"$nulls":7},"9947","Ausstehende Einlagen auf das Kommandit-Kapital, nicht eingefordert TH 8"]
["Kontenklasse 9 Statistische Konten","Ausstehende Einlagen","9948 - Ausstehende Einlagen auf das Kommandit-Kapital, nicht eingefordert TH 9",{"$nulls":7},"9948","Ausstehende Einlagen auf das Kommandit-Kapital, nicht eingefordert TH 9"]
["Kontenklasse 9 Statistische Konten","Ausstehende Einlagen","9949 - Ausstehende Einlagen auf das Kommandit-Kapital, nicht eingefordert TH 10",{"$nulls":7},"9949","Ausstehende Einlagen auf das Kommandit-Kapital, nicht eingefordert TH 10"]
["Kontenklasse 9 Statistische Konten","Ausstehende Einlagen","9950 - Ausstehende Einlagen auf das Kommandit-Kapital, eingefordert TH 1",{"$nulls":7},"9950","Ausstehende Einlagen auf das Kommandit-Kapital, eingefordert TH 1"]
["Kontenklasse 9 Statistische Konten","Ausstehende Einlagen","9951 - Ausstehende Einlagen auf das Kommandit-Kapital, eingefordert TH 2",{"$nulls":7},"9951","Ausstehende Einlagen auf das Kommandit-Kapital, eingefordert TH 2"]
["Kontenklasse 9 Statistische Konten","Ausstehende Einlagen","9952 - Ausstehende Einlagen auf das Kommandit-Kapital, eingefordert TH 3",{"$nulls":7},"9952","Ausstehende Einlagen auf das Kommandit-Kapital, eingefordert TH 3"]
["Kontenklasse 9 Statistische Konten","Ausstehende Einlagen","9953 - Ausstehende Einlagen auf das Kommandit-Kapital, eingefordert TH 4",{"$nulls":7},"9953","Ausstehende Einlagen auf das Kommandit-Kapital, eingefordert TH 4"]
["Kontenklasse 9 Statistische Konten","Ausstehende Einlagen","9954 - Ausstehende Einlagen auf das Kommandit-Kapital, eingefordert TH 5",{"$nulls":7},"9954","Ausstehende Einlagen auf das Kommandit-Kapital, eingefordert TH 5"]
["Kontenklasse 9 Statistische Konten","Ausstehende Einlagen","9955 - Ausstehende Einlagen auf das Kommandit-Kapital, eingefordert TH 6",{"$nulls":7},"9955","Ausstehende Einlagen auf das Kommandit-Kapital, eingefordert TH 6"]
["Kontenklasse 9 Statistische Konten","Ausstehende Einlagen","9956 - Ausstehende Einlagen auf das Kommandit-Kapital, eingefordert TH 7",{"$nulls":7},"9956","Ausstehende Einlagen auf das Kommandit-Kapital, eingefordert TH 7"]
["Kontenklasse 9 Statistische Konten","Ausstehende Einlagen","9957 - Ausstehende Einlagen auf das Kommandit-Kapital, eingefordert TH 8",{"$nulls":7},"9957","Ausstehende Einlagen auf das Kommandit-Kapital, eingefordert TH 8"]
["Kontenklasse 9 Statistische Konten","Ausstehende Einlagen","9958 - Ausstehende Einlagen auf das Kommandit-Kapital, eingefordert TH 9",{"$nulls":7},"9958","Ausstehende Einlagen auf das Kommandit-Kapital, eingefordert TH 9"]
["Kontenklasse 9 Statistische Konten","Statistische Konten für den außerhalb der Bilanz zu berücksichtigenden Investitionsabzugsbetrag nach § 7g EStG","9970 - Investitionsabzugsbetrag § 7g Abs. 1 EStG,außerbilanziell (Soll)",{"$nulls":7},"9970","Investitionsabzugsbetrag § 7g Abs. 1 EStG,außerbilanziell (Soll)"]
["Kontenklasse 9 Statistische Konten","Statistische Konten für den außerhalb der Bilanz zu berücksichtigenden Investitionsabzugsbetrag nach § 7g EStG","9971 - Investitionsabzugsbetrag § 7g Abs. 1 EStG, außerbilanziell (Haben) -- Gegenkonto zu 9970",{"$nulls":7},"9971","Investitionsabzugsbetrag § 7g Abs. 1 EStG, außerbilanziell (Haben) -- Gegenkonto zu 9970"]
["Kontenklasse 9 Statistische Konten","Statistische Konten für den außerhalb der Bilanz zu berücksichtigenden Investitionsabzugsbetrag nach § 7g EStG","9972 - Hinzurechnung Investitionsabzugs-;;;;;;;",{"$nulls":7},"9972","Hinzurechnung Investitionsabzugs-;;;;;;;"]
["Kontenklasse 9 Statistische Konten","Statistische Konten für den außerhalb der Bilanz zu berücksichtigenden Investitionsabzugsbetrag nach § 7g EStG","9973 - Hinzurechnung Investitionsabzugs-;;;;;;;",{"$nulls":7},"9973","Hinzurechnung Investitionsabzugs-;;;;;;;"]
["Kontenklasse 9 Statistische Konten","Statistische Konten für den außerhalb der Bilanz zu berücksichtigenden Investitionsabzugsbetrag nach § 7g EStG","9974 - Rückgängigmachung § 7g Abs. 3, 4 EStG und Erhöhung Investitionsabzugsbetrag im früheren Abzugsjahr;;;;;;;",{"$nulls":7},"9974","Rückgängigmachung § 7g Abs. 3, 4 EStG und Erhöhung Investitionsabzugsbetrag im früheren Abzugsjahr;;;;;;;"]
["Kontenklasse 9 Statistische Konten","Statistische Konten für den außerhalb der Bilanz zu berücksichtigenden Investitionsabzugsbetrag nach § 7g EStG","9975 - Rückgängigmachung § 7g Abs. 3, 4 EStG und Erhöhung Investitionsabzugsbetrag im früheren Abzugsjahr;;;;;;;",{"$nulls":7},"9975","Rückgängigmachung § 7g Abs. 3, 4 EStG und Erhöhung Investitionsabzugsbetrag im früheren Abzugsjahr;;;;;;;"]
["Kontenklasse 9 Statistische Konten","Statistische Konten für die Zinsschranke § 4h EStG/§ 8a KStG","9976 - Nicht abzugsfähige Zinsaufwendungen gemäß § 4h EStG (Haben)",{"$nulls":7},"9976","Nicht abzugsfähige Zinsaufwendungen gemäß § 4h EStG (Haben)"]
["Kontenklasse 9 Statistische Konten","Statistische Konten für die Zinsschranke § 4h EStG/§ 8a KStG","9977 - Nicht abzugsfähige Zinsaufwendungen gemäß § 4h EStgG (Soll) -- Gegenkonto zu 9976",{"$nulls":7},"9977","Nicht abzugsfähige Zinsaufwendungen gemäß § 4h EStgG (Soll) -- Gegenkonto zu 9976"]
["Kontenklasse 9 Statistische Konten","Statistische Konten für die Zinsschranke § 4h EStG/§ 8a KStG","9978 - Abziehbare Zinsaufwendungen aus Vorjahren gemäß § 4h EStG (Soll)",{"$nulls":7},"9978","Abziehbare Zinsaufwendungen aus Vorjahren gemäß § 4h EStG (Soll)"]
["Kontenklasse 9 Statistische Konten","Statistische Konten für die Zinsschranke § 4h EStG/§ 8a KStG","9979 - Abziehbare Zinsaufwendungen aus vorjahren gemäß S 4h EStG (Haben) -- Gegenkonto zu 9978",{"$nulls":7},"9979","Abziehbare Zinsaufwendungen aus vorjahren gemäß S 4h EStG (Haben) -- Gegenkonto zu 9978"]
["Kontenklasse 9 Statistische Konten","Statistische Konten für den GuVAusweis in „Gutschrift bzw. Belastung auf Verbindlichkeitskonten“ bei den Zuordnungstabellen für PersHG nach KapCoRiLiG","9980 - Anteil auf  Verbindlichkeitskonten",{"$nulls":7},"9980","Anteil auf  Verbindlichkeitskonten"]
["Kontenklasse 9 Statistische Konten","Statistische Konten für den GuVAusweis in „Gutschrift bzw. Belastung auf Verbindlichkeitskonten“ bei den Zuordnungstabellen für PersHG nach KapCoRiLiG","9981 - Verrechnungskonto für Anteil Belastung auf Verbindlichkeitskonten",{"$nulls":7},"9981","Verrechnungskonto für Anteil Belastung auf Verbindlichkeitskonten"]
["Kontenklasse 9 Statistische Konten","Statistische Konten für den GuVAusweis in „Gutschrift bzw. Belastung auf Verbindlichkeitskonten“ bei den Zuordnungstabellen für PersHG nach KapCoRiLiG","9982 - Anteil Gutschrift auf Verbindlichkeitskonten",{"$nulls":7},"9982","Anteil Gutschrift auf Verbindlichkeitskonten"]
["Kontenklasse 9 Statistische Konten","Statistische Konten für den GuVAusweis in „Gutschrift bzw. Belastung auf Verbindlichkeitskonten“ bei den Zuordnungstabellen für PersHG nach KapCoRiLiG","9983 - Verrechnungskonto für Anteil Gutschrift auf Verbindlichkeitskonten",{"$nulls":7},"9983","Verrechnungskonto für Anteil Gutschrift auf Verbindlichkeitskonten"]
["Kontenklasse 9 Statistische Konten","Statistische Konten für die Gewinnkorrektur nach § 60 Abs. 2 EStDV","9984 - Gewinnkorrektur nach § 60 Abs 2 EStDV;;;;;;;",{"$nulls":7},"9984","Gewinnkorrektur nach § 60 Abs 2 EStDV;;;;;;;"]
["Kontenklasse 9 Statistische Konten","Statistische Konten für die Gewinnkorrektur nach § 60 Abs. 2 EStDV","9985 - Gegenkonto zu 9984",{"$nulls":7},"9985","Gegenkonto zu 9984"]
["Kontenklasse 9 Statistische Konten","Statistische Konten für Korrekturbuchungen in der Überleitungsrechnung","9986 - Ergebnisverteilung auf Fremdkapital",{"$nulls":7},"9986","Ergebnisverteilung auf Fremdkapital"]
["Kontenklasse 9 Statistische Konten","Statistische Konten für Korrekturbuchungen in der Überleitungsrechnung","9987 - Bilanzberichtigung",{"$nulls":7},"9987","Bilanzberichtigung"]
["Kontenklasse 9 Statistische Konten","Statistische Konten für Korrekturbuchungen in der Überleitungsrechnung","9989 - Gegenkonto zu 9986-9988",{"$nulls":7},"9989","Gegenkonto zu 9986-9988"]

{"sheet":"Tabelle2","index":1,"n_rows":0,"n_cols":0,"rows_kept":0,"cut":false,"hidden":false,"merged":[]}

{"sheet":"Tabelle3","index":2,"n_rows":0,"n_cols":0,"rows_kept":0,"cut":false,"hidden":false,"merged":[]}